Workbook

Sheet Berechnungswerte
A2: Datum: | D2: 2019-01-07 | G2: Rev.: V.6.3 | L2: Name: | M2: Mustermann | Q2: ZNr.: | R2: P0000.KB.01
B6: Maximal zulässige Kabeltemperatur (Cu) im ungestörten Betrieb für Motorabgänge, Sicherungsabgänge und Transformatorableitungen für PVC Isolierte Leitungen
E7: 70 | F7: °C | G7: Belastbarkeit, Kabel mit Nennspannung U0/U =0,6/1kV laut DIN VDE 0298, Teil 4 ;
J8: für Frequenzumrichter - Abgänge | X8: für Frequenzumrichter - Abgänge
B9: für Motor und Sicherungsabgänge | J9: Sicherung Abschaltfaktor Faktor m = | N9: 5 | O9: (SIm) | Q9: Verlegung in Luft Umrechnungsfaktoren bei folgenden Temperaturen | X9: mit "JA Ändern" wird auch der Sicherungs Abschaltfaktor Faktor m = auf 5 gesetzt
B10: Motor ΔUmax Anlauf = | G10: 10 | H10: % | J10: Frequenzumrichter ΔUmax Anlauf = | N10: 5 | O10: %
B11: Motor Anlaufstrom >>>> IS = | G11: 7 | H11: x IN | J11: FU - Motor Anlaufstrom >>>> ISFU = | N11: 1.5 | O11: x IN
A12: 4) Belastbarkeit der Kabel bei | E12: 40 | F12: °C | G12: =IF(Fehlerwert > 0,"FEHLEINGABE BEACHTEN <<< in Sprüngen zu 5 °C","<<< in Sprüngen von 5 °C < ACHTUNG ALLE KABEL - < DATEN werden geändert !!! Es werden immer die kleinstmöglichen Querschnitte eingetragen !!!") -> <<< in Sprüngen von 5 °C < ACHTUNG ALLE KABEL - < DATEN werden geändert !!! Es werden immer die kleinstmöglichen Querschnitte eingetragen !!! | L12: =MOD(MSLuft,5) -> 0 | N12: laut DIN VDE 0298, Teil 4 ;
A13: 5) Verlegung in Luft | M13: f1 = | N13: =(IF(E12=Q17,T17,IF(E12=Q18,T18,IF(E12=Q19,T19,IF(E12=Q20,T20,IF(E12=Q21,T21,IF(E12=Q22,T22,IF(E12=Q23,T23,IF(E12=Q24,T24,"Fehler"))))))))) -> 0.87 | O13: Tab.15 | Q13: laut DIN VDE 0298, Teil 4 ; Tab 15
Q14: Werte < 15°C / > 50°C nicht automatisch
A15: =Red_Kabelverlegung!C18 -> 6a) Vierleiterkabel: Verlegung auf 6 Kabelpritsche(n) mit gegenseitiger | M15: f2 = | N15: =Red_Kabelverlegung!O18 -> 0.66 | O15: Tab.18
A16: =Red_Kabelverlegung!C19 -> und Wand- Berührung 9 Kabel nebeneinander liegend, KS-fest verl.
A17: =Red_Kabelverlegung!C33 -> 6b) Einleiterkabel: Verlegung auf 6 Kabelpritsche(n) gebündelt im | M17: f2 = | N17: =Red_Kabelverlegung!O33 -> 0.87 | O17: Tab. 16 | Q17: 15 | S17: °C ---> | T17: 1.17
A18: =Red_Kabelverlegung!C34 -> Abstand 2d 3 Drehstromsysteme nebeneinander, KS-fest verl. | Q18: 20 | S18: °C ---> | T18: 1.12
K19: ΔU 690 V | L19: ΔU 500 V | M19: ΔU 400 V | Q19: 25 | S19: °C ---> | T19: 1.06
C20: Spannungsfall max 5 % eingeben | G20: 2.5 | H20: % | K20: =690/100*Spannungsfall -> 17.25 | L20: =500/100*Spannungsfall -> 12.5 | M20: =400/100*Spannungsfall -> 10 | Q20: 30 | S20: °C ---> | T20: 1
A21: 7a) Reduzierung der Belastbarkeit (6a) | M21: f = f1 * f2 | N21: =AbmTemp*AbmHaeufung -> 0.5742 | Q21: 35 | S21: °C ---> | T21: 0.94
Q22: 40 | S22: °C ---> | T22: 0.87
A23: 7b) Reduzierung der Belastbarkeit (6b) | M23: f = f1 * f2 | N23: =AbmTemp*AbmHäuf_Einleiter -> 0.7569 | Q23: 45 | S23: °C ---> | T23: 0.79
Q24: 50 | S24: °C ---> | T24: 0.71
E26: Temperatur-Beiwert | F26: 0.00393 | H26: Kurzschluss Endtemperatur | L26: 81 | N26: Kupfer KCu= | O26: 56
A28: für Transformator - Ableitungen | Q28: laut DIN VDE 0298, Teil 4 ; Tab 28
A29: 2) Belastbarkeit der Kabel | E29: Sprünge >> 5°C | G29: =IF(FehlerwertTrafo > 0,"FEHLEINGABE BEACHTEN <<< in Sprüngen zu 5 °C","<<< in Sprüngen von 5 °C") -> <<< in Sprüngen von 5 °C | L29: =MOD(E30,5) -> 0 | N29: laut DIN VDE 0298, Teil 4 ; | Q29: Bemessung der Kurzzeitstromdichte (1s) in A/mm2 (bis 300mm2)
A30: 3) Verlegung in Luft bei | E30: 35 | F30: °C | M30: f1 = | N30: =IF(E30=Q17,T17,IF(E30=Q18,T18,IF(E30=Q19,T19,IF(E30=Q20,T20,IF(E30=Q21,T21,IF(E30=Q22,T22,IF(E30=Q23,T23,IF(E30=Q24,T24,"Fehler")))))))) -> 0.94 | O30: Tab.15
A32: =Red_Kabelverlegung!C48 -> 4) Einleiterkabel: Verlegung auf 6 Kabelpritsche(n) gebündelt im | M32: Einl. f2 = | N32: =Red_Kabelverlegung!O48 -> 0.87 | O32: Tab.16 | Q32: Leitertemperatur zu Beginn des Kurzschlusses
A33: =Red_Kabelverlegung!C49 -> Abstand 2d 3 Drehstromsysteme nebeneinander, KS-fest verl. | M33: f = f1 * Einl. f2 = | N33: =AbmTempTrafo*F2EinlTrafo -> 0.8178
A34: 5) Reduzierung der Belastbarkeit (4) | Q34: 70 | R34: °C ---> | S34: 115 | T34: A/sec
A35: =Red_Kabelverlegung!C62 -> 4) Drei- und Mehr- leiterkabel: Verlegung auf 6 Kabelpritsche(n) | M35: Mehrl. f2 = | N35: =Red_Kabelverlegung!O62 -> 0.96 | O35: Tab.17 | Q35: Bemessung der Kurzzeitstromdichte (1s) in A/mm2 (über 300mm2)
A36: =Red_Kabelverlegung!C63 -> im Abstand d 3 Kabel nebeneinander liegend, KS-fest verl. | M36: f = f1 * Mehrl. f2 = | N36: =AbmTempTrafo*F2VierlTrafo -> 0.9024
A37: 5) Reduzierung der Belastbarkeit (4) f = f1 x f2
Q38: 70 | R38: °C ---> | S38: 103 | T38: A/sec
A40: ROT | D40: EINGABEFELD | F40: Hier können die relevanten Daten - Eingaben erfolgen
A41: Schwarz | D41: RECHEN- TEXT- FELD | F41: Rechenergebnisse und Texte nach der Eingabe von Daten
A44: ="Znr.: "& Znr -> Znr.: P0000.KB.01 | G44: Berechnungswerte | J44: Speicherort | S44: =Datum -> 2019-01-07
A45: =Revision -> Rev.: V.6.3 | G45: I:\P_MSR\Diverses\Berechnungen\Leistungskabel | S45: =MName -> Mustermann

Sheet Kab_Werte
A1: drucken | X1: Bitte einmal selbst nachrechnen | Z1: Kurzschlusstrom umr. für tk = 0,01 bis 5 s | AC1: kCu bis 300 mm2
A2: drucken | G2: Spalte I (I4 bis I126): Strombelastbarkeit nach ÖVE - K 603, VI Anhang (Tabellen), Tabelle 7 | AC2: A/mm2/s 115
A3: drucken | G3: Temperatur > | J3: 30 | K3: =MSLuft -> 40 | L3: 20 | M3: 20 | N3: =Maximale_Kabel_Temperatur -> 70 | O3: =Maximale_Kabel_Temperatur -> 70 | P3: =Maximale_Kabel_Temperatur -> 70 | R3: =Berechnungswerte!E30 -> 35 | Z3: 1 | AC3: kCu > 300 mm2
A4: drucken | G4: [mm2] | H4: [mm2] | I4: [A] | J4: [A] | K4: [A] | L4: [Ohm/km] | M4: [Ohm/km] | N4: [Ohm/km] | O4: [Ohm/km] | P4: [Ohm/km] | X4: Hinleiter | Y4: Rückleiter | Z4: Hinleiter | AA4: Rückleiter | AC4: A/mm2/s 103
A5: Pos (INDEX) | B5: Adern Hinleiter | C5: Adern Rückleiter | D5: parallel | E5: Kabeltype | F5: Kabel Querschnitt - A mm2 | G5: Hinleiter mm2 (einer) > 300mm2 farblich hinterlegt | H5: Rückleiter mm2 (einer) > 300mm2 farblich hinterlegt | I5: Belastbarkeit in Luft Strom in A | J5: =" Belastbarkeit in Luft Strom in A Summe der Leiter Temperatur " & J3 & "°C" -> Belastbarkeit in Luft Strom in A Summe der Leiter Temperatur 30°C | K5: =" Belastbarkeit in Luft Strom in A mit Abminderungsfaktoren" -> Belastbarkeit in Luft Strom in A mit Abminderungsfaktoren | L5: Hinleiter (einer) R bei---> °C | M5: Rückleiter (einer) R bei ---> °C | N5: Hinleiter (einer) R bei---> °C | O5: Rückleiter (einer) R bei ---> °C | P5: Z´. NEU 70°C Hin und Rückleiter alle Leiter parallel R warm bei --->°C | Q5: Abminderungsfaktor Trafoableitungen | R5: =" Trafokabel in Luft Strom in A Summe der Leiter Temperatur " & R3 & "°C" -> Trafokabel in Luft Strom in A Summe der Leiter Temperatur 35°C | S5: Kabelanzahl | T5: Kabeldurchmesser ø (mm) | U5: Motorkabel Text | V5: Kabelgewicht EINZEL kg/m | W5: Kabelgewicht SUMME kg/m | X5: Hinleiter Kurzschl. Festigkeit in (kA) für t k = 1s | Y5: Rückleiter Kurzschl. Festigkeit in (kA) für t k = 1s | Z5: Ithz = Ithr * Wurzel(1s / tk ) in kA | AC5: ACHTUNG Spalte AA Formatierung verminderte Rückleiter
A6: 1 | B6: 1 | C6: 1 | D6: // | E6: NYY-J | F6: 4x2,5 | G6: 2.5 | H6: 2.5 | I6: 25 | J6: =IF(B6=0,I6,I6*B6) -> 25 | K6: =J6*Reduz_a -> 14.355 | L6: 7.41 | M6: 7.41 | N6: =$L6*(1+Temp_Beiwert*(Maximale_Kabel_Temperatur-20)) -> 8.866065 | O6: =$M6*(1+Temp_Beiwert*(Maximale_Kabel_Temperatur-20)) -> 8.866065 | P6: =(N6/B6)+(O6/C6) -> 17.73213 | Q6: =FVierlTrafo -> 0.9024 | R6: =J6*FVierlTrafo -> 22.56 | S6: =B6 -> 1 | T6: 17 | U6: =CONCATENATE(S6,"x ",T6) -> 1x 17 | V6: 0.31 | W6: =S6*V6 -> 0.31 | X6: =B6*G6*115/1000 -> 0.2875 | Y6: =C6*H6*115/1000 -> 0.2875 | Z6: =X6*SQRT(1/KSZeit) -> 0.2875 | AA6: =Y6*SQRT(1/KSZeit) -> 0.2875
A7: 2 | B7: 1 | C7: 1 | D7: // | E7: NYY-J | F7: 4x4 | G7: 4 | H7: 4 | I7: 34 | J7: 34 | K7: 19.5228 | L7: 4.61 | M7: 4.61 | N7: 5.515865 | O7: 5.515865 | P7: 11.03173 | Q7: 0.9024 | R7: 30.6816 | S7: 1 | T7: 19 | U7: 1x 19 | V7: 0.43 | W7: 0.43 | X7: =B7*G7*115/1000 -> 0.46 | Y7: =C7*H7*115/1000 -> 0.46 | Z7: 0.46 | AA7: 0.46
A8: 3 | B8: 1 | C8: 1 | D8: // | E8: NYY-J | F8: 4x6 | G8: 6 | H8: 6 | I8: 43 | J8: 43 | K8: 24.6906 | L8: 3.08 | M8: 3.08 | N8: 3.68522 | O8: 3.68522 | P8: 7.37044 | Q8: 0.9024 | R8: 38.8032 | S8: 1 | T8: 20 | U8: 1x 20 | V8: 0.54 | W8: 0.54 | X8: 0.69 | Y8: 0.69 | Z8: 0.69 | AA8: 0.69
A9: 4 | B9: 1 | C9: 1 | D9: // | E9: NYY-J | F9: 4x10 | G9: 10 | H9: 10 | I9: 59 | J9: 59 | K9: 33.8778 | L9: 1.83 | M9: 1.83 | N9: 2.189595 | O9: 2.189595 | P9: 4.37919 | Q9: 0.9024 | R9: 53.2416 | S9: 1 | T9: 22 | U9: 1x 22 | V9: 0.74 | W9: 0.74 | X9: 1.15 | Y9: 1.15 | Z9: 1.15 | AA9: 1.15
A10: 5 | B10: 1 | C10: 1 | D10: // | E10: NYY-J | F10: 4x16 | G10: 16 | H10: 16 | I10: 78 | J10: 78 | K10: 44.7876 | L10: 1.15 | M10: 1.15 | N10: 1.375975 | O10: 1.375975 | P10: 2.75195 | Q10: 0.9024 | R10: 70.3872 | S10: 1 | T10: 25 | U10: 1x 25 | V10: 1.03 | W10: 1.03 | X10: 1.84 | Y10: 1.84 | Z10: 1.84 | AA10: 1.84
A11: 6 | B11: 1 | C11: 1 | D11: // | E11: NYY-J | F11: 3x25/16 | G11: 25 | H11: 16 | I11: 105 | J11: 105 | K11: 60.291 | L11: 0.727 | M11: 1.15 | N11: 0.8698555 | O11: 1.375975 | P11: 2.2458305 | Q11: 0.9024 | R11: 94.752 | S11: 1 | T11: 30 | U11: 1x 30 | V11: 1.42 | W11: 1.42 | X11: 2.875 | Y11: 1.84 | Z11: 2.875 | AA11: 1.84
A12: 7 | B12: 1 | C12: 1 | D12: // | E12: NYY-J | F12: 4x25 | G12: 25 | H12: 25 | I12: 105 | J12: 105 | K12: 60.291 | L12: 0.727 | M12: 0.727 | N12: 0.8698555 | O12: 0.8698555 | P12: 1.739711 | Q12: 0.9024 | R12: 94.752 | S12: 1 | T12: 32 | U12: 1x 32 | V12: 1.54 | W12: 1.54 | X12: 2.875 | Y12: 2.875 | Z12: 2.875 | AA12: 2.875
A13: 8 | B13: 1 | C13: 1 | D13: // | E13: NYY-J | F13: 3x35/16 | G13: 35 | H13: 16 | I13: 129 | J13: 129 | K13: 74.0718 | L13: 0.524 | M13: 1.15 | N13: 0.626966 | O13: 1.375975 | P13: 2.002941 | Q13: 0.9024 | R13: 116.4096 | S13: 1 | T13: 31 | U13: 1x 31 | V13: 1.69 | W13: 1.69 | X13: 4.025 | Y13: 1.84 | Z13: 4.025 | AA13: 1.84
A14: 9 | B14: 1 | C14: 1 | D14: // | E14: NYY-J | F14: 4x35 | G14: 35 | H14: 35 | I14: 129 | J14: 129 | K14: 74.0718 | L14: 0.524 | M14: 0.524 | N14: 0.626966 | O14: 0.626966 | P14: 1.253932 | Q14: 0.9024 | R14: 116.4096 | S14: 1 | T14: 32 | U14: 1x 32 | V14: 1.8 | W14: 1.8 | X14: 4.025 | Y14: 4.025 | Z14: 4.025 | AA14: 4.025
A15: 10 | B15: 1 | C15: 1 | D15: // | E15: NYY-J | F15: 3x50/25 | G15: 50 | H15: 25 | I15: 157 | J15: 157 | K15: 90.1494 | L15: 0.387 | M15: 0.727 | N15: 0.4630455 | O15: 0.8698555 | P15: 1.332901 | Q15: 0.9024 | R15: 141.6768 | S15: 1 | T15: 35 | U15: 1x 35 | V15: 2.26 | W15: 2.26 | X15: 5.75 | Y15: 2.875 | Z15: 5.75 | AA15: 2.875
A16: 11 | B16: 1 | C16: 1 | D16: // | E16: NYY-J | F16: 4x50 | G16: 50 | H16: 50 | I16: 157 | J16: 157 | K16: 90.1494 | L16: 0.387 | M16: 0.387 | N16: 0.4630455 | O16: 0.4630455 | P16: 0.926091 | Q16: 0.9024 | R16: 141.6768 | S16: 1 | T16: 36 | U16: 1x 36 | V16: 2.4 | W16: 2.4 | X16: 5.75 | Y16: 5.75 | Z16: 5.75 | AA16: 5.75
A17: 12 | B17: 1 | C17: 1 | D17: // | E17: NYY-J | F17: 3x70/35 | G17: 70 | H17: 35 | I17: 199 | J17: 199 | K17: 114.2658 | L17: 0.268 | M17: 0.524 | N17: 0.320662 | O17: 0.626966 | P17: 0.947628 | Q17: 0.9024 | R17: 179.5776 | S17: 1 | T17: 38 | U17: 1x 38 | V17: 2.94 | W17: 2.94 | X17: 8.05 | Y17: 4.025 | Z17: 8.05 | AA17: 4.025
A18: 13 | B18: 1 | C18: 1 | D18: // | E18: NYY-J | F18: 4x70 | G18: 70 | H18: 70 | I18: 199 | J18: 199 | K18: 114.2658 | L18: 0.268 | M18: 0.268 | N18: 0.320662 | O18: 0.320662 | P18: 0.641324 | Q18: 0.9024 | R18: 179.5776 | S18: 1 | T18: 40 | U18: 1x 40 | V18: 3.31 | W18: 3.31 | X18: 8.05 | Y18: 8.05 | Z18: 8.05 | AA18: 8.05
A19: 14 | B19: 1 | C19: 1 | D19: // | E19: NYY-J | F19: 3x95/50 | G19: 95 | H19: 50 | I19: 246 | J19: 246 | K19: 141.2532 | L19: 0.193 | M19: 0.387 | N19: 0.2309245 | O19: 0.4630455 | P19: 0.69397 | Q19: 0.9024 | R19: 221.9904 | S19: 1 | T19: 44 | U19: 1x 44 | V19: 3.96 | W19: 3.96 | X19: 10.925 | Y19: 5.75 | Z19: 10.925 | AA19: 5.75
A20: 15 | B20: 1 | C20: 1 | D20: // | E20: NYY-J | F20: 4x95 | G20: 95 | H20: 95 | I20: 246 | J20: 246 | K20: 141.2532 | L20: 0.193 | M20: 0.193 | N20: 0.2309245 | O20: 0.2309245 | P20: 0.461849 | Q20: 0.9024 | R20: 221.9904 | S20: 1 | T20: 45 | U20: 1x 45 | V20: 4.45 | W20: 4.45 | X20: 10.925 | Y20: 10.925 | Z20: 10.925 | AA20: 10.925
A21: 16 | B21: 1 | C21: 1 | D21: // | E21: NYY-J | F21: 3x120/70 | G21: 120 | H21: 70 | I21: 285 | J21: 285 | K21: 163.647 | L21: 0.153 | M21: 0.268 | N21: 0.1830645 | O21: 0.320662 | P21: 0.5037265 | Q21: 0.9024 | R21: 257.184 | S21: 1 | T21: 48 | U21: 1x 48 | V21: 4.9 | W21: 4.9 | X21: 13.8 | Y21: 8.05 | Z21: 13.8 | AA21: 8.05
A22: 17 | B22: 1 | C22: 1 | D22: // | E22: NYY-J | F22: 4x120 | G22: 120 | H22: 120 | I22: 285 | J22: 285 | K22: 163.647 | L22: 0.153 | M22: 0.153 | N22: 0.1830645 | O22: 0.1830645 | P22: 0.366129 | Q22: 0.9024 | R22: 257.184 | S22: 1 | T22: 49 | U22: 1x 49 | V22: 5.45 | W22: 5.45 | X22: 13.8 | Y22: 13.8 | Z22: 13.8 | AA22: 13.8
A23: 18 | B23: 1 | C23: 1 | D23: // | E23: NYY-J | F23: 3x150/70 | G23: 150 | H23: 70 | I23: 326 | J23: 326 | K23: 187.1892 | L23: 0.124 | M23: 0.268 | N23: 0.148366 | O23: 0.320662 | P23: 0.469028 | Q23: 0.9024 | R23: 294.1824 | S23: 1 | T23: 52 | U23: 1x 52 | V23: 5.87 | W23: 5.87 | X23: 17.25 | Y23: 8.05 | Z23: 17.25 | AA23: 8.05
A24: 19 | B24: 1 | C24: 1 | D24: // | E24: NYY-J | F24: 4x150 | G24: 150 | H24: 150 | I24: 326 | J24: 326 | K24: 187.1892 | L24: 0.124 | M24: 0.124 | N24: 0.148366 | O24: 0.148366 | P24: 0.296732 | Q24: 0.9024 | R24: 294.1824 | S24: 1 | T24: 54 | U24: 1x 54 | V24: 6.7 | W24: 6.7 | X24: 17.25 | Y24: 17.25 | Z24: 17.25 | AA24: 17.25
A25: 20 | B25: 1 | C25: 1 | D25: // | E25: NYY-J | F25: 3x185/95 | G25: 185 | H25: 95 | I25: 374 | J25: 374 | K25: 214.7508 | L25: 0.0991 | M25: 0.193 | N25: 0.11857315 | O25: 0.2309245 | P25: 0.34949765 | Q25: 0.9024 | R25: 337.4976 | S25: 1 | T25: 57 | U25: 1x 57 | V25: 7.34 | W25: 7.34 | X25: 21.275 | Y25: 10.925 | Z25: 21.275 | AA25: 10.925
A26: 21 | B26: 1 | C26: 1 | D26: // | E26: NYY-J | F26: 4x185 | G26: 185 | H26: 185 | I26: 374 | J26: 374 | K26: 214.7508 | L26: 0.0991 | M26: 0.0991 | N26: 0.11857315 | O26: 0.11857315 | P26: 0.2371463 | Q26: 0.9024 | R26: 337.4976 | S26: 1 | T26: 59 | U26: 1x 59 | V26: 8.3 | W26: 8.3 | X26: 21.275 | Y26: 21.275 | Z26: 21.275 | AA26: 21.275
A27: 22 | B27: 2 | C27: 2 | D27: // | E27: NYY-J | F27: 2x(3x70/35) | G27: 70 | H27: 35 | I27: 199 | J27: 398 | K27: 228.5316 | L27: 0.268 | M27: 0.524 | N27: 0.320662 | O27: 0.626966 | P27: 0.473814 | Q27: 0.9024 | R27: 359.1552 | S27: 2 | T27: 38 | U27: 2x 38 | V27: 2.94 | W27: 5.88 | X27: 16.1 | Y27: 8.05 | Z27: 16.1 | AA27: 8.05
A28: 23 | B28: 1 | C28: 1 | D28: // | E28: NYY-J | F28: 3x240/120 | G28: 240 | H28: 120 | I28: 445 | J28: 445 | K28: 255.519 | L28: 0.0754 | M28: 0.153 | N28: 0.0902161 | O28: 0.1830645 | P28: 0.2732806 | Q28: 0.9024 | R28: 401.568 | S28: 1 | T28: 64 | U28: 1x 64 | V28: 9.44 | W28: 9.44 | X28: 27.6 | Y28: 13.8 | Z28: 27.6 | AA28: 13.8
A29: 24 | B29: 1 | C29: 1 | D29: // | E29: NYY-J | F29: 4x240 | G29: 240 | H29: 240 | I29: 445 | J29: 445 | K29: 255.519 | L29: 0.0754 | M29: 0.0754 | N29: 0.0902161 | O29: 0.0902161 | P29: 0.1804322 | Q29: 0.9024 | R29: 401.568 | S29: 1 | T29: 68 | U29: 1x 68 | V29: 10.9 | W29: 10.9 | X29: 27.6 | Y29: 27.6 | Z29: 27.6 | AA29: 27.6
A30: 25 | B30: 2 | C30: 2 | D30: // | E30: NYY-J | F30: 2x(3x95/50) | G30: 95 | H30: 50 | I30: 246 | J30: 492 | K30: 282.5064 | L30: 0.193 | M30: 0.387 | N30: 0.2309245 | O30: 0.4630455 | P30: 0.346985 | Q30: 0.9024 | R30: 443.9808 | S30: 2 | T30: 44 | U30: 2x 44 | V30: 3.96 | W30: 7.92 | X30: 21.85 | Y30: 11.5 | Z30: 21.85 | AA30: 11.5
A31: 26 | B31: 2 | C31: 2 | D31: // | E31: NYY-J | F31: 2x(3x120/70) | G31: 120 | H31: 70 | I31: 285 | J31: 570 | K31: 327.294 | L31: 0.153 | M31: 0.268 | N31: 0.1830645 | O31: 0.320662 | P31: 0.25186325 | Q31: 0.9024 | R31: 514.368 | S31: 2 | T31: 48 | U31: 2x 48 | V31: 4.9 | W31: 9.8 | X31: 27.6 | Y31: 16.1 | Z31: 27.6 | AA31: 16.1
A32: 27 | B32: 2 | C32: 2 | D32: // | E32: NYY-J | F32: 2x(3x150/70) | G32: 150 | H32: 70 | I32: 326 | J32: 652 | K32: 374.3784 | L32: 0.124 | M32: 0.268 | N32: 0.148366 | O32: 0.320662 | P32: 0.234514 | Q32: 0.9024 | R32: 588.3648 | S32: 2 | T32: 52 | U32: 2x 52 | V32: 5.87 | W32: 11.74 | X32: 34.5 | Y32: 16.1 | Z32: 34.5 | AA32: 16.1
A33: 28 | B33: 2 | C33: 2 | D33: // | E33: NYY-J | F33: 2x(3x185/95) | G33: 185 | H33: 95 | I33: 374 | J33: 748 | K33: 429.5016 | L33: 0.0991 | M33: 0.193 | N33: 0.11857315 | O33: 0.2309245 | P33: 0.174748825 | Q33: 0.9024 | R33: 674.9952 | S33: 2 | T33: 57 | U33: 2x 57 | V33: 7.34 | W33: 14.68 | X33: 42.55 | Y33: 21.85 | Z33: 42.55 | AA33: 21.85
A34: 29 | B34: 2 | C34: 2 | D34: // | E34: NYY-J | F34: 2x(3x240/120) | G34: 240 | H34: 120 | I34: 445 | J34: 890 | K34: 511.038 | L34: 0.0754 | M34: 0.153 | N34: 0.0902161 | O34: 0.1830645 | P34: 0.1366403 | Q34: 0.9024 | R34: 803.136 | S34: 2 | T34: 64 | U34: 2x 64 | V34: 9.44 | W34: 18.88 | X34: 55.2 | Y34: 27.6 | Z34: 55.2 | AA34: 27.6
A35: 30 | B35: 3 | C35: 3 | D35: // | E35: NYY-J | F35: 3x(3x150/70) | G35: 150 | H35: 70 | I35: 326 | J35: 978 | K35: 561.5676 | L35: 0.124 | M35: 0.268 | N35: 0.148366 | O35: 0.320662 | P35: 0.1563426667 | Q35: 0.9024 | R35: 882.5472 | S35: 3 | T35: 52 | U35: 3x 52 | V35: 5.87 | W35: 17.61 | X35: 51.75 | Y35: 24.15 | Z35: 51.75 | AA35: 24.15
A36: 31 | B36: 3 | C36: 3 | D36: // | E36: NYY-J | F36: 3x(3x185/95) | G36: 185 | H36: 95 | I36: 374 | J36: 1122 | K36: 644.2524 | L36: 0.0991 | M36: 0.193 | N36: 0.11857315 | O36: 0.2309245 | P36: 0.1164992167 | Q36: 0.9024 | R36: 1012.4928 | S36: 3 | T36: 57 | U36: 3x 57 | V36: 7.34 | W36: 22.02 | X36: =B36*G36*115/1000 -> 63.825 | Y36: 32.775 | Z36: 63.825 | AA36: 32.775
A37: 32 | B37: 3 | C37: 3 | D37: // | E37: NYY-J | F37: 3x(3x240/120) | G37: 240 | H37: 120 | I37: 445 | J37: 1335 | K37: 766.557 | L37: 0.0754 | M37: 0.153 | N37: 0.0902161 | O37: 0.1830645 | P37: 0.09109353333 | Q37: 0.9024 | R37: 1204.704 | S37: 3 | T37: 64 | U37: 3x 64 | V37: 9.44 | W37: 28.32 | X37: 82.8 | Y37: 41.4 | Z37: 82.8 | AA37: 41.4
A38: 33 | B38: 4 | C38: 4 | D38: // | E38: NYY-J | F38: 4x(3x185/95) | G38: 185 | H38: 95 | I38: 374 | J38: 1496 | K38: 859.0032 | L38: 0.0991 | M38: 0.193 | N38: 0.11857315 | O38: 0.2309245 | P38: 0.0873744125 | Q38: 0.9024 | R38: 1349.9904 | S38: 4 | T38: 57 | U38: 4x 57 | V38: 5.87 | W38: 23.48 | X38: 85.1 | Y38: 43.7 | Z38: 85.1 | AA38: 43.7
A39: 34 | B39: 4 | C39: 4 | D39: // | E39: NYY-J | F39: 4x(3x240/120) | G39: 240 | H39: 120 | I39: 445 | J39: 1780 | K39: 1022.076 | L39: 0.0754 | M39: 0.153 | N39: 0.0902161 | O39: 0.1830645 | P39: 0.06832015 | Q39: 0.9024 | R39: 1606.272 | S39: 4 | T39: 64 | U39: 4x 64 | V39: 7.34 | W39: 29.36 | X39: 110.4 | Y39: 55.2 | Z39: 110.4 | AA39: 55.2
A40: 35 | B40: 5 | C40: 5 | D40: // | E40: NYY-J | F40: 5x(3x240/120) | G40: 240 | H40: 120 | I40: 445 | J40: 2225 | K40: 1277.595 | L40: 0.0754 | M40: 0.153 | N40: 0.0902161 | O40: 0.1830645 | P40: 0.05465612 | Q40: 0.9024 | R40: 2007.84 | S40: 5 | T40: 64 | U40: 5x 64 | V40: 9.44 | W40: 47.2 | X40: 138 | Y40: 69 | Z40: 138 | AA40: 69
A41: 36 | B41: 6 | C41: 6 | D41: // | E41: NYY-J | F41: 6x(3x240/120) | G41: 240 | H41: 120 | I41: 445 | J41: 2670 | K41: 1533.114 | L41: 0.0754 | M41: 0.153 | N41: 0.0902161 | O41: 0.1830645 | P41: 0.04554676667 | Q41: 0.9024 | R41: 2409.408 | S41: 6 | T41: 64 | U41: 6x 64 | V41: 9.44 | W41: 56.64 | X41: 165.6 | Y41: 82.8 | Z41: 165.6 | AA41: 82.8
A42: 37 | B42: 7 | C42: 7 | D42: // | E42: NYY-J | F42: 7x(3x240/120) | G42: 240 | H42: 120 | I42: 445 | J42: 3115 | K42: 1788.633 | L42: 0.0754 | M42: 0.153 | N42: 0.0902161 | O42: 0.1830645 | P42: 0.03904008571 | Q42: 0.9024 | R42: 2810.976 | S42: 7 | T42: 64 | U42: 7x 64 | V42: 9.44 | W42: 66.08 | X42: 193.2 | Y42: 96.6 | Z42: 193.2 | AA42: 96.6
A43: 38 | B43: 8 | C43: 8 | D43: // | E43: NYY-J | F43: 8x(3x240/120) | G43: 240 | H43: 120 | I43: 445 | J43: 3560 | K43: 2044.152 | L43: 0.0754 | M43: 0.153 | N43: 0.0902161 | O43: 0.1830645 | P43: 0.034160075 | Q43: 0.9024 | R43: 3212.544 | S43: 8 | T43: 64 | U43: 8x 64 | V43: 9.44 | W43: 75.52 | X43: 220.8 | Y43: 110.4 | Z43: 220.8 | AA43: 110.4
A44: 39 | F44: Reserve
A45: 40 | F45: Reserve
A46: 41 | F46: Reserve
A47: 42 | F47: Reserve
A48: 43 | F48: Reserve
A49: 44 | F49: Reserve
A50: 45 | F50: Reserve
A51: 46 | F51: Reserve
A106: 101 | B106: 1 | C106: 1 | D106: // | E106: NYY-J | F106: 5x2,5RE | G106: 2.5 | H106: 2.5 | I106: 25 | J106: =IF(B106=0,I106,I106*B106) -> 25 | K106: =J106*Reduz_a -> 14.355 | L106: 7.41 | M106: 7.41 | N106: =$L106*(1+Temp_Beiwert*(Maximale_Kabel_Temperatur-20)) -> 8.866065 | O106: =$M106*(1+Temp_Beiwert*(Maximale_Kabel_Temperatur-20)) -> 8.866065 | P106: =(N106/B106)+(O106/C106) -> 17.73213 | Q106: =FVierlTrafo -> 0.9024 | R106: =J106*FVierlTrafo -> 22.56 | S106: =B106 -> 1 | T106: 17 | U106: =CONCATENATE(S106,"x ",T106) -> 1x 17 | V106: 0.35 | W106: =S106*V106 -> 0.35 | X106: =B106*G106*115/1000 -> 0.2875 | Y106: =C106*H106*115/1000 -> 0.2875 | Z106: =X106*SQRT(1/KSZeit) -> 0.2875 | AA106: =Y106*SQRT(1/KSZeit) -> 0.2875
A107: 102 | B107: 1 | C107: 1 | D107: // | E107: NYY-J | F107: 5x4RE | G107: 4 | H107: 4 | I107: 34 | J107: 34 | K107: 19.5228 | L107: 4.61 | M107: 4.61 | N107: 5.515865 | O107: 5.515865 | P107: 11.03173 | Q107: 0.9024 | R107: 30.6816 | S107: 1 | T107: 19 | U107: 1x 19 | V107: 0.5 | W107: 0.5 | X107: =B107*G107*115/1000 -> 0.46 | Y107: =C107*H107*115/1000 -> 0.46 | Z107: 0.46 | AA107: 0.46
A108: 103 | B108: 1 | C108: 1 | D108: // | E108: NYY-J | F108: 5x6RE | G108: 6 | H108: 6 | I108: 43 | J108: 43 | K108: 24.6906 | L108: 3.08 | M108: 3.08 | N108: 3.68522 | O108: 3.68522 | P108: 7.37044 | Q108: 0.9024 | R108: 38.8032 | S108: 1 | T108: 21 | U108: 1x 21 | V108: 0.63 | W108: 0.63 | X108: 0.69 | Y108: 0.69 | Z108: 0.69 | AA108: 0.69
A109: 104 | B109: 1 | C109: 1 | D109: // | E109: NYY-J | F109: 5x10RM | G109: 10 | H109: 10 | I109: 59 | J109: 59 | K109: 33.8778 | L109: 1.83 | M109: 1.83 | N109: 2.189595 | O109: 2.189595 | P109: 4.37919 | Q109: 0.9024 | R109: 53.2416 | S109: 1 | T109: 23 | U109: 1x 23 | V109: 0.88 | W109: 0.88 | X109: 1.15 | Y109: 1.15 | Z109: 1.15 | AA109: 1.15
A110: 105 | B110: 1 | C110: 1 | D110: // | E110: NYY-J | F110: 5x16RM | G110: 16 | H110: 16 | I110: 78 | J110: 78 | K110: 44.7876 | L110: 1.15 | M110: 1.15 | N110: 1.375975 | O110: 1.375975 | P110: 2.75195 | Q110: 0.9024 | R110: 70.3872 | S110: 1 | T110: 25 | U110: 1x 25 | V110: 1.26 | W110: 1.26 | X110: 1.84 | Y110: 1.84 | Z110: 1.84 | AA110: 1.84
A111: 106 | B111: 1 | C111: 1 | D111: // | E111: NYY-J | F111: 5x25RM | G111: 25 | H111: 25 | I111: 105 | J111: 105 | K111: 60.291 | L111: 0.727 | M111: 0.727 | N111: 0.8698555 | O111: 0.8698555 | P111: 1.739711 | Q111: 0.9024 | R111: 94.752 | S111: 1 | T111: 33 | U111: 1x 33 | V111: 1.89 | W111: 1.89 | X111: 2.875 | Y111: 2.875 | Z111: 2.875 | AA111: 2.875
A112: 107 | B112: 1 | C112: 1 | D112: // | E112: NYY-J | F112: 5x35RM | G112: 35 | H112: 35 | I112: 129 | J112: 129 | K112: 74.0718 | L112: 0.524 | M112: 0.524 | N112: 0.626966 | O112: 0.626966 | P112: 1.253932 | Q112: 0.9024 | R112: 116.4096 | S112: 1 | T112: 36 | U112: 1x 36 | V112: 2.8 | W112: 2.8 | X112: 4.025 | Y112: 4.025 | Z112: 4.025 | AA112: 4.025
A113: 108 | B113: 1 | C113: 1 | D113: // | E113: NYY-J | F113: 5x50RM | G113: 50 | H113: 50 | I113: 157 | J113: 157 | K113: 90.1494 | L113: 0.387 | M113: 0.387 | N113: 0.4630455 | O113: 0.4630455 | P113: 0.926091 | Q113: 0.9024 | R113: 141.6768 | S113: 1 | T113: 40 | U113: 1x 40 | V113: 3.56 | W113: 3.56 | X113: 5.75 | Y113: 5.75 | Z113: 5.75 | AA113: 5.75
A114: 109 | B114: 1 | C114: 1 | D114: // | E114: NYY-J | F114: 5x70RM | G114: 70 | H114: 70 | I114: 199 | J114: 199 | K114: 114.2658 | L114: 0.268 | M114: 0.268 | N114: 0.320662 | O114: 0.320662 | P114: 0.641324 | Q114: 0.9024 | R114: 179.5776 | S114: 1 | T114: 47 | U114: 1x 47 | V114: 4.81 | W114: 4.81 | X114: 8.05 | Y114: 8.05 | Z114: 8.05 | AA114: 8.05
A115: 110 | B115: 1 | C115: 1 | D115: // | E115: NYY-J | F115: 5x95RM | G115: 95 | H115: 95 | I115: 246 | J115: 246 | K115: 141.2532 | L115: 0.193 | M115: 0.193 | N115: 0.2309245 | O115: 0.2309245 | P115: 0.461849 | Q115: 0.9024 | R115: 221.9904 | S115: 1 | T115: 52 | U115: 1x 52 | V115: 5.385 | W115: 5.385 | X115: 10.925 | Y115: 10.925 | Z115: 10.925 | AA115: 10.925
A116: 111 | B116: 1 | C116: 1 | D116: // | E116: NYY-J | F116: 5x120RM | G116: 120 | H116: 120 | I116: 285 | J116: 285 | K116: 163.647 | L116: 0.153 | M116: 0.153 | N116: 0.1830645 | O116: 0.1830645 | P116: 0.366129 | Q116: 0.9024 | R116: 257.184 | S116: 1 | T116: 57 | U116: 1x 57 | V116: 6.78 | W116: 6.78 | X116: 13.8 | Y116: 13.8 | Z116: 13.8 | AA116: 13.8
A117: 112 | B117: 2 | C117: 2 | D117: // | E117: NYY-J | F117: 2x(5x70RM) | G117: 70 | H117: 70 | I117: 199 | J117: 398 | K117: 228.5316 | L117: 0.268 | M117: 0.268 | N117: 0.320662 | O117: 0.320662 | P117: 0.320662 | Q117: 0.9024 | R117: 359.1552 | S117: 2 | T117: 47 | U117: 2x 47 | V117: 4.81 | W117: 9.62 | X117: 16.1 | Y117: 16.1 | Z117: 16.1 | AA117: 16.1
A118: 113 | B118: 2 | C118: 2 | D118: // | E118: NYY-J | F118: 2x(5x95RM) | G118: 95 | H118: 95 | I118: 246 | J118: 492 | K118: 282.5064 | L118: 0.193 | M118: 0.193 | N118: 0.2309245 | O118: 0.2309245 | P118: 0.2309245 | Q118: 0.9024 | R118: 443.9808 | S118: 2 | T118: 52 | U118: 2x 52 | V118: 5.385 | W118: 10.77 | X118: 21.85 | Y118: 21.85 | Z118: 21.85 | AA118: 21.85
A119: 114 | B119: 2 | C119: 2 | D119: // | E119: NYY-J | F119: 2x(5x120RM) | G119: 120 | H119: 120 | I119: 285 | J119: 570 | K119: 327.294 | L119: 0.153 | M119: 0.153 | N119: 0.1830645 | O119: 0.1830645 | P119: 0.1830645 | Q119: 0.9024 | R119: 514.368 | S119: 2 | T119: 57 | U119: 2x 57 | V119: 6.78 | W119: 13.56 | X119: 27.6 | Y119: 27.6 | Z119: 27.6 | AA119: 27.6
A120: 115 | F120: Reserve
A121: 116 | F121: Reserve
A122: 117 | F122: Reserve
A123: 118 | F123: Reserve
A124: 119 | F124: Reserve
A125: 120 | F125: Reserve
A126: 121 | F126: Reserve
A127: 122 | F127: Reserve
A128: 123 | F128: Reserve
A129: 124 | F129: Reserve
A130: 125 | F130: Reserve
A131: 126 | F131: Reserve
A132: 127 | F132: Reserve
A133: 128 | F133: Reserve
A134: 129 | F134: Reserve
A135: 130 | F135: Reserve
A136: 131 | F136: Reserve
A137: 132 | F137: Reserve
A138: 133 | F138: Reserve
A139: 134 | F139: Reserve
A140: 135 | F140: Reserve
A141: 136 | F141: Reserve
A142: 137 | F142: Reserve
A143: 138 | F143: Reserve
A144: 139 | F144: Reserve
A145: 140 | F145: Reserve
A146: 141 | F146: Reserve
A147: 142 | F147: Reserve
A148: 143 | F148: Reserve
A149: 144 | F149: Reserve
A150: 145 | F150: Reserve
A151: 146 | F151: Reserve
A206: 201 | B206: 1 | C206: 1 | D206: // | E206: NYCY | F206: 3x2,5RE/2,5 | G206: 2.5 | H206: 2.5 | I206: 25 | J206: =IF(B206=0,I206,I206*B206) -> 25 | K206: =J206*Reduz_a -> 14.355 | L206: 7.41 | M206: 7.41 | N206: =$L206*(1+Temp_Beiwert*(Maximale_Kabel_Temperatur-20)) -> 8.866065 | O206: =$M206*(1+Temp_Beiwert*(Maximale_Kabel_Temperatur-20)) -> 8.866065 | P206: =(N206/B206)+(O206/C206) -> 17.73213 | Q206: =FVierlTrafo -> 0.9024 | R206: =J206*FVierlTrafo -> 22.56 | S206: =B206 -> 1 | T206: 18 | U206: =CONCATENATE(S206,"x ",T206) -> 1x 18 | V206: 0.29 | W206: =S206*V206 -> 0.29 | X206: =B206*G206*115/1000 -> 0.2875 | Y206: =C206*H206*115/1000 -> 0.2875 | Z206: =X206*SQRT(1/KSZeit) -> 0.2875 | AA206: =Y206*SQRT(1/KSZeit) -> 0.2875
A207: 202 | B207: 1 | C207: 1 | D207: // | E207: NYCY | F207: 3x4RE/4 | G207: 4 | H207: 4 | I207: 34 | J207: 34 | K207: 19.5228 | L207: 4.61 | M207: 4.61 | N207: 5.515865 | O207: 5.515865 | P207: 11.03173 | Q207: 0.9024 | R207: 30.6816 | S207: 1 | T207: 20 | U207: 1x 20 | V207: 0.415 | W207: 0.415 | X207: =B207*G207*115/1000 -> 0.46 | Y207: =C207*H207*115/1000 -> 0.46 | Z207: 0.46 | AA207: 0.46
A208: 203 | B208: 1 | C208: 1 | D208: // | E208: NYCY | F208: 3x6RE/6 | G208: 6 | H208: 6 | I208: 43 | J208: 43 | K208: 24.6906 | L208: 3.08 | M208: 3.08 | N208: 3.68522 | O208: 3.68522 | P208: 7.37044 | Q208: 0.9024 | R208: 38.8032 | S208: 1 | T208: 21 | U208: 1x 21 | V208: 0.5 | W208: 0.5 | X208: 0.69 | Y208: 0.69 | Z208: 0.69 | AA208: 0.69
A209: 204 | B209: 1 | C209: 1 | D209: // | E209: NYCWY | F209: 3x10/RE10 | G209: 10 | H209: 10 | I209: 59 | J209: 59 | K209: 33.8778 | L209: 1.83 | M209: 1.83 | N209: 2.189595 | O209: 2.189595 | P209: 4.37919 | Q209: 0.9024 | R209: 53.2416 | S209: 1 | T209: 23 | U209: 1x 23 | V209: 0.75 | W209: 0.75 | X209: 1.15 | Y209: 1.15 | Z209: 1.15 | AA209: 1.15
A210: 205 | B210: 1 | C210: 1 | D210: // | E210: NYCWY | F210: 3x16RE/16 | G210: 16 | H210: 16 | I210: 78 | J210: 78 | K210: 44.7876 | L210: 1.15 | M210: 1.15 | N210: 1.375975 | O210: 1.375975 | P210: 2.75195 | Q210: 0.9024 | R210: 70.3872 | S210: 1 | T210: 25 | U210: 1x 25 | V210: 1.04 | W210: 1.04 | X210: 1.84 | Y210: 1.84 | Z210: 1.84 | AA210: 1.84
A211: 206 | B211: 1 | C211: 1 | D211: // | E211: NYCWY | F211: 3x25RM/16 | G211: 25 | H211: 16 | I211: 105 | J211: 105 | K211: 60.291 | L211: 0.727 | M211: 1.15 | N211: 0.8698555 | O211: 1.375975 | P211: 2.2458305 | Q211: 0.9024 | R211: 94.752 | S211: 1 | T211: 31 | U211: 1x 31 | V211: 1.45 | W211: 1.45 | X211: 2.875 | Y211: 1.84 | Z211: 2.875 | AA211: 1.84
A212: 207 | B212: 1 | C212: 1 | D212: // | E212: NYCWY | F212: 3x35SM/16 | G212: 35 | H212: 16 | I212: 129 | J212: 129 | K212: 74.0718 | L212: 0.524 | M212: 1.15 | N212: 0.626966 | O212: 1.375975 | P212: 2.002941 | Q212: 0.9024 | R212: 116.4096 | S212: 1 | T212: 32 | U212: 1x 32 | V212: 1.61 | W212: 1.61 | X212: 4.025 | Y212: 1.84 | Z212: 4.025 | AA212: 1.84
A213: 208 | B213: 1 | C213: 1 | D213: // | E213: NYCWY | F213: 3x50SM/25 | G213: 50 | H213: 25 | I213: 157 | J213: 157 | K213: 90.1494 | L213: 0.387 | M213: 0.727 | N213: 0.4630455 | O213: 0.8698555 | P213: 1.332901 | Q213: 0.9024 | R213: 141.6768 | S213: 1 | T213: 35 | U213: 1x 35 | V213: 2.16 | W213: 2.16 | X213: 5.75 | Y213: 2.875 | Z213: 5.75 | AA213: 2.875
A214: 209 | B214: 1 | C214: 1 | D214: // | E214: NYCWY | F214: 3x70SM/35 | G214: 70 | H214: 35 | I214: 199 | J214: 199 | K214: 114.2658 | L214: 0.268 | M214: 0.524 | N214: 0.320662 | O214: 0.626966 | P214: 0.947628 | Q214: 0.9024 | R214: 179.5776 | S214: 1 | T214: 39 | U214: 1x 39 | V214: 2.94 | W214: 2.94 | X214: 8.05 | Y214: 4.025 | Z214: 8.05 | AA214: 4.025
A215: 210 | B215: 1 | C215: 1 | D215: // | E215: NYCWY | F215: 3x95SM/50 | G215: 95 | H215: 50 | I215: 246 | J215: 246 | K215: 141.2532 | L215: 0.193 | M215: 0.387 | N215: 0.2309245 | O215: 0.4630455 | P215: 0.69397 | Q215: 0.9024 | R215: 221.9904 | S215: 1 | T215: 44 | U215: 1x 44 | V215: 3.98 | W215: 3.98 | X215: 10.925 | Y215: 5.75 | Z215: 10.925 | AA215: 5.75
A216: 211 | B216: 1 | C216: 1 | D216: // | E216: NYCWY | F216: 3x120SM/70 | G216: 120 | H216: 70 | I216: 285 | J216: 285 | K216: 163.647 | L216: 0.153 | M216: 0.268 | N216: 0.1830645 | O216: 0.320662 | P216: 0.5037265 | Q216: 0.9024 | R216: 257.184 | S216: 1 | T216: 47 | U216: 1x 47 | V216: 4.93 | W216: 4.93 | X216: 13.8 | Y216: 8.05 | Z216: 13.8 | AA216: 8.05
A217: 212 | B217: 1 | C217: 1 | D217: // | E217: NYCWY | F217: 3x150SM/70 | G217: 150 | H217: 70 | I217: 326 | J217: 326 | K217: 187.1892 | L217: 0.124 | M217: 0.268 | N217: 0.148366 | O217: 0.320662 | P217: 0.469028 | Q217: 0.9024 | R217: 294.1824 | S217: 1 | T217: 51 | U217: 1x 51 | V217: 5.88 | W217: 5.88 | X217: 17.25 | Y217: 8.05 | Z217: 17.25 | AA217: 8.05
A218: 213 | B218: 1 | C218: 1 | D218: // | E218: NYCWY | F218: 3x185SM/95 | G218: 185 | H218: 95 | I218: 374 | J218: 374 | K218: 214.7508 | L218: 0.0991 | M218: 0.193 | N218: 0.11857315 | O218: 0.2309245 | P218: 0.34949765 | Q218: 0.9024 | R218: 337.4976 | S218: 1 | T218: 56 | U218: 1x 56 | V218: 7.41 | W218: 7.41 | X218: 21.275 | Y218: 10.925 | Z218: 21.275 | AA218: 10.925
A219: 214 | B219: 2 | C219: 2 | D219: // | E219: NYCWY | F219: 2x(3x70SM/35) | G219: 70 | H219: 35 | I219: 199 | J219: 398 | K219: 228.5316 | L219: 0.268 | M219: 0.524 | N219: 0.320662 | O219: 0.626966 | P219: 0.473814 | Q219: 0.9024 | R219: 359.1552 | S219: 2 | T219: 39 | U219: 2x 39 | V219: 2.94 | W219: 5.88 | X219: 16.1 | Y219: 8.05 | Z219: 16.1 | AA219: 8.05
A220: 215 | B220: 2 | C220: 2 | D220: // | E220: NYCWY | F220: 2x(3x95SM/50) | G220: 95 | H220: 50 | I220: 246 | J220: 492 | K220: 282.5064 | L220: 0.193 | M220: 0.387 | N220: 0.2309245 | O220: 0.4630455 | P220: 0.346985 | Q220: 0.9024 | R220: 443.9808 | S220: 2 | T220: 44 | U220: 2x 44 | V220: 3.98 | W220: 7.96 | X220: 21.85 | Y220: 11.5 | Z220: 21.85 | AA220: 11.5
A221: 216 | B221: 2 | C221: 2 | D221: // | E221: NYCWY | F221: 2x(3x120SM/70) | G221: 120 | H221: 70 | I221: 285 | J221: 570 | K221: 327.294 | L221: 0.153 | M221: 0.268 | N221: 0.1830645 | O221: 0.320662 | P221: 0.25186325 | Q221: 0.9024 | R221: 514.368 | S221: 2 | T221: 47 | U221: 2x 47 | V221: 4.93 | W221: 9.86 | X221: 27.6 | Y221: 16.1 | Z221: 27.6 | AA221: 16.1
A222: 217 | B222: 2 | C222: 2 | D222: // | E222: NYCWY | F222: 2x(3x150SM/70) | G222: 150 | H222: 70 | I222: 326 | J222: 652 | K222: 374.3784 | L222: 0.124 | M222: 0.268 | N222: 0.148366 | O222: 0.320662 | P222: 0.234514 | Q222: 0.9024 | R222: 588.3648 | S222: 2 | T222: 51 | U222: 2x 51 | V222: 5.88 | W222: 11.76 | X222: 34.5 | Y222: 16.1 | Z222: 34.5 | AA222: 16.1
A223: 218 | B223: 2 | C223: 2 | D223: // | E223: NYCWY | F223: 2x(3x185SM/95) | G223: 185 | H223: 95 | I223: 374 | J223: 748 | K223: 429.5016 | L223: 0.0991 | M223: 0.193 | N223: 0.11857315 | O223: 0.2309245 | P223: 0.174748825 | Q223: 0.9024 | R223: 674.9952 | S223: 2 | T223: 56 | U223: 2x 56 | V223: 7.41 | W223: 14.82 | X223: 42.55 | Y223: 21.85 | Z223: 42.55 | AA223: 21.85
A224: 219 | B224: 2 | C224: 2 | D224: // | E224: NYCWY | F224: 2x(3x240SM/120) | G224: 240 | H224: 120 | I224: 445 | J224: 890 | K224: 511.038 | L224: 0.0754 | M224: 0.153 | N224: 0.0902161 | O224: 0.1830645 | P224: 0.1366403 | Q224: 0.9024 | R224: 803.136 | S224: 2 | T224: 63 | U224: 2x 63 | V224: 9.46 | W224: 18.92 | X224: 55.2 | Y224: 27.6 | Z224: 55.2 | AA224: 27.6
A225: 220 | B225: 3 | C225: 3 | D225: // | E225: NYCWY | F225: 3x(3x150SM/70) | G225: 150 | H225: 70 | I225: 326 | J225: 978 | K225: 561.5676 | L225: 0.124 | M225: 0.268 | N225: 0.148366 | O225: 0.320662 | P225: 0.1563426667 | Q225: 0.9024 | R225: 882.5472 | S225: 3 | T225: 51 | U225: 3x 51 | V225: 5.88 | W225: 17.64 | X225: 51.75 | Y225: 24.15 | Z225: 51.75 | AA225: 24.15
A226: 221 | B226: 3 | C226: 3 | D226: // | E226: NYCWY | F226: 3x(3x185SM/95) | G226: 185 | H226: 95 | I226: 374 | J226: 1122 | K226: 644.2524 | L226: 0.0991 | M226: 0.193 | N226: 0.11857315 | O226: 0.2309245 | P226: 0.1164992167 | Q226: 0.9024 | R226: 1012.4928 | S226: 3 | T226: 56 | U226: 3x 56 | V226: 7.41 | W226: 22.23 | X226: 63.825 | Y226: 32.775 | Z226: 63.825 | AA226: 32.775
A227: 222 | B227: 3 | C227: 3 | D227: // | E227: NYCWY | F227: 3x(3x240SM/120) | G227: 240 | H227: 120 | I227: 445 | J227: 1335 | K227: 766.557 | L227: 0.0754 | M227: 0.153 | N227: 0.0902161 | O227: 0.1830645 | P227: 0.09109353333 | Q227: 0.9024 | R227: 1204.704 | S227: 3 | T227: 63 | U227: 3x 63 | V227: 9.46 | W227: 28.38 | X227: 82.8 | Y227: 41.4 | Z227: 82.8 | AA227: 41.4
A228: 223 | B228: 4 | C228: 4 | D228: // | E228: NYCWY | F228: 4x(3x240SM/120) | G228: 240 | H228: 120 | I228: 445 | J228: 1780 | K228: 1022.076 | L228: 0.0754 | M228: 0.153 | N228: 0.0902161 | O228: 0.1830645 | P228: 0.06832015 | Q228: 0.9024 | R228: 1606.272 | S228: 4 | T228: 63 | U228: 4x 63 | V228: 9.46 | W228: 37.84 | X228: 110.4 | Y228: 55.2 | Z228: 110.4 | AA228: 55.2
A229: 224 | B229: 5 | C229: 5 | D229: // | E229: NYCWY | F229: 5x(3x240SM/120) | G229: 240 | H229: 120 | I229: 445 | J229: 2225 | K229: 1277.595 | L229: 0.0754 | M229: 0.153 | N229: 0.0902161 | O229: 0.1830645 | P229: 0.05465612 | Q229: 0.9024 | R229: 2007.84 | S229: 5 | T229: 63 | U229: 5x 63 | V229: 9.46 | W229: 47.3 | X229: 138 | Y229: 69 | Z229: 138 | AA229: 69
A230: 225 | B230: 6 | C230: 6 | D230: // | E230: NYCWY | F230: 6x(3x240SM/120) | G230: 240 | H230: 120 | I230: 445 | J230: 2670 | K230: 1533.114 | L230: 0.0754 | M230: 0.153 | N230: 0.0902161 | O230: 0.1830645 | P230: 0.04554676667 | Q230: 0.9024 | R230: 2409.408 | S230: 6 | T230: 63 | U230: 6x 63 | V230: 9.46 | W230: 56.76 | X230: 165.6 | Y230: 82.8 | Z230: 165.6 | AA230: 82.8
A231: 226 | B231: 8 | C231: 8 | D231: // | E231: NYCWY | F231: 8x(3x240SM/120) | G231: 240 | H231: 120 | I231: 445 | J231: 3560 | K231: 2044.152 | L231: 0.0754 | M231: 0.153 | N231: 0.0902161 | O231: 0.1830645 | P231: 0.034160075 | Q231: 0.9024 | R231: 3212.544 | S231: 8 | T231: 63 | U231: 8x 63 | V231: 9.46 | W231: 75.68 | X231: 220.8 | Y231: 110.4 | Z231: 220.8 | AA231: 110.4
A232: 227 | B232: 9 | C232: 9 | D232: // | E232: NYCWY | F232: 9x(3x240SM/120) | G232: 240 | H232: 120 | I232: 445 | J232: 4005 | K232: =J232*Reduz_a -> 2299.671 | L232: 0.0754 | M232: 0.153 | N232: 0.0902161 | O232: 0.1830645 | P232: 0.03036451111 | Q232: 0.9024 | R232: =J232*FVierlTrafo -> 3614.112 | S232: =B232 -> 9 | T232: 63 | U232: =CONCATENATE(S232,"x ",T232) -> 9x 63 | V232: 9.46 | W232: =S232*V232 -> 85.14 | X232: 248.4 | Y232: 124.2 | Z232: 248.4 | AA232: 124.2
A233: 228 | B233: 10 | C233: 10 | D233: // | E233: NYCWY | F233: 10x(3x240SM/120) | G233: 240 | H233: 120 | I233: 445 | J233: 4450 | K233: =J233*Reduz_a -> 2555.19 | L233: 0.0754 | M233: 0.153 | N233: 0.0902161 | O233: 0.1830645 | P233: 0.02732806 | Q233: 0.9024 | R233: =J233*FVierlTrafo -> 4015.68 | S233: =B233 -> 10 | T233: 63 | U233: =CONCATENATE(S233,"x ",T233) -> 10x 63 | V233: 9.46 | W233: =S233*V233 -> 94.6 | X233: 276 | Y233: 138 | Z233: 276 | AA233: 138
A234: 229 | F234: Reserve
A235: 230 | F235: Reserve
A236: 231 | F236: Reserve
A237: 232 | F237: Reserve
A238: 233 | F238: Reserve
A239: 234 | F239: Reserve
A240: 235 | F240: Reserve
A241: 236 | F241: Reserve
A242: 237 | F242: Reserve
A243: 238 | F243: Reserve
A244: 239 | F244: Reserve
A245: 240 | F245: Reserve
A246: 241 | F246: Reserve
A247: 242 | F247: Reserve
A248: 243 | F248: Reserve
A249: 244 | F249: Reserve
A250: 245 | F250: Reserve
A251: 246 | F251: Reserve
A306: 301 | B306: 1 | C306: 1 | D306: // | E306: NYCY | F306: 4x2,5RE/2,5 | G306: 2.5 | H306: 2.5 | I306: 25 | J306: =IF(B306=0,I306,I306*B306) -> 25 | K306: =J306*Reduz_a -> 14.355 | L306: 7.41 | M306: 7.41 | N306: =$L306*(1+Temp_Beiwert*(Maximale_Kabel_Temperatur-20)) -> 8.866065 | O306: =$M306*(1+Temp_Beiwert*(Maximale_Kabel_Temperatur-20)) -> 8.866065 | P306: =(N306/B306)+(O306/C306) -> 17.73213 | Q306: =FVierlTrafo -> 0.9024 | R306: =J306*FVierlTrafo -> 22.56 | S306: =B306 -> 1 | T306: 19 | U306: =CONCATENATE(S306,"x ",T306) -> 1x 19 | V306: 0.36 | W306: =S306*V306 -> 0.36 | X306: =B306*G306*115/1000 -> 0.2875 | Y306: =C306*H306*115/1000 -> 0.2875 | Z306: =X306*SQRT(1/KSZeit) -> 0.2875 | AA306: =Y306*SQRT(1/KSZeit) -> 0.2875
A307: 302 | B307: 1 | C307: 1 | D307: // | E307: NYCY | F307: 4x4RE/4 | G307: 4 | H307: 4 | I307: 34 | J307: 34 | K307: 19.5228 | L307: 4.61 | M307: 4.61 | N307: 5.515865 | O307: 5.515865 | P307: 11.03173 | Q307: 0.9024 | R307: 30.6816 | S307: 1 | T307: 21 | U307: 1x 21 | V307: 0.46 | W307: 0.46 | X307: =B307*G307*115/1000 -> 0.46 | Y307: =C307*H307*115/1000 -> 0.46 | Z307: 0.46 | AA307: 0.46
A308: 303 | B308: 1 | C308: 1 | D308: // | E308: NYCY | F308: 4x6RE/6 | G308: 6 | H308: 6 | I308: 43 | J308: 43 | K308: 24.6906 | L308: 3.08 | M308: 3.08 | N308: 3.68522 | O308: 3.68522 | P308: 7.37044 | Q308: 0.9024 | R308: 38.8032 | S308: 1 | T308: 22 | U308: 1x 22 | V308: 0.58 | W308: 0.58 | X308: 0.69 | Y308: 0.69 | Z308: 0.69 | AA308: 0.69
A309: 304 | B309: 1 | C309: 1 | D309: // | E309: NYCWY | F309: 4x10/RE10 | G309: 10 | H309: 10 | I309: 59 | J309: 59 | K309: 33.8778 | L309: 1.83 | M309: 1.83 | N309: 2.189595 | O309: 2.189595 | P309: 4.37919 | Q309: 0.9024 | R309: 53.2416 | S309: 1 | T309: 24 | U309: 1x 24 | V309: 0.88 | W309: 0.88 | X309: 1.15 | Y309: 1.15 | Z309: 1.15 | AA309: 1.15
A310: 305 | B310: 1 | C310: 1 | D310: // | E310: NYCWY | F310: 4x16RE/16 | G310: 16 | H310: 16 | I310: 78 | J310: 78 | K310: 44.7876 | L310: 1.15 | M310: 1.15 | N310: 1.375975 | O310: 1.375975 | P310: 2.75195 | Q310: 0.9024 | R310: 70.3872 | S310: 1 | T310: 27 | U310: 1x 27 | V310: 1.24 | W310: 1.24 | X310: 1.84 | Y310: 1.84 | Z310: 1.84 | AA310: 1.84
A311: 306 | B311: 1 | C311: 1 | D311: // | E311: NYCWY | F311: 4x25RM/16 | G311: 25 | H311: 16 | I311: 105 | J311: 105 | K311: 60.291 | L311: 0.727 | M311: 1.15 | N311: 0.8698555 | O311: 1.375975 | P311: 2.2458305 | Q311: 0.9024 | R311: 94.752 | S311: 1 | T311: 34 | U311: 1x 34 | V311: 1.75 | W311: 1.75 | X311: 2.875 | Y311: 1.84 | Z311: 2.875 | AA311: 1.84
A312: 307 | B312: 1 | C312: 1 | D312: // | E312: NYCWY | F312: 4x35SM/16 | G312: 35 | H312: 16 | I312: 129 | J312: 129 | K312: 74.0718 | L312: 0.524 | M312: 1.15 | N312: 0.626966 | O312: 1.375975 | P312: 2.002941 | Q312: 0.9024 | R312: 116.4096 | S312: 1 | T312: 35 | U312: 1x 35 | V312: 2.02 | W312: 2.02 | X312: 4.025 | Y312: 1.84 | Z312: 4.025 | AA312: 1.84
A313: 308 | B313: 1 | C313: 1 | D313: // | E313: NYCWY | F313: 4x50SM/25 | G313: 50 | H313: 25 | I313: 157 | J313: 157 | K313: 90.1494 | L313: 0.387 | M313: 0.727 | N313: 0.4630455 | O313: 0.8698555 | P313: 1.332901 | Q313: 0.9024 | R313: 141.6768 | S313: 1 | T313: 39 | U313: 1x 39 | V313: 2.73 | W313: 2.73 | X313: 5.75 | Y313: 2.875 | Z313: 5.75 | AA313: 2.875
A314: 309 | B314: 1 | C314: 1 | D314: // | E314: NYCWY | F314: 4x70SM/35 | G314: 70 | H314: 35 | I314: 199 | J314: 199 | K314: 114.2658 | L314: 0.268 | M314: 0.524 | N314: 0.320662 | O314: 0.626966 | P314: 0.947628 | Q314: 0.9024 | R314: 179.5776 | S314: 1 | T314: 43 | U314: 1x 43 | V314: 3.76 | W314: 3.76 | X314: 8.05 | Y314: 4.025 | Z314: 8.05 | AA314: 4.025
A315: 310 | B315: 1 | C315: 1 | D315: // | E315: NYCWY | F315: 4x95SM/50 | G315: 95 | H315: 50 | I315: 246 | J315: 246 | K315: 141.2532 | L315: 0.193 | M315: 0.387 | N315: 0.2309245 | O315: 0.4630455 | P315: 0.69397 | Q315: 0.9024 | R315: 221.9904 | S315: 1 | T315: 49 | U315: 1x 49 | V315: 5.06 | W315: 5.06 | X315: 10.925 | Y315: 5.75 | Z315: 10.925 | AA315: 5.75
A316: 311 | B316: 1 | C316: 1 | D316: // | E316: NYCWY | F316: 4x120SM/70 | G316: 120 | H316: 70 | I316: 285 | J316: 285 | K316: 163.647 | L316: 0.153 | M316: 0.268 | N316: 0.1830645 | O316: 0.320662 | P316: 0.5037265 | Q316: 0.9024 | R316: 257.184 | S316: 1 | T316: 53 | U316: 1x 53 | V316: 6.25 | W316: 6.25 | X316: 13.8 | Y316: 8.05 | Z316: 13.8 | AA316: 8.05
A317: 312 | B317: 1 | C317: 1 | D317: // | E317: NYCWY | F317: 4x150SM/70 | G317: 150 | H317: 70 | I317: 326 | J317: 326 | K317: 187.1892 | L317: 0.124 | M317: 0.268 | N317: 0.148366 | O317: 0.320662 | P317: 0.469028 | Q317: 0.9024 | R317: 294.1824 | S317: 1 | T317: 57 | U317: 1x 57 | V317: 7.56 | W317: 7.56 | X317: 17.25 | Y317: 8.05 | Z317: 17.25 | AA317: 8.05
A318: 313 | B318: 1 | C318: 1 | D318: // | E318: NYCWY | F318: 4x185SM/95 | G318: 185 | H318: 95 | I318: 374 | J318: 374 | K318: 214.7508 | L318: 0.0991 | M318: 0.193 | N318: 0.11857315 | O318: 0.2309245 | P318: 0.34949765 | Q318: 0.9024 | R318: 337.4976 | S318: 1 | T318: 62 | U318: 1x 62 | V318: 9.75 | W318: 9.75 | X318: 21.275 | Y318: 10.925 | Z318: 21.275 | AA318: 10.925
A319: 314 | B319: 2 | C319: 2 | D319: // | E319: NYCWY | F319: 2x(4x70SM/35) | G319: 70 | H319: 35 | I319: 199 | J319: 398 | K319: 228.5316 | L319: 0.268 | M319: 0.524 | N319: 0.320662 | O319: 0.626966 | P319: 0.473814 | Q319: 0.9024 | R319: 359.1552 | S319: 2 | T319: 43 | U319: 2x 43 | V319: 3.76 | W319: 7.52 | X319: 16.1 | Y319: 8.05 | Z319: 16.1 | AA319: 8.05
A320: 315 | B320: 2 | C320: 2 | D320: // | E320: NYCWY | F320: 2x(4x95SM/50) | G320: 95 | H320: 50 | I320: 246 | J320: 492 | K320: 282.5064 | L320: 0.193 | M320: 0.387 | N320: 0.2309245 | O320: 0.4630455 | P320: 0.346985 | Q320: 0.9024 | R320: 443.9808 | S320: 2 | T320: 49 | U320: 2x 49 | V320: 5.06 | W320: 10.12 | X320: 21.85 | Y320: 11.5 | Z320: 21.85 | AA320: 11.5
A321: 316 | B321: 2 | C321: 2 | D321: // | E321: NYCWY | F321: 2x(4x120SM/70) | G321: 120 | H321: 70 | I321: 285 | J321: 570 | K321: 327.294 | L321: 0.153 | M321: 0.268 | N321: 0.1830645 | O321: 0.320662 | P321: 0.25186325 | Q321: 0.9024 | R321: 514.368 | S321: 2 | T321: 53 | U321: 2x 53 | V321: 6.25 | W321: 12.5 | X321: 27.6 | Y321: 16.1 | Z321: 27.6 | AA321: 16.1
A322: 317 | B322: 2 | C322: 2 | D322: // | E322: NYCWY | F322: 2x(4x150SM/70) | G322: 150 | H322: 70 | I322: 326 | J322: 652 | K322: 374.3784 | L322: 0.124 | M322: 0.268 | N322: 0.148366 | O322: 0.320662 | P322: 0.234514 | Q322: 0.9024 | R322: 588.3648 | S322: 2 | T322: 57 | U322: 2x 57 | V322: 7.56 | W322: 15.12 | X322: 34.5 | Y322: 16.1 | Z322: 34.5 | AA322: 16.1
A323: 318 | B323: 2 | C323: 2 | D323: // | E323: NYCWY | F323: 2x(4x185SM/95) | G323: 185 | H323: 95 | I323: 374 | J323: 748 | K323: =J323*Reduz_a -> 429.5016 | L323: 0.0991 | M323: 0.193 | N323: 0.11857315 | O323: 0.2309245 | P323: 0.174748825 | Q323: =FVierlTrafo -> 0.9024 | R323: =J323*FVierlTrafo -> 674.9952 | S323: 2 | T323: 62 | U323: 2x 62 | V323: 9.75 | W323: 19.5 | X323: 42.55 | Y323: 21.85 | Z323: 42.55 | AA323: 21.85
A324: 319 | B324: 2 | C324: 2 | D324: // | E324: NYCWY | F324: 2x(4x240SM/120) | G324: 240 | H324: 120 | I324: 445 | J324: 890 | K324: 511.038 | L324: 0.0754 | M324: 0.153 | N324: 0.0902161 | O324: 0.1830645 | P324: 0.1366403 | Q324: 0.9024 | R324: 803.136 | S324: 2 | T324: 67 | U324: 2x 67 | V324: 12.5 | W324: 25 | X324: 55.2 | Y324: 27.6 | Z324: 55.2 | AA324: 27.6
A325: 320 | B325: 3 | C325: 3 | D325: // | E325: NYCWY | F325: 3x(4x150SM/70) | G325: 150 | H325: 70 | I325: 326 | J325: 978 | K325: 561.5676 | L325: 0.124 | M325: 0.268 | N325: 0.148366 | O325: 0.320662 | P325: 0.1563426667 | Q325: 0.9024 | R325: 882.5472 | S325: 3 | T325: 57 | U325: 3x 57 | V325: 7.56 | W325: 22.68 | X325: 51.75 | Y325: 24.15 | Z325: 51.75 | AA325: 24.15
A326: 321 | B326: 3 | C326: 3 | D326: // | E326: NYCWY | F326: 3x(4x185SM/95) | G326: 185 | H326: 95 | I326: 374 | J326: 1122 | K326: 644.2524 | L326: 0.0991 | M326: 0.193 | N326: 0.11857315 | O326: 0.2309245 | P326: 0.1164992167 | Q326: 0.9024 | R326: 1012.4928 | S326: 3 | T326: 62 | U326: 3x 62 | V326: 9.75 | W326: 29.25 | X326: 63.825 | Y326: 32.775 | Z326: 63.825 | AA326: 32.775
A327: 322 | B327: 3 | C327: 3 | D327: // | E327: NYCWY | F327: 3x(4x240SM/120) | G327: 240 | H327: 120 | I327: 445 | J327: 1335 | K327: 766.557 | L327: 0.0754 | M327: 0.153 | N327: 0.0902161 | O327: 0.1830645 | P327: 0.09109353333 | Q327: 0.9024 | R327: 1204.704 | S327: 3 | T327: 67 | U327: 3x 67 | V327: 12.5 | W327: 37.5 | X327: 82.8 | Y327: 41.4 | Z327: 82.8 | AA327: 41.4
A328: 323 | B328: 4 | C328: 4 | D328: // | E328: NYCWY | F328: 4x(4x185SM/95) | G328: 185 | H328: 95 | I328: 374 | J328: 1496 | K328: =J328*Reduz_a -> 859.0032 | L328: 0.0991 | M328: 0.193 | N328: 0.11857315 | O328: 0.2309245 | P328: 0.0873744125 | Q328: 0.9024 | R328: =J328*FVierlTrafo -> 1349.9904 | S328: 4 | T328: 62 | U328: 4x 62 | V328: 7.3125 | W328: 29.25 | X328: 85.1 | Y328: 43.7 | Z328: 85.1 | AA328: 43.7
A329: 324 | B329: 4 | C329: 4 | D329: // | E329: NYCWY | F329: 4x(4x240SM/120) | G329: 240 | H329: 120 | I329: 445 | J329: 1780 | K329: 1022.076 | L329: 0.0754 | M329: 0.153 | N329: 0.0902161 | O329: 0.1830645 | P329: 0.06832015 | Q329: 0.9024 | R329: 1606.272 | S329: 4 | T329: 67 | U329: 4x 67 | V329: 12.5 | W329: 50 | X329: 110.4 | Y329: 55.2 | Z329: 110.4 | AA329: 55.2
A330: 325 | B330: 5 | C330: 5 | D330: // | E330: NYCWY | F330: 5x(4x240SM/120) | G330: 240 | H330: 120 | I330: 445 | J330: 2225 | K330: 1277.595 | L330: 0.0754 | M330: 0.153 | N330: 0.0902161 | O330: 0.1830645 | P330: 0.05465612 | Q330: 0.9024 | R330: 2007.84 | S330: 5 | T330: 67 | U330: 5x 67 | V330: 12.5 | W330: 62.5 | X330: 138 | Y330: 69 | Z330: 138 | AA330: 69
A331: 326 | B331: 6 | C331: 6 | D331: // | E331: NYCWY | F331: 6x(4x240SM/120) | G331: 240 | H331: 120 | I331: 445 | J331: 2670 | K331: 1533.114 | L331: 0.0754 | M331: 0.153 | N331: 0.0902161 | O331: 0.1830645 | P331: 0.04554676667 | Q331: 0.9024 | R331: 2409.408 | S331: 6 | T331: 67 | U331: 6x 67 | V331: 12.5 | W331: 75 | X331: 165.6 | Y331: 82.8 | Z331: 165.6 | AA331: 82.8
A332: 327 | B332: 7 | C332: 7 | D332: // | E332: NYCWY | F332: 7x(4x240SM/120) | G332: 240 | H332: 120 | I332: 445 | J332: 3115 | K332: 1788.633 | L332: 0.0754 | M332: 0.153 | N332: 0.0902161 | O332: 0.1830645 | P332: 0.03904008571 | Q332: 0.9024 | R332: 2810.976 | S332: 7 | T332: 67 | U332: 7x 67 | V332: 12.5 | W332: 87.5 | X332: 193.2 | Y332: 96.6 | Z332: 193.2 | AA332: 96.6
A333: 328 | B333: 8 | C333: 8 | D333: // | E333: NYCWY | F333: 8x(4x240SM/120) | G333: 240 | H333: 120 | I333: 445 | J333: 3560 | K333: 2044.152 | L333: 0.0754 | M333: 0.153 | N333: 0.0902161 | O333: 0.1830645 | P333: 0.034160075 | Q333: 0.9024 | R333: 3212.544 | S333: 8 | T333: 67 | U333: 8x 67 | V333: 12.5 | W333: 100 | X333: 220.8 | Y333: 110.4 | Z333: 220.8 | AA333: 110.4
A334: 329 | B334: 9 | C334: 9 | D334: // | E334: NYCWY | F334: 9x(4x240SM/120) | G334: 240 | H334: 120 | I334: 445 | J334: 4005 | K334: 2299.671 | L334: 0.0754 | M334: 0.153 | N334: 0.0902161 | O334: 0.1830645 | P334: 0.03036451111 | Q334: 0.9024 | R334: 3614.112 | S334: 9 | T334: 67 | U334: 9x 67 | V334: 12.5 | W334: 112.5 | X334: 248.4 | Y334: 124.2 | Z334: 248.4 | AA334: 124.2
A335: 330 | B335: 10 | C335: 10 | D335: // | E335: NYCWY | F335: 10x(4x240SM/120) | G335: 240 | H335: 120 | I335: 445 | J335: 4450 | K335: 2555.19 | L335: 0.0754 | M335: 0.153 | N335: 0.0902161 | O335: 0.1830645 | P335: 0.02732806 | Q335: 0.9024 | R335: 4015.68 | S335: 10 | T335: 67 | U335: 10x 67 | V335: 12.5 | W335: 125 | X335: 276 | Y335: 138 | Z335: 276 | AA335: 138
A336: 331 | B336: 12 | C336: 12 | D336: // | E336: NYCWY | F336: 12x(4x240SM/120) | G336: 240 | H336: 120 | I336: 445 | J336: 5340 | K336: 3066.228 | L336: 0.0754 | M336: 0.153 | N336: 0.0902161 | O336: 0.1830645 | P336: 0.02277338333 | Q336: 0.9024 | R336: 4818.816 | S336: 12 | T336: 67 | U336: 12x 67 | V336: 12.5 | W336: 150 | X336: 331.2 | Y336: 165.6 | Z336: 331.2 | AA336: 165.6
A337: 332 | B337: 14 | C337: 14 | D337: // | E337: NYCWY | F337: 14x(4x240SM/120) | G337: 240 | H337: 120 | I337: 445 | J337: 6230 | K337: =J337*Reduz_a -> 3577.266 | L337: 0.0754 | M337: 0.153 | N337: 0.0902161 | O337: 0.1830645 | P337: 0.01952004286 | Q337: 0.9024 | R337: =J337*FVierlTrafo -> 5621.952 | S337: =B337 -> 14 | T337: 67 | U337: =CONCATENATE(S337,"x ",T337) -> 14x 67 | V337: 12.5 | W337: =S337*V337 -> 175 | X337: 386.4 | Y337: 193.2 | Z337: 386.4 | AA337: 193.2
A338: 333 | F338: Reserve
A339: 334 | F339: Reserve
A340: 335 | F340: Reserve
A341: 336 | F341: Reserve
A342: 337 | F342: Reserve
A343: 338 | F343: Reserve
A344: 339 | F344: Reserve
A345: 340 | F345: Reserve
A346: 341 | F346: Reserve
A347: 342 | F347: Reserve
A348: 343 | F348: Reserve
A349: 344 | F349: Reserve
A350: 345 | F350: Reserve
A351: 346 | F351: Reserve
A406: 401 | B406: 1 | C406: 1 | D406: // | E406: NYY-0 | F406: (1x3+1)x1x120 | G406: 120 | H406: 120 | I406: 307 | J406: =IF(B406=0,I406,I406*B406) -> 307 | K406: =J406*Reduz_b -> 232.3683 | L406: 0.153 | M406: 0.153 | N406: =$L406*(1+Temp_Beiwert*(Maximale_Kabel_Temperatur-20)) -> 0.1830645 | O406: =$M406*(1+Temp_Beiwert*(Maximale_Kabel_Temperatur-20)) -> 0.1830645 | P406: =(N406/B406)+(O406/C406) -> 0.366129 | Q406: =FEinlTrafo -> 0.8178 | R406: =J406*FEinlTrafo -> 251.0646 | S406: =B406*3+C406 -> 4 | T406: 23 | U406: =CONCATENATE(S406,"x ",T406) -> 4x 23 | V406: 1.375 | W406: =S406*V406 -> 5.5 | X406: =B406*G406*115/1000 -> 13.8 | Y406: =C406*H406*115/1000 -> 13.8 | Z406: =X406*SQRT(1/KSZeit) -> 13.8 | AA406: =Y406*SQRT(1/KSZeit) -> 13.8
A407: 402 | B407: 1 | C407: 1 | D407: // | E407: NYY-0 | F407: (1x3+1)x1x150 | G407: 150 | H407: 150 | I407: 352 | J407: 352 | K407: 266.4288 | L407: 0.124 | M407: 0.124 | N407: 0.148366 | O407: 0.148366 | P407: 0.296732 | Q407: 0.8178 | R407: 287.8656 | S407: 4 | T407: 26 | U407: 4x 26 | V407: 1.66 | W407: 6.64 | X407: =B407*G407*115/1000 -> 17.25 | Y407: =C407*H407*115/1000 -> 17.25 | Z407: 17.25 | AA407: 17.25
A408: 403 | B408: 1 | C408: 1 | D408: // | E408: NYY-0 | F408: (1x3+1)x1x185 | G408: 185 | H408: 185 | I408: 406 | J408: 406 | K408: 307.3014 | L408: 0.0991 | M408: 0.0991 | N408: 0.11857315 | O408: 0.11857315 | P408: 0.2371463 | Q408: 0.8178 | R408: 332.0268 | S408: 4 | T408: 28 | U408: 4x 28 | V408: 2.05 | W408: 8.2 | X408: 21.275 | Y408: 21.275 | Z408: 21.275 | AA408: 21.275
A409: 404 | B409: 1 | C409: 1 | D409: // | E409: NYY-0 | F409: (1x3+1)x1x240 | G409: 240 | H409: 240 | I409: 483 | J409: 483 | K409: 365.5827 | L409: 0.0754 | M409: 0.0754 | N409: 0.0902161 | O409: 0.0902161 | P409: 0.1804322 | Q409: 0.8178 | R409: 394.9974 | S409: 4 | T409: 31 | U409: 4x 31 | V409: 2.64 | W409: 10.56 | X409: 27.6 | Y409: 27.6 | Z409: 27.6 | AA409: 27.6
A410: 405 | B410: 1 | C410: 1 | D410: // | E410: NYY-0 | F410: (1x3+1)x1x300 | G410: 300 | H410: 300 | I410: 552 | J410: 552 | K410: 417.8088 | L410: 0.0601 | M410: 0.0601 | N410: 0.07190965 | O410: 0.07190965 | P410: 0.1438193 | Q410: 0.8178 | R410: 451.4256 | S410: 4 | T410: 33 | U410: 4x 33 | V410: 3.3 | W410: 13.2 | X410: 34.5 | Y410: 34.5 | Z410: 34.5 | AA410: 34.5
A411: 406 | B411: 2 | C411: 1 | D411: // | E411: NYY-0 | F411: (2x3+1)x1x120 | G411: 120 | H411: 120 | I411: 307 | J411: 614 | K411: 464.7366 | L411: 0.153 | M411: 0.153 | N411: 0.1830645 | O411: 0.1830645 | P411: 0.27459675 | Q411: 0.8178 | R411: 502.1292 | S411: 7 | T411: 23 | U411: 7x 23 | V411: 1.375 | W411: 9.625 | X411: 27.6 | Y411: 13.8 | Z411: 27.6 | AA411: 13.8
A412: 407 | B412: 1 | C412: 1 | D412: // | E412: NYY-0 | F412: (1x3+1)x1x400 | G412: 400 | H412: 400 | I412: 646 | J412: 646 | K412: 488.9574 | L412: 0.047 | M412: 0.047 | N412: 0.0562355 | O412: 0.0562355 | P412: 0.112471 | Q412: 0.8178 | R412: 528.2988 | S412: 4 | T412: 38 | U412: 4x 38 | V412: 4.24 | W412: 16.96 | X412: =B412*G412*103/1000 -> 41.2 | Y412: =C412*H412*103/1000 -> 41.2 | Z412: 41.2 | AA412: 41.2
A413: 408 | B413: 2 | C413: 1 | D413: // | E413: NYY-0 | F413: (2x3+1)x1x150 | G413: 150 | H413: 150 | I413: 352 | J413: 704 | K413: 532.8576 | L413: 0.124 | M413: 0.124 | N413: 0.148366 | O413: 0.148366 | P413: 0.222549 | Q413: 0.8178 | R413: 575.7312 | S413: 7 | T413: 26 | U413: 7x 26 | V413: 1.66 | W413: 11.62 | X413: 34.5 | Y413: 17.25 | Z413: 34.5 | AA413: 17.25
A414: 409 | B414: 1 | C414: 1 | D414: // | E414: NYY-0 | F414: (1x3+1)x1x500 | G414: 500 | H414: 500 | I414: 747 | J414: 747 | K414: 565.4043 | L414: 0.0366 | M414: 0.0366 | N414: 0.0437919 | O414: 0.0437919 | P414: 0.0875838 | Q414: 0.8178 | R414: 610.8966 | S414: 4 | T414: 42 | U414: 4x 42 | V414: 5.29 | W414: 21.16 | X414: =B414*G414*103/1000 -> 51.5 | Y414: =C414*H414*103/1000 -> 51.5 | Z414: 51.5 | AA414: 51.5
A415: 410 | B415: 2 | C415: 1 | D415: // | E415: NYY-0 | F415: (2x3+1)x1x185 | G415: 185 | H415: 185 | I415: 406 | J415: 812 | K415: 614.6028 | L415: 0.0991 | M415: 0.0991 | N415: 0.11857315 | O415: 0.11857315 | P415: 0.177859725 | Q415: 0.8178 | R415: 664.0536 | S415: 7 | T415: 28 | U415: 7x 28 | V415: 2.05 | W415: 14.35 | X415: 42.55 | Y415: 21.275 | Z415: 42.55 | AA415: 21.275
A416: 411 | B416: 1 | C416: 1 | D416: // | E416: NYY-0 | F416: (1x3+1)x1x630 | G416: 630 | H416: 630 | I416: 851 | J416: 851 | K416: 644.1219 | L416: 0.0283 | M416: 0.0283 | N416: 0.03386095 | O416: 0.03386095 | P416: 0.0677219 | Q416: 0.8178 | R416: 695.9478 | S416: 4 | T416: 45 | U416: 4x 45 | V416: 6.85 | W416: 27.4 | X416: =B416*G416*103/1000 -> 64.89 | Y416: =C416*H416*103/1000 -> 64.89 | Z416: 64.89 | AA416: 64.89
... 370 more rows

Sheet PVC Kupferkabel Kennlinien
C4: I2t = k2*S2
C5: PVC | D5: kCu= | E5: 115 | H5: Bemessungs-Kurzzeitstromdichte Jthr für 1 s.
C6: PVC>300 | D6: kCu400= | E6: 103 | H6: =KKupferbis300 -> 115 | I6: [ A ] / mm | K6: bis 300 mm2
C8: Querschnitt | H8: 103 | I8: [ A ] / mm | K8: > 300 mm2 | M8: Jthr für 1 s.
C9: =INDEX(C11:C29,D10) -> 1.5 | D9: mm2
C10: S (mm2) | D10: 19 | H10: Querschnitt | J10: (I2t)max = (Jthr * Sn)2 | M10: (It)max = (Jthr * Sn)
C11: 630
C12: 500 | H12: 1.5 | J12: =POWER(($H$6*H12),2) -> 29756.25 | M12: =($H$6*H12) -> 172.5
C13: 400 | H13: 2.5 | J13: 82656.25 | M13: 287.5
C14: 300 | H14: 4 | J14: 211600 | M14: 460
C15: 240 | H15: 6 | J15: 476100 | M15: 690
C16: 185 | H16: 10 | J16: 1322500 | M16: 1150
C17: 150 | H17: 16 | J17: 3385600 | M17: 1840
C18: 120 | H18: 25 | J18: 8265625 | M18: 2875
C19: 95 | H19: 35 | J19: 16200625 | M19: 4025
C20: 70 | H20: 50 | J20: 33062500 | M20: 5750
C21: 50 | H21: 75 | J21: 74390625 | M21: 8625
C22: 35 | H22: 95 | J22: 119355625 | M22: 10925
C23: 25 | H23: 120 | J23: 190440000 | M23: 13800
C24: 16 | H24: 150 | J24: 297562500 | M24: 17250
C25: 10 | H25: 185 | J25: 452625625 | M25: 21275
C26: 6 | H26: 240 | J26: 761760000 | M26: 27600
C27: 4 | H27: 300 | J27: 1190250000 | M27: =($H$6*H27) -> 34500
C28: 2.5 | H28: 400 | J28: =POWER(($H$8*H28),2) -> 1697440000 | M28: =($H$8*H28) -> 41200
C29: 1.5 | H29: 500 | J29: =POWER(($H$8*H29),2) -> 2652250000 | M29: =($H$8*H29) -> 51500
H30: 630 | J30: =POWER(($H$8*H30),2) -> 4210712100 | M30: =($H$8*H30) -> 64890
J32: benötigt für Kurzschlussfestigkeit der NH Sicherungen im Vergleich zu KS-Festigkeit der Anlage | M32: benötigt für Kurzschlussfestigkeit der Kabel im Vergleich zu Abschaltbedingung der NH Sicherungen

Sheet Skalierung (hidden)
A1: x | B1: PVC Kupferkabel Kurzschlussbeanspruchung THERMISCH
A2: x | B2: Kabel Kurzschluß - Festigkeit in kA eff
A3: x | B3: Zeitskala in s
A4: x
A5: x | C5: 1 | L5: 0.01
A6: x | C6: 50 | L6: 500
A7: x
A8: x | B8: Querlinien | L8: Höhenlinien | Q8: Zeitskala | U8: Stromskala | Y8: Beschriftung 2
A9: x
A10: x | B10: 0.01 | C10: =$C$5 -> 1 | E10: Querlinien | L10: =$L$6 -> 500 | M10: =$C$10 -> 1 | O10: Höhenlinien | Q10: 1 | R10: 0.01 | S10: 0,01kA | U10: 0.01 | V10: 1 | W10: 0,1s | Y10: 57 | Z10: =Rechnung!AC5 -> 0.07714434522 | AA10: 1,5 mm2
A11: x | B11: 0.01 | C11: =$C$6 -> 50 | E11: Querlinien | Q11: 1 | R11: 0.02 | S11: 0,02kA | U11: 0.01 | V11: 1.2 | W11: 0,12s | Y11: 57 | Z11: =Rechnung!AC6 -> 0.1285739087 | AA11: 2,5 mm2
A12: x | B12: 0.015 | C12: =$C$6 -> 50 | E12: Querlinien | L12: =$L$5 -> 0.01 | M12: 1 | O12: Höhenlinien | Q12: 1 | R12: 0.05 | S12: 0,05kA | U12: 0.01 | V12: 1.5 | W12: 0,15s | Y12: 57 | Z12: =Rechnung!AC7 -> 0.2057182539 | AA12: 4 mm2
A13: x | B13: 0.015 | C13: =$C$5 -> 1 | E13: Querlinien | L13: =$L$6 -> 500 | M13: 1 | O13: Höhenlinien | Q13: 1 | R13: 0.1 | S13: 0,1kA | U13: 0.01 | V13: 2 | W13: 0,2s | Y13: 57 | Z13: =Rechnung!AC8 -> 0.3085773809 | AA13: 6 mm2
A14: x | B14: 0.02 | C14: =$C$5 -> 1 | E14: Querlinien | L14: =$L$6 -> 500 | M14: 1.2 | O14: Höhenlinien | Q14: 1 | R14: 0.2 | S14: 0,2kA | U14: 0.01 | V14: 2.5 | W14: 0,25s | Y14: 57 | Z14: =Rechnung!AC9 -> 0.5142956348 | AA14: 10 mm2
A15: x | B15: 0.02 | C15: =$C$6 -> 50 | E15: Querlinien | L15: =$L$5 -> 0.01 | M15: 1.2 | O15: Höhenlinien | Q15: 1 | R15: 0.5 | S15: 0,5kA | U15: 0.01 | V15: 3 | W15: 0,3s | Y15: 57 | Z15: =Rechnung!AC10 -> 0.8228730157 | AA15: 16 mm2
A16: x | B16: 0.03 | C16: =$C$6 -> 50 | E16: Querlinien | L16: =$L$5 -> 0.01 | M16: 1.5 | O16: Höhenlinien | Q16: 1 | R16: 1 | S16: 1kA | U16: 0.01 | V16: 4 | W16: 0,4s | Y16: 57 | Z16: =Rechnung!AC11 -> 1.285739087 | AA16: 25 mm2
A17: x | B17: 0.03 | C17: =$C$5 -> 1 | E17: Querlinien | L17: =$L$6 -> 500 | M17: 1.5 | O17: Höhenlinien | Q17: 1 | R17: 2 | S17: 2kA | U17: 0.01 | V17: 5 | W17: 0,5s | Y17: 57 | Z17: =Rechnung!AC12 -> 1.800034722 | AA17: 35 mm2
A18: x | B18: 0.04 | C18: =$C$5 -> 1 | E18: Querlinien | L18: =$L$6 -> 500 | M18: 2 | O18: Höhenlinien | Q18: 1 | R18: 5 | S18: 5kA | U18: 0.01 | V18: 7 | W18: 0,7s | Y18: 57 | Z18: =Rechnung!AC13 -> 2.571478174 | AA18: 50 mm2
A19: x | B19: 0.04 | C19: =$C$6 -> 50 | E19: Querlinien | L19: =$L$5 -> 0.01 | M19: 2 | O19: Höhenlinien | Q19: 1 | R19: 10 | S19: 10kA | U19: 0.01 | V19: 10 | W19: 1s | Y19: 57 | Z19: =Rechnung!AC14 -> 3.600069444 | AA19: 75 mm2
A20: x | B20: 0.05 | C20: =$C$6 -> 50 | E20: Querlinien | L20: =$L$5 -> 0.01 | M20: 2.5 | O20: Höhenlinien | Q20: 1 | R20: 20 | S20: 20kA | U20: 0.01 | V20: 12 | W20: 1,2s | Y20: 57 | Z20: =Rechnung!AC15 -> 4.885808531 | AA20: 95 mm2
A21: x | B21: 0.05 | C21: =$C$5 -> 1 | E21: Querlinien | L21: =$L$6 -> 500 | M21: 2.5 | O21: Höhenlinien | Q21: 1 | R21: 50 | S21: 50kA | U21: 0.01 | V21: 15 | W21: 1,5s | Y21: 57 | Z21: =Rechnung!AC16 -> 6.171547618 | AA21: 120 mm2
A22: x | B22: 0.06 | C22: =$C$5 -> 1 | E22: Querlinien | L22: =$L$6 -> 500 | M22: 3 | O22: Höhenlinien | Q22: 1 | R22: 100 | S22: 100kA | U22: 0.01 | V22: 20 | W22: 2s | Y22: 57 | Z22: =Rechnung!AC17 -> 7.714434522 | AA22: 150 mm2
A23: x | B23: 0.06 | C23: =$C$6 -> 50 | E23: Querlinien | L23: =$L$5 -> 0.01 | M23: 3 | O23: Höhenlinien | Q23: 1 | R23: 200 | S23: 200kA | U23: 0.01 | V23: 25 | W23: 2,5s | Y23: 57 | Z23: =Rechnung!AC18 -> 9.514469244 | AA23: 185 mm2
A24: x | B24: 0.07 | C24: =$C$6 -> 50 | E24: Querlinien | L24: =$L$5 -> 0.01 | M24: 4 | O24: Höhenlinien | Q24: 1 | R24: 500 | S24: 500kA | U24: 0.01 | V24: 30 | W24: 3s | Y24: 57 | Z24: =Rechnung!AC19 -> 12.34309524 | AA24: 240 mm2
A25: x | B25: 0.07 | C25: =$C$5 -> 1 | E25: Querlinien | L25: =$L$6 -> 500 | M25: 4 | O25: Höhenlinien | U25: 0.01 | V25: 40 | W25: 4s | Y25: 57 | Z25: =Rechnung!AC20 -> 15.42886904 | AA25: 300 mm2
A26: x | B26: 0.08 | C26: =$C$5 -> 1 | E26: Querlinien | L26: =$L$6 -> 500 | M26: 5 | O26: Höhenlinien | U26: 0.01 | V26: 50 | W26: 5s | Y26: 57 | Z26: =Rechnung!AC21 -> 18.42520013 | AA26: 400 mm2
A27: x | B27: 0.08 | C27: =$C$6 -> 50 | E27: Querlinien | L27: =$L$5 -> 0.01 | M27: 5 | O27: Höhenlinien | Y27: 57 | Z27: =Rechnung!AC22 -> 23.03150017 | AA27: 500 mm2
A28: x | B28: 0.09 | C28: =$C$6 -> 50 | E28: Querlinien | L28: =$L$5 -> 0.01 | M28: 6 | O28: Höhenlinien | Y28: 57 | Z28: =Rechnung!AC23 -> 29.01969021 | AA28: 630 mm2
A29: x | B29: 0.09 | C29: =$C$5 -> 1 | E29: Querlinien | L29: =$L$6 -> 500 | M29: 6 | O29: Höhenlinien
A30: x | B30: 0.1 | C30: =$C$5 -> 1 | E30: Querlinien | L30: =$L$6 -> 500 | M30: 7 | O30: Höhenlinien
A31: x | B31: 0.1 | C31: =$C$6 -> 50 | E31: Querlinien | L31: =$L$5 -> 0.01 | M31: 7 | O31: Höhenlinien
A32: x | B32: 0.15 | C32: =$C$6 -> 50 | E32: Querlinien | L32: =$L$5 -> 0.01 | M32: 8 | O32: Höhenlinien
A33: x | B33: 0.15 | C33: =$C$5 -> 1 | E33: Querlinien | L33: =$L$6 -> 500 | M33: 8 | O33: Höhenlinien
A34: x | B34: 0.2 | C34: =$C$5 -> 1 | E34: Querlinien | L34: =$L$6 -> 500 | M34: 9 | O34: Höhenlinien
A35: x | B35: 0.2 | C35: =$C$6 -> 50 | E35: Querlinien | L35: =$L$5 -> 0.01 | M35: 9 | O35: Höhenlinien
A36: x | B36: 0.3 | C36: =$C$6 -> 50 | E36: Querlinien | L36: =$L$5 -> 0.01 | M36: 10 | O36: Höhenlinien
A37: x | B37: 0.3 | C37: =$C$5 -> 1 | E37: Querlinien | L37: =$L$6 -> 500 | M37: 10 | O37: Höhenlinien
A38: x | B38: 0.4 | C38: =$C$5 -> 1 | E38: Querlinien | L38: =$L$6 -> 500 | M38: 12 | O38: Höhenlinien
A39: x | B39: 0.4 | C39: =$C$6 -> 50 | E39: Querlinien | L39: =$L$5 -> 0.01 | M39: 12 | O39: Höhenlinien
A40: x | B40: 0.5 | C40: =$C$6 -> 50 | E40: Querlinien | L40: =$L$5 -> 0.01 | M40: 15 | O40: Höhenlinien
A41: x | B41: 0.5 | C41: =$C$5 -> 1 | E41: Querlinien | L41: =$L$6 -> 500 | M41: 15 | O41: Höhenlinien
A42: x | B42: 0.6 | C42: =$C$5 -> 1 | E42: Querlinien | L42: =$L$6 -> 500 | M42: 20 | O42: Höhenlinien
A43: x | B43: 0.6 | C43: =$C$6 -> 50 | E43: Querlinien | L43: =$L$5 -> 0.01 | M43: 20 | O43: Höhenlinien
A44: x | B44: 0.7 | C44: =$C$6 -> 50 | E44: Querlinien | L44: =$L$5 -> 0.01 | M44: 25 | O44: Höhenlinien
A45: x | B45: 0.7 | C45: =$C$5 -> 1 | E45: Querlinien | L45: =$L$6 -> 500 | M45: 25 | O45: Höhenlinien
A46: x | B46: 0.8 | C46: =$C$5 -> 1 | E46: Querlinien | L46: =$L$6 -> 500 | M46: 30 | O46: Höhenlinien
A47: x | B47: 0.8 | C47: =$C$6 -> 50 | E47: Querlinien | L47: =$L$5 -> 0.01 | M47: 30 | O47: Höhenlinien
A48: x | B48: 0.9 | C48: =$C$6 -> 50 | E48: Querlinien | L48: =$L$5 -> 0.01 | M48: 40 | O48: Höhenlinien
A49: x | B49: 0.9 | C49: =$C$5 -> 1 | E49: Querlinien | L49: =$L$6 -> 500 | M49: 40 | O49: Höhenlinien
A50: x | B50: 1 | C50: =$C$5 -> 1 | E50: Querlinien | L50: =$L$6 -> 500 | M50: 50 | O50: Höhenlinien
A51: x | B51: 1 | C51: =$C$6 -> 50 | E51: Querlinien | L51: =$L$5 -> 0.01 | M51: 50 | O51: Höhenlinien
A52: x | B52: 1.5 | C52: =$C$6 -> 50 | E52: Querlinien | L52: =$L$5 -> 0.01 | M52: 60 | O52: Höhenlinien
A53: x | B53: 1.5 | C53: =$C$5 -> 1 | E53: Querlinien | L53: =$L$6 -> 500 | M53: 60 | O53: Höhenlinien
A54: x | B54: 2 | C54: =$C$5 -> 1 | E54: Querlinien | L54: =$L$6 -> 500 | M54: 70 | O54: Höhenlinien
A55: x | B55: 2 | C55: =$C$6 -> 50 | E55: Querlinien | L55: =$L$5 -> 0.01 | M55: 70 | O55: Höhenlinien
A56: x | B56: 3 | C56: =$C$6 -> 50 | E56: Querlinien | L56: =$L$5 -> 0.01 | M56: 80 | O56: Höhenlinien
A57: x | B57: 3 | C57: =$C$5 -> 1 | E57: Querlinien | L57: =$L$6 -> 500 | M57: 80 | O57: Höhenlinien
A58: x | B58: 4 | C58: =$C$5 -> 1 | E58: Querlinien | L58: =$L$6 -> 500 | M58: 90 | O58: Höhenlinien
A59: x | B59: 4 | C59: =$C$6 -> 50 | E59: Querlinien | L59: =$L$5 -> 0.01 | M59: 90 | O59: Höhenlinien
A60: x | B60: 5 | C60: =$C$6 -> 50 | E60: Querlinien | L60: =$L$5 -> 0.01 | M60: 100 | O60: Höhenlinien
A61: x | B61: 5 | C61: =$C$5 -> 1 | E61: Querlinien
A62: x | B62: 6 | C62: =$C$5 -> 1 | E62: Querlinien
A63: x | B63: 6 | C63: =$C$6 -> 50 | E63: Querlinien
A64: x | B64: 7 | C64: =$C$6 -> 50 | E64: Querlinien
A65: x | B65: 7 | C65: =$C$5 -> 1 | E65: Querlinien
A66: x | B66: 8 | C66: =$C$5 -> 1 | E66: Querlinien
A67: x | B67: 8 | C67: =$C$6 -> 50 | E67: Querlinien
A68: x | B68: 9 | C68: =$C$6 -> 50 | E68: Querlinien
A69: x | B69: 9 | C69: =$C$5 -> 1 | E69: Querlinien
A70: x | B70: 10 | C70: =$C$5 -> 1 | E70: Querlinien
A71: x | B71: 10 | C71: =$C$6 -> 50 | E71: Querlinien
A72: x | B72: 15 | C72: =$C$6 -> 50 | E72: Querlinien
A73: x | B73: 15 | C73: =$C$5 -> 1 | E73: Querlinien
A74: x | B74: 20 | C74: =$C$5 -> 1 | E74: Querlinien
A75: x | B75: 20 | C75: =$C$6 -> 50 | E75: Querlinien
A76: x | B76: 30 | C76: =$C$6 -> 50 | E76: Querlinien
A77: x | B77: 30 | C77: =$C$5 -> 1 | E77: Querlinien
B78: 40 | C78: =$C$5 -> 1 | E78: Querlinien
B79: 40 | C79: =$C$6 -> 50 | E79: Querlinien
B80: 50 | C80: =$C$6 -> 50 | E80: Querlinien
B81: 50 | C81: =$C$5 -> 1 | E81: Querlinien
B82: 60 | C82: =$C$5 -> 1 | E82: Querlinien
B83: 60 | C83: =$C$6 -> 50 | E83: Querlinien
B84: 70 | C84: =$C$6 -> 50 | E84: Querlinien
B85: 70 | C85: =$C$5 -> 1 | E85: Querlinien
B86: 80 | C86: =$C$5 -> 1 | E86: Querlinien
B87: 80 | C87: =$C$6 -> 50 | E87: Querlinien
B88: 90 | C88: =$C$6 -> 50 | E88: Querlinien
B89: 90 | C89: =$C$5 -> 1 | E89: Querlinien
B90: 100 | C90: =$C$5 -> 1 | E90: Querlinien
B91: 100 | C91: =$C$6 -> 50 | E91: Querlinien
B92: 150 | C92: =$C$6 -> 50 | E92: Querlinien
B93: 150 | C93: =$C$5 -> 1 | E93: Querlinien
B94: 200 | C94: =$C$5 -> 1 | E94: Querlinien
B95: 200 | C95: =$C$6 -> 50 | E95: Querlinien
B96: 300 | C96: =$C$6 -> 50 | E96: Querlinien
B97: 300 | C97: =$C$5 -> 1 | E97: Querlinien
B98: 400 | C98: =$C$5 -> 1 | E98: Querlinien
B99: 400 | C99: =$C$6 -> 50 | E99: Querlinien
B100: 500 | C100: =$C$6 -> 50 | E100: Querlinien
B101: 500 | C101: 1 | E101: Querlinien

Sheet Rechnung (hidden)
B1: Der I2t Wert der Schutzeinrichtung muss kleiner als der A2s Wert des Kabels sein
F2: bis300mm2 | H2: >300mm2
F3: =KKupferbis300/1000 -> 0.115 | H3: =KKupfer_400/1000 -> 0.103 | AC3: Beschriftung
D5: t(sec) | E5: Skala | F5: 1.5 | G5: 2.5 | H5: 4 | I5: 6 | J5: 10 | K5: 16 | L5: 25 | M5: 35 | N5: 50 | O5: 70 | P5: 95 | Q5: 120 | R5: 150 | S5: 185 | T5: 240 | U5: 300 | V5: 400 | W5: 500 | X5: 630 | Z5: =LeiterQuerschn -> 1.5 | AA5: mm2 | AC5: =F7 -> 0.07714434522
F6: =CONCATENATE(F5," ",$AA$5) -> 1,5 mm2 | G6: 2,5 mm2 | H6: 4 mm2 | I6: 6 mm2 | J6: 10 mm2 | K6: 16 mm2 | L6: 25 mm2 | M6: 35 mm2 | N6: 50 mm2 | O6: 70 mm2 | P6: 95 mm2 | Q6: 120 mm2 | R6: 150 mm2 | S6: 185 mm2 | T6: 240 mm2 | U6: 300 mm2 | V6: 400 mm2 | W6: 500 mm2 | X6: 630 mm2 | Z6: =CONCATENATE(Z5," ",$AA$5) -> 1,5 mm2 | AC6: =G7 -> 0.1285739087
C7: 5s | D7: 5 | E7: 50 | F7: =$F$3*F$5/(SQRT($D7)) -> 0.07714434522 | G7: 0.1285739087 | H7: 0.2057182539 | I7: 0.3085773809 | J7: 0.5142956348 | K7: 0.8228730157 | L7: 1.285739087 | M7: 1.800034722 | N7: 2.571478174 | O7: 3.600069444 | P7: 4.885808531 | Q7: 6.171547618 | R7: 7.714434522 | S7: 9.514469244 | T7: 12.34309524 | U7: 15.42886904 | V7: =$H$3*V$5/(SQRT($D7)) -> 18.42520013 | W7: 23.03150017 | X7: 29.01969021 | Z7: =IF(Z$5>300,($H$3*Z$5/(SQRT($D7))),($F$3*Z$5/(SQRT($D7)))) -> 0.07714434522 | AC7: =H7 -> 0.2057182539
D8: 4 | E8: 40 | F8: 0.08625 | G8: 0.14375 | H8: 0.23 | I8: 0.345 | J8: 0.575 | K8: 0.92 | L8: 1.4375 | M8: 2.0125 | N8: 2.875 | O8: 4.025 | P8: 5.4625 | Q8: 6.9 | R8: 8.625 | S8: 10.6375 | T8: 13.8 | U8: 17.25 | V8: 20.6 | W8: 25.75 | X8: 32.445 | Z8: 0.08625 | AC8: =I7 -> 0.3085773809
D9: 3 | E9: 30 | F9: 0.09959292144 | G9: 0.1659882024 | H9: 0.2655811238 | I9: 0.3983716857 | J9: 0.6639528096 | K9: 1.062324495 | L9: 1.659882024 | M9: 2.323834833 | N9: 3.319764048 | O9: 4.647669667 | P9: 6.307551691 | Q9: 7.967433715 | R9: 9.959292144 | S9: 12.28312698 | T9: 15.93486743 | U9: 19.91858429 | V9: 23.78683109 | W9: 29.73353886 | X9: 37.46425897 | Z9: 0.09959292144 | AC9: =J7 -> 0.5142956348
D10: 2.5 | E10: 25 | F10: 0.1090985793 | G10: 0.1818309655 | H10: 0.2909295447 | I10: 0.4363943171 | J10: 0.7273238618 | K10: 1.163718179 | L10: 1.818309655 | M10: 2.545633516 | N10: 3.636619309 | O10: 5.091267033 | P10: 6.909576687 | Q10: 8.727886342 | R10: 10.90985793 | S10: 13.45549144 | T10: 17.45577268 | U10: 21.81971586 | V10: 26.05716792 | W10: 32.5714599 | X10: 41.04003947 | Z10: 0.1090985793 | AC10: =K7 -> 0.8228730157
C11: 2s | D11: 2 | E11: 20 | F11: 0.1219759198 | G11: 0.2032931996 | H11: 0.3252691193 | I11: 0.487903679 | J11: 0.8131727984 | K11: 1.301076477 | L11: 2.032931996 | M11: 2.846104794 | N11: 4.065863992 | O11: 5.692209589 | P11: 7.725141584 | Q11: 9.75807358 | R11: 12.19759198 | S11: 15.04369677 | T11: 19.51614716 | U11: 24.39518395 | V11: 29.13279938 | W11: 36.41599923 | X11: 45.88415903 | Z11: 0.1219759198 | AC11: =L7 -> 1.285739087
D12: 1.5 | E12: 15 | F12: 0.1408456602 | G12: 0.234742767 | H12: 0.3755884272 | I12: 0.5633826408 | J12: 0.9389710681 | K12: 1.502353709 | L12: 2.34742767 | M12: 3.286398738 | N12: 4.69485534 | O12: 6.572797476 | P12: 8.920225147 | Q12: 11.26765282 | R12: 14.08456602 | S12: 17.37096476 | T12: 22.53530563 | U12: 28.16913204 | V12: 33.63965913 | W12: 42.04957392 | X12: 52.98246314 | Z12: 0.1408456602 | AC12: =M7 -> 1.800034722
D13: 1.2 | E13: 12 | F13: 0.1574702353 | G13: 0.2624503921 | H13: 0.4199206274 | I13: 0.6298809411 | J13: 1.049801569 | K13: 1.67968251 | L13: 2.624503921 | M13: 3.67430549 | N13: 5.249007843 | O13: 7.34861098 | P13: 9.973114901 | Q13: 12.59761882 | R13: 15.74702353 | S13: 19.42132902 | T13: 25.19523765 | U13: 31.49404706 | V13: 37.61028228 | W13: 47.01285285 | X13: 59.23619459 | Z13: 0.1574702353 | AC13: =N7 -> 2.571478174
C14: 1s | D14: 1 | E14: 10 | F14: 0.1725 | G14: 0.2875 | H14: 0.46 | I14: 0.69 | J14: 1.15 | K14: 1.84 | L14: 2.875 | M14: 4.025 | N14: 5.75 | O14: 8.05 | P14: 10.925 | Q14: 13.8 | R14: 17.25 | S14: 21.275 | T14: 27.6 | U14: 34.5 | V14: 41.2 | W14: 51.5 | X14: 64.89 | Z14: 0.1725 | AC14: =O7 -> 3.600069444
D15: 0.7 | E15: 7 | F15: 0.2061769351 | G15: 0.3436282252 | H15: 0.5498051603 | I15: 0.8247077404 | J15: 1.374512901 | K15: 2.199220641 | L15: 3.436282252 | M15: 4.810795153 | N15: 6.872564504 | O15: 9.621590305 | P15: 13.05787256 | Q15: 16.49415481 | R15: 20.61769351 | S15: 25.42848866 | T15: 32.98830962 | U15: 41.23538702 | V15: 49.2434187 | W15: 61.55427338 | X15: 77.55838446 | Z15: 0.2061769351 | AC15: =P7 -> 4.885808531
C16: 500ms | D16: 0.5 | E16: 5 | F16: 0.2439518395 | G16: 0.4065863992 | H16: 0.6505382387 | I16: 0.975807358 | J16: 1.626345597 | K16: 2.602152955 | L16: 4.065863992 | M16: 5.692209589 | N16: 8.131727984 | O16: 11.38441918 | P16: 15.45028317 | Q16: 19.51614716 | R16: 24.39518395 | S16: 30.08739354 | T16: 39.03229432 | U16: 48.7903679 | V16: 58.26559877 | W16: 72.83199846 | X16: 91.76831806 | Z16: 0.2439518395 | AC16: =Q7 -> 6.171547618
D17: 0.4 | E17: 4 | F17: =$F$3*F$5/(SQRT($D17)) -> 0.2727464482 | G17: 0.4545774136 | H17: 0.7273238618 | I17: 1.090985793 | J17: 1.818309655 | K17: 2.909295447 | L17: 4.545774136 | M17: 6.364083791 | N17: 9.091548273 | O17: 12.72816758 | P17: 17.27394172 | Q17: 21.81971586 | R17: 27.27464482 | S17: 33.63872861 | T17: 43.63943171 | U17: 54.54928964 | V17: 65.1429198 | W17: 81.42864975 | X17: 102.6000987 | Z17: 0.2727464482 | AC17: =R7 -> 7.714434522
D18: 0.3 | E18: 3 | F18: 0.3149404706 | G18: 0.5249007843 | H18: 0.8398412548 | I18: 1.259761882 | J18: 2.099603137 | K18: 3.359365019 | L18: 5.249007843 | M18: 7.34861098 | N18: 10.49801569 | O18: 14.69722196 | P18: 19.9462298 | Q18: 25.19523765 | R18: 31.49404706 | S18: 38.84265804 | T18: 50.39047529 | U18: 62.98809411 | V18: 75.22056456 | W18: 94.02570571 | X18: 118.4723892 | Z18: 0.3149404706 | AC18: =S7 -> 9.514469244
D19: 0.25 | E19: 2.5 | F19: 0.345 | G19: 0.575 | H19: 0.92 | I19: 1.38 | J19: 2.3 | K19: 3.68 | L19: 5.75 | M19: 8.05 | N19: 11.5 | O19: 16.1 | P19: 21.85 | Q19: 27.6 | R19: 34.5 | S19: 42.55 | T19: 55.2 | U19: 69 | V19: 82.4 | W19: 103 | X19: 129.78 | Z19: 0.345 | AC19: =T7 -> 12.34309524
C20: 200ms | D20: 0.2 | E20: 2 | F20: 0.3857217261 | G20: 0.6428695435 | H20: 1.02859127 | I20: 1.542886904 | J20: 2.571478174 | K20: 4.114365079 | L20: 6.428695435 | M20: 9.000173609 | N20: 12.85739087 | O20: 18.00034722 | P20: 24.42904265 | Q20: 30.85773809 | R20: 38.57217261 | S20: 47.57234622 | T20: 61.71547618 | U20: 77.14434522 | V20: 92.12600067 | W20: 115.1575008 | X20: 145.0984511 | Z20: 0.3857217261 | AC20: =U7 -> 15.42886904
D21: 0.15 | E21: 1.5 | F21: 0.4453930848 | G21: 0.742321808 | H21: 1.187714893 | I21: 1.781572339 | J21: 2.969287232 | K21: 4.750859571 | L21: 7.42321808 | M21: 10.39250531 | N21: 14.84643616 | O21: 20.78501062 | P21: 28.2082287 | Q21: 35.63144679 | R21: 44.53930848 | S21: 54.93181379 | T21: 71.26289357 | U21: 89.07861696 | V21: 106.3779426 | W21: 132.9724282 | X21: 167.5452596 | Z21: 0.4453930848 | AC21: =V7 -> 18.42520013
D22: 0.12 | E22: 1.2 | F22: 0.4979646072 | G22: 0.829941012 | H22: 1.327905619 | I22: 1.991858429 | J22: 3.319764048 | K22: 5.311622477 | L22: 8.29941012 | M22: 11.61917417 | N22: 16.59882024 | O22: 23.23834833 | P22: 31.53775845 | Q22: 39.83716857 | R22: 49.79646072 | S22: 61.41563489 | T22: 79.67433715 | U22: 99.59292144 | V22: 118.9341555 | W22: 148.6676943 | X22: 187.3212948 | Z22: 0.4979646072 | AC22: =W7 -> 23.03150017
C23: 100ms | D23: 0.1 | E23: 1 | F23: 0.5454928964 | G23: 0.9091548273 | H23: 1.454647724 | I23: 2.181971586 | J23: 3.636619309 | K23: 5.818590895 | L23: 9.091548273 | M23: 12.72816758 | N23: 18.18309655 | O23: 25.45633516 | P23: 34.54788344 | Q23: 43.63943171 | R23: 54.54928964 | S23: 67.27745722 | T23: 87.27886342 | U23: 109.0985793 | V23: 130.2858396 | W23: 162.8572995 | X23: 205.2001974 | Z23: 0.5454928964 | AC23: =X7 -> 29.01969021

Sheet Leiter Kurzschlussfestigkeit

Sheet Lapp Widerstand

Sheet verwendete Formeln
F1: Formeln, welche für die Berechnungen verwendet wurden
F3: Generelle Daten
F5: f1 ---> Umrechnungsfaktor Temperatur | G5: f1 | H5: = | I5: Abminderungsfaktor für von 30°C abweichende Temperaturen | K5: wirkt auf die Strombelastbarkeit der Kabel
F6: f2 ---> Umrechnungsfaktor Verlegungsart (Häufung) | G6: f2 | H6: = | I6: Abminderungsfaktor durch Verlegungsart (Häufung) | K6: wirkt auf die Strombelastbarkeit der Kabel
F7: Kupfer | G7: K | H7: = | I7: =KCu -> 56
F8: Spannungsfall in V | G8: ΔU | H8: = | I8: Betriebsspannung / 100 * Spannungsfall % | J8: in V
F9: =CONCATENATE("Belastbarkeit in Luft, Strom in A bei einer Temp. von ",Berechnungswerte!E12,"°C"," unter Einbeziehung des Abminderungsfaktors für die Häufung") -> Belastbarkeit in Luft, Strom in A bei einer Temp. von 40°C unter Einbeziehung des Abminderungsfaktors für die Häufung | H9: ---> | I9: berechnet in Tabelle Kab_Werte | J9: A
F10: Z´. NEU | H10: ---> | I10: berechnet in Tabelle Kab_Werte | J10: Ohm/km
F11: Z´. NEU | H11: ---> | I11: =CONCATENATE("Hin und Rückleiter alle Leiter parallel R warm bei ---> ",Berechnungswerte!E12,"°C",) -> Hin und Rückleiter alle Leiter parallel R warm bei ---> 40°C | J11: Ohm/km
F12: Max Abschaltstrom durch Abschaltelement
F13: Max Abschaltstrom Sicherung | H13: = | I13: I * m (m = bis 32A 10 sonst 3,5)
F14: Max Abschaltstrom Motorschutzschalter (MSS) | H14: = | I14: I * 12
F15: Max Abschaltstrom Leistungsschalter (LS) | H15: = | I15: I * 1 *(Einstellung Unverzögerter Kurzschluss)
F17: max. Schleifenwiderstand (je nach Abschaltelement)
F18: ZS = max. Schleifenwiderstand (Sicherung) | G18: ZS | H18: = | I18: Phase / Nullleiterspannung / < 32A 10* IN > 32A 3,5 * IN | J18: in Ohm
F19: ZS = max. Schleifenwiderstand (Motorschutzschalter) | G19: ZS | H19: = | I19: Phase / Nullleiterspannung / 12 * IN | J19: in Ohm
F20: ZS = max. Schleifenwiderstand (Leistungsschalter) * | G20: ZS | H20: = | I20: Phase / Nullleiterspannung / 1 * IN | J20: in Ohm
F21: * (Einstellung Unverzögerter Kurzschluss) | G21: m | H21: für | I21: Sich m=bis 32A 10 sonst 3,5, MSS > m=12, LS > m=1
F23: max. Schleifenwiderstand im 500V IT-Netz | G23: Relevant für die Berechnung ist hier die halbe Spannung (250V)
F24: ZS = max. Schleifenwiderstand (Sicherung) | G24: ZS | H24: = | I24: 250V / < 32A 10* IN > 32A 3,5 * IN | J24: in Ohm
F25: ZS = max. Schleifenwiderstand (Motorschutzschalter) | G25: ZS | H25: = | I25: 250V / 12 * IN | J25: in Ohm
F26: ZS = max. Schleifenwiderstand (Leistungsschalter *) | G26: ZS | H26: = | I26: 250V / 1 * IN | J26: in Ohm
F27: *(Einstellung Unverzögerter Kurzschluss) | G27: m | H27: für | I27: Sich m=bis 32A 10 sonst 3,5, MSS > m=12, LS > m=1
F30: Kabelberechnung für Sicherungsabgänge | G30: Relevant für die Berechnung ist hier der Abschaltstrom der Sicherung
F31: Kabellänge durch Spannungsfall | G31: l | H31: = | I31: ΔU * K * A / Wurzel 3 * I | J31: in m
F32: Kabellänge durch Abschaltelement | G32: l | H32: = | I32: ZS / Z´ * 1000 | J32: in m
F34: Kabelberechnung für Motor - und FU - Abgänge | G34: Relevant für die Berechnung ist hier der Anlauf- und Motorstrom
F35: Spannungsfall für Betriebsstrom in V | G35: ΔUB | H35: = | I35: Betriebsspannung/100*Spannungsfall Betrieb % | J35: in V
F36: Spannungsfall für Anlaufstrom in V | G36: ΔUA | H36: = | I36: Betriebsspannung/100*Spannungsfall Anlauf % | J36: in V
F37: Kleinste Abschaltbedingung aus: | G37: Sim | H37: = | I37: Faktor für Sicherungs-Abschaltbedingung laut FU Hersteller | J37: Faktor
F38: Anlauf l max (Kabellänge max) | G38: lA | H38: = | I38: ΔUA * m * A / Wurzel(3) * Anlaufstrom IS | J38: in m
F39: Betrieb l max (Kabellänge max) | G39: lB | H39: = | I39: ΔUB * m * A / Wurzel(3) * Betriebsstrom IB | J39: in m
F40: Schleifenwiderstand l max (Kabellänge max) | G40: l | H40: = | I40: ZS / Z´ * 1000 | J40: in m
F42: Kabelberechnung für Transformatorableitungen | G42: Relevant für die Berechnung ist hier der Trafostromstrom
F43: Kabellänge durch maximalen Spannungsfall | G43: l | H43: = | I43: ΔU * m * A / Wurzel 3 * I | J43: in m
F45: Kabel Lichtnetz | G45: Relevant für die Berechnung ist hier der Abschaltstrom des Leitungsschutzschalters
F46: max. Schleifenwiderstand | G46: ZS | H46: = | I46: 231 / IA (Leitungsschutzschalter Abschaltstrom) | J46: in Ohm
F47: Kabellänge durch Spannungsfall | G47: l | H47: = | I47: ΔU * m * A / Wurzel 3 * I | J47: in m
F48: Kabellänge durch Abschaltelement | G48: l | H48: = | I48: ZS / Z´ * 1000 | J48: in m
F51: ="Znr.: "& Znr -> Znr.: P0000.KB.01 | I51: verwendete Formeln | K51: =Datum -> 2019-01-07
F52: =Revision -> Rev.: V.6.3 | I52: =Berechnungswerte!G45 -> I:\P_MSR\Diverses\Berechnungen\Leistungskabel | K52: =MName -> Mustermann

Sheet Netz-Systeme
A69: ="Znr.: "& Znr -> Znr.: P0000.KB.01 | D69: Netz-Systeme | J69: =Datum -> 2019-01-07
A70: =Revision -> Rev.: V.6.3 | D70: =Berechnungswerte!G45 -> I:\P_MSR\Diverses\Berechnungen\Leistungskabel | J70: =Berechnungswerte!M2 -> Mustermann

Sheet Red_Kabelverlegung
A1: Abminderungsfaktoren für Ein- und Mehrleiterkabel Sicherungs-, FU-, Motor- und Trafoabgänge
B4: Umrechnungsfaktoren für die Strombelastbarkeit nach DIN VDE 0298, Teil 4; Anhang (Tabellen)
B5: Die Werte gelten unter der Voraussetzung dass die Umgebungstemperatur durch die Verlustwärme der Kabel nicht merklich erhöht wird
B7: Reduzierung 6a nach | C7: Tabelle 18
B9: Drei- und mehr-adrige Kabel bei Verlegung in Luft.
B10: Anordnung der Kabel: Gegenseitige - und Wand - Berührung, auf Kabelrosten liegend, unbehinderte Luftzirkulation
B12: Anzahl der nebeneinander liegenden Kabel | H12: 1 | I12: 2 | J12: 3 | K12: 4 | L12: 5 | M12: 9
E13: Kabelroste | F13: Anz. Kabel
C14: Anzahl der Kabelroste | D14: 1 | E14: 69 | H14: 1 | I14: 0.87 | J14: 0.82 | K14: 0.8 | L14: 0.79 | M14: 0.78 | O14: =(IF(E14=11,H14,IF(E14=12,I14,IF(E14=13,J14,IF(E14=14,K14,IF(E14=15,L14,IF(E14=19,M14,))))))) -> 0
C15: in 300mm Abstand | D15: 2 | H15: 1 | I15: 0.86 | J15: 0.8 | K15: 0.78 | L15: 0.76 | M15: 0.73 | O15: =(IF(E14=21,H15,IF(E14=22,I15,IF(E14=23,J15,IF(E14=24,K15,IF(E14=25,L15,IF(E14=29,M15,))))))) -> 0
C16: übereinander | D16: 3 | H16: 1 | I16: 0.85 | J16: 0.79 | K16: 0.76 | L16: 0.73 | M16: 0.7 | O16: =(IF(E14=31,H16,IF(E14=32,I16,IF(E14=33,J16,IF(E14=34,K16,IF(E14=35,L16,IF(E14=39,M16,))))))) -> 0
D17: 6 | H17: 1 | I17: 0.83 | J17: 0.76 | K17: 0.73 | L17: 0.69 | M17: 0.66 | O17: =(IF(E14=61,H17,IF(E14=62,I17,IF(E14=63,J17,IF(E14=64,K17,IF(E14=65,L17,IF(E14=69,M17,))))))) -> 0.66
C18: =CONCATENATE("6a) Vierleiterkabel: Verlegung auf ",LEFT(E14,1)," Kabelpritsche(n) mit gegenseitiger ") -> 6a) Vierleiterkabel: Verlegung auf 6 Kabelpritsche(n) mit gegenseitiger | O18: =SUM(O14:O17) -> 0.66
C19: =CONCATENATE("und Wand- Berührung ",RIGHT(E14,1)," Kabel nebeneinander liegend, KS-fest verl.") -> und Wand- Berührung 9 Kabel nebeneinander liegend, KS-fest verl.
B21: Reduzierung 6b nach | C21: Tabelle 16
B23: Einadrige Kabel im Drehstromsystem, bei Verlegung in Luft,
B24: im Dreieck gebündelte Verlegung, Zwischenraum = 2d, Abstand von der Wand >= 2 cm
B25: Anordnung der Kabel: auf Kabelrosten liegend, unbehinderte Luftzirkulation
B27: Anzahl der Drehstromsysteme nebeneinander | H27: 1 | I27: 2 | J27: 3
E28: Kabelroste | F28: Anz. Kabel
C29: Anzahl der Kabelroste | D29: 1 | E29: 63 | H29: 1 | I29: 1 | J29: 1 | O29: =(IF(E29=11,H29,IF(E29=12,I29,IF(E29=13,J29,)))) -> 0
C30: in 300mm Abstand | D30: 2 | H30: 0.97 | I30: 0.95 | J30: 0.93 | O30: =(IF(E29=21,H30,IF(E29=22,I30,IF(E29=23,J30,)))) -> 0
C31: übereinander | D31: 3 | H31: 0.96 | I31: 0.94 | J31: 0.9 | O31: =(IF(E29=31,H31,IF(E29=32,I31,IF(E29=33,J31,)))) -> 0
D32: 6 | H32: 0.95 | I32: 0.93 | J32: 0.87 | O32: =(IF(E29=61,H32,IF(E29=62,I32,IF(E29=63,J32,)))) -> 0.87
C33: =CONCATENATE("6b) Einleiterkabel: Verlegung auf ",LEFT(E29,1)," Kabelpritsche(n) gebündelt im ") -> 6b) Einleiterkabel: Verlegung auf 6 Kabelpritsche(n) gebündelt im | O33: =SUM(O29:O32) -> 0.87
C34: =CONCATENATE("Abstand 2d ",RIGHT(E29,1)," Drehstromsysteme nebeneinander, KS-fest verl.") -> Abstand 2d 3 Drehstromsysteme nebeneinander, KS-fest verl.
B36: Reduzierung 4 nach | C36: Tabelle 16 | D36: für Trafoableitungen
B38: Einadrige Kabel im Drehstromsystem, bei Verlegung in Luft,
B39: im Dreieck gebündelte Verlegung, Zwischenraum = 2d, Abstand von der Wand >= 2 cm
B40: Anordnung der Kabel: auf Kabelrosten liegend, unbehinderte Luftzirkulation
B42: Anzahl der Drehstromsysteme nebeneinander | H42: 1 | I42: 2 | J42: 3
E43: Kabelroste | F43: Anz. Kabel
C44: Anzahl der Kabelroste | D44: 1 | E44: 63 | H44: 1 | I44: 1 | J44: 1 | O44: =(IF(E44=11,H44,IF(E44=12,I44,IF(E44=13,J44,)))) -> 0
C45: in 300mm Abstand | D45: 2 | H45: 0.97 | I45: 0.95 | J45: 0.93 | O45: =(IF(E44=21,H45,IF(E44=22,I45,IF(E44=23,J45,)))) -> 0
C46: übereinander | D46: 3 | H46: 0.96 | I46: 0.94 | J46: 0.9 | O46: =(IF(E44=31,H46,IF(E44=32,I46,IF(E44=33,J46,)))) -> 0
D47: 6 | H47: 0.95 | I47: 0.93 | J47: 0.87 | O47: =(IF(E44=61,H47,IF(E44=62,I47,IF(E44=63,J47,)))) -> 0.87
C48: =CONCATENATE("4) Einleiterkabel: Verlegung auf ",LEFT(E44,1)," Kabelpritsche(n) gebündelt im ") -> 4) Einleiterkabel: Verlegung auf 6 Kabelpritsche(n) gebündelt im | O48: =SUM(O44:O47) -> 0.87
C49: =CONCATENATE("Abstand 2d ",RIGHT(E44,1)," Drehstromsysteme nebeneinander, KS-fest verl. ") -> Abstand 2d 3 Drehstromsysteme nebeneinander, KS-fest verl.
B51: Reduzierung 4 nach | C51: Tabelle 17 | D51: für Trafoableitungen
B53: Drei- und mehr-adrige Kabel bei Verlegung in Luft
B54: Anordnung der Kabel: Zwischenraum = 1d, Abstand von der Wand >= 2 cm, unbehinderte Luftzirkulation
B56: Anzahl der nebeneinander liegenden Kabel | H56: 1 | I56: 2 | J56: 3
E57: Kabelroste | F57: Anz. Kabel
C58: Anzahl der Kabelroste | D58: 1 | E58: 63 | H58: 1 | I58: 1 | J58: 1 | O58: =(IF(E58=11,H58,IF(E58=12,I58,IF(E58=13,J58,IF(E58=14,K58,IF(E58=16,L58,)))))) -> 0
C59: in 300mm Abstand | D59: 2 | H59: 1 | I59: 0.99 | J59: 0.98 | O59: =(IF(E58=21,H59,IF(E58=22,I59,IF(E58=23,J59,IF(E58=24,K59,IF(E58=26,L59,)))))) -> 0
C60: übereinander | D60: 3 | H60: 1 | I60: 0.98 | J60: 0.97 | O60: =(IF(E58=31,H60,IF(E58=32,I60,IF(E58=33,J60,IF(E58=34,K60,IF(E58=36,L60,)))))) -> 0
D61: 6 | H61: 1 | I61: 0.97 | J61: 0.96 | O61: =(IF(E58=61,H61,IF(E58=62,I61,IF(E58=63,J61,IF(E58=64,K61,IF(E58=66,L61,)))))) -> 0.96
C62: =CONCATENATE("4) Drei- und Mehr- leiterkabel: Verlegung auf ",LEFT(E58,1)," Kabelpritsche(n)") -> 4) Drei- und Mehr- leiterkabel: Verlegung auf 6 Kabelpritsche(n) | O62: =SUM(O58:O61) -> 0.96
C63: =CONCATENATE("im Abstand d ",RIGHT(E58,1)," Kabel nebeneinander liegend, KS-fest verl.") -> im Abstand d 3 Kabel nebeneinander liegend, KS-fest verl.
A66: Znr.: 0000.KD.01 | B66: ="Znr.: "& Znr -> Znr.: P0000.KB.01 | E66: Red_Kabelverlegung | O66: =Datum -> 2019-01-07
A67: Rev. 0 | B67: =Revision -> Rev.: V.6.3 | E67: =Berechnungswerte!G45 -> I:\P_MSR\Diverses\Berechnungen\Leistungskabel | O67: Mustermann

Sheet Red_Kabelverlegung SENKRECHT
A1: Abminderungsfaktoren für Ein- und Mehrleiterkabel Sicherungs-, FU- und Motorabgänge | K1: NUR INFO !! WIRD NICHT IN DER BERECHNUNG VERWENDET !!
B4: Umrechnungsfaktoren für die Strombelastbarkeit nach DIN VDE 0298, Teil 4; Anhang (Tabellen)
B5: Die Werte gelten unter der Voraussetzung dass die Umgebungstemperatur durch die Verlustwärme der Kabel nicht merklich erhöht wird
B7: Reduzierung 6a nach | C7: Tabelle 20 und / oder Tabelle 23 OEVE OENORM E 8200-603.2011
B9: Drei- und vieradrige Kabel bei Verlegung in Luft.
B10: Anordnung der Kabel: Gegenseitige - und Wand - Berührung, auf Kabelrosten liegend, unbehinderte Luftzirkulation
B12: Anzahl der nebeneinander liegenden Kabel | H12: 1 | I12: 2 | J12: 3 | K12: 4 | L12: 6 | M12: 9
C13: 1 Kabelrost oder | E13: Kabelroste | F13: Anz. Kabel
C14: 2 Roste in 225mm Abstand | D14: 1 | E14: 39 | H14: 1 | I14: 0.88 | J14: 0.82 | K14: 0.78 | L14: 0.73 | M14: 0.72 | O14: =(IF(E14=11,H14,IF(E14=12,I14,IF(E14=13,J14,IF(E14=14,K14,IF(E14=16,L14,IF(E14=19,M14,))))))) -> 0
C15: nebeneinander | D15: 2 | H15: 1 | I15: 0.88 | J15: 0.81 | K15: 0.76 | L15: 0.71 | M15: 0.7 | O15: =(IF(E14=21,H15,IF(E14=22,I15,IF(E14=23,J15,IF(E14=24,K15,IF(E14=26,L15,IF(E14=29,M15,))))))) -> 0
C16: DIREKT AN DER WAND | D16: 3 | H16: 0.95 | I16: 0.78 | J16: 0.73 | K16: 0.72 | L16: 0.68 | M16: 0.66 | O16: =(IF(E14=31,H16,IF(E14=32,I16,IF(E14=33,J16,IF(E14=34,K16,IF(E14=36,L16,IF(E14=39,M16,))))))) -> 0.66
C18: ="Drei- oder Vierleiterkabel: Verlegung auf 1 oder 2 Kabelpritsche(n) oder direkt an der " -> Drei- oder Vierleiterkabel: Verlegung auf 1 oder 2 Kabelpritsche(n) oder direkt an der | O18: =SUM(O14:O17) -> 0.66
C19: =CONCATENATE("Wand mit gegens. und mit Wand- Berührung ",RIGHT(E14,1)," Kabel übereinander liegend, KS-fest verl.") -> Wand mit gegens. und mit Wand- Berührung 9 Kabel übereinander liegend, KS-fest verl.
B21: Reduzierung 6b nach | C21: Tabelle 19 und / oder Tabelle 22 OEVE OENORM E 8200-603.2011
B23: Drei- und vieradrige Kabel bei Verlegung in Luft.
B24: Anordnung der Kabel: Keine gegenseitige oder Wandberührung, Zwischenraum = 1d, Abstand von der Wand >= 2 cm
B25: Anordnung der Kabel: auf 1 oder 2 senkrechten Kabelrosten mit 225 mm Abstand montiert, unbehinderte Luftzirkulation
B27: Anzahl der Drehstromsysteme nebeneinander | H27: 1 | I27: 2 | J27: 3 | K27: 4 | L27: 6
E28: Kabelroste | F28: Anz. Kabel
C29: 1 mal an der Wand oder | D29: 1 | E29: 26 | H29: 1 | I29: 0.91 | J29: 0.89 | K29: 0.88 | L29: 0.87 | O29: =(IF(E29=11,H29,IF(E29=12,I29,IF(E29=13,J29,IF(E29=14,K29,IF(E29=16,L29,IF(E29=19,M29,))))))) -> 0
C30: 2 Kabelroste | D30: 2 | H30: 1 | I30: 0.91 | J30: 0.88 | K30: 0.87 | L30: 0.85 | O30: =(IF(E29=21,H30,IF(E29=22,I30,IF(E29=23,J30,IF(E29=24,K30,IF(E29=26,L30,IF(E29=29,M30,))))))) -> 0.85
C31: in 225mm Abstand
C32: nebeneinander
C33: =CONCATENATE("6b) Drei- oder Vierleiterkabel: Verlegung auf ",LEFT(E29,1)," Kabelpritsche(n) gebündelt im ") -> 6b) Drei- oder Vierleiterkabel: Verlegung auf 2 Kabelpritsche(n) gebündelt im | O33: =SUM(O29:O32) -> 0.85
C34: =CONCATENATE("Abstand d ",RIGHT(E29,1)," Drehstromsysteme übereinander, KS-fest verl.") -> Abstand d 6 Drehstromsysteme übereinander, KS-fest verl.
B36: Reduzierung 6b nach | C36: Tabelle 18 und / oder Tabelle 21 OEVE OENORM E 8200-603.2011
B38: Einadrige Kabel im Drehstromsystem, bei Verlegung in Luft,
B39: im Dreieck gebündelte Verlegung, Zwischenraum = 2d,
B40: Anordnung der Kabel: auf senkrechten Kabelrosten montiert, unbehinderte Luftzirkulation
B42: Anzahl der Drehstromsysteme nebeneinander | H42: 1 | I42: 2 | J42: 3
E43: Kabelroste | F43: Anz. Kabel
C44: 1 mal an der Wand oder | D44: 1 | E44: 23 | H44: 1 | I44: 0.91 | J44: 0.89 | O44: =(IF(E44=11,H44,IF(E44=12,I44,IF(E44=13,J44,)))) -> 0
C45: 2 Kabelroste | D45: 2 | H45: 1 | I45: 0.9 | J45: 0.85 | O45: =(IF(E44=21,H45,IF(E44=22,I45,IF(E44=23,J45,)))) -> 0.85
C46: in 225mm Abstand
C47: nebeneinander
C48: =CONCATENATE("6b) Einleiterkabel: Verlegung auf ",LEFT(E44,1)," Kabelpritsche(n) gebündelt im ") -> 6b) Einleiterkabel: Verlegung auf 2 Kabelpritsche(n) gebündelt im | O48: =SUM(O44:O45) -> 0.85
C49: =CONCATENATE("Abstand 2d ",RIGHT(E44,1)," Drehstromsysteme übereinander, KS-fest verl.") -> Abstand 2d 3 Drehstromsysteme übereinander, KS-fest verl.
C60: ="Drei- oder Vierleiterkabel: Verlegung mit 20mm Wandabstand auf der Wand oder KS-fest" -> Drei- oder Vierleiterkabel: Verlegung mit 20mm Wandabstand auf der Wand oder KS-fest | O60: 1
C61: ="auf Kabelpritsche mit 20mm Wandabstand und mit 2d Abstand übereinander liegend montiert" -> auf Kabelpritsche mit 20mm Wandabstand und mit 2d Abstand übereinander liegend montiert
B62: Abminderungsfaktoren aus: | C62: OEVE_OENORM.E 8200-603.2011
B63: Abminderungsfaktoren aus: | C63: ABB Handbuch 12, Seite 674 bis 677
A66: Znr.: 0000.KD.01 | B66: ="Znr.: "& Znr -> Znr.: P0000.KB.01 | E66: Red_Kabelverlegung bei senkrechter Anordnung | O66: =Datum -> 2019-01-07
A67: Rev. 0 | B67: =Revision -> Rev.: V.6.3 | E67: =Berechnungswerte!G45 -> I:\P_MSR\Diverses\Berechnungen\Leistungskabel | O67: Mustermann

Sheet NYY_Sich 400_690V Mehrleiter
A1: =CONCATENATE("Verlegung in Luft bei ",Berechnungswerte!E12,"°C"," Spannungsfall ΔU ",Berechnungswerte!G20, " %") -> Verlegung in Luft bei 40°C Spannungsfall ΔU 2,5 % | F1: Kabel Berechnung Sicherungsabgänge 400V / 690V Kabeltype NYY-J 4 Leiter im TN-C-System | M1: Pos (INDEX) | N1: ΔU Spannungsfall in V für 400 / 690V | O1: =CONCATENATE("Belastbarkeit in Luft Strom in A bei einer Temp. von ",Berechnungswerte!E12,"°C",) -> Belastbarkeit in Luft Strom in A bei einer Temp. von 40°C | P1: max. Schleifen -widerstand ZS =400 / m x IN in Ohm | Q1: max. Schleifen -widerstand ZS =231 / m x IN in Ohm | R1: Z´. NEU | S1: 690V Länge kleinste Abschaltbedingung | T1: 690V Kabellänge l=ΔU*K*A / Wurzel3*I | U1: Länge l=Z S/Z´. 690V | V1: 400V Länge kleinste Abschaltbedingung | W1: 400V Kabellänge l=DeltaU*k*A / Wurzel3*I | X1: Länge l=Z S/Z´. 400V | Y1: Hinleiter Querschnitt | AA1: ABFRAGE zum AUTOMATISCHEN AUSFÜLLEN | AB1: ABFRAGE zum AUTOMATISCHEN AUSFÜLLEN | AD1: Abschaltfaktor m für Sicherungen bis 32A / >32A ÖNORM E8001-1-A4
G2: Abschaltbedingungen | I2: Kabel | J2: Kabel
A3: Sicherung | D3: Kabel | E3: Kabel | G3: ΔU max = | H3: =CONCATENATE(Spannungsfall)&"% oder" -> 2,5% oder | K3: Bemerkung | M3: ΔU690V | N3: =DeltaU690V -> 17.25 | P3: 1
G4: max. Schleifenwiderstand | J4: kg / m kompl. System | M4: ΔU400V | N4: =DeltaU400V -> 10
A5: [A] | D5: Type | E5: Querschnitt [mm²] NYY-0 | F5: belastbar (A) bei Luft | G5: 690V Länge max [m] | H5: 400V Länge max [m] | I5: ø [mm] | M5: Index ab 1
F7: =CONCATENATE(MSLuft,Berechnungswerte!F12) -> 40°C | M7: Kritische Länge [m] oder (nur wenn möglich) Reduzierten Querschnitt auf Voll ändern heißt >> Index um +1 erhöhen
AA8: =F8-A8 -> 0
A9: 10 | B9: A | D9: =INDEX(Kab_Werte!$E$6:$E$939,M9) -> NYY-J | E9: =INDEX(Kab_Werte!$F$6:$F$939,M9) -> 4x2,5 | F9: =O9 -> 14.4 | G9: =S9 -> 139.43009 | H9: =V9 -> 80.82903769 | I9: =INDEX(Kab_Werte!$U$6:$U$939,M9) -> 1x 17 | J9: =INDEX(Kab_Werte!$W$6:$W$939,M9) -> 0.31 | K9: =IF(A9>(F9),"Kabel ist überlastet!","") ->  | M9: 1 | O9: =ROUND(INDEX(Kab_Werte!$K$6:$K$939,M9),1) -> 14.4 | P9: =ROUND(400/(A9*AD9),2) -> 4 | Q9: =ROUND(231/(A9*AD9),2) -> 2.31 | R9: =INDEX(Kab_Werte!$P$6:$P$939,M9) -> 17.73213 | S9: =MIN(T9:U9) -> 139.43009 | T9: =(DeltaU690V*KCu*Y9)/(SQRT(3)*A9) -> 139.43009 | U9: =(P9/R9*1000) -> 225.5792169 | V9: =MIN(W9:X9) -> 80.82903769 | W9: =(DeltaU400V*KCu*Y9)/(SQRT(3)*A9) -> 80.82903769 | X9: =Q9/R9*1000 -> 130.2719978 | Y9: =INDEX(Kab_Werte!$G$6:$G$939,M9)*INDEX(Kab_Werte!$B$6:$B$939,M9) -> 2.5 | AA9: 4.4 | AD9: =IF(A9>125,5,IF(A9>32,3.5,10)) -> 10
A10: 16 | B10: A | D10: =INDEX(Kab_Werte!$E$6:$E$939,M10) -> NYY-J | E10: =INDEX(Kab_Werte!$F$6:$F$939,M10) -> 4x4 | F10: =O10 -> 19.5 | G10: 139.43009 | H10: 80.82903769 | I10: =INDEX(Kab_Werte!$U$6:$U$939,M10) -> 1x 19 | J10: =INDEX(Kab_Werte!$W$6:$W$939,M10) -> 0.43 | K10: =IF(A10>(F10),"Kabel ist überlastet!","") ->  | M10: 2 | O10: =ROUND(INDEX(Kab_Werte!$K$6:$K$939,M10),1) -> 19.5 | P10: =ROUND(400/(A10*AD10),2) -> 2.5 | Q10: =ROUND(231/(A10*AD10),2) -> 1.44 | R10: =INDEX(Kab_Werte!$P$6:$P$939,M10) -> 11.03173 | S10: =MIN(T10:U10) -> 139.43009 | T10: 139.43009 | U10: =(P10/R10*1000) -> 226.6190344 | V10: =MIN(W10:X10) -> 80.82903769 | W10: 80.82903769 | X10: =Q10/R10*1000 -> 130.5325638 | Y10: =INDEX(Kab_Werte!$G$6:$G$939,M10)*INDEX(Kab_Werte!$B$6:$B$939,M10) -> 4 | AA10: 3.5 | AD10: =IF(A10>125,5,IF(A10>32,3.5,10)) -> 10
A11: 20 | B11: A | D11: =INDEX(Kab_Werte!$E$6:$E$939,M11) -> NYY-J | E11: =INDEX(Kab_Werte!$F$6:$F$939,M11) -> 4x6 | F11: =O11 -> 24.7 | G11: 167.316108 | H11: 96.99484522 | I11: =INDEX(Kab_Werte!$U$6:$U$939,M11) -> 1x 20 | J11: =INDEX(Kab_Werte!$W$6:$W$939,M11) -> 0.54 | K11: =IF(A11>(F11),"Kabel ist überlastet!","") ->  | M11: 3 | O11: =ROUND(INDEX(Kab_Werte!$K$6:$K$939,M11),1) -> 24.7 | P11: 2 | Q11: 1.16 | R11: =INDEX(Kab_Werte!$P$6:$P$939,M11) -> 7.37044 | S11: 167.316108 | T11: 167.316108 | U11: =(P11/R11*1000) -> 271.3542204 | V11: 96.99484522 | W11: 96.99484522 | X11: =Q11/R11*1000 -> 157.3854478 | Y11: =INDEX(Kab_Werte!$G$6:$G$939,M11)*INDEX(Kab_Werte!$B$6:$B$939,M11) -> 6 | AA11: 4.7 | AD11: 10
A12: 25 | B12: A | D12: =INDEX(Kab_Werte!$E$6:$E$939,M12) -> NYY-J | E12: =INDEX(Kab_Werte!$F$6:$F$939,M12) -> 4x10 | F12: 33.9 | G12: 223.088144 | H12: 129.3264603 | I12: =INDEX(Kab_Werte!$U$6:$U$939,M12) -> 1x 22 | J12: =INDEX(Kab_Werte!$W$6:$W$939,M12) -> 0.74 | M12: 4 | O12: =ROUND(INDEX(Kab_Werte!$K$6:$K$939,M12),1) -> 33.9 | P12: 1.6 | Q12: 0.92 | R12: =INDEX(Kab_Werte!$P$6:$P$939,M12) -> 4.37919 | S12: 223.088144 | T12: 223.088144 | U12: =(P12/R12*1000) -> 365.364371 | V12: 129.3264603 | W12: 129.3264603 | X12: =Q12/R12*1000 -> 210.0845133 | Y12: =INDEX(Kab_Werte!$G$6:$G$939,M12)*INDEX(Kab_Werte!$B$6:$B$939,M12) -> 10 | AA12: 8.9 | AD12: 10
A13: 35 | B13: A | D13: =INDEX(Kab_Werte!$E$6:$E$939,M13) -> NYY-J | E13: =INDEX(Kab_Werte!$F$6:$F$939,M13) -> 4x16 | F13: 44.8 | G13: 254.9578789 | H13: 147.8016689 | I13: =INDEX(Kab_Werte!$U$6:$U$939,M13) -> 1x 25 | J13: =INDEX(Kab_Werte!$W$6:$W$939,M13) -> 1.03 | M13: 5 | O13: =ROUND(INDEX(Kab_Werte!$K$6:$K$939,M13),1) -> 44.8 | P13: 3.27 | Q13: 1.89 | R13: =INDEX(Kab_Werte!$P$6:$P$939,M13) -> 2.75195 | S13: 254.9578789 | T13: 254.9578789 | U13: =(P13/R13*1000) -> 1188.248333 | V13: 147.8016689 | W13: 147.8016689 | X13: 686.7857338 | Y13: =INDEX(Kab_Werte!$G$6:$G$939,M13)*INDEX(Kab_Werte!$B$6:$B$939,M13) -> 16 | AA13: 9.8 | AD13: 3.5
A14: 50 | B14: A | D14: =INDEX(Kab_Werte!$E$6:$E$939,M14) -> NYY-J | E14: =INDEX(Kab_Werte!$F$6:$F$939,M14) -> 3x25/16 | F14: 60.3 | G14: 278.86018 | H14: 161.6580754 | I14: =INDEX(Kab_Werte!$U$6:$U$939,M14) -> 1x 30 | J14: =INDEX(Kab_Werte!$W$6:$W$939,M14) -> 1.42 | M14: 6 | O14: =ROUND(INDEX(Kab_Werte!$K$6:$K$939,M14),1) -> 60.3 | P14: 2.29 | Q14: 1.32 | R14: =INDEX(Kab_Werte!$P$6:$P$939,M14) -> 2.2458305 | S14: 278.86018 | T14: 278.86018 | U14: 1019.667335 | V14: 161.6580754 | W14: 161.6580754 | X14: 587.7558436 | Y14: =INDEX(Kab_Werte!$G$6:$G$939,M14)*INDEX(Kab_Werte!$B$6:$B$939,M14) -> 25 | AA14: 10.3 | AD14: 3.5
A15: 63 | B15: A | D15: =INDEX(Kab_Werte!$E$6:$E$939,M15) -> NYY-J | E15: =INDEX(Kab_Werte!$F$6:$F$939,M15) -> 3x35/16 | F15: 74.1 | G15: 309.8446445 | H15: 179.6200837 | I15: =INDEX(Kab_Werte!$U$6:$U$939,M15) -> 1x 31 | J15: =INDEX(Kab_Werte!$W$6:$W$939,M15) -> 1.69 | M15: 8 | O15: =ROUND(INDEX(Kab_Werte!$K$6:$K$939,M15),1) -> 74.1 | P15: 1.81 | Q15: 1.05 | R15: =INDEX(Kab_Werte!$P$6:$P$939,M15) -> 2.002941 | S15: 309.8446445 | T15: 309.8446445 | U15: 903.6711516 | V15: 179.6200837 | W15: 179.6200837 | X15: 524.2291211 | Y15: =INDEX(Kab_Werte!$G$6:$G$939,M15)*INDEX(Kab_Werte!$B$6:$B$939,M15) -> 35 | AA15: 11.1 | AD15: 3.5
A16: 80 | B16: A | D16: =INDEX(Kab_Werte!$E$6:$E$939,M16) -> NYY-J | E16: =INDEX(Kab_Werte!$F$6:$F$939,M16) -> 3x50/25 | F16: 90.1 | G16: 348.575225 | H16: 202.0725942 | I16: =INDEX(Kab_Werte!$U$6:$U$939,M16) -> 1x 35 | J16: =INDEX(Kab_Werte!$W$6:$W$939,M16) -> 2.26 | M16: 10 | O16: =ROUND(INDEX(Kab_Werte!$K$6:$K$939,M16),1) -> 90.1 | P16: 1.43 | Q16: 0.83 | R16: =INDEX(Kab_Werte!$P$6:$P$939,M16) -> 1.332901 | S16: 348.575225 | T16: 348.575225 | U16: 1072.847871 | V16: 202.0725942 | W16: 202.0725942 | X16: 622.7019111 | Y16: =INDEX(Kab_Werte!$G$6:$G$939,M16)*INDEX(Kab_Werte!$B$6:$B$939,M16) -> 50 | AA16: 10.1 | AD16: 3.5
A17: 100 | B17: A | D17: =INDEX(Kab_Werte!$E$6:$E$939,M17) -> NYY-J | E17: =INDEX(Kab_Werte!$F$6:$F$939,M17) -> 3x70/35 | F17: 114.3 | G17: 390.404252 | H17: 226.3213055 | I17: =INDEX(Kab_Werte!$U$6:$U$939,M17) -> 1x 38 | J17: =INDEX(Kab_Werte!$W$6:$W$939,M17) -> 2.94 | M17: 12 | O17: =ROUND(INDEX(Kab_Werte!$K$6:$K$939,M17),1) -> 114.3 | P17: 1.14 | Q17: 0.66 | R17: =INDEX(Kab_Werte!$P$6:$P$939,M17) -> 0.947628 | S17: 390.404252 | T17: 390.404252 | U17: 1203.00371 | V17: 226.3213055 | W17: 226.3213055 | X17: 696.4758323 | Y17: =INDEX(Kab_Werte!$G$6:$G$939,M17)*INDEX(Kab_Werte!$B$6:$B$939,M17) -> 70 | AA17: 14.3 | AD17: 3.5
A18: 125 | B18: A | D18: =INDEX(Kab_Werte!$E$6:$E$939,M18) -> NYY-J | E18: =INDEX(Kab_Werte!$F$6:$F$939,M18) -> 3x95/50 | F18: 141.3 | G18: 423.8674736 | H18: 245.7202746 | I18: =INDEX(Kab_Werte!$U$6:$U$939,M18) -> 1x 44 | J18: =INDEX(Kab_Werte!$W$6:$W$939,M18) -> 3.96 | M18: 14 | O18: =ROUND(INDEX(Kab_Werte!$K$6:$K$939,M18),1) -> 141.3 | P18: 0.91 | Q18: 0.53 | R18: =INDEX(Kab_Werte!$P$6:$P$939,M18) -> 0.69397 | S18: 423.8674736 | T18: 423.8674736 | U18: 1311.295877 | V18: 245.7202746 | W18: 245.7202746 | X18: 763.7217747 | Y18: =INDEX(Kab_Werte!$G$6:$G$939,M18)*INDEX(Kab_Werte!$B$6:$B$939,M18) -> 95 | AA18: 16.3 | AD18: 3.5
A19: 160 | B19: A | D19: =INDEX(Kab_Werte!$E$6:$E$939,M19) -> NYY-J | E19: =INDEX(Kab_Werte!$F$6:$F$939,M19) -> 3x120/70 | F19: 163.6 | G19: 418.29027 | H19: 242.4871131 | I19: =INDEX(Kab_Werte!$U$6:$U$939,M19) -> 1x 48 | J19: =INDEX(Kab_Werte!$W$6:$W$939,M19) -> 4.9 | M19: 16 | O19: =ROUND(INDEX(Kab_Werte!$K$6:$K$939,M19),1) -> 163.6 | P19: 0.5 | Q19: 0.29 | R19: =INDEX(Kab_Werte!$P$6:$P$939,M19) -> 0.5037265 | S19: 418.29027 | T19: 418.29027 | U19: 992.6021363 | V19: 242.4871131 | W19: 242.4871131 | X19: 575.709239 | Y19: =INDEX(Kab_Werte!$G$6:$G$939,M19)*INDEX(Kab_Werte!$B$6:$B$939,M19) -> 120 | AA19: 3.6 | AD19: 5
A20: 200 | B20: A | D20: =INDEX(Kab_Werte!$E$6:$E$939,M20) -> NYY-J | E20: =INDEX(Kab_Werte!$F$6:$F$939,M20) -> 3x185/95 | F20: 214.8 | G20: 515.891333 | H20: 299.0674394 | I20: =INDEX(Kab_Werte!$U$6:$U$939,M20) -> 1x 57 | J20: =INDEX(Kab_Werte!$W$6:$W$939,M20) -> 7.34 | M20: 20 | O20: =ROUND(INDEX(Kab_Werte!$K$6:$K$939,M20),1) -> 214.8 | P20: 0.4 | Q20: 0.23 | R20: =INDEX(Kab_Werte!$P$6:$P$939,M20) -> 0.34949765 | S20: 515.891333 | T20: 515.891333 | U20: 1144.499827 | V20: 299.0674394 | W20: 299.0674394 | X20: 658.0874006 | Y20: =INDEX(Kab_Werte!$G$6:$G$939,M20)*INDEX(Kab_Werte!$B$6:$B$939,M20) -> 185 | AA20: 14.8 | AD20: 5
A21: 250 | B21: A | D21: =INDEX(Kab_Werte!$E$6:$E$939,M21) -> NYY-J | E21: =INDEX(Kab_Werte!$F$6:$F$939,M21) -> 3x240/120 | F21: 255.5 | G21: 535.4115456 | H21: 310.3835047 | I21: =INDEX(Kab_Werte!$U$6:$U$939,M21) -> 1x 64 | J21: =INDEX(Kab_Werte!$W$6:$W$939,M21) -> 9.44 | M21: 23 | O21: =ROUND(INDEX(Kab_Werte!$K$6:$K$939,M21),1) -> 255.5 | P21: 0.32 | Q21: 0.18 | R21: =INDEX(Kab_Werte!$P$6:$P$939,M21) -> 0.2732806 | S21: 535.4115456 | T21: 535.4115456 | U21: 1170.957616 | V21: 310.3835047 | W21: 310.3835047 | X21: =Q21/R21*1000 -> 658.6636593 | Y21: =INDEX(Kab_Werte!$G$6:$G$939,M21)*INDEX(Kab_Werte!$B$6:$B$939,M21) -> 240 | AA21: 5.5 | AD21: 5
A22: 315 | B22: A | D22: =INDEX(Kab_Werte!$E$6:$E$939,M22) -> NYY-J | E22: =INDEX(Kab_Werte!$F$6:$F$939,M22) -> 2x(3x120/70) | F22: 327.3 | G22: 424.9297981 | H22: 246.3361149 | I22: =INDEX(Kab_Werte!$U$6:$U$939,M22) -> 2x 48 | J22: =INDEX(Kab_Werte!$W$6:$W$939,M22) -> 9.8 | M22: 26 | O22: =ROUND(INDEX(Kab_Werte!$K$6:$K$939,M22),1) -> 327.3 | P22: 0.25 | Q22: 0.15 | R22: =INDEX(Kab_Werte!$P$6:$P$939,M22) -> 0.25186325 | S22: 424.9297981 | T22: 424.9297981 | U22: 992.6021363 | V22: 246.3361149 | W22: 246.3361149 | X22: 595.5612818 | Y22: =INDEX(Kab_Werte!$G$6:$G$939,M22)*INDEX(Kab_Werte!$B$6:$B$939,M22) -> 240 | AA22: 12.3 | AD22: 5
A23: 355 | B23: A | D23: =INDEX(Kab_Werte!$E$6:$E$939,M23) -> NYY-J | E23: =INDEX(Kab_Werte!$F$6:$F$939,M23) -> 2x(3x150/70) | F23: 374.4 | G23: 471.3129803 | H23: 273.2249161 | I23: =INDEX(Kab_Werte!$U$6:$U$939,M23) -> 2x 52 | J23: =INDEX(Kab_Werte!$W$6:$W$939,M23) -> 11.74 | M23: 27 | O23: =ROUND(INDEX(Kab_Werte!$K$6:$K$939,M23),1) -> 374.4 | P23: 0.23 | Q23: 0.13 | R23: =INDEX(Kab_Werte!$P$6:$P$939,M23) -> 0.234514 | S23: 471.3129803 | T23: 471.3129803 | U23: 980.7516822 | V23: 273.2249161 | W23: 273.2249161 | X23: 554.3379073 | Y23: =INDEX(Kab_Werte!$G$6:$G$939,M23)*INDEX(Kab_Werte!$B$6:$B$939,M23) -> 300 | AA23: 19.4 | AD23: 5
A24: 400 | B24: A | D24: =INDEX(Kab_Werte!$E$6:$E$939,M24) -> NYY-J | E24: =INDEX(Kab_Werte!$F$6:$F$939,M24) -> 2x(3x185/95) | F24: 429.5 | G24: 515.891333 | H24: 299.0674394 | I24: =INDEX(Kab_Werte!$U$6:$U$939,M24) -> 2x 57 | J24: =INDEX(Kab_Werte!$W$6:$W$939,M24) -> 14.68 | M24: 28 | O24: =ROUND(INDEX(Kab_Werte!$K$6:$K$939,M24),1) -> 429.5 | P24: 0.2 | Q24: 0.12 | R24: =INDEX(Kab_Werte!$P$6:$P$939,M24) -> 0.174748825 | S24: 515.891333 | T24: 515.891333 | U24: 1144.499827 | V24: 299.0674394 | W24: 299.0674394 | X24: 686.6998963 | Y24: =INDEX(Kab_Werte!$G$6:$G$939,M24)*INDEX(Kab_Werte!$B$6:$B$939,M24) -> 370 | AA24: 29.5 | AD24: 5
A25: 500 | B25: A | D25: =INDEX(Kab_Werte!$E$6:$E$939,M25) -> NYY-J | E25: =INDEX(Kab_Werte!$F$6:$F$939,M25) -> 2x(3x240/120) | F25: 511 | G25: 535.4115456 | H25: 310.3835047 | I25: =INDEX(Kab_Werte!$U$6:$U$939,M25) -> 2x 64 | J25: =INDEX(Kab_Werte!$W$6:$W$939,M25) -> 18.88 | M25: 29 | O25: =ROUND(INDEX(Kab_Werte!$K$6:$K$939,M25),1) -> 511 | P25: 0.16 | Q25: 0.09 | R25: =INDEX(Kab_Werte!$P$6:$P$939,M25) -> 0.1366403 | S25: 535.4115456 | T25: 535.4115456 | U25: 1170.957616 | V25: 310.3835047 | W25: 310.3835047 | X25: 658.6636593 | Y25: =INDEX(Kab_Werte!$G$6:$G$939,M25)*INDEX(Kab_Werte!$B$6:$B$939,M25) -> 480 | AA25: 11 | AD25: 5
A26: 630 | B26: A | D26: =INDEX(Kab_Werte!$E$6:$E$939,M26) -> NYY-J | E26: =INDEX(Kab_Werte!$F$6:$F$939,M26) -> 3x(3x185/95) | F26: 644.3 | G26: 491.3250791 | H26: 284.8261328 | I26: =INDEX(Kab_Werte!$U$6:$U$939,M26) -> 3x 57 | J26: =INDEX(Kab_Werte!$W$6:$W$939,M26) -> 22.02 | M26: 31 | O26: =ROUND(INDEX(Kab_Werte!$K$6:$K$939,M26),1) -> 644.3 | P26: 0.13 | Q26: 0.07 | R26: =INDEX(Kab_Werte!$P$6:$P$939,M26) -> 0.1164992167 | S26: 491.3250791 | T26: 491.3250791 | U26: 1115.887331 | V26: 284.8261328 | W26: 284.8261328 | X26: 600.8624092 | Y26: =INDEX(Kab_Werte!$G$6:$G$939,M26)*INDEX(Kab_Werte!$B$6:$B$939,M26) -> 555 | AA26: 14.3 | AD26: 5
M27: 1 | AA27: 0 | AD27: 10
M28: 1 | AA28: 0 | AD28: 10
M29: 1 | AA29: 0 | AD29: 10
M30: 1 | AA30: 0 | AD30: 10
M31: 1 | AA31: 0 | AD31: 10
M32: 1 | AA32: 0 | AD32: 10
M33: 1 | AA33: 0 | AD33: 10
M34: 1 | AA34: 0 | AD34: 10
M35: 1 | AA35: 0 | AD35: 10
M36: 1 | AA36: 0 | AD36: 10
M37: 1 | AA37: 0 | AD37: 10
M38: 1 | AA38: 0 | AD38: 10
M39: 1 | AA39: 0 | AD39: 10
M40: 1 | AA40: 0 | AD40: 10
M41: 1 | AA41: 0 | AD41: 10
M42: 1 | AA42: 0 | AD42: 10
M43: 1 | AA43: 0 | AD43: 10
M44: 1 | AA44: 0 | AD44: 10
A47: Dimensionierungsgrundlage:
A49: 1) Betriebsspannung | H49: 400 V / 690 V
A50: 2) Netz -System | H50: TN-C- System
A51: 3) Spannungsfall | H51: ΔU max = | I51: =Spannungsfall -> 2.5 | J51: %
A52: 4) Belastbarkeit der Kabel | H52: lt. DIN VDE 0298, Teil 4 | J52: Tab 7
A53: 5) Verlegung in Luft bei | F53: =MSLuft -> 40 | G53: °C | H53: f1 = | I53: =AbmTemp -> 0.87 | J53: Tab 15
A54: =SechsA1 -> 6a) Vierleiterkabel: Verlegung auf 6 Kabelpritsche(n) mit gegenseitiger | H54: f2 = | I54: =AbmHaeufung -> 0.66 | J54: Tab 18
A55: =SechsA2 -> und Wand- Berührung 9 Kabel nebeneinander liegend, KS-fest verl.
A56: =SechsB1 -> 6b) Einleiterkabel: Verlegung auf 6 Kabelpritsche(n) gebündelt im | H56: f2 = | I56: =AbmHäuf_Einleiter -> 0.87 | J56: Tab 16
A57: =SechsB2 -> Abstand 2d 3 Drehstromsysteme nebeneinander, KS-fest verl.
A58: 7a) Reduzierung der Belastbarkeit (6a) | H58: f = f1 * f2 | I58: f = | J58: =Reduz_a -> 0.5742
A59: 7b) Reduzierung der Belastbarkeit (6b) | H59: f = f1 * f2 | I59: f = | J59: =Reduz_b -> 0.7569
A60: 8) Abschaltströme: Sicherung Motorschutzschalter Leistungsschalter * | H60: IA = m x Isich IA = 12 x IMS *IA = 1x ILS (Ii) | J60: (Einstellung Unverzögerter Kurzschluss)
A63: ="Znr.: "& Znr -> Znr.: P0000.KB.01 | F63: Kabel NYY-J_Sicherung 400_690V | K63: =Datum -> 2019-01-07
A64: =Revision -> Rev.: V.6.3 | F64: =Berechnungswerte!G45 -> I:\P_MSR\Diverses\Berechnungen\Leistungskabel | K64: =MName -> Mustermann

Sheet NYY_Sich 400_690V Einleiter
A1: =CONCATENATE("Verlegung in Luft bei ",Berechnungswerte!E12,"°C"," Spannungsfall ΔU ",Berechnungswerte!G20, " %") -> Verlegung in Luft bei 40°C Spannungsfall ΔU 2,5 % | F1: Kabel Berechnung LS - Abgang 400V / 690V Kabeltype NYY-0 4 Leiter im TN-C-System | M1: ΔU Spannungsfall in V für 400 / 690V | N1: Pos (INDEX) | O1: =CONCATENATE("Belastbarkeit in Luft Strom in A bei einer Temp. von ",Berechnungswerte!E12,"°C",) -> Belastbarkeit in Luft Strom in A bei einer Temp. von 40°C | P1: max. Schleifen -widerstand ZS =400 / 1 x IN in Ohm | Q1: max. Schleifen -widerstand ZS =231 / 1 x IN in Ohm | R1: Z´. NEU | S1: 690V Länge kleinste Abschaltbedingung | T1: 690V Kabellänge l=ΔU*K*A / Wurzel3*I | U1: Länge l=Z S/Z´. 690V | V1: 400V Länge kleinste Abschaltbedingung | W1: 400V Kabellänge l=DeltaU*k*A / Wurzel3*I | X1: Länge l=Z S/Z´. 400V | Y1: Hinleiter Querschnitt | AA1: ABFRAGE zum AUTOMATISCHEN AUSFÜLLEN | AB1: ABFRAGE zum AUTOMATISCHEN AUSFÜLLEN
G2: Abschaltbedingungen | I2: Kabel | J2: Kabel
A3: Leistungs- Schalter | D3: Kabel | E3: Kabel | G3: ΔU max = | H3: =CONCATENATE(Spannungsfall)&"% oder" -> 2,5% oder | K3: Bemerkung | M3: ΔU690V | N3: =DeltaU690V -> 17.25
G4: max. Schleifenwiderstand | J4: kg / m kompl. System | M4: ΔU400V | N4: =DeltaU400V -> 10 | P4: 401
A5: [A] | D5: Type | E5: Querschnitt [mm²] NYY-0 | F5: belastbar (A) bei Luft | G5: 690V Länge max [m] | H5: 400V Länge max [m] | I5: ø [mm] | M5: Einleiter ab 401
F7: =CONCATENATE(MSLuft,Berechnungswerte!F12) -> 40°C | M7: Kritische Länge [m] oder (nur wenn möglich) Reduzierten Querschnitt auf Voll ändern heißt >> Index um +1 erhöhen
AB8: =F8-A8 -> 0
A9: 800 | B9: A | D9: =INDEX(Kab_Werte!$E$6:$E$939,N9) -> NYY-0 | E9: =INDEX(Kab_Werte!$F$6:$F$939,N9) -> (2x3+1)x1x300 | F9: =O9 -> 835.6 | G9: =S9 -> 418.29027 | H9: =V9 -> 242.4871131 | I9: =INDEX(Kab_Werte!$U$6:$U$939,N9) -> 7x 33 | J9: =INDEX(Kab_Werte!$W$6:$W$939,N9) -> 23.1 | K9: =IF(F9<A9,"LS- Schaltereinstellung"," * LS ") -> * LS | N9: 413 | O9: =ROUND(INDEX(Kab_Werte!$K$6:$K$939,N9),1) -> 835.6 | P9: =ROUND(400/(A9),2) -> 0.5 | Q9: =ROUND(231/(A9),2) -> 0.29 | R9: =INDEX(Kab_Werte!$P$6:$P$939,N9) -> 0.107864475 | S9: =MIN(T9:U9) -> 418.29027 | T9: =(DeltaU690V*KCu*Y9)/(SQRT(3)*A9) -> 418.29027 | U9: =(P9/R9*1000) -> 4635.446471 | V9: =MIN(W9:X9) -> 242.4871131 | W9: =(DeltaU400V*KCu*Y9)/(SQRT(3)*A9) -> 242.4871131 | X9: =Q9/R9*1000 -> 2688.558953 | Y9: =INDEX(Kab_Werte!$G$6:$G$939,N9)*INDEX(Kab_Werte!$B$6:$B$939,N9) -> 600 | AB9: =F9-A9 -> 35.6
A10: 1000 | B10: A | D10: =INDEX(Kab_Werte!$E$6:$E$939,N10) -> NYY-0 | E10: =INDEX(Kab_Werte!$F$6:$F$939,N10) -> (3x3+2)x1x240 | F10: 1096.7 | G10: 401.5586592 | H10: 232.7876285 | I10: =INDEX(Kab_Werte!$U$6:$U$939,N10) -> 11x 31 | J10: =INDEX(Kab_Werte!$W$6:$W$939,N10) -> 29.04 | K10: =IF(F10<A10,"LS- Schaltereinstellung"," * LS ") -> * LS | N10: 415 | O10: =ROUND(INDEX(Kab_Werte!$K$6:$K$939,N10),1) -> 1096.7 | P10: =ROUND(400/(A10),2) -> 0.4 | Q10: =ROUND(231/(A10),2) -> 0.23 | R10: =INDEX(Kab_Werte!$P$6:$P$939,N10) -> 0.07518008333 | S10: 401.5586592 | T10: =(DeltaU690V*KCu*Y10)/(SQRT(3)*A10) -> 401.5586592 | U10: 5320.558082 | V10: 232.7876285 | W10: =(DeltaU400V*KCu*Y10)/(SQRT(3)*A10) -> 232.7876285 | X10: 3059.320897 | Y10: =INDEX(Kab_Werte!$G$6:$G$939,N10)*INDEX(Kab_Werte!$B$6:$B$939,N10) -> 720 | AB10: 96.7
A11: 1250 | B11: A | D11: =INDEX(Kab_Werte!$E$6:$E$939,N11) -> NYY-0 | E11: =INDEX(Kab_Werte!$F$6:$F$939,N11) -> (3x3+2)x1x300 | F11: 1253.4 | G11: 401.5586592 | H11: 232.7876285 | I11: =INDEX(Kab_Werte!$U$6:$U$939,N11) -> 11x 33 | J11: =INDEX(Kab_Werte!$W$6:$W$939,N11) -> 36.3 | K11: =IF(F11<A11,"LS- Schaltereinstellung"," * LS ") -> * LS | N11: 417 | O11: =ROUND(INDEX(Kab_Werte!$K$6:$K$939,N11),1) -> 1253.4 | P11: =ROUND(400/(A11),2) -> 0.32 | Q11: =ROUND(231/(A11),2) -> 0.18 | R11: =INDEX(Kab_Werte!$P$6:$P$939,N11) -> 0.05992470833 | S11: 401.5586592 | T11: =(DeltaU690V*KCu*Y11)/(SQRT(3)*A11) -> 401.5586592 | U11: 5340.034335 | V11: 232.7876285 | W11: =(DeltaU400V*KCu*Y11)/(SQRT(3)*A11) -> 232.7876285 | X11: 3003.769313 | Y11: =INDEX(Kab_Werte!$G$6:$G$939,N11)*INDEX(Kab_Werte!$B$6:$B$939,N11) -> 900 | AB11: 3.4
N12: 401 | AB12: 0
N13: 401 | AB13: 0
N14: 401 | AB14: 0
N15: 401 | AB15: 0
N16: 401 | AB16: 0
N17: 401 | AB17: 0
N18: 401 | AB18: 0
N19: 401 | AB19: 0
N20: 401 | AB20: 0
N21: 401 | AB21: 0
N22: 401 | AB22: 0
N23: 401 | AB23: 0
N24: 401 | AB24: 0
N25: 401 | AB25: 0
N26: 401 | AB26: 0
N27: 401 | AB27: 0
N28: 401 | AB28: 0
N29: 401 | AB29: 0
N30: 401 | AB30: 0
N31: 401 | AB31: 0
N32: 401 | AB32: 0
N33: 401 | AB33: 0
N34: 401 | AB34: 0
N35: 401 | AB35: 0
N36: 401 | AB36: 0
N37: 401 | AB37: 0
N38: 401 | AB38: 0
N39: 401 | AB39: 0
N40: 401 | AB40: 0
N41: 401 | AB41: 0
N42: 401 | AB42: 0
N43: 401 | AB43: 0
N44: 401 | AB44: 0
A47: Dimensionierungsgrundlage:
A49: 1) Betriebsspannung | H49: 400 V / 690 V
A50: 2) Netz -System | H50: TN-C- System
A51: 3) Spannungsfall | H51: ΔU max = | I51: =Spannungsfall -> 2.5 | J51: %
A52: 4) Belastbarkeit der Kabel | H52: lt. DIN VDE 0298, Teil 4 | J52: Tab 7
A53: 5) Verlegung in Luft bei | F53: =MSLuft -> 40 | G53: °C | H53: f1 = | I53: =AbmTemp -> 0.87 | J53: Tab 15 | K53: bei Mehrfachbündel
A54: =SechsA1 -> 6a) Vierleiterkabel: Verlegung auf 6 Kabelpritsche(n) mit gegenseitiger | H54: f2 = | I54: =AbmHaeufung -> 0.66 | J54: Tab 18 | K54: Phasenfolge drehen
A55: =SechsA2 -> und Wand- Berührung 9 Kabel nebeneinander liegend, KS-fest verl.
A56: =SechsB1 -> 6b) Einleiterkabel: Verlegung auf 6 Kabelpritsche(n) gebündelt im | H56: f2 = | I56: =AbmHäuf_Einleiter -> 0.87 | J56: Tab 16
A57: =SechsB2 -> Abstand 2d 3 Drehstromsysteme nebeneinander, KS-fest verl.
A58: 7a) Reduzierung der Belastbarkeit (6a) | H58: f = f1 * f2 | I58: f = | J58: =Reduz_a -> 0.5742
A59: 7b) Reduzierung der Belastbarkeit (6b) | H59: f = f1 * f2 | I59: f = | J59: =Reduz_b -> 0.7569
A60: 8) Abschaltströme: Sicherung Motorschutzschalter Leistungsschalter * | H60: IA = m x Isich IA = 12 x IMS *IA = 1x ILS (Ii) | J60: (Einstellung Unverzögerter Kurzschluss)
A63: ="Znr.: "& Znr -> Znr.: P0000.KB.01 | F63: Kabel NYY-0_Sicherung 400_690V | K63: =Datum -> 2019-01-07
A64: =Revision -> Rev.: V.6.3 | F64: =Berechnungswerte!G45 -> I:\P_MSR\Diverses\Berechnungen\Leistungskabel | K64: =MName -> Mustermann

Sheet TN-S NYY_Sich 400V Mehrleiter
A1: =CONCATENATE("Verlegung in Luft bei ",Berechnungswerte!E12,"°C"," Spannungsfall ΔU ",Berechnungswerte!G20, " %") -> Verlegung in Luft bei 40°C Spannungsfall ΔU 2,5 % | F1: Kabel Berechnung Sicherungsabgänge 400V Kabeltype NYY-J 5 Leiter im TN-S-System | M1: Pos (INDEX) | N1: ΔU Spannungsfall in V für 400V | O1: =CONCATENATE("Belastbarkeit in Luft Strom in A bei einer Temp. von ",Berechnungswerte!E12,"°C",) -> Belastbarkeit in Luft Strom in A bei einer Temp. von 40°C | P1: max. Schleifen -widerstand ZS =400 / m x IN in Ohm | Q1: max. Schleifen -widerstand ZS =231 / m x IN in Ohm | R1: Z´. NEU | S1: 400V Länge kleinste Abschaltbedingung | T1: 400V Kabellänge l=DeltaU*k*A / Wurzel3*I | U1: Länge l=Z S/Z´. 400V | V1: Hinleiter Querschnitt | AA1: ABFRAGE zum AUTOMATISCHEN AUSFÜLLEN | AB1: ABFRAGE zum AUTOMATISCHEN AUSFÜLLEN | AD1: Abschaltfaktor m für Sicherungen bis 32A / >32A ÖNORM E8001-1-A4
G2: Abschaltbedingungen | I2: Kabel | J2: Kabel
A3: Sicherung | D3: Kabel | E3: Kabel | G3: ΔU max = | H3: =CONCATENATE(Spannungsfall)&"% oder" -> 2,5% oder | K3: Bemerkung | M3: ΔU400V | N3: =DeltaU400V -> 10 | P3: 101
G4: max. Schleifenwiderstand | J4: kg / m kompl. System | M4: Index ab 101
A5: [A] | D5: Type | E5: Querschnitt [mm²] NYY-0 | F5: belastbar (A) bei Luft | G5: 400V Länge max [m] | I5: ø [mm]
F7: =CONCATENATE(MSLuft,Berechnungswerte!F12) -> 40°C | M7: Kritische Länge [m] oder (nur wenn möglich) Reduzierten Querschnitt auf Voll ändern heißt >> Index um +1 erhöhen
AA8: =F8-A8 -> 0
A9: 10 | B9: A | D9: =INDEX(Kab_Werte!$E$6:$E$939,M9) -> NYY-J | E9: =INDEX(Kab_Werte!$F$6:$F$939,M9) -> 5x2,5RE | F9: =O9 -> 14.4 | G9: =S9 -> 80.82903769 | I9: =INDEX(Kab_Werte!$U$6:$U$939,M9) -> 1x 17 | J9: =INDEX(Kab_Werte!$W$6:$W$939,M9) -> 0.35 | K9: =IF(A9>(F9),"Kabel ist überlastet!","") ->  | M9: 101 | O9: =ROUND(INDEX(Kab_Werte!$K$6:$K$939,M9),1) -> 14.4 | P9: =ROUND(400/(A9*AD9),2) -> 4 | Q9: =ROUND(231/(A9*AD9),2) -> 2.31 | R9: =INDEX(Kab_Werte!$P$6:$P$939,M9) -> 17.73213 | S9: =MIN(T9:U9) -> 80.82903769 | T9: =(DeltaU400V*KCu*V9)/(SQRT(3)*A9) -> 80.82903769 | U9: =Q9/R9*1000 -> 130.2719978 | V9: =INDEX(Kab_Werte!$G$6:$G$939,M9)*INDEX(Kab_Werte!$B$6:$B$939,M9) -> 2.5 | AA9: =F9-A9 -> 4.4 | AD9: =IF(A9>125,5,IF(A9>32,3.5,10)) -> 10
A10: 16 | B10: A | D10: =INDEX(Kab_Werte!$E$6:$E$939,M10) -> NYY-J | E10: =INDEX(Kab_Werte!$F$6:$F$939,M10) -> 5x4RE | F10: =O10 -> 19.5 | G10: 80.82903769 | I10: =INDEX(Kab_Werte!$U$6:$U$939,M10) -> 1x 19 | J10: =INDEX(Kab_Werte!$W$6:$W$939,M10) -> 0.5 | K10: =IF(A10>(F10),"Kabel ist überlastet!","") ->  | M10: 102 | O10: =ROUND(INDEX(Kab_Werte!$K$6:$K$939,M10),1) -> 19.5 | P10: =ROUND(400/(A10*AD10),2) -> 2.5 | Q10: =ROUND(231/(A10*AD10),2) -> 1.44 | R10: =INDEX(Kab_Werte!$P$6:$P$939,M10) -> 11.03173 | S10: =MIN(T10:U10) -> 80.82903769 | T10: 80.82903769 | U10: =Q10/R10*1000 -> 130.5325638 | V10: =INDEX(Kab_Werte!$G$6:$G$939,M10)*INDEX(Kab_Werte!$B$6:$B$939,M10) -> 4 | AA10: 3.5 | AD10: =IF(A10>125,5,IF(A10>32,3.5,10)) -> 10
A11: 20 | B11: A | D11: =INDEX(Kab_Werte!$E$6:$E$939,M11) -> NYY-J | E11: =INDEX(Kab_Werte!$F$6:$F$939,M11) -> 5x6RE | F11: =O11 -> 24.7 | G11: 96.99484522 | I11: =INDEX(Kab_Werte!$U$6:$U$939,M11) -> 1x 21 | J11: =INDEX(Kab_Werte!$W$6:$W$939,M11) -> 0.63 | K11: =IF(A11>(F11),"Kabel ist überlastet!","") ->  | M11: 103 | O11: =ROUND(INDEX(Kab_Werte!$K$6:$K$939,M11),1) -> 24.7 | P11: 2 | Q11: 1.16 | R11: =INDEX(Kab_Werte!$P$6:$P$939,M11) -> 7.37044 | S11: 96.99484522 | T11: 96.99484522 | U11: =Q11/R11*1000 -> 157.3854478 | V11: =INDEX(Kab_Werte!$G$6:$G$939,M11)*INDEX(Kab_Werte!$B$6:$B$939,M11) -> 6 | AA11: 4.7 | AD11: 10
A12: 25 | B12: A | D12: =INDEX(Kab_Werte!$E$6:$E$939,M12) -> NYY-J | E12: =INDEX(Kab_Werte!$F$6:$F$939,M12) -> 5x10RM | F12: 33.9 | G12: 129.3264603 | I12: =INDEX(Kab_Werte!$U$6:$U$939,M12) -> 1x 23 | J12: =INDEX(Kab_Werte!$W$6:$W$939,M12) -> 0.88 | M12: 104 | O12: =ROUND(INDEX(Kab_Werte!$K$6:$K$939,M12),1) -> 33.9 | P12: 1.6 | Q12: 0.92 | R12: =INDEX(Kab_Werte!$P$6:$P$939,M12) -> 4.37919 | S12: 129.3264603 | T12: 129.3264603 | U12: =Q12/R12*1000 -> 210.0845133 | V12: =INDEX(Kab_Werte!$G$6:$G$939,M12)*INDEX(Kab_Werte!$B$6:$B$939,M12) -> 10 | AA12: 8.9 | AD12: 10
A13: 35 | B13: A | D13: =INDEX(Kab_Werte!$E$6:$E$939,M13) -> NYY-J | E13: =INDEX(Kab_Werte!$F$6:$F$939,M13) -> 5x16RM | F13: 44.8 | G13: 147.8016689 | I13: =INDEX(Kab_Werte!$U$6:$U$939,M13) -> 1x 25 | J13: =INDEX(Kab_Werte!$W$6:$W$939,M13) -> 1.26 | M13: 105 | O13: =ROUND(INDEX(Kab_Werte!$K$6:$K$939,M13),1) -> 44.8 | P13: 3.27 | Q13: 1.89 | R13: =INDEX(Kab_Werte!$P$6:$P$939,M13) -> 2.75195 | S13: 147.8016689 | T13: 147.8016689 | U13: 686.7857338 | V13: =INDEX(Kab_Werte!$G$6:$G$939,M13)*INDEX(Kab_Werte!$B$6:$B$939,M13) -> 16 | AA13: 9.8 | AD13: 3.5
A14: 50 | B14: A | D14: =INDEX(Kab_Werte!$E$6:$E$939,M14) -> NYY-J | E14: =INDEX(Kab_Werte!$F$6:$F$939,M14) -> 5x25RM | F14: 60.3 | G14: 161.6580754 | I14: =INDEX(Kab_Werte!$U$6:$U$939,M14) -> 1x 33 | J14: =INDEX(Kab_Werte!$W$6:$W$939,M14) -> 1.89 | M14: 106 | O14: =ROUND(INDEX(Kab_Werte!$K$6:$K$939,M14),1) -> 60.3 | P14: 2.29 | Q14: 1.32 | R14: =INDEX(Kab_Werte!$P$6:$P$939,M14) -> 1.739711 | S14: 161.6580754 | T14: 161.6580754 | U14: 758.7467114 | V14: =INDEX(Kab_Werte!$G$6:$G$939,M14)*INDEX(Kab_Werte!$B$6:$B$939,M14) -> 25 | AA14: 10.3 | AD14: 3.5
A15: 63 | B15: A | D15: =INDEX(Kab_Werte!$E$6:$E$939,M15) -> NYY-J | E15: =INDEX(Kab_Werte!$F$6:$F$939,M15) -> 5x35RM | F15: 74.1 | G15: 179.6200837 | I15: =INDEX(Kab_Werte!$U$6:$U$939,M15) -> 1x 36 | J15: =INDEX(Kab_Werte!$W$6:$W$939,M15) -> 2.8 | M15: 107 | O15: =ROUND(INDEX(Kab_Werte!$K$6:$K$939,M15),1) -> 74.1 | P15: 1.81 | Q15: 1.05 | R15: =INDEX(Kab_Werte!$P$6:$P$939,M15) -> 1.253932 | S15: 179.6200837 | T15: 179.6200837 | U15: 837.3659816 | V15: =INDEX(Kab_Werte!$G$6:$G$939,M15)*INDEX(Kab_Werte!$B$6:$B$939,M15) -> 35 | AA15: 11.1 | AD15: 3.5
A16: 80 | B16: A | D16: =INDEX(Kab_Werte!$E$6:$E$939,M16) -> NYY-J | E16: =INDEX(Kab_Werte!$F$6:$F$939,M16) -> 5x50RM | F16: 90.1 | G16: 202.0725942 | I16: =INDEX(Kab_Werte!$U$6:$U$939,M16) -> 1x 40 | J16: =INDEX(Kab_Werte!$W$6:$W$939,M16) -> 3.56 | M16: 108 | O16: =ROUND(INDEX(Kab_Werte!$K$6:$K$939,M16),1) -> 90.1 | P16: 1.43 | Q16: 0.83 | R16: =INDEX(Kab_Werte!$P$6:$P$939,M16) -> 0.926091 | S16: 202.0725942 | T16: 202.0725942 | U16: 896.2402183 | V16: =INDEX(Kab_Werte!$G$6:$G$939,M16)*INDEX(Kab_Werte!$B$6:$B$939,M16) -> 50 | AA16: 10.1 | AD16: 3.5
A17: 100 | B17: A | D17: =INDEX(Kab_Werte!$E$6:$E$939,M17) -> NYY-J | E17: =INDEX(Kab_Werte!$F$6:$F$939,M17) -> 5x70RM | F17: 114.3 | G17: 226.3213055 | I17: =INDEX(Kab_Werte!$U$6:$U$939,M17) -> 1x 47 | J17: =INDEX(Kab_Werte!$W$6:$W$939,M17) -> 4.81 | M17: 109 | O17: =ROUND(INDEX(Kab_Werte!$K$6:$K$939,M17),1) -> 114.3 | P17: 1.14 | Q17: 0.66 | R17: =INDEX(Kab_Werte!$P$6:$P$939,M17) -> 0.641324 | S17: 226.3213055 | T17: 226.3213055 | U17: 1029.121006 | V17: =INDEX(Kab_Werte!$G$6:$G$939,M17)*INDEX(Kab_Werte!$B$6:$B$939,M17) -> 70 | AA17: 14.3 | AD17: 3.5
A18: 125 | B18: A | D18: =INDEX(Kab_Werte!$E$6:$E$939,M18) -> NYY-J | E18: =INDEX(Kab_Werte!$F$6:$F$939,M18) -> 5x95RM | F18: 141.3 | G18: 245.7202746 | I18: =INDEX(Kab_Werte!$U$6:$U$939,M18) -> 1x 52 | J18: =INDEX(Kab_Werte!$W$6:$W$939,M18) -> 5.385 | M18: 110 | O18: =ROUND(INDEX(Kab_Werte!$K$6:$K$939,M18),1) -> 141.3 | P18: 0.91 | Q18: 0.53 | R18: =INDEX(Kab_Werte!$P$6:$P$939,M18) -> 0.461849 | S18: 245.7202746 | T18: 245.7202746 | U18: 1147.561216 | V18: =INDEX(Kab_Werte!$G$6:$G$939,M18)*INDEX(Kab_Werte!$B$6:$B$939,M18) -> 95 | AA18: 16.3 | AD18: 3.5
A19: 160 | B19: A | D19: =INDEX(Kab_Werte!$E$6:$E$939,M19) -> NYY-J | E19: =INDEX(Kab_Werte!$F$6:$F$939,M19) -> 5x120RM | F19: 163.6 | G19: 242.4871131 | I19: =INDEX(Kab_Werte!$U$6:$U$939,M19) -> 1x 57 | J19: =INDEX(Kab_Werte!$W$6:$W$939,M19) -> 6.78 | M19: 111 | O19: =ROUND(INDEX(Kab_Werte!$K$6:$K$939,M19),1) -> 163.6 | P19: 0.5 | Q19: 0.29 | R19: =INDEX(Kab_Werte!$P$6:$P$939,M19) -> 0.366129 | S19: 242.4871131 | T19: 242.4871131 | U19: 792.0705544 | V19: =INDEX(Kab_Werte!$G$6:$G$939,M19)*INDEX(Kab_Werte!$B$6:$B$939,M19) -> 120 | AA19: 3.6 | AD19: 5
A20: 200 | B20: A | D20: =INDEX(Kab_Werte!$E$6:$E$939,M20) -> NYY-J | E20: =INDEX(Kab_Werte!$F$6:$F$939,M20) -> 2x(5x70RM) | F20: 228.5 | G20: 226.3213055 | I20: =INDEX(Kab_Werte!$U$6:$U$939,M20) -> 2x 47 | J20: =INDEX(Kab_Werte!$W$6:$W$939,M20) -> 9.62 | M20: 112 | O20: =ROUND(INDEX(Kab_Werte!$K$6:$K$939,M20),1) -> 228.5 | P20: 0.4 | Q20: 0.23 | R20: =INDEX(Kab_Werte!$P$6:$P$939,M20) -> 0.320662 | S20: 226.3213055 | T20: 226.3213055 | U20: 717.2661556 | V20: =INDEX(Kab_Werte!$G$6:$G$939,M20)*INDEX(Kab_Werte!$B$6:$B$939,M20) -> 140 | AA20: 28.5 | AD20: 5
A21: 250 | B21: A | D21: =INDEX(Kab_Werte!$E$6:$E$939,M21) -> NYY-J | E21: =INDEX(Kab_Werte!$F$6:$F$939,M21) -> 2x(5x95RM) | F21: 282.5 | G21: 245.7202746 | I21: =INDEX(Kab_Werte!$U$6:$U$939,M21) -> 2x 52 | J21: =INDEX(Kab_Werte!$W$6:$W$939,M21) -> 10.77 | M21: 113 | O21: =ROUND(INDEX(Kab_Werte!$K$6:$K$939,M21),1) -> 282.5 | P21: 0.32 | Q21: 0.18 | R21: =INDEX(Kab_Werte!$P$6:$P$939,M21) -> 0.2309245 | S21: 245.7202746 | T21: 245.7202746 | U21: 779.4755429 | V21: =INDEX(Kab_Werte!$G$6:$G$939,M21)*INDEX(Kab_Werte!$B$6:$B$939,M21) -> 190 | AA21: 32.5 | AD21: 5
A22: 315 | B22: A | D22: =INDEX(Kab_Werte!$E$6:$E$939,M22) -> NYY-J | E22: =INDEX(Kab_Werte!$F$6:$F$939,M22) -> 2x(5x120RM) | F22: 327.3 | G22: 246.3361149 | I22: =INDEX(Kab_Werte!$U$6:$U$939,M22) -> 2x 57 | J22: =INDEX(Kab_Werte!$W$6:$W$939,M22) -> 13.56 | M22: 114 | O22: =ROUND(INDEX(Kab_Werte!$K$6:$K$939,M22),1) -> 327.3 | P22: 0.25 | Q22: 0.15 | R22: =INDEX(Kab_Werte!$P$6:$P$939,M22) -> 0.1830645 | S22: 246.3361149 | T22: 246.3361149 | U22: 819.3833321 | V22: =INDEX(Kab_Werte!$G$6:$G$939,M22)*INDEX(Kab_Werte!$B$6:$B$939,M22) -> 240 | AA22: 12.3 | AD22: 5
M23: 101 | AA23: 0 | AD23: 10
M24: 101 | AA24: 0 | AD24: 10
M25: 101 | AA25: 0 | AD25: 10
M26: 101 | AA26: 0 | AD26: 10
M27: 101 | AA27: 0 | AD27: 10
M28: 101 | AA28: 0 | AD28: 10
M29: 101 | AA29: 0 | AD29: 10
M30: 101 | AA30: 0 | AD30: 10
M31: 101 | AA31: 0 | AD31: 10
M32: 101 | AA32: 0 | AD32: 10
M33: 101 | AA33: 0 | AD33: 10
M34: 101 | AA34: 0 | AD34: 10
M35: 101 | AA35: 0 | AD35: 10
M36: 101 | AA36: 0 | AD36: 10
M37: 101 | AA37: 0 | AD37: 10
M38: 101 | AA38: 0 | AD38: 10
M39: 101 | AA39: 0 | AD39: 10
M40: 101 | AA40: 0 | AD40: 10
M41: 101 | AA41: 0 | AD41: 10
M42: 101 | AA42: 0 | AD42: 10
M43: 101 | AA43: 0 | AD43: 10
M44: 101 | AA44: 0 | AD44: 10
A47: Dimensionierungsgrundlage:
A49: 1) Betriebsspannung | H49: 400 V
A50: 2) Netz -System | H50: TN-S- System
A51: 3) Spannungsfall | H51: ΔU max = | I51: =Spannungsfall -> 2.5 | J51: %
A52: 4) Belastbarkeit der Kabel | H52: lt. DIN VDE 0298, Teil 4 | J52: Tab 7
A53: 5) Verlegung in Luft bei | F53: =MSLuft -> 40 | G53: °C | H53: f1 = | I53: =AbmTemp -> 0.87 | J53: Tab 15
A54: =SechsA1 -> 6a) Vierleiterkabel: Verlegung auf 6 Kabelpritsche(n) mit gegenseitiger | H54: f2 = | I54: =AbmHaeufung -> 0.66 | J54: Tab 18
A55: =SechsA2 -> und Wand- Berührung 9 Kabel nebeneinander liegend, KS-fest verl.
A56: =SechsB1 -> 6b) Einleiterkabel: Verlegung auf 6 Kabelpritsche(n) gebündelt im | H56: f2 = | I56: =AbmHäuf_Einleiter -> 0.87 | J56: Tab 16
A57: =SechsB2 -> Abstand 2d 3 Drehstromsysteme nebeneinander, KS-fest verl.
A58: 7a) Reduzierung der Belastbarkeit (6a) | H58: f = f1 * f2 | I58: f = | J58: =Reduz_a -> 0.5742
A59: 7b) Reduzierung der Belastbarkeit (6b) | H59: f = f1 * f2 | I59: f = | J59: =Reduz_b -> 0.7569
A60: 8) Abschaltströme: Sicherung Motorschutzschalter Leistungsschalter * | H60: IA = m x Isich IA = 12 x IMS *IA = 1x ILS (Ii) | J60: (Einstellung Unverzögerter Kurzschluss)
A63: ="Znr.: "& Znr -> Znr.: P0000.KB.01 | F63: Kabel TN-S System NYY-J_Sicherung 400V | K63: =Datum -> 2019-01-07
A64: =Revision -> Rev.: V.6.3 | F64: =Berechnungswerte!G45 -> I:\P_MSR\Diverses\Berechnungen\Leistungskabel | K64: =MName -> Mustermann

Sheet TN-S NYY_Sich 400V Einleiter
A1: =CONCATENATE("Verlegung in Luft bei ",Berechnungswerte!E12,"°C"," Spannungsfall ΔU ",Berechnungswerte!G20, " %") -> Verlegung in Luft bei 40°C Spannungsfall ΔU 2,5 % | F1: Kabel Berechnung Abgang 400V Kabeltype NYY-0 5 Leiter im TN-S-System | M1: ΔU Spannungsfall in V für 400V | N1: Pos (INDEX) | O1: =CONCATENATE("Belastbarkeit in Luft Strom in A bei einer Temp. von ",Berechnungswerte!E12,"°C",) -> Belastbarkeit in Luft Strom in A bei einer Temp. von 40°C | P1: max. Schleifenwid. ZS =400 / m x IN od. ZS =400 / 1 x IN in Ohm | Q1: max. Schleifenwid. ZS =400 / m x IN od. ZS =400 / 1 x IN in Ohm | R1: Z´. NEU | S1: 400V Länge kleinste Abschaltbedingung | T1: 400V Kabellänge l=DeltaU*k*A / Wurzel3*I | U1: Länge l=Z S/Z´. 400V | V1: Hinleiter Querschnitt | AA1: ABFRAGE zum AUTOMATISCHEN AUSFÜLLEN | AB1: ABFRAGE zum AUTOMATISCHEN AUSFÜLLEN
A2: Sicherung | G2: Abschaltbedingungen | I2: Kabel | J2: Kabel
A3: Leistungs- Schalter | D3: Kabel | E3: Kabel | G3: ΔU max = | H3: =CONCATENATE(Spannungsfall)&"% oder" -> 2,5% oder | K3: Bemerkung | M3: ΔU400V | N3: =DeltaU400V -> 10
G4: max. Schleifenwiderstand | J4: kg / m kompl. System | M4: Einleiter ab 501 | P4: 501
A5: [A] | D5: Type | E5: Querschnitt [mm²] NYY-0 | F5: belastbar (A) bei Luft | G5: 400V Länge max [m] | I5: ø [mm]
F7: =CONCATENATE(MSLuft,Berechnungswerte!F12) -> 40°C | M7: Kritische Länge [m] oder (nur wenn möglich) Reduzierten Querschnitt auf Voll ändern heißt >> Index um +1 erhöhen
AB8: =F8-A8 -> 0
A9: 355 | B9: A | D9: =INDEX(Kab_Werte!$E$6:$E$939,N9) -> NYY-0 | E9: =INDEX(Kab_Werte!$F$6:$F$939,N9) -> (1x4+1)x1x240 | F9: =O9 -> 365.6 | G9: =S9 -> 218.5799329 | I9: =INDEX(Kab_Werte!$U$6:$U$939,N9) -> 5x 31 | J9: =INDEX(Kab_Werte!$W$6:$W$939,N9) -> 13.2 | K9: =IF(A9>(F9),"Kabel ist überlastet!","") ->  | N9: 504 | O9: =ROUND(INDEX(Kab_Werte!$K$6:$K$939,N9),1) -> 365.6 | P9: =ROUND(400/(A9*3.5),2) -> 0.32 | Q9: =ROUND(231/(A9*5),2) -> 0.13 | R9: =INDEX(Kab_Werte!$P$6:$P$939,N9) -> 0.1804322 | S9: =MIN(T9:U9) -> 218.5799329 | T9: =(DeltaU400V*KCu*V9)/(SQRT(3)*A9) -> 218.5799329 | U9: =Q9/R9*1000 -> 720.4922403 | V9: =INDEX(Kab_Werte!$G$6:$G$939,N9)*INDEX(Kab_Werte!$B$6:$B$939,N9) -> 240 | AB9: =F9-A9 -> 10.6
A10: 400 | B10: A | D10: =INDEX(Kab_Werte!$E$6:$E$939,N10) -> NYY-0 | E10: =INDEX(Kab_Werte!$F$6:$F$939,N10) -> (1x4+1)x1x300 | F10: 417.8 | G10: 242.4871131 | I10: =INDEX(Kab_Werte!$U$6:$U$939,N10) -> 5x 33 | J10: =INDEX(Kab_Werte!$W$6:$W$939,N10) -> 16.5 | N10: 505 | O10: =ROUND(INDEX(Kab_Werte!$K$6:$K$939,N10),1) -> 417.8 | P10: =ROUND(400/(A10*3.5),2) -> 0.29 | Q10: 0.12 | R10: =INDEX(Kab_Werte!$P$6:$P$939,N10) -> 0.1438193 | S10: 242.4871131 | T10: 242.4871131 | U10: 834.3803648 | V10: =INDEX(Kab_Werte!$G$6:$G$939,N10)*INDEX(Kab_Werte!$B$6:$B$939,N10) -> 300 | AB10: 17.8
A11: 500 | B11: A | D11: =INDEX(Kab_Werte!$E$6:$E$939,N11) -> NYY-0 | E11: =INDEX(Kab_Werte!$F$6:$F$939,N11) -> (2x4+2)x1x150 | F11: 532.9 | G11: 193.9896904 | I11: =INDEX(Kab_Werte!$U$6:$U$939,N11) -> 10x 26 | J11: =INDEX(Kab_Werte!$W$6:$W$939,N11) -> 16.6 | N11: 508 | O11: =ROUND(INDEX(Kab_Werte!$K$6:$K$939,N11),1) -> 532.9 | P11: =ROUND(400/(A11*3.5),2) -> 0.23 | Q11: 0.09 | R11: =INDEX(Kab_Werte!$P$6:$P$939,N11) -> 0.148366 | S11: 193.9896904 | T11: 193.9896904 | U11: 606.607983 | V11: =INDEX(Kab_Werte!$G$6:$G$939,N11)*INDEX(Kab_Werte!$B$6:$B$939,N11) -> 300 | AB11: 32.9
A12: 630 | B12: A | D12: =INDEX(Kab_Werte!$E$6:$E$939,N12) -> NYY-0 | E12: =INDEX(Kab_Werte!$F$6:$F$939,N12) -> (1x4+1)x1x630 | F12: 644.1 | G12: 323.3161507 | I12: =INDEX(Kab_Werte!$U$6:$U$939,N12) -> 5x 45 | J12: =INDEX(Kab_Werte!$W$6:$W$939,N12) -> 34.25 | N12: 511 | O12: =ROUND(INDEX(Kab_Werte!$K$6:$K$939,N12),1) -> 644.1 | P12: =ROUND(400/(A12*3.5),2) -> 0.18 | Q12: 0.07 | R12: =INDEX(Kab_Werte!$P$6:$P$939,N12) -> 0.0677219 | S12: 323.3161507 | T12: 323.3161507 | U12: 1033.639044 | V12: =INDEX(Kab_Werte!$G$6:$G$939,N12)*INDEX(Kab_Werte!$B$6:$B$939,N12) -> 630 | AB12: 14.1
A13: 800 | B13: A | D13: =INDEX(Kab_Werte!$E$6:$E$939,N13) -> NYY-0 | E13: =INDEX(Kab_Werte!$F$6:$F$939,N13) -> (2x4+2)x1x300 | F13: 835.6 | G13: 242.4871131 | I13: =INDEX(Kab_Werte!$U$6:$U$939,N13) -> 10x 33 | J13: =INDEX(Kab_Werte!$W$6:$W$939,N13) -> 33 | K13: =IF(F13<A13,"LS- Schaltereinstellung"," * LS ") -> * LS | N13: 513 | O13: =ROUND(INDEX(Kab_Werte!$K$6:$K$939,N13),1) -> 835.6 | P13: =ROUND(400/(A13),2) -> 0.5 | Q13: =ROUND(231/(A13),2) -> 0.29 | R13: =INDEX(Kab_Werte!$P$6:$P$939,N13) -> 0.07190965 | S13: 242.4871131 | T13: 242.4871131 | U13: 4032.83843 | V13: =INDEX(Kab_Werte!$G$6:$G$939,N13)*INDEX(Kab_Werte!$B$6:$B$939,N13) -> 600 | AB13: 35.6
A14: 1000 | B14: A | D14: =INDEX(Kab_Werte!$E$6:$E$939,N14) -> NYY-0 | E14: =INDEX(Kab_Werte!$F$6:$F$939,N14) -> (3x4+3)x1x240 | F14: 1096.7 | G14: 232.7876285 | I14: =INDEX(Kab_Werte!$U$6:$U$939,N14) -> 15x 31 | J14: =INDEX(Kab_Werte!$W$6:$W$939,N14) -> 39.6 | K14: =IF(F14<A14,"LS- Schaltereinstellung"," * LS ") -> * LS | N14: 515 | O14: =ROUND(INDEX(Kab_Werte!$K$6:$K$939,N14),1) -> 1096.7 | P14: =ROUND(400/(A14),2) -> 0.4 | Q14: =ROUND(231/(A14),2) -> 0.23 | R14: =INDEX(Kab_Werte!$P$6:$P$939,N14) -> 0.06014406667 | S14: 232.7876285 | T14: 232.7876285 | U14: 3824.151122 | V14: =INDEX(Kab_Werte!$G$6:$G$939,N14)*INDEX(Kab_Werte!$B$6:$B$939,N14) -> 720 | AB14: 96.7
A15: 1250 | B15: A | D15: =INDEX(Kab_Werte!$E$6:$E$939,N15) -> NYY-0 | E15: =INDEX(Kab_Werte!$F$6:$F$939,N15) -> (3x4+3)x1x300 | F15: 1253.4 | G15: 232.7876285 | I15: =INDEX(Kab_Werte!$U$6:$U$939,N15) -> 15x 33 | J15: =INDEX(Kab_Werte!$W$6:$W$939,N15) -> 49.5 | K15: =IF(F15<A15,"LS- Schaltereinstellung"," * LS ") -> * LS | N15: 517 | O15: =ROUND(INDEX(Kab_Werte!$K$6:$K$939,N15),1) -> 1253.4 | P15: =ROUND(400/(A15),2) -> 0.32 | Q15: =ROUND(231/(A15),2) -> 0.18 | R15: =INDEX(Kab_Werte!$P$6:$P$939,N15) -> 0.04793976667 | S15: 232.7876285 | T15: 232.7876285 | U15: 3754.711642 | V15: =INDEX(Kab_Werte!$G$6:$G$939,N15)*INDEX(Kab_Werte!$B$6:$B$939,N15) -> 900 | AB15: 3.4
N16: 501 | AB16: 0
N17: 501 | AB17: 0
N18: 501 | AB18: 0
N19: 501 | AB19: 0
N20: 501 | AB20: 0
N21: 501 | AB21: 0
N22: 501 | AB22: 0
N23: 501 | AB23: 0
N24: 501 | AB24: 0
N25: 501 | AB25: 0
N26: 501 | AB26: 0
N27: 501 | AB27: 0
N28: 501 | AB28: 0
N29: 501 | AB29: 0
N30: 501 | AB30: 0
N31: 501 | AB31: 0
N32: 501 | AB32: 0
N33: 501 | AB33: 0
N34: 501 | AB34: 0
N35: 501 | AB35: 0
N36: 501 | AB36: 0
N37: 501 | AB37: 0
N38: 501 | AB38: 0
N39: 501 | AB39: 0
N40: 501 | AB40: 0
N41: 501 | AB41: 0
N42: 501 | AB42: 0
N43: 501 | AB43: 0
N44: 501 | AB44: 0
A47: Dimensionierungsgrundlage:
A49: 1) Betriebsspannung | H49: 400 V
A50: 2) Netz -System | H50: TN-S- System
A51: 3) Spannungsfall | H51: ΔU max = | I51: =Spannungsfall -> 2.5 | J51: %
A52: 4) Belastbarkeit der Kabel | H52: lt. DIN VDE 0298, Teil 4 | J52: Tab 7
A53: 5) Verlegung in Luft bei | F53: =MSLuft -> 40 | G53: °C | H53: f1 = | I53: =AbmTemp -> 0.87 | J53: Tab 15 | K53: bei Mehrfachbündel
A54: =SechsA1 -> 6a) Vierleiterkabel: Verlegung auf 6 Kabelpritsche(n) mit gegenseitiger | H54: f2 = | I54: =AbmHaeufung -> 0.66 | J54: Tab 18 | K54: Phasenfolge drehen
A55: =SechsA2 -> und Wand- Berührung 9 Kabel nebeneinander liegend, KS-fest verl.
A56: =SechsB1 -> 6b) Einleiterkabel: Verlegung auf 6 Kabelpritsche(n) gebündelt im | H56: f2 = | I56: =AbmHäuf_Einleiter -> 0.87 | J56: Tab 16
A57: =SechsB2 -> Abstand 2d 3 Drehstromsysteme nebeneinander, KS-fest verl.
A58: 7a) Reduzierung der Belastbarkeit (6a) | H58: f = f1 * f2 | I58: f = | J58: =Reduz_a -> 0.5742
A59: 7b) Reduzierung der Belastbarkeit (6b) | H59: f = f1 * f2 | I59: f = | J59: =Reduz_b -> 0.7569
A60: 8) Abschaltströme: Sicherung Motorschutzschalter Leistungsschalter * | H60: IA = m x Isich IA = 12 x IMS *IA = 1x ILS (Ii) | J60: (Einstellung Unverzögerter Kurzschluss)
A63: ="Znr.: "& Znr -> Znr.: P0000.KB.01 | F63: Kabel TN-S System NYY-0_Sicherung 400V | K63: =Datum -> 2019-01-07
A64: =Revision -> Rev.: V.6.3 | F64: =Berechnungswerte!G45 -> I:\P_MSR\Diverses\Berechnungen\Leistungskabel | K64: =MName -> Mustermann

Sheet Kab NYCWY_4pol_Sich_ 400_690V
A1: =CONCATENATE("Verlegung in Luft bei ",Berechnungswerte!E12,"°C"," Spannungsfall ΔU ",Berechnungswerte!G20, " %") -> Verlegung in Luft bei 40°C Spannungsfall ΔU 2,5 % | F1: Kabel Berechnung Sicherungsabgänge 400V / 690V Kabeltype NYCY, NYCWY 4 Leiter im TN-C-System | M1: Pos (INDEX) | N1: ΔU Spannungsfall in V für 400 / 690V | O1: =CONCATENATE("Belastbarkeit in Luft Strom in A bei einer Temp. von ",Berechnungswerte!E12,"°C",) -> Belastbarkeit in Luft Strom in A bei einer Temp. von 40°C | P1: max. Schleifen -widerstand ZS =400 / m x IN in Ohm | Q1: max. Schleifen -widerstand ZS =231 / m x IN in Ohm | R1: Z´. NEU | S1: 690V Länge kleinste Abschaltbedingung | T1: 690V Kabellänge l=ΔU*K*A / Wurzel3*I | U1: Länge l=ZS/Z´. 690V | V1: 400V Länge kleinste Abschaltbedingung | W1: 400V Kabellänge l=DeltaU*k*A / Wurzel3*I | X1: Länge l=ZS/Z´. 4000V | Y1: Hinleiter Querschnitt | AA1: ABFRAGE zum AUTOMATISCHEN AUSFÜLLEN | AD1: Abschaltfaktor m für Sicherungen bis 32A / >32A ÖNORM E8001-1-A4
G2: Abschaltbedingungen | I2: Kabel | J2: Kabel
A3: Sicherung | D3: Kabel | E3: Kabel | G3: ΔU max = | H3: =CONCATENATE(Spannungsfall)&"% oder" -> 2,5% oder | K3: Bemerkung | M3: ΔU690V | N3: =DeltaU690V -> 17.25 | P3: 201
G4: max. Schleifenwiderstand | J4: kg / m kompl. System | M4: ΔU400V | N4: =DeltaU400V -> 10
A5: [A] | D5: Type | E5: Querschnitt [mm²] NYY-0 | F5: belastbar (A) bei Luft | G5: 690V Länge max [m] | H5: 400V Länge max [m] | I5: ø [mm] | M5: Index ab 201
F7: =CONCATENATE(MSLuft,Berechnungswerte!F12) -> 40°C | M7: Kritische Länge [m] oder (nur wenn möglich) Reduzierten Querschnitt auf Voll ändern heißt >> Index um +1 erhöhen
AA8: =F8-A8 -> 0
A9: 10 | B9: A | D9: =INDEX(Kab_Werte!$E$6:$E$939,M9) -> NYCY | E9: =INDEX(Kab_Werte!$F$6:$F$939,M9) -> 3x2,5RE/2,5 | F9: =O9 -> 14.355 | G9: =S9 -> 139 | H9: =V9 -> 81 | I9: =INDEX(Kab_Werte!$U$6:$U$939,M9) -> 1x 18 | J9: =INDEX(Kab_Werte!$W$6:$W$939,M9) -> 0.29 | K9: =IF(A9>(F9),"Kabel ist überlastet!","") ->  | M9: 201 | O9: =INDEX(Kab_Werte!$K$6:$K$939,M9) -> 14.355 | P9: =ROUND(400/(A9*AD9),2) -> 4 | Q9: =ROUND(231/(A9*AD9),2) -> 2.31 | R9: =INDEX(Kab_Werte!$P$6:$P$939,M9) -> 17.73213 | S9: =MIN(T9:U9) -> 139 | T9: =ROUND((DeltaU690V*KCu*Y9)/(SQRT(3)*A9),0) -> 139 | U9: =ROUND(P9/R9*1000,0) -> 226 | V9: =MIN(W9:X9) -> 81 | W9: =ROUND((DeltaU400V*KCu*Y9)/(SQRT(3)*A9),0) -> 81 | X9: =ROUND(Q9/R9*1000,0) -> 130 | Y9: =INDEX(Kab_Werte!$G$6:$G$939,M9)*INDEX(Kab_Werte!$B$6:$B$939,M9) -> 2.5 | AA9: =F9-A9 -> 4.355 | AD9: =IF(A9>125,5,IF(A9>32,3.5,10)) -> 10
A10: 16 | B10: A | D10: =INDEX(Kab_Werte!$E$6:$E$939,M10) -> NYCY | E10: =INDEX(Kab_Werte!$F$6:$F$939,M10) -> 3x4RE/4 | F10: =O10 -> 19.5228 | G10: 139 | H10: 81 | I10: =INDEX(Kab_Werte!$U$6:$U$939,M10) -> 1x 20 | J10: =INDEX(Kab_Werte!$W$6:$W$939,M10) -> 0.415 | K10: =IF(A10>(F10),"Kabel ist überlastet!","") ->  | M10: 202 | O10: =INDEX(Kab_Werte!$K$6:$K$939,M10) -> 19.5228 | P10: =ROUND(400/(A10*AD10),2) -> 2.5 | Q10: =ROUND(231/(A10*AD10),2) -> 1.44 | R10: =INDEX(Kab_Werte!$P$6:$P$939,M10) -> 11.03173 | S10: =MIN(T10:U10) -> 139 | T10: 139 | U10: 227 | V10: =MIN(W10:X10) -> 81 | W10: 81 | X10: 131 | Y10: =INDEX(Kab_Werte!$G$6:$G$939,M10)*INDEX(Kab_Werte!$B$6:$B$939,M10) -> 4 | AA10: 3.5228 | AD10: =IF(A10>125,5,IF(A10>32,3.5,10)) -> 10
A11: 20 | B11: A | D11: =INDEX(Kab_Werte!$E$6:$E$939,M11) -> NYCY | E11: =INDEX(Kab_Werte!$F$6:$F$939,M11) -> 3x6RE/6 | F11: =O11 -> 24.6906 | G11: 167 | H11: 97 | I11: =INDEX(Kab_Werte!$U$6:$U$939,M11) -> 1x 21 | J11: =INDEX(Kab_Werte!$W$6:$W$939,M11) -> 0.5 | K11: =IF(A11>(F11),"Kabel ist überlastet!","") ->  | M11: 203 | O11: =INDEX(Kab_Werte!$K$6:$K$939,M11) -> 24.6906 | P11: 2 | Q11: 1.16 | R11: =INDEX(Kab_Werte!$P$6:$P$939,M11) -> 7.37044 | S11: 167 | T11: 167 | U11: 271 | V11: 97 | W11: 97 | X11: 157 | Y11: =INDEX(Kab_Werte!$G$6:$G$939,M11)*INDEX(Kab_Werte!$B$6:$B$939,M11) -> 6 | AA11: 4.6906 | AD11: 10
A12: 25 | B12: A | D12: =INDEX(Kab_Werte!$E$6:$E$939,M12) -> NYCWY | E12: =INDEX(Kab_Werte!$F$6:$F$939,M12) -> 3x10/RE10 | F12: 33.8778 | G12: 223 | H12: 129 | I12: =INDEX(Kab_Werte!$U$6:$U$939,M12) -> 1x 23 | J12: =INDEX(Kab_Werte!$W$6:$W$939,M12) -> 0.75 | M12: 204 | O12: =INDEX(Kab_Werte!$K$6:$K$939,M12) -> 33.8778 | P12: 1.6 | Q12: 0.92 | R12: =INDEX(Kab_Werte!$P$6:$P$939,M12) -> 4.37919 | S12: 223 | T12: 223 | U12: 365 | V12: 129 | W12: 129 | X12: 210 | Y12: =INDEX(Kab_Werte!$G$6:$G$939,M12)*INDEX(Kab_Werte!$B$6:$B$939,M12) -> 10 | AA12: 8.8778 | AD12: 10
A13: 35 | B13: A | D13: =INDEX(Kab_Werte!$E$6:$E$939,M13) -> NYCWY | E13: =INDEX(Kab_Werte!$F$6:$F$939,M13) -> 3x16RE/16 | F13: 44.7876 | G13: 255 | H13: 148 | I13: =INDEX(Kab_Werte!$U$6:$U$939,M13) -> 1x 25 | J13: =INDEX(Kab_Werte!$W$6:$W$939,M13) -> 1.04 | M13: 205 | O13: =INDEX(Kab_Werte!$K$6:$K$939,M13) -> 44.7876 | P13: 3.27 | Q13: 1.89 | R13: =INDEX(Kab_Werte!$P$6:$P$939,M13) -> 2.75195 | S13: 255 | T13: 255 | U13: 1188 | V13: 148 | W13: 148 | X13: 687 | Y13: =INDEX(Kab_Werte!$G$6:$G$939,M13)*INDEX(Kab_Werte!$B$6:$B$939,M13) -> 16 | AA13: 9.7876 | AD13: 3.5
A14: 50 | B14: A | D14: =INDEX(Kab_Werte!$E$6:$E$939,M14) -> NYCWY | E14: =INDEX(Kab_Werte!$F$6:$F$939,M14) -> 3x25RM/16 | F14: 60.291 | G14: 279 | H14: 162 | I14: =INDEX(Kab_Werte!$U$6:$U$939,M14) -> 1x 31 | J14: =INDEX(Kab_Werte!$W$6:$W$939,M14) -> 1.45 | M14: 206 | O14: =INDEX(Kab_Werte!$K$6:$K$939,M14) -> 60.291 | P14: 2.29 | Q14: 1.32 | R14: =INDEX(Kab_Werte!$P$6:$P$939,M14) -> 2.2458305 | S14: 279 | T14: 279 | U14: 1020 | V14: 162 | W14: 162 | X14: 588 | Y14: =INDEX(Kab_Werte!$G$6:$G$939,M14)*INDEX(Kab_Werte!$B$6:$B$939,M14) -> 25 | AA14: 10.291 | AD14: 3.5
A15: 63 | B15: A | D15: =INDEX(Kab_Werte!$E$6:$E$939,M15) -> NYCWY | E15: =INDEX(Kab_Werte!$F$6:$F$939,M15) -> 3x35SM/16 | F15: 74.0718 | G15: 310 | H15: 180 | I15: =INDEX(Kab_Werte!$U$6:$U$939,M15) -> 1x 32 | J15: =INDEX(Kab_Werte!$W$6:$W$939,M15) -> 1.61 | M15: 207 | O15: =INDEX(Kab_Werte!$K$6:$K$939,M15) -> 74.0718 | P15: 1.81 | Q15: 1.05 | R15: =INDEX(Kab_Werte!$P$6:$P$939,M15) -> 2.002941 | S15: 310 | T15: 310 | U15: 904 | V15: 180 | W15: 180 | X15: 524 | Y15: =INDEX(Kab_Werte!$G$6:$G$939,M15)*INDEX(Kab_Werte!$B$6:$B$939,M15) -> 35 | AA15: 11.0718 | AD15: 3.5
A16: 80 | B16: A | D16: =INDEX(Kab_Werte!$E$6:$E$939,M16) -> NYCWY | E16: =INDEX(Kab_Werte!$F$6:$F$939,M16) -> 3x50SM/25 | F16: 90.1494 | G16: 349 | H16: 202 | I16: =INDEX(Kab_Werte!$U$6:$U$939,M16) -> 1x 35 | J16: =INDEX(Kab_Werte!$W$6:$W$939,M16) -> 2.16 | M16: 208 | O16: =INDEX(Kab_Werte!$K$6:$K$939,M16) -> 90.1494 | P16: 1.43 | Q16: 0.83 | R16: =INDEX(Kab_Werte!$P$6:$P$939,M16) -> 1.332901 | S16: 349 | T16: 349 | U16: 1073 | V16: 202 | W16: 202 | X16: 623 | Y16: =INDEX(Kab_Werte!$G$6:$G$939,M16)*INDEX(Kab_Werte!$B$6:$B$939,M16) -> 50 | AA16: 10.1494 | AD16: 3.5
A17: 100 | B17: A | D17: =INDEX(Kab_Werte!$E$6:$E$939,M17) -> NYCWY | E17: =INDEX(Kab_Werte!$F$6:$F$939,M17) -> 3x70SM/35 | F17: 114.2658 | G17: 390 | H17: 226 | I17: =INDEX(Kab_Werte!$U$6:$U$939,M17) -> 1x 39 | J17: =INDEX(Kab_Werte!$W$6:$W$939,M17) -> 2.94 | M17: 209 | O17: =INDEX(Kab_Werte!$K$6:$K$939,M17) -> 114.2658 | P17: 1.14 | Q17: 0.66 | R17: =INDEX(Kab_Werte!$P$6:$P$939,M17) -> 0.947628 | S17: 390 | T17: 390 | U17: 1203 | V17: 226 | W17: 226 | X17: 696 | Y17: =INDEX(Kab_Werte!$G$6:$G$939,M17)*INDEX(Kab_Werte!$B$6:$B$939,M17) -> 70 | AA17: 14.2658 | AD17: 3.5
A18: 125 | B18: A | D18: =INDEX(Kab_Werte!$E$6:$E$939,M18) -> NYCWY | E18: =INDEX(Kab_Werte!$F$6:$F$939,M18) -> 3x95SM/50 | F18: 141.2532 | G18: 424 | H18: 246 | I18: =INDEX(Kab_Werte!$U$6:$U$939,M18) -> 1x 44 | J18: =INDEX(Kab_Werte!$W$6:$W$939,M18) -> 3.98 | M18: 210 | O18: =INDEX(Kab_Werte!$K$6:$K$939,M18) -> 141.2532 | P18: 0.91 | Q18: 0.53 | R18: =INDEX(Kab_Werte!$P$6:$P$939,M18) -> 0.69397 | S18: 424 | T18: 424 | U18: 1311 | V18: 246 | W18: 246 | X18: 764 | Y18: =INDEX(Kab_Werte!$G$6:$G$939,M18)*INDEX(Kab_Werte!$B$6:$B$939,M18) -> 95 | AA18: 16.2532 | AD18: 3.5
A19: 160 | B19: A | D19: =INDEX(Kab_Werte!$E$6:$E$939,M19) -> NYCWY | E19: =INDEX(Kab_Werte!$F$6:$F$939,M19) -> 3x120SM/70 | F19: 163.647 | G19: 418 | H19: 242 | I19: =INDEX(Kab_Werte!$U$6:$U$939,M19) -> 1x 47 | J19: =INDEX(Kab_Werte!$W$6:$W$939,M19) -> 4.93 | M19: 211 | O19: =INDEX(Kab_Werte!$K$6:$K$939,M19) -> 163.647 | P19: 0.5 | Q19: 0.29 | R19: =INDEX(Kab_Werte!$P$6:$P$939,M19) -> 0.5037265 | S19: 418 | T19: 418 | U19: 993 | V19: 242 | W19: 242 | X19: 576 | Y19: =INDEX(Kab_Werte!$G$6:$G$939,M19)*INDEX(Kab_Werte!$B$6:$B$939,M19) -> 120 | AA19: 3.647 | AD19: 5
A20: 200 | B20: A | D20: =INDEX(Kab_Werte!$E$6:$E$939,M20) -> NYCWY | E20: =INDEX(Kab_Werte!$F$6:$F$939,M20) -> 3x185SM/95 | F20: 214.7508 | G20: 516 | H20: 299 | I20: =INDEX(Kab_Werte!$U$6:$U$939,M20) -> 1x 56 | J20: =INDEX(Kab_Werte!$W$6:$W$939,M20) -> 7.41 | M20: 213 | O20: =INDEX(Kab_Werte!$K$6:$K$939,M20) -> 214.7508 | P20: 0.4 | Q20: 0.23 | R20: =INDEX(Kab_Werte!$P$6:$P$939,M20) -> 0.34949765 | S20: 516 | T20: 516 | U20: 1144 | V20: 299 | W20: 299 | X20: 658 | Y20: =INDEX(Kab_Werte!$G$6:$G$939,M20)*INDEX(Kab_Werte!$B$6:$B$939,M20) -> 185 | AA20: 14.7508 | AD20: 5
A21: 250 | B21: A | D21: =INDEX(Kab_Werte!$E$6:$E$939,M21) -> NYCWY | E21: =INDEX(Kab_Werte!$F$6:$F$939,M21) -> 2x(3x95SM/50) | F21: 282.5064 | G21: 424 | H21: 246 | I21: =INDEX(Kab_Werte!$U$6:$U$939,M21) -> 2x 44 | J21: =INDEX(Kab_Werte!$W$6:$W$939,M21) -> 7.96 | M21: 215 | O21: =INDEX(Kab_Werte!$K$6:$K$939,M21) -> 282.5064 | P21: 0.32 | Q21: 0.18 | R21: =INDEX(Kab_Werte!$P$6:$P$939,M21) -> 0.346985 | S21: 424 | T21: 424 | U21: 922 | V21: 246 | W21: 246 | X21: 519 | Y21: =INDEX(Kab_Werte!$G$6:$G$939,M21)*INDEX(Kab_Werte!$B$6:$B$939,M21) -> 190 | AA21: 32.5064 | AD21: 5
A22: 315 | B22: A | D22: =INDEX(Kab_Werte!$E$6:$E$939,M22) -> NYCWY | E22: =INDEX(Kab_Werte!$F$6:$F$939,M22) -> 2x(3x120SM/70) | F22: 327.294 | G22: 425 | H22: 246 | I22: =INDEX(Kab_Werte!$U$6:$U$939,M22) -> 2x 47 | J22: =INDEX(Kab_Werte!$W$6:$W$939,M22) -> 9.86 | M22: 216 | O22: =INDEX(Kab_Werte!$K$6:$K$939,M22) -> 327.294 | P22: 0.25 | Q22: 0.15 | R22: =INDEX(Kab_Werte!$P$6:$P$939,M22) -> 0.25186325 | S22: 425 | T22: 425 | U22: 993 | V22: 246 | W22: 246 | X22: 596 | Y22: =INDEX(Kab_Werte!$G$6:$G$939,M22)*INDEX(Kab_Werte!$B$6:$B$939,M22) -> 240 | AA22: 12.294 | AD22: 5
A23: 355 | B23: A | D23: =INDEX(Kab_Werte!$E$6:$E$939,M23) -> NYCWY | E23: =INDEX(Kab_Werte!$F$6:$F$939,M23) -> 2x(3x150SM/70) | F23: 374.3784 | G23: 471 | H23: 273 | I23: =INDEX(Kab_Werte!$U$6:$U$939,M23) -> 2x 51 | J23: =INDEX(Kab_Werte!$W$6:$W$939,M23) -> 11.76 | M23: 217 | O23: =INDEX(Kab_Werte!$K$6:$K$939,M23) -> 374.3784 | P23: 0.23 | Q23: 0.13 | R23: =INDEX(Kab_Werte!$P$6:$P$939,M23) -> 0.234514 | S23: 471 | T23: 471 | U23: 981 | V23: 273 | W23: 273 | X23: 554 | Y23: =INDEX(Kab_Werte!$G$6:$G$939,M23)*INDEX(Kab_Werte!$B$6:$B$939,M23) -> 300 | AA23: 19.3784 | AD23: 5
A24: 400 | B24: A | D24: =INDEX(Kab_Werte!$E$6:$E$939,M24) -> NYCWY | E24: =INDEX(Kab_Werte!$F$6:$F$939,M24) -> 2x(3x185SM/95) | F24: 429.5016 | G24: 516 | H24: 299 | I24: =INDEX(Kab_Werte!$U$6:$U$939,M24) -> 2x 56 | J24: =INDEX(Kab_Werte!$W$6:$W$939,M24) -> 14.82 | M24: 218 | O24: =INDEX(Kab_Werte!$K$6:$K$939,M24) -> 429.5016 | P24: 0.2 | Q24: 0.12 | R24: =INDEX(Kab_Werte!$P$6:$P$939,M24) -> 0.174748825 | S24: 516 | T24: 516 | U24: 1144 | V24: 299 | W24: 299 | X24: 687 | Y24: =INDEX(Kab_Werte!$G$6:$G$939,M24)*INDEX(Kab_Werte!$B$6:$B$939,M24) -> 370 | AA24: 29.5016 | AD24: 5
A25: 500 | B25: A | D25: =INDEX(Kab_Werte!$E$6:$E$939,M25) -> NYCWY | E25: =INDEX(Kab_Werte!$F$6:$F$939,M25) -> 2x(3x240SM/120) | F25: 511.038 | G25: 535 | H25: 310 | I25: =INDEX(Kab_Werte!$U$6:$U$939,M25) -> 2x 63 | J25: =INDEX(Kab_Werte!$W$6:$W$939,M25) -> 18.92 | M25: 219 | O25: =INDEX(Kab_Werte!$K$6:$K$939,M25) -> 511.038 | P25: 0.16 | Q25: 0.09 | R25: =INDEX(Kab_Werte!$P$6:$P$939,M25) -> 0.1366403 | S25: 535 | T25: 535 | U25: 1171 | V25: 310 | W25: 310 | X25: 659 | Y25: =INDEX(Kab_Werte!$G$6:$G$939,M25)*INDEX(Kab_Werte!$B$6:$B$939,M25) -> 480 | AA25: 11.038 | AD25: 5
A26: 630 | B26: A | D26: =INDEX(Kab_Werte!$E$6:$E$939,M26) -> NYCWY | E26: =INDEX(Kab_Werte!$F$6:$F$939,M26) -> 3x(3x185SM/95) | F26: 644.2524 | G26: 491 | H26: 285 | I26: =INDEX(Kab_Werte!$U$6:$U$939,M26) -> 3x 56 | J26: =INDEX(Kab_Werte!$W$6:$W$939,M26) -> 22.23 | M26: 221 | O26: =INDEX(Kab_Werte!$K$6:$K$939,M26) -> 644.2524 | P26: 0.13 | Q26: 0.07 | R26: =INDEX(Kab_Werte!$P$6:$P$939,M26) -> 0.1164992167 | S26: 491 | T26: 491 | U26: 1116 | V26: 285 | W26: 285 | X26: 601 | Y26: =INDEX(Kab_Werte!$G$6:$G$939,M26)*INDEX(Kab_Werte!$B$6:$B$939,M26) -> 555 | AA26: 14.2524 | AD26: 5
A27: 800 | B27: A | D27: =INDEX(Kab_Werte!$E$6:$E$939,M27) -> NYCWY | E27: =INDEX(Kab_Werte!$F$6:$F$939,M27) -> 4x(3x240SM/120) | F27: 1022.1 | G27: 669 | H27: 388 | I27: =INDEX(Kab_Werte!$U$6:$U$939,M27) -> 4x 63 | J27: =INDEX(Kab_Werte!$W$6:$W$939,M27) -> 37.84 | K27: =IF(F27<A27,"LS- Schaltereinstellung"," * LS ") -> * LS | M27: 223 | O27: =ROUND(INDEX(Kab_Werte!$K$6:$K$939,M27),1) -> 1022.1 | P27: 0.1 | Q27: 0.06 | R27: =INDEX(Kab_Werte!$P$6:$P$939,M27) -> 0.06832015 | S27: 669 | T27: 669 | U27: 1464 | V27: 388 | W27: 388 | X27: 878 | Y27: =INDEX(Kab_Werte!$G$6:$G$939,M27)*INDEX(Kab_Werte!$B$6:$B$939,M27) -> 960 | AA27: 222.1 | AD27: 5
A28: 1000 | B28: A | D28: =INDEX(Kab_Werte!$E$6:$E$939,M28) -> NYCWY | E28: =INDEX(Kab_Werte!$F$6:$F$939,M28) -> 4x(3x240SM/120) | F28: 1022.1 | G28: 535 | H28: 310 | I28: =INDEX(Kab_Werte!$U$6:$U$939,M28) -> 4x 63 | J28: =INDEX(Kab_Werte!$W$6:$W$939,M28) -> 37.84 | K28: =IF(F28<A28,"LS- Schaltereinstellung"," * LS ") -> * LS | M28: 223 | O28: =ROUND(INDEX(Kab_Werte!$K$6:$K$939,M28),1) -> 1022.1 | P28: 0.08 | Q28: 0.05 | R28: =INDEX(Kab_Werte!$P$6:$P$939,M28) -> 0.06832015 | S28: 535 | T28: 535 | U28: 1171 | V28: 310 | W28: 310 | X28: 732 | Y28: =INDEX(Kab_Werte!$G$6:$G$939,M28)*INDEX(Kab_Werte!$B$6:$B$939,M28) -> 960 | AA28: 22.1 | AD28: 5
A29: 1250 | B29: A | D29: =INDEX(Kab_Werte!$E$6:$E$939,M29) -> NYCWY | E29: =INDEX(Kab_Werte!$F$6:$F$939,M29) -> 5x(3x240SM/120) | F29: 1277.6 | G29: 535 | H29: 310 | I29: =INDEX(Kab_Werte!$U$6:$U$939,M29) -> 5x 63 | J29: =INDEX(Kab_Werte!$W$6:$W$939,M29) -> 47.3 | K29: =IF(F29<A29,"LS- Schaltereinstellung"," * LS ") -> * LS | M29: 224 | O29: =ROUND(INDEX(Kab_Werte!$K$6:$K$939,M29),1) -> 1277.6 | P29: 0.06 | Q29: 0.04 | R29: =INDEX(Kab_Werte!$P$6:$P$939,M29) -> 0.05465612 | S29: 535 | T29: 535 | U29: 1098 | V29: 310 | W29: 310 | X29: 732 | Y29: =INDEX(Kab_Werte!$G$6:$G$939,M29)*INDEX(Kab_Werte!$B$6:$B$939,M29) -> 1200 | AA29: 27.6 | AD29: 5
M30: 201 | AA30: 0 | AD30: 10
M31: 201 | AA31: 0 | AD31: 10
M32: 201 | AA32: 0 | AD32: 10
M33: 201 | AA33: 0 | AD33: 10
M34: 201 | AA34: 0 | AD34: 10
M35: 201 | AA35: 0 | AD35: 10
M36: 201 | AA36: 0 | AD36: 10
M37: 201 | AA37: 0 | AD37: 10
M38: 201 | AA38: 0 | AD38: 10
M39: 201 | AA39: 0 | AD39: 10
M40: 201 | AA40: 0 | AD40: 10
M41: 201 | AA41: 0 | AD41: 10
M42: 201 | AA42: 0 | AD42: 10
M43: 201 | AA43: 0 | AD43: 10
M44: 201 | AA44: 0 | AD44: 10
A47: Dimensionierungsgrundlage:
A49: 1) Betriebsspannung | H49: 400 V / 690 V
A50: 2) Netz -System | H50: TN-C- System
A51: 3) Spannungsfall | H51: ΔU max = | I51: =Spannungsfall -> 2.5 | J51: %
A52: 4) Belastbarkeit der Kabel | H52: lt. DIN VDE 0298, Teil 4 | J52: Tab 7
A53: 5) Verlegung in Luft bei | F53: =MSLuft -> 40 | G53: °C | H53: f1 = | I53: =AbmTemp -> 0.87 | J53: Tab 15
A54: =SechsA1 -> 6a) Vierleiterkabel: Verlegung auf 6 Kabelpritsche(n) mit gegenseitiger | H54: f2 = | I54: =AbmHaeufung -> 0.66 | J54: Tab 18
A55: =SechsA2 -> und Wand- Berührung 9 Kabel nebeneinander liegend, KS-fest verl.
A56: =SechsB1 -> 6b) Einleiterkabel: Verlegung auf 6 Kabelpritsche(n) gebündelt im | H56: f2 = | I56: =AbmHäuf_Einleiter -> 0.87 | J56: Tab 16
A57: =SechsB2 -> Abstand 2d 3 Drehstromsysteme nebeneinander, KS-fest verl.
A58: 7a) Reduzierung der Belastbarkeit (6a) | H58: f = f1 * f2 | I58: f = | J58: =Reduz_a -> 0.5742
A59: 7b) Reduzierung der Belastbarkeit (6b) | H59: f = f1 * f2 | I59: f = | J59: =Reduz_b -> 0.7569
A60: 8) Abschaltströme: Sicherung Motorschutzschalter Leistungsschalter * | H60: IA = m x Isich IA = 12 x IMS *IA = 1x ILS (Ii) | J60: (Einstellung Unverzögerter Kurzschluss)
A63: ="Znr.: "& Znr -> Znr.: P0000.KB.01 | F63: Kab NYCWY_4pol_Sich_ 400_690V | K63: =Datum -> 2019-01-07
A64: =Revision -> Rev.: V.6.3 | F64: =Berechnungswerte!G45 -> I:\P_MSR\Diverses\Berechnungen\Leistungskabel | K64: =MName -> Mustermann

Sheet Kab NYCWY_5pol_Sich_ 400_690V
A1: =CONCATENATE("Verlegung in Luft bei ",Berechnungswerte!E12,"°C"," Spannungsfall ΔU ",Berechnungswerte!G20, " %") -> Verlegung in Luft bei 40°C Spannungsfall ΔU 2,5 % | F1: Kabel Berechnung Sicherungsabgänge 400V / 690V Kabeltype NYCY, NYCWY 5 Leiter im TN - S - System | M1: Pos (INDEX) | N1: ΔU Spannungsfall in V für 400 / 690V | O1: =CONCATENATE("Belastbarkeit in Luft Strom in A bei einer Temp. von ",Berechnungswerte!E12,"°C",) -> Belastbarkeit in Luft Strom in A bei einer Temp. von 40°C | P1: max. Schleifen -widerstand ZS =400 / m x IN in Ohm | Q1: max. Schleifen -widerstand ZS =231 / m x IN in Ohm | R1: Z´. NEU | S1: 690V Länge kleinste Abschaltbedingung | T1: 690V Kabellänge l=ΔU*K*A / Wurzel3*I | U1: Länge l=ZS/Z´. 690V | V1: 400V Länge kleinste Abschaltbedingung | W1: 400V KabellängeLänge l=DeltaU*k*A / Wurzel3*I | X1: Länge l=ZS/Z´. 4000V | Y1: Hinleiter Querschnitt | AA1: ABFRAGE zum AUTOMATISCHEN AUSFÜLLEN | AD1: Abschaltfaktor m für Sicherungen bis 32A / >32A ÖNORM E8001-1-A4
G2: Abschaltbedingungen | I2: Kabel | J2: Kabel
A3: Sicherung | D3: Kabel | E3: Kabel | G3: ΔU max = | H3: =CONCATENATE(Spannungsfall)&"% oder" -> 2,5% oder | K3: Bemerkung | M3: ΔU690V | N3: =DeltaU690V -> 17.25 | P3: 301
G4: max. Schleifenwiderstand | J4: kg / m kompl. System | M4: ΔU400V | N4: =DeltaU400V -> 10
A5: [A] | D5: Type | E5: Querschnitt [mm²] NYY-0 | F5: belastbar (A) bei Luft | G5: 690V Länge max [m] | H5: 400V Länge max [m] | I5: ø [mm] | M5: Index ab 301
F7: =CONCATENATE(MSLuft,Berechnungswerte!F12) -> 40°C | M7: Kritische Länge [m] oder (nur wenn möglich) Reduzierten Querschnitt auf Voll ändern heißt >> Index um +1 erhöhen
AA8: =F8-A8 -> 0
A9: 10 | B9: A | D9: =INDEX(Kab_Werte!$E$6:$E$939,M9) -> NYCY | E9: =INDEX(Kab_Werte!$F$6:$F$939,M9) -> 4x2,5RE/2,5 | F9: =O9 -> 14.355 | G9: =S9 -> 139 | H9: =V9 -> 81 | I9: =INDEX(Kab_Werte!$U$6:$U$939,M9) -> 1x 19 | J9: =INDEX(Kab_Werte!$W$6:$W$939,M9) -> 0.36 | K9: =IF(A9>(F9),"Kabel ist überlastet!","") ->  | M9: 301 | O9: =INDEX(Kab_Werte!$K$6:$K$939,M9) -> 14.355 | P9: =ROUND(400/(A9*AD9),2) -> 4 | Q9: =ROUND(231/(A9*AD9),2) -> 2.31 | R9: =INDEX(Kab_Werte!$P$6:$P$939,M9) -> 17.73213 | S9: =MIN(T9:U9) -> 139 | T9: =ROUND((DeltaU690V*KCu*Y9)/(SQRT(3)*A9),0) -> 139 | U9: =ROUND(P9/R9*1000,0) -> 226 | V9: =MIN(W9:X9) -> 81 | W9: =ROUND((DeltaU400V*KCu*Y9)/(SQRT(3)*A9),0) -> 81 | X9: =ROUND(Q9/R9*1000,0) -> 130 | Y9: =INDEX(Kab_Werte!$G$6:$G$939,M9)*INDEX(Kab_Werte!$B$6:$B$939,M9) -> 2.5 | AA9: =F9-A9 -> 4.355 | AD9: =IF(A9>125,5,IF(A9>32,3.5,10)) -> 10
A10: 16 | B10: A | D10: =INDEX(Kab_Werte!$E$6:$E$939,M10) -> NYCY | E10: =INDEX(Kab_Werte!$F$6:$F$939,M10) -> 4x4RE/4 | F10: 19.5228 | G10: 139 | H10: 81 | I10: =INDEX(Kab_Werte!$U$6:$U$939,M10) -> 1x 21 | J10: =INDEX(Kab_Werte!$W$6:$W$939,M10) -> 0.46 | K10: =IF(A10>(F10),"Kabel ist überlastet!","") ->  | M10: 302 | O10: =INDEX(Kab_Werte!$K$6:$K$939,M10) -> 19.5228 | P10: =ROUND(400/(A10*AD10),2) -> 2.5 | Q10: =ROUND(231/(A10*AD10),2) -> 1.44 | R10: =INDEX(Kab_Werte!$P$6:$P$939,M10) -> 11.03173 | S10: 139 | T10: 139 | U10: 227 | V10: 81 | W10: 81 | X10: 131 | Y10: =INDEX(Kab_Werte!$G$6:$G$939,M10)*INDEX(Kab_Werte!$B$6:$B$939,M10) -> 4 | AA10: 3.5228 | AD10: =IF(A10>125,5,IF(A10>32,3.5,10)) -> 10
A11: 20 | B11: A | D11: =INDEX(Kab_Werte!$E$6:$E$939,M11) -> NYCY | E11: =INDEX(Kab_Werte!$F$6:$F$939,M11) -> 4x6RE/6 | F11: 24.6906 | G11: 167 | H11: 97 | I11: =INDEX(Kab_Werte!$U$6:$U$939,M11) -> 1x 22 | J11: =INDEX(Kab_Werte!$W$6:$W$939,M11) -> 0.58 | K11: =IF(A11>(F11),"Kabel ist überlastet!","") ->  | M11: 303 | O11: =INDEX(Kab_Werte!$K$6:$K$939,M11) -> 24.6906 | P11: 2 | Q11: 1.16 | R11: =INDEX(Kab_Werte!$P$6:$P$939,M11) -> 7.37044 | S11: 167 | T11: 167 | U11: 271 | V11: 97 | W11: 97 | X11: 157 | Y11: =INDEX(Kab_Werte!$G$6:$G$939,M11)*INDEX(Kab_Werte!$B$6:$B$939,M11) -> 6 | AA11: 4.6906 | AD11: 10
A12: 25 | B12: A | D12: =INDEX(Kab_Werte!$E$6:$E$939,M12) -> NYCWY | E12: =INDEX(Kab_Werte!$F$6:$F$939,M12) -> 4x10/RE10 | F12: 33.8778 | G12: 223 | H12: 129 | I12: =INDEX(Kab_Werte!$U$6:$U$939,M12) -> 1x 24 | J12: =INDEX(Kab_Werte!$W$6:$W$939,M12) -> 0.88 | M12: 304 | O12: =INDEX(Kab_Werte!$K$6:$K$939,M12) -> 33.8778 | P12: 1.6 | Q12: 0.92 | R12: =INDEX(Kab_Werte!$P$6:$P$939,M12) -> 4.37919 | S12: 223 | T12: 223 | U12: 365 | V12: 129 | W12: 129 | X12: 210 | Y12: =INDEX(Kab_Werte!$G$6:$G$939,M12)*INDEX(Kab_Werte!$B$6:$B$939,M12) -> 10 | AA12: 8.8778 | AD12: 10
A13: 35 | B13: A | D13: =INDEX(Kab_Werte!$E$6:$E$939,M13) -> NYCWY | E13: =INDEX(Kab_Werte!$F$6:$F$939,M13) -> 4x16RE/16 | F13: 44.7876 | G13: 255 | H13: 148 | I13: =INDEX(Kab_Werte!$U$6:$U$939,M13) -> 1x 27 | J13: =INDEX(Kab_Werte!$W$6:$W$939,M13) -> 1.24 | M13: 305 | O13: =INDEX(Kab_Werte!$K$6:$K$939,M13) -> 44.7876 | P13: 3.27 | Q13: 1.89 | R13: =INDEX(Kab_Werte!$P$6:$P$939,M13) -> 2.75195 | S13: 255 | T13: 255 | U13: 1188 | V13: 148 | W13: 148 | X13: 687 | Y13: =INDEX(Kab_Werte!$G$6:$G$939,M13)*INDEX(Kab_Werte!$B$6:$B$939,M13) -> 16 | AA13: 9.7876 | AD13: 3.5
A14: 50 | B14: A | D14: =INDEX(Kab_Werte!$E$6:$E$939,M14) -> NYCWY | E14: =INDEX(Kab_Werte!$F$6:$F$939,M14) -> 4x25RM/16 | F14: 60.291 | G14: 279 | H14: 162 | I14: =INDEX(Kab_Werte!$U$6:$U$939,M14) -> 1x 34 | J14: =INDEX(Kab_Werte!$W$6:$W$939,M14) -> 1.75 | M14: 306 | O14: =INDEX(Kab_Werte!$K$6:$K$939,M14) -> 60.291 | P14: 2.29 | Q14: 1.32 | R14: =INDEX(Kab_Werte!$P$6:$P$939,M14) -> 2.2458305 | S14: 279 | T14: 279 | U14: 1020 | V14: 162 | W14: 162 | X14: 588 | Y14: =INDEX(Kab_Werte!$G$6:$G$939,M14)*INDEX(Kab_Werte!$B$6:$B$939,M14) -> 25 | AA14: 10.291 | AD14: 3.5
A15: 63 | B15: A | D15: =INDEX(Kab_Werte!$E$6:$E$939,M15) -> NYCWY | E15: =INDEX(Kab_Werte!$F$6:$F$939,M15) -> 4x35SM/16 | F15: 74.0718 | G15: 310 | H15: 180 | I15: =INDEX(Kab_Werte!$U$6:$U$939,M15) -> 1x 35 | J15: =INDEX(Kab_Werte!$W$6:$W$939,M15) -> 2.02 | M15: 307 | O15: =INDEX(Kab_Werte!$K$6:$K$939,M15) -> 74.0718 | P15: 1.81 | Q15: 1.05 | R15: =INDEX(Kab_Werte!$P$6:$P$939,M15) -> 2.002941 | S15: 310 | T15: 310 | U15: 904 | V15: 180 | W15: 180 | X15: 524 | Y15: =INDEX(Kab_Werte!$G$6:$G$939,M15)*INDEX(Kab_Werte!$B$6:$B$939,M15) -> 35 | AA15: 11.0718 | AD15: 3.5
A16: 80 | B16: A | D16: =INDEX(Kab_Werte!$E$6:$E$939,M16) -> NYCWY | E16: =INDEX(Kab_Werte!$F$6:$F$939,M16) -> 4x50SM/25 | F16: 90.1494 | G16: 349 | H16: 202 | I16: =INDEX(Kab_Werte!$U$6:$U$939,M16) -> 1x 39 | J16: =INDEX(Kab_Werte!$W$6:$W$939,M16) -> 2.73 | M16: 308 | O16: =INDEX(Kab_Werte!$K$6:$K$939,M16) -> 90.1494 | P16: 1.43 | Q16: 0.83 | R16: =INDEX(Kab_Werte!$P$6:$P$939,M16) -> 1.332901 | S16: 349 | T16: 349 | U16: 1073 | V16: 202 | W16: 202 | X16: 623 | Y16: =INDEX(Kab_Werte!$G$6:$G$939,M16)*INDEX(Kab_Werte!$B$6:$B$939,M16) -> 50 | AA16: 10.1494 | AD16: 3.5
A17: 100 | B17: A | D17: =INDEX(Kab_Werte!$E$6:$E$939,M17) -> NYCWY | E17: =INDEX(Kab_Werte!$F$6:$F$939,M17) -> 4x70SM/35 | F17: 114.2658 | G17: 390 | H17: 226 | I17: =INDEX(Kab_Werte!$U$6:$U$939,M17) -> 1x 43 | J17: =INDEX(Kab_Werte!$W$6:$W$939,M17) -> 3.76 | M17: 309 | O17: =INDEX(Kab_Werte!$K$6:$K$939,M17) -> 114.2658 | P17: 1.14 | Q17: 0.66 | R17: =INDEX(Kab_Werte!$P$6:$P$939,M17) -> 0.947628 | S17: 390 | T17: 390 | U17: 1203 | V17: 226 | W17: 226 | X17: 696 | Y17: =INDEX(Kab_Werte!$G$6:$G$939,M17)*INDEX(Kab_Werte!$B$6:$B$939,M17) -> 70 | AA17: 14.2658 | AD17: 3.5
A18: 125 | B18: A | D18: =INDEX(Kab_Werte!$E$6:$E$939,M18) -> NYCWY | E18: =INDEX(Kab_Werte!$F$6:$F$939,M18) -> 4x95SM/50 | F18: 141.2532 | G18: 424 | H18: 246 | I18: =INDEX(Kab_Werte!$U$6:$U$939,M18) -> 1x 49 | J18: =INDEX(Kab_Werte!$W$6:$W$939,M18) -> 5.06 | M18: 310 | O18: =INDEX(Kab_Werte!$K$6:$K$939,M18) -> 141.2532 | P18: 0.91 | Q18: 0.53 | R18: =INDEX(Kab_Werte!$P$6:$P$939,M18) -> 0.69397 | S18: 424 | T18: 424 | U18: 1311 | V18: 246 | W18: 246 | X18: 764 | Y18: =INDEX(Kab_Werte!$G$6:$G$939,M18)*INDEX(Kab_Werte!$B$6:$B$939,M18) -> 95 | AA18: 16.2532 | AD18: 3.5
A19: 160 | B19: A | D19: =INDEX(Kab_Werte!$E$6:$E$939,M19) -> NYCWY | E19: =INDEX(Kab_Werte!$F$6:$F$939,M19) -> 4x120SM/70 | F19: 163.647 | G19: 418 | H19: 242 | I19: =INDEX(Kab_Werte!$U$6:$U$939,M19) -> 1x 53 | J19: =INDEX(Kab_Werte!$W$6:$W$939,M19) -> 6.25 | M19: 311 | O19: =INDEX(Kab_Werte!$K$6:$K$939,M19) -> 163.647 | P19: 0.5 | Q19: 0.29 | R19: =INDEX(Kab_Werte!$P$6:$P$939,M19) -> 0.5037265 | S19: 418 | T19: 418 | U19: 993 | V19: 242 | W19: 242 | X19: 576 | Y19: =INDEX(Kab_Werte!$G$6:$G$939,M19)*INDEX(Kab_Werte!$B$6:$B$939,M19) -> 120 | AA19: 3.647 | AD19: 5
A20: 200 | B20: A | D20: =INDEX(Kab_Werte!$E$6:$E$939,M20) -> NYCWY | E20: =INDEX(Kab_Werte!$F$6:$F$939,M20) -> 4x185SM/95 | F20: 214.7508 | G20: 516 | H20: 299 | I20: =INDEX(Kab_Werte!$U$6:$U$939,M20) -> 1x 62 | J20: =INDEX(Kab_Werte!$W$6:$W$939,M20) -> 9.75 | M20: 313 | O20: =INDEX(Kab_Werte!$K$6:$K$939,M20) -> 214.7508 | P20: 0.4 | Q20: 0.23 | R20: =INDEX(Kab_Werte!$P$6:$P$939,M20) -> 0.34949765 | S20: 516 | T20: 516 | U20: 1144 | V20: 299 | W20: 299 | X20: 658 | Y20: =INDEX(Kab_Werte!$G$6:$G$939,M20)*INDEX(Kab_Werte!$B$6:$B$939,M20) -> 185 | AA20: 14.7508 | AD20: 5
A21: 250 | B21: A | D21: =INDEX(Kab_Werte!$E$6:$E$939,M21) -> NYCWY | E21: =INDEX(Kab_Werte!$F$6:$F$939,M21) -> 2x(4x95SM/50) | F21: 282.5064 | G21: 424 | H21: 246 | I21: =INDEX(Kab_Werte!$U$6:$U$939,M21) -> 2x 49 | J21: =INDEX(Kab_Werte!$W$6:$W$939,M21) -> 10.12 | M21: 315 | O21: =INDEX(Kab_Werte!$K$6:$K$939,M21) -> 282.5064 | P21: 0.32 | Q21: 0.18 | R21: =INDEX(Kab_Werte!$P$6:$P$939,M21) -> 0.346985 | S21: 424 | T21: 424 | U21: 922 | V21: 246 | W21: 246 | X21: 519 | Y21: =INDEX(Kab_Werte!$G$6:$G$939,M21)*INDEX(Kab_Werte!$B$6:$B$939,M21) -> 190 | AA21: 32.5064 | AD21: 5
A22: 315 | B22: A | D22: =INDEX(Kab_Werte!$E$6:$E$939,M22) -> NYCWY | E22: =INDEX(Kab_Werte!$F$6:$F$939,M22) -> 2x(4x120SM/70) | F22: 327.294 | G22: 425 | H22: 246 | I22: =INDEX(Kab_Werte!$U$6:$U$939,M22) -> 2x 53 | J22: =INDEX(Kab_Werte!$W$6:$W$939,M22) -> 12.5 | M22: 316 | O22: =INDEX(Kab_Werte!$K$6:$K$939,M22) -> 327.294 | P22: 0.25 | Q22: 0.15 | R22: =INDEX(Kab_Werte!$P$6:$P$939,M22) -> 0.25186325 | S22: 425 | T22: 425 | U22: 993 | V22: 246 | W22: 246 | X22: 596 | Y22: =INDEX(Kab_Werte!$G$6:$G$939,M22)*INDEX(Kab_Werte!$B$6:$B$939,M22) -> 240 | AA22: 12.294 | AD22: 5
A23: 355 | B23: A | D23: =INDEX(Kab_Werte!$E$6:$E$939,M23) -> NYCWY | E23: =INDEX(Kab_Werte!$F$6:$F$939,M23) -> 2x(4x150SM/70) | F23: 374.3784 | G23: 471 | H23: 273 | I23: =INDEX(Kab_Werte!$U$6:$U$939,M23) -> 2x 57 | J23: =INDEX(Kab_Werte!$W$6:$W$939,M23) -> 15.12 | M23: 317 | O23: =INDEX(Kab_Werte!$K$6:$K$939,M23) -> 374.3784 | P23: 0.23 | Q23: 0.13 | R23: =INDEX(Kab_Werte!$P$6:$P$939,M23) -> 0.234514 | S23: 471 | T23: 471 | U23: 981 | V23: 273 | W23: 273 | X23: 554 | Y23: =INDEX(Kab_Werte!$G$6:$G$939,M23)*INDEX(Kab_Werte!$B$6:$B$939,M23) -> 300 | AA23: 19.3784 | AD23: 5
A24: 400 | B24: A | D24: =INDEX(Kab_Werte!$E$6:$E$939,M24) -> NYCWY | E24: =INDEX(Kab_Werte!$F$6:$F$939,M24) -> 2x(4x185SM/95) | F24: 429.5016 | G24: 516 | H24: 299 | I24: =INDEX(Kab_Werte!$U$6:$U$939,M24) -> 2x 62 | J24: =INDEX(Kab_Werte!$W$6:$W$939,M24) -> 19.5 | M24: 318 | O24: =INDEX(Kab_Werte!$K$6:$K$939,M24) -> 429.5016 | P24: 0.2 | Q24: 0.12 | R24: =INDEX(Kab_Werte!$P$6:$P$939,M24) -> 0.174748825 | S24: 516 | T24: 516 | U24: 1144 | V24: 299 | W24: 299 | X24: 687 | Y24: =INDEX(Kab_Werte!$G$6:$G$939,M24)*INDEX(Kab_Werte!$B$6:$B$939,M24) -> 370 | AA24: 29.5016 | AD24: 5
A25: 500 | B25: A | D25: =INDEX(Kab_Werte!$E$6:$E$939,M25) -> NYCWY | E25: =INDEX(Kab_Werte!$F$6:$F$939,M25) -> 2x(4x240SM/120) | F25: 511.038 | G25: 535 | H25: 310 | I25: =INDEX(Kab_Werte!$U$6:$U$939,M25) -> 2x 67 | J25: =INDEX(Kab_Werte!$W$6:$W$939,M25) -> 25 | M25: 319 | O25: =INDEX(Kab_Werte!$K$6:$K$939,M25) -> 511.038 | P25: 0.16 | Q25: 0.09 | R25: =INDEX(Kab_Werte!$P$6:$P$939,M25) -> 0.1366403 | S25: 535 | T25: 535 | U25: 1171 | V25: 310 | W25: 310 | X25: 659 | Y25: =INDEX(Kab_Werte!$G$6:$G$939,M25)*INDEX(Kab_Werte!$B$6:$B$939,M25) -> 480 | AA25: 11.038 | AD25: 5
A26: 630 | B26: A | D26: =INDEX(Kab_Werte!$E$6:$E$939,M26) -> NYCWY | E26: =INDEX(Kab_Werte!$F$6:$F$939,M26) -> 3x(4x185SM/95) | F26: 644.2524 | G26: 491 | H26: 285 | I26: =INDEX(Kab_Werte!$U$6:$U$939,M26) -> 3x 62 | J26: =INDEX(Kab_Werte!$W$6:$W$939,M26) -> 29.25 | M26: 321 | O26: =INDEX(Kab_Werte!$K$6:$K$939,M26) -> 644.2524 | P26: 0.13 | Q26: 0.07 | R26: =INDEX(Kab_Werte!$P$6:$P$939,M26) -> 0.1164992167 | S26: 491 | T26: 491 | U26: 1116 | V26: 285 | W26: 285 | X26: 601 | Y26: =INDEX(Kab_Werte!$G$6:$G$939,M26)*INDEX(Kab_Werte!$B$6:$B$939,M26) -> 555 | AA26: 14.2524 | AD26: 5
A27: 800 | B27: A | D27: =INDEX(Kab_Werte!$E$6:$E$939,M27) -> NYCWY | E27: =INDEX(Kab_Werte!$F$6:$F$939,M27) -> 4x(4x185SM/95) | F27: 859 | G27: 516 | H27: 299 | I27: =INDEX(Kab_Werte!$U$6:$U$939,M27) -> 4x 62 | J27: =INDEX(Kab_Werte!$W$6:$W$939,M27) -> 29.25 | K27: =IF(F27<A27,"LS- Schaltereinstellung"," * LS ") -> * LS | M27: 323 | O27: =ROUND(INDEX(Kab_Werte!$K$6:$K$939,M27),1) -> 859 | P27: 0.1 | Q27: 0.06 | R27: =INDEX(Kab_Werte!$P$6:$P$939,M27) -> 0.0873744125 | S27: 516 | T27: 516 | U27: 1144 | V27: 299 | W27: 299 | X27: 687 | Y27: =INDEX(Kab_Werte!$G$6:$G$939,M27)*INDEX(Kab_Werte!$B$6:$B$939,M27) -> 740 | AA27: 59 | AD27: 5
A28: 1000 | B28: A | D28: =INDEX(Kab_Werte!$E$6:$E$939,M28) -> NYCWY | E28: =INDEX(Kab_Werte!$F$6:$F$939,M28) -> 4x(4x240SM/120) | F28: 1022.1 | G28: 535 | H28: 310 | I28: =INDEX(Kab_Werte!$U$6:$U$939,M28) -> 4x 67 | J28: =INDEX(Kab_Werte!$W$6:$W$939,M28) -> 50 | K28: =IF(F28<A28,"LS- Schaltereinstellung"," * LS ") -> * LS | M28: 324 | O28: =ROUND(INDEX(Kab_Werte!$K$6:$K$939,M28),1) -> 1022.1 | P28: 0.08 | Q28: 0.05 | R28: =INDEX(Kab_Werte!$P$6:$P$939,M28) -> 0.06832015 | S28: 535 | T28: 535 | U28: 1171 | V28: 310 | W28: 310 | X28: 732 | Y28: =INDEX(Kab_Werte!$G$6:$G$939,M28)*INDEX(Kab_Werte!$B$6:$B$939,M28) -> 960 | AA28: 22.1 | AD28: 5
A29: 1250 | B29: A | D29: =INDEX(Kab_Werte!$E$6:$E$939,M29) -> NYCWY | E29: =INDEX(Kab_Werte!$F$6:$F$939,M29) -> 5x(4x240SM/120) | F29: 1277.6 | G29: 535 | H29: 310 | I29: =INDEX(Kab_Werte!$U$6:$U$939,M29) -> 5x 67 | J29: =INDEX(Kab_Werte!$W$6:$W$939,M29) -> 62.5 | K29: =IF(F29<A29,"LS- Schaltereinstellung"," * LS ") -> * LS | M29: 325 | O29: =ROUND(INDEX(Kab_Werte!$K$6:$K$939,M29),1) -> 1277.6 | P29: 0.06 | Q29: 0.04 | R29: =INDEX(Kab_Werte!$P$6:$P$939,M29) -> 0.05465612 | S29: 535 | T29: 535 | U29: 1098 | V29: 310 | W29: 310 | X29: 732 | Y29: =INDEX(Kab_Werte!$G$6:$G$939,M29)*INDEX(Kab_Werte!$B$6:$B$939,M29) -> 1200 | AA29: 27.6 | AD29: 5
M30: 301 | AA30: 0 | AD30: 10
M31: 301 | AA31: 0 | AD31: 10
M32: 301 | AA32: 0 | AD32: 10
M33: 301 | AA33: 0 | AD33: 10
M34: 301 | AA34: 0 | AD34: 10
M35: 301 | AA35: 0 | AD35: 10
M36: 301 | AA36: 0 | AD36: 10
M37: 301 | AA37: 0 | AD37: 10
M38: 301 | AA38: 0 | AD38: 10
M39: 301 | AA39: 0 | AD39: 10
M40: 301 | AA40: 0 | AD40: 10
M41: 301 | AA41: 0 | AD41: 10
M42: 301 | AA42: 0 | AD42: 10
M43: 301 | AA43: 0 | AD43: 10
M44: 301 | AA44: 0 | AD44: 10
A47: Dimensionierungsgrundlage:
A49: 1) Betriebsspannung | H49: 400 V / 690 V
A50: 2) Netz -System | H50: TN-C- (S) System
A51: 3) Spannungsfall | H51: ΔU max = | I51: =Spannungsfall -> 2.5 | J51: %
A52: 4) Belastbarkeit der Kabel | H52: lt. DIN VDE 0298, Teil 4 | J52: Tab 7
A53: 5) Verlegung in Luft bei | F53: =MSLuft -> 40 | G53: °C | H53: f1 = | I53: =AbmTemp -> 0.87 | J53: Tab 15
A54: =SechsA1 -> 6a) Vierleiterkabel: Verlegung auf 6 Kabelpritsche(n) mit gegenseitiger | H54: f2 = | I54: =AbmHaeufung -> 0.66 | J54: Tab 18
A55: =SechsA2 -> und Wand- Berührung 9 Kabel nebeneinander liegend, KS-fest verl.
A56: =SechsB1 -> 6b) Einleiterkabel: Verlegung auf 6 Kabelpritsche(n) gebündelt im | H56: f2 = | I56: =AbmHäuf_Einleiter -> 0.87 | J56: Tab 16
A57: =SechsB2 -> Abstand 2d 3 Drehstromsysteme nebeneinander, KS-fest verl.
A58: 7a) Reduzierung der Belastbarkeit (6a) | H58: f = f1 * f2 | I58: f = | J58: =Reduz_a -> 0.5742
A59: 7b) Reduzierung der Belastbarkeit (6b) | H59: f = f1 * f2 | I59: f = | J59: =Reduz_b -> 0.7569
A60: 8) Abschaltströme: Sicherung Motorschutzschalter Leistungsschalter * | H60: IA = m x Isich IA = 12 x IMS *IA = 1x ILS (Ii) | J60: (Einstellung Unverzögerter Kurzschluss)
A63: ="Znr.: "& Znr -> Znr.: P0000.KB.01 | F63: Kab NYCWY_5pol_Sich_ 400_690V | K63: =Datum -> 2019-01-07
A64: =Revision -> Rev.: V.6.3 | F64: =Berechnungswerte!G45 -> I:\P_MSR\Diverses\Berechnungen\Leistungskabel | K64: =MName -> Mustermann

Sheet Kabel Sicherung 500V
A1: =CONCATENATE("Verlegung in Luft bei ",Berechnungswerte!E12,"°C"," Spannungsfall ΔU ",Berechnungswerte!G20, " %") -> Verlegung in Luft bei 40°C Spannungsfall ΔU 2,5 % | F1: Kabel Berechnung Sicherungsabgänge 500V Kabeltype NYY-J im IT - System | K1: =Revision -> Rev.: V.6.3 | M1: Pos (INDEX) | N1: Spannungsfall in V | O1: =CONCATENATE("Belastbarkeit in Luft Strom in A bei einer Temp. von ",Berechnungswerte!E12,"°C",) -> Belastbarkeit in Luft Strom in A bei einer Temp. von 40°C | P1: max. Schleifen -widerstand ZS =250 / m x IN in Ohm | Q1: Z´. NEU | R1: Länge kleinste Abschaltbedingung | S1: lmax=ΔU x K*A / Wurzel(3)*I | T1: Länge l=ZS/Z´. 500V | U1: Querschnitt | AA1: ABFRAGE zum AUTOMATISCHEN AUSFÜLLEN | AD1: Abschaltfaktor m für Sicherungen bis 32A / >32A ÖNORM E8001-1-A4
G2: Abschaltbedingungen | I2: Kabel | J2: Kabel
A3: Sicherung | D3: Kabel | E3: Kabel | G3: ΔU max = | H3: =CONCATENATE(Spannungsfall)&"% oder" -> 2,5% oder | K3: Bemerkung | M3: ΔU500V | N3: =DeltaU500V -> 12.5 | P3: 1
G4: max. Schleifenwiderstand | J4: kg / m kompl. System | M4: Index ab 1
A5: [A] | D5: Type | E5: Querschnitt [mm²] NYY-0 | F5: belastbar (A) bei Luft | G5: 500V Länge max [m] | I5: ø [mm]
F7: =CONCATENATE(MSLuft,Berechnungswerte!F12) -> 40°C | M7: Kritische Länge [m] oder (nur wenn möglich) Reduzierten Querschnitt auf Voll ändern heißt >> Index um +1 erhöhen
AA8: =F8-A8 -> 0
A9: 10 | B9: A | D9: =INDEX(Kab_Werte!$E$6:$E$939,M9) -> NYY-J | E9: =INDEX(Kab_Werte!$F$6:$F$939,M9) -> 4x2,5 | F9: =O9 -> 14.355 | G9: =R9 -> 101.0362971 | I9: =INDEX(Kab_Werte!$U$6:$U$939,M9) -> 1x 17 | J9: =INDEX(Kab_Werte!$W$6:$W$939,M9) -> 0.31 | K9: =IF(A9>F9,"Kabel ist überlastet!","") ->  | M9: 1 | O9: =INDEX(Kab_Werte!$K$6:$K$939,M9) -> 14.355 | P9: =ROUND(250/(A9*AD9),2) -> 2.5 | Q9: =INDEX(Kab_Werte!$P$6:$P$939,M9) -> 17.73213 | R9: =MIN(S9:T9) -> 101.0362971 | S9: =(DeltaU500V*KCu*U9)/(SQRT(3)*A9) -> 101.0362971 | T9: =ROUND(P9/Q9*1000,0) -> 141 | U9: =INDEX(Kab_Werte!$G$6:$G$939,M9)*INDEX(Kab_Werte!$B$6:$B$939,M9) -> 2.5 | AA9: =F9-A9 -> 4.355 | AD9: =IF(A9>125,5,IF(A9>32,3.5,10)) -> 10
A10: 16 | B10: A | D10: =INDEX(Kab_Werte!$E$6:$E$939,M10) -> NYY-J | E10: =INDEX(Kab_Werte!$F$6:$F$939,M10) -> 4x4 | F10: =O10 -> 19.5228 | G10: 101.0362971 | I10: =INDEX(Kab_Werte!$U$6:$U$939,M10) -> 1x 19 | J10: =INDEX(Kab_Werte!$W$6:$W$939,M10) -> 0.43 | K10: =IF(A10>F10,"Kabel ist überlastet!","") ->  | M10: 2 | O10: =INDEX(Kab_Werte!$K$6:$K$939,M10) -> 19.5228 | P10: =ROUND(250/(A10*AD10),2) -> 1.56 | Q10: =INDEX(Kab_Werte!$P$6:$P$939,M10) -> 11.03173 | R10: =MIN(S10:T10) -> 101.0362971 | S10: =(DeltaU500V*KCu*U10)/(SQRT(3)*A10) -> 101.0362971 | T10: 141 | U10: =INDEX(Kab_Werte!$G$6:$G$939,M10)*INDEX(Kab_Werte!$B$6:$B$939,M10) -> 4 | AA10: 3.5228 | AD10: =IF(A10>125,5,IF(A10>32,3.5,10)) -> 10
A11: 20 | B11: A | D11: =INDEX(Kab_Werte!$E$6:$E$939,M11) -> NYY-J | E11: =INDEX(Kab_Werte!$F$6:$F$939,M11) -> 4x6 | F11: 24.6906 | G11: 121.2435565 | I11: =INDEX(Kab_Werte!$U$6:$U$939,M11) -> 1x 20 | J11: =INDEX(Kab_Werte!$W$6:$W$939,M11) -> 0.54 | M11: 3 | O11: =INDEX(Kab_Werte!$K$6:$K$939,M11) -> 24.6906 | P11: 1.25 | Q11: =INDEX(Kab_Werte!$P$6:$P$939,M11) -> 7.37044 | R11: 121.2435565 | S11: 121.2435565 | T11: 170 | U11: =INDEX(Kab_Werte!$G$6:$G$939,M11)*INDEX(Kab_Werte!$B$6:$B$939,M11) -> 6 | AA11: 4.6906 | AD11: 10
A12: 25 | B12: A | D12: =INDEX(Kab_Werte!$E$6:$E$939,M12) -> NYY-J | E12: =INDEX(Kab_Werte!$F$6:$F$939,M12) -> 4x10 | F12: 33.8778 | G12: 161.6580754 | I12: =INDEX(Kab_Werte!$U$6:$U$939,M12) -> 1x 22 | J12: =INDEX(Kab_Werte!$W$6:$W$939,M12) -> 0.74 | M12: 4 | O12: =INDEX(Kab_Werte!$K$6:$K$939,M12) -> 33.8778 | P12: 1 | Q12: =INDEX(Kab_Werte!$P$6:$P$939,M12) -> 4.37919 | R12: 161.6580754 | S12: 161.6580754 | T12: 228 | U12: =INDEX(Kab_Werte!$G$6:$G$939,M12)*INDEX(Kab_Werte!$B$6:$B$939,M12) -> 10 | AA12: 8.8778 | AD12: 10
A13: 35 | B13: A | D13: =INDEX(Kab_Werte!$E$6:$E$939,M13) -> NYY-J | E13: =INDEX(Kab_Werte!$F$6:$F$939,M13) -> 4x16 | F13: 44.7876 | G13: 184.7520861 | I13: =INDEX(Kab_Werte!$U$6:$U$939,M13) -> 1x 25 | J13: =INDEX(Kab_Werte!$W$6:$W$939,M13) -> 1.03 | M13: 5 | O13: =INDEX(Kab_Werte!$K$6:$K$939,M13) -> 44.7876 | P13: 2.04 | Q13: =INDEX(Kab_Werte!$P$6:$P$939,M13) -> 2.75195 | R13: 184.7520861 | S13: 184.7520861 | T13: 741 | U13: =INDEX(Kab_Werte!$G$6:$G$939,M13)*INDEX(Kab_Werte!$B$6:$B$939,M13) -> 16 | AA13: 9.7876 | AD13: 3.5
A14: 50 | B14: A | D14: =INDEX(Kab_Werte!$E$6:$E$939,M14) -> NYY-J | E14: =INDEX(Kab_Werte!$F$6:$F$939,M14) -> 3x25/16 | F14: 60.291 | G14: 202.0725942 | I14: =INDEX(Kab_Werte!$U$6:$U$939,M14) -> 1x 30 | J14: =INDEX(Kab_Werte!$W$6:$W$939,M14) -> 1.42 | M14: 6 | O14: =INDEX(Kab_Werte!$K$6:$K$939,M14) -> 60.291 | P14: 1.43 | Q14: =INDEX(Kab_Werte!$P$6:$P$939,M14) -> 2.2458305 | R14: 202.0725942 | S14: 202.0725942 | T14: 637 | U14: =INDEX(Kab_Werte!$G$6:$G$939,M14)*INDEX(Kab_Werte!$B$6:$B$939,M14) -> 25 | AA14: 10.291 | AD14: 3.5
A15: 63 | B15: A | D15: =INDEX(Kab_Werte!$E$6:$E$939,M15) -> NYY-J | E15: =INDEX(Kab_Werte!$F$6:$F$939,M15) -> 3x35/16 | F15: 74.0718 | G15: 224.5251047 | I15: =INDEX(Kab_Werte!$U$6:$U$939,M15) -> 1x 31 | J15: =INDEX(Kab_Werte!$W$6:$W$939,M15) -> 1.69 | M15: 8 | O15: =INDEX(Kab_Werte!$K$6:$K$939,M15) -> 74.0718 | P15: 1.13 | Q15: =INDEX(Kab_Werte!$P$6:$P$939,M15) -> 2.002941 | R15: 224.5251047 | S15: 224.5251047 | T15: 564 | U15: =INDEX(Kab_Werte!$G$6:$G$939,M15)*INDEX(Kab_Werte!$B$6:$B$939,M15) -> 35 | AA15: 11.0718 | AD15: 3.5
A16: 80 | B16: A | D16: =INDEX(Kab_Werte!$E$6:$E$939,M16) -> NYY-J | E16: =INDEX(Kab_Werte!$F$6:$F$939,M16) -> 3x50/25 | F16: 90.1494 | G16: 252.5907428 | I16: =INDEX(Kab_Werte!$U$6:$U$939,M16) -> 1x 35 | J16: =INDEX(Kab_Werte!$W$6:$W$939,M16) -> 2.26 | M16: 10 | O16: =INDEX(Kab_Werte!$K$6:$K$939,M16) -> 90.1494 | P16: 0.89 | Q16: =INDEX(Kab_Werte!$P$6:$P$939,M16) -> 1.332901 | R16: 252.5907428 | S16: 252.5907428 | T16: 668 | U16: =INDEX(Kab_Werte!$G$6:$G$939,M16)*INDEX(Kab_Werte!$B$6:$B$939,M16) -> 50 | AA16: 10.1494 | AD16: 3.5
A17: 100 | B17: A | D17: =INDEX(Kab_Werte!$E$6:$E$939,M17) -> NYY-J | E17: =INDEX(Kab_Werte!$F$6:$F$939,M17) -> 3x70/35 | F17: 114.2658 | G17: 282.9016319 | I17: =INDEX(Kab_Werte!$U$6:$U$939,M17) -> 1x 38 | J17: =INDEX(Kab_Werte!$W$6:$W$939,M17) -> 2.94 | M17: 12 | O17: =INDEX(Kab_Werte!$K$6:$K$939,M17) -> 114.2658 | P17: 0.71 | Q17: =INDEX(Kab_Werte!$P$6:$P$939,M17) -> 0.947628 | R17: 282.9016319 | S17: 282.9016319 | T17: 749 | U17: =INDEX(Kab_Werte!$G$6:$G$939,M17)*INDEX(Kab_Werte!$B$6:$B$939,M17) -> 70 | AA17: 14.2658 | AD17: 3.5
A18: 125 | B18: A | D18: =INDEX(Kab_Werte!$E$6:$E$939,M18) -> NYY-J | E18: =INDEX(Kab_Werte!$F$6:$F$939,M18) -> 3x95/50 | F18: 141.2532 | G18: 307.1503432 | I18: =INDEX(Kab_Werte!$U$6:$U$939,M18) -> 1x 44 | J18: =INDEX(Kab_Werte!$W$6:$W$939,M18) -> 3.96 | M18: 14 | O18: =INDEX(Kab_Werte!$K$6:$K$939,M18) -> 141.2532 | P18: 0.57 | Q18: =INDEX(Kab_Werte!$P$6:$P$939,M18) -> 0.69397 | R18: 307.1503432 | S18: 307.1503432 | T18: 821 | U18: =INDEX(Kab_Werte!$G$6:$G$939,M18)*INDEX(Kab_Werte!$B$6:$B$939,M18) -> 95 | AA18: 16.2532 | AD18: 3.5
A19: 160 | B19: A | D19: =INDEX(Kab_Werte!$E$6:$E$939,M19) -> NYY-J | E19: =INDEX(Kab_Werte!$F$6:$F$939,M19) -> 3x120/70 | F19: 163.647 | G19: 303.1088913 | I19: =INDEX(Kab_Werte!$U$6:$U$939,M19) -> 1x 48 | J19: =INDEX(Kab_Werte!$W$6:$W$939,M19) -> 4.9 | M19: 16 | O19: =INDEX(Kab_Werte!$K$6:$K$939,M19) -> 163.647 | P19: 0.31 | Q19: =INDEX(Kab_Werte!$P$6:$P$939,M19) -> 0.5037265 | R19: 303.1088913 | S19: 303.1088913 | T19: 615 | U19: =INDEX(Kab_Werte!$G$6:$G$939,M19)*INDEX(Kab_Werte!$B$6:$B$939,M19) -> 120 | AA19: 3.647 | AD19: 5
A20: 200 | B20: A | D20: =INDEX(Kab_Werte!$E$6:$E$939,M20) -> NYY-J | E20: =INDEX(Kab_Werte!$F$6:$F$939,M20) -> 3x185/95 | F20: 214.7508 | G20: 373.8342993 | I20: =INDEX(Kab_Werte!$U$6:$U$939,M20) -> 1x 57 | J20: =INDEX(Kab_Werte!$W$6:$W$939,M20) -> 7.34 | M20: 20 | O20: =INDEX(Kab_Werte!$K$6:$K$939,M20) -> 214.7508 | P20: 0.25 | Q20: =INDEX(Kab_Werte!$P$6:$P$939,M20) -> 0.34949765 | R20: 373.8342993 | S20: 373.8342993 | T20: 715 | U20: =INDEX(Kab_Werte!$G$6:$G$939,M20)*INDEX(Kab_Werte!$B$6:$B$939,M20) -> 185 | AA20: 14.7508 | AD20: 5
A21: 250 | B21: A | D21: =INDEX(Kab_Werte!$E$6:$E$939,M21) -> NYY-J | E21: =INDEX(Kab_Werte!$F$6:$F$939,M21) -> 3x240/120 | F21: 255.519 | G21: 387.9793809 | I21: =INDEX(Kab_Werte!$U$6:$U$939,M21) -> 1x 64 | J21: =INDEX(Kab_Werte!$W$6:$W$939,M21) -> 9.44 | M21: 23 | O21: =INDEX(Kab_Werte!$K$6:$K$939,M21) -> 255.519 | P21: 0.2 | Q21: =INDEX(Kab_Werte!$P$6:$P$939,M21) -> 0.2732806 | R21: 387.9793809 | S21: 387.9793809 | T21: 732 | U21: =INDEX(Kab_Werte!$G$6:$G$939,M21)*INDEX(Kab_Werte!$B$6:$B$939,M21) -> 240 | AA21: 5.519 | AD21: 5
A22: 315 | B22: A | D22: =INDEX(Kab_Werte!$E$6:$E$939,M22) -> NYY-J | E22: =INDEX(Kab_Werte!$F$6:$F$939,M22) -> 2x(3x120/70) | F22: =O22 -> 327.294 | G22: 307.9201436 | I22: =INDEX(Kab_Werte!$U$6:$U$939,M22) -> 2x 48 | J22: =INDEX(Kab_Werte!$W$6:$W$939,M22) -> 9.8 | M22: 26 | O22: =INDEX(Kab_Werte!$K$6:$K$939,M22) -> 327.294 | P22: 0.16 | Q22: =INDEX(Kab_Werte!$P$6:$P$939,M22) -> 0.25186325 | R22: 307.9201436 | S22: 307.9201436 | T22: 635 | U22: =INDEX(Kab_Werte!$G$6:$G$939,M22)*INDEX(Kab_Werte!$B$6:$B$939,M22) -> 240 | AA22: 12.294 | AD22: 5
A23: 355 | B23: A | D23: =INDEX(Kab_Werte!$E$6:$E$939,M23) -> NYY-J | E23: =INDEX(Kab_Werte!$F$6:$F$939,M23) -> 2x(3x150/70) | F23: =O23 -> 374.3784 | G23: 341.5311452 | I23: =INDEX(Kab_Werte!$U$6:$U$939,M23) -> 2x 52 | J23: =INDEX(Kab_Werte!$W$6:$W$939,M23) -> 11.74 | M23: 27 | O23: =INDEX(Kab_Werte!$K$6:$K$939,M23) -> 374.3784 | P23: 0.14 | Q23: =INDEX(Kab_Werte!$P$6:$P$939,M23) -> 0.234514 | R23: 341.5311452 | S23: 341.5311452 | T23: 597 | U23: =INDEX(Kab_Werte!$G$6:$G$939,M23)*INDEX(Kab_Werte!$B$6:$B$939,M23) -> 300 | AA23: 19.3784 | AD23: 5
A24: 400 | B24: A | D24: =INDEX(Kab_Werte!$E$6:$E$939,M24) -> NYY-J | E24: =INDEX(Kab_Werte!$F$6:$F$939,M24) -> 2x(3x185/95) | F24: 429.5016 | G24: 373.8342993 | I24: =INDEX(Kab_Werte!$U$6:$U$939,M24) -> 2x 57 | J24: =INDEX(Kab_Werte!$W$6:$W$939,M24) -> 14.68 | M24: 28 | O24: =INDEX(Kab_Werte!$K$6:$K$939,M24) -> 429.5016 | P24: 0.13 | Q24: =INDEX(Kab_Werte!$P$6:$P$939,M24) -> 0.174748825 | R24: 373.8342993 | S24: 373.8342993 | T24: 744 | U24: =INDEX(Kab_Werte!$G$6:$G$939,M24)*INDEX(Kab_Werte!$B$6:$B$939,M24) -> 370 | AA24: 29.5016 | AD24: 5
A25: 500 | B25: A | D25: =INDEX(Kab_Werte!$E$6:$E$939,M25) -> NYY-J | E25: =INDEX(Kab_Werte!$F$6:$F$939,M25) -> 2x(3x240/120) | F25: 511.038 | G25: 387.9793809 | I25: =INDEX(Kab_Werte!$U$6:$U$939,M25) -> 2x 64 | J25: =INDEX(Kab_Werte!$W$6:$W$939,M25) -> 18.88 | M25: 29 | O25: =INDEX(Kab_Werte!$K$6:$K$939,M25) -> 511.038 | P25: 0.1 | Q25: =INDEX(Kab_Werte!$P$6:$P$939,M25) -> 0.1366403 | R25: 387.9793809 | S25: 387.9793809 | T25: 732 | U25: =INDEX(Kab_Werte!$G$6:$G$939,M25)*INDEX(Kab_Werte!$B$6:$B$939,M25) -> 480 | AA25: 11.038 | AD25: 5
A26: 630 | B26: A | D26: =INDEX(Kab_Werte!$E$6:$E$939,M26) -> NYY-J | E26: =INDEX(Kab_Werte!$F$6:$F$939,M26) -> 3x(3x185/95) | F26: 644.2524 | G26: 356.032666 | I26: =INDEX(Kab_Werte!$U$6:$U$939,M26) -> 3x 57 | J26: =INDEX(Kab_Werte!$W$6:$W$939,M26) -> 22.02 | M26: 31 | O26: =INDEX(Kab_Werte!$K$6:$K$939,M26) -> 644.2524 | P26: 0.08 | Q26: =INDEX(Kab_Werte!$P$6:$P$939,M26) -> 0.1164992167 | R26: 356.032666 | S26: 356.032666 | T26: 687 | U26: =INDEX(Kab_Werte!$G$6:$G$939,M26)*INDEX(Kab_Werte!$B$6:$B$939,M26) -> 555 | AA26: 14.2524 | AD26: 5
M27: 1 | AA27: 0 | AD27: 10
M28: 1 | AA28: 0 | AD28: 10
M29: 1 | AA29: 0 | AD29: 10
M30: 1 | AA30: 0 | AD30: 10
M31: 1 | AA31: 0 | AD31: 10
M32: 1 | AA32: 0 | AD32: 10
M33: 1 | AA33: 0 | AD33: 10
M34: 1 | AA34: 0 | AD34: 10
M35: 1 | AA35: 0 | AD35: 10
M36: 1 | AA36: 0 | AD36: 10
M37: 1 | AA37: 0 | AD37: 10
M38: 1 | AA38: 0 | AD38: 10
M39: 1 | AA39: 0 | AD39: 10
M40: 1 | AA40: 0 | AD40: 10
M41: 1 | AA41: 0 | AD41: 10
M42: 1 | AA42: 0 | AD42: 10
M43: 1 | AA43: 0 | AD43: 10
M44: 1 | AA44: 0 | AD44: 10
A47: Dimensionierungsgrundlage:
A49: 1) Betriebsspannung | H49: 500 V
A50: 2) Netz -System | H50: IT - System
A51: 3) Spannungsfall | H51: ΔU max = | I51: =Spannungsfall -> 2.5 | J51: %
A52: 4) Belastbarkeit der Kabel | H52: lt. DIN VDE 0298, Teil 4 | J52: Tab 7
A53: 5) Verlegung in Luft bei | F53: =MSLuft -> 40 | G53: °C | H53: f1 = | I53: =AbmTemp -> 0.87 | J53: Tab 15
A54: =SechsA1 -> 6a) Vierleiterkabel: Verlegung auf 6 Kabelpritsche(n) mit gegenseitiger | H54: f2 = | I54: =AbmHaeufung -> 0.66 | J54: Tab 18
A55: =SechsA2 -> und Wand- Berührung 9 Kabel nebeneinander liegend, KS-fest verl.
A56: =SechsB1 -> 6b) Einleiterkabel: Verlegung auf 6 Kabelpritsche(n) gebündelt im | H56: f2 = | I56: =AbmHäuf_Einleiter -> 0.87 | J56: Tab 16
A57: =SechsB2 -> Abstand 2d 3 Drehstromsysteme nebeneinander, KS-fest verl.
A58: 7a) Reduzierung der Belastbarkeit (6a) | H58: f = f1 * f2 | I58: f = | J58: =Reduz_a -> 0.5742
A59: 7b) Reduzierung der Belastbarkeit (6b) | H59: f = f1 * f2 | I59: f = | J59: =Reduz_b -> 0.7569
A60: 8) Abschaltströme: Sicherung Motorschutzschalter Leistungsschalter * | H60: IA = m x Isich IA = 12 x IMS *IA = 1x ILS (Ii) | J60: (Einstellung Unverzögerter Kurzschluss)
A63: ="Znr.: "& Znr -> Znr.: P0000.KB.01 | F63: Kabel NYY-J Sicherung 500V | K63: =Datum -> 2019-01-07
A64: =Revision -> Rev.: V.6.3 | F64: =Berechnungswerte!G45 -> I:\P_MSR\Diverses\Berechnungen\Leistungskabel | K64: =MName -> Mustermann

Sheet Motor Kabel 400V Mehrleiter
A1: =CONCATENATE("Verlegung in Luft bei ",Berechnungswerte!E12,"°C"," Spannungsfall ΔU Betrieb ",Berechnungswerte!G20, "%"," ΔU Anlauf ",Berechnungswerte!G10, " %") -> Verlegung in Luft bei 40°C Spannungsfall ΔU Betrieb 2,5% ΔU Anlauf 10 % | E1: Kabel Berechnung 400V Motorabgänge Kabeltype NYY-J im TN-C-S System Sicherungsabgang | M1: Pos (INDEX) | N1: Spannungsfall ΔU in V | O1: kleinste Abschaltbedingung | P1: =CONCATENATE("Belastbarkeit in Luft Strom in A bei einer Temp. von ",Berechnungswerte!E12,"°C",) -> Belastbarkeit in Luft Strom in A bei einer Temp. von 40°C | Q1: max. Schleifen -widerstand ZS =231 / 5 x I N in Ohm | R1: Kabelquerschnitt | S1: Max Strom Motor | T1: lmax=ΔU xK*A / Wurzel(3)*I | U1: Länge l=Z S/Z´ x 1000 in (m) | V1: Anlauf lmax= DeltaU x K * A Wurzel(3) * I | X1: Z Hin und Rückleiter (SUMME) | Y1: Anlaufstrom I S | AA1: ABFRAGE zum AUTOMATISCHEN AUSFÜLLEN | AB1: ABFRAGE zum AUTOMATISCHEN AUSFÜLLEN | AD1: Abschaltfaktor m für Sicherungen bis 32A / >32A ÖNORM E8001-1-A4
A2: Motor | B2: Nennstrom bei Drehzahl: | E2: Kabel | F2: Kabel | G2: Kritische | I2: I | J2: Kabel | K2: Bemerkung
M3: ΔU400V | N3: =DeltaU400V -> 10 | P3: 1 | V3: =MOTDUmax -> 10 | W3: %
F4: Kabelanzahl x Adern x [mm²] | M4: Index ab 1 | V4: =400/100*V3 -> 40 | W4: V
A5: Leistung [kW] | B5: 3000 rpm [A] | C5: 1500 rpm [A] | D5: 1000 rpm [A] | E5: Type | G5: Länge [m] | H5: Abschalt beding. | I5: Sicherung [A] | J5: ø [mm]
M7: Kritische Länge [m] oder (nur wenn möglich) Reduzierten Querschnitt auf Voll ändern heißt >> Index um +1 erhöhen
AA8: =P8-S8 -> 0
A9: 0.55 | B9: 1.4 | C9: 1.5 | D9: 1.6 | E9: =INDEX(Kab_Werte!$E$6:$E$939,M9) -> NYY-J | F9: =INDEX(Kab_Werte!$F$6:$F$939,M9) -> 4x2,5 | G9: =O9 -> 130.2719978 | H9: =CONCATENATE("IA=",AD9," x ISich") -> IA=10 x ISich | I9: 10 | J9: =INDEX(Kab_Werte!$U$6:$U$939,M9) -> 1x 17 | K9: =IF(S9>(P9),"Kabel ist überlastet!","") ->  | M9: 1 | O9: =MIN(T9:V9) -> 130.2719978 | P9: =INDEX(Kab_Werte!$K$6:$K$939,M9) -> 14.355 | Q9: =231/(I9*AD9) -> 2.31 | R9: =INDEX(Kab_Werte!$B$6:$B$939,M9)*INDEX(Kab_Werte!$G$6:$G$939,M9) -> 2.5 | S9: =MAX(B9:D9) -> 1.6 | T9: =(DeltaU400V*KCu*R9)/(SQRT(3)*S9) -> 505.1814855 | U9: =Q9/X9*1000 -> 130.2719978 | V9: =$V$4*56*R9/SQRT(3)/Y9 -> 288.6751346 | X9: =INDEX(Kab_Werte!$P$6:$P$939,M9) -> 17.73213 | Y9: =MAX(B9:D9)*IS -> 11.2 | AA9: =P9-S9 -> 12.755 | AD9: =IF(I9>125,5,IF(I9>32,3.5,10)) -> 10
A10: 0.75 | B10: 1.7 | C10: 1.9 | D10: 2 | E10: =INDEX(Kab_Werte!$E$6:$E$939,M10) -> NYY-J | F10: =INDEX(Kab_Werte!$F$6:$F$939,M10) -> 4x2,5 | G10: =O10 -> 130 | H10: IA=10 x ISich | I10: 10 | J10: =INDEX(Kab_Werte!$U$6:$U$939,M10) -> 1x 17 | M10: 1 | O10: =ROUND(MIN(T10:V10),0) -> 130 | P10: =INDEX(Kab_Werte!$K$6:$K$939,M10) -> 14.355 | Q10: 2.31 | R10: =INDEX(Kab_Werte!$B$6:$B$939,M10)*INDEX(Kab_Werte!$G$6:$G$939,M10) -> 2.5 | S10: =MAX(B10:D10) -> 2 | T10: 404.1451884 | U10: 130.2719978 | V10: 230.9401077 | X10: =INDEX(Kab_Werte!$P$6:$P$939,M10) -> 17.73213 | Y10: 14 | AA10: 12.355 | AD10: =IF(I10>125,5,IF(I10>32,3.5,10)) -> 10
A11: 1.1 | B11: 2.4 | C11: 2.6 | D11: 2.9 | E11: =INDEX(Kab_Werte!$E$6:$E$939,M11) -> NYY-J | F11: =INDEX(Kab_Werte!$F$6:$F$939,M11) -> 4x2,5 | G11: 130 | H11: IA=10 x ISich | I11: 10 | J11: =INDEX(Kab_Werte!$U$6:$U$939,M11) -> 1x 17 | M11: 1 | O11: 130 | P11: =INDEX(Kab_Werte!$K$6:$K$939,M11) -> 14.355 | Q11: 2.31 | R11: =INDEX(Kab_Werte!$B$6:$B$939,M11)*INDEX(Kab_Werte!$G$6:$G$939,M11) -> 2.5 | S11: 2.9 | T11: 278.7208196 | U11: 130.2719978 | V11: 159.2690398 | X11: =INDEX(Kab_Werte!$P$6:$P$939,M11) -> 17.73213 | Y11: 20.3 | AA11: 11.455 | AD11: 10
A12: 1.5 | B12: 3.3 | C12: 3.4 | D12: 3.9 | E12: =INDEX(Kab_Werte!$E$6:$E$939,M12) -> NYY-J | F12: =INDEX(Kab_Werte!$F$6:$F$939,M12) -> 4x2,5 | G12: 81 | H12: IA=10 x ISich | I12: 16 | J12: =INDEX(Kab_Werte!$U$6:$U$939,M12) -> 1x 17 | M12: 1 | O12: 81 | P12: =INDEX(Kab_Werte!$K$6:$K$939,M12) -> 14.355 | Q12: 1.44375 | R12: =INDEX(Kab_Werte!$B$6:$B$939,M12)*INDEX(Kab_Werte!$G$6:$G$939,M12) -> 2.5 | S12: 3.9 | T12: 207.2539428 | U12: 81.41999861 | V12: 118.4308244 | X12: =INDEX(Kab_Werte!$P$6:$P$939,M12) -> 17.73213 | Y12: 27.3 | AA12: 10.455 | AD12: 10
A13: 2.2 | B13: 4.6 | C13: 4.7 | D13: 5.2 | E13: =INDEX(Kab_Werte!$E$6:$E$939,M13) -> NYY-J | F13: =INDEX(Kab_Werte!$F$6:$F$939,M13) -> 4x2,5 | G13: 81 | H13: IA=10 x ISich | I13: 16 | J13: =INDEX(Kab_Werte!$U$6:$U$939,M13) -> 1x 17 | M13: 1 | O13: 81 | P13: =INDEX(Kab_Werte!$K$6:$K$939,M13) -> 14.355 | Q13: 1.44375 | R13: =INDEX(Kab_Werte!$B$6:$B$939,M13)*INDEX(Kab_Werte!$G$6:$G$939,M13) -> 2.5 | S13: 5.2 | T13: 155.4404571 | U13: 81.41999861 | V13: 88.82311834 | X13: =INDEX(Kab_Werte!$P$6:$P$939,M13) -> 17.73213 | Y13: 36.4 | AA13: 9.155 | AD13: 10
A14: 3 | B14: 6.1 | C14: 6.4 | D14: 7.2 | E14: =INDEX(Kab_Werte!$E$6:$E$939,M14) -> NYY-J | F14: =INDEX(Kab_Werte!$F$6:$F$939,M14) -> 4x2,5 | G14: 64 | H14: IA=10 x ISich | I14: 20 | J14: =INDEX(Kab_Werte!$U$6:$U$939,M14) -> 1x 17 | M14: 1 | O14: 64 | P14: =INDEX(Kab_Werte!$K$6:$K$939,M14) -> 14.355 | Q14: 1.155 | R14: =INDEX(Kab_Werte!$B$6:$B$939,M14)*INDEX(Kab_Werte!$G$6:$G$939,M14) -> 2.5 | S14: 7.2 | T14: 112.2625523 | U14: 65.13599889 | V14: 64.15002991 | X14: =INDEX(Kab_Werte!$P$6:$P$939,M14) -> 17.73213 | Y14: 50.4 | AA14: 7.155 | AD14: 10
A15: 4 | B15: 7.8 | C15: 8.2 | D15: 9.4 | E15: =INDEX(Kab_Werte!$E$6:$E$939,M15) -> NYY-J | F15: =INDEX(Kab_Werte!$F$6:$F$939,M15) -> 4x2,5 | G15: 49 | H15: IA=10 x ISich | I15: 25 | J15: =INDEX(Kab_Werte!$U$6:$U$939,M15) -> 1x 17 | M15: 1 | O15: 49 | P15: =INDEX(Kab_Werte!$K$6:$K$939,M15) -> 14.355 | Q15: 0.924 | R15: =INDEX(Kab_Werte!$B$6:$B$939,M15)*INDEX(Kab_Werte!$G$6:$G$939,M15) -> 2.5 | S15: 9.4 | T15: 85.98833796 | U15: 52.10879911 | V15: 49.13619312 | X15: =INDEX(Kab_Werte!$P$6:$P$939,M15) -> 17.73213 | Y15: 65.8 | AA15: 4.955 | AD15: 10
A16: 5.5 | B16: 10.3 | C16: 11.4 | D16: 12.8 | E16: =INDEX(Kab_Werte!$E$6:$E$939,M16) -> NYY-J | F16: =INDEX(Kab_Werte!$F$6:$F$939,M16) -> 4x2,5 | G16: 36 | H16: IA=3,5 x ISich | I16: 35 | J16: =INDEX(Kab_Werte!$U$6:$U$939,M16) -> 1x 17 | M16: 1 | O16: 36 | P16: =INDEX(Kab_Werte!$K$6:$K$939,M16) -> 14.355 | Q16: 1.885714286 | R16: =INDEX(Kab_Werte!$B$6:$B$939,M16)*INDEX(Kab_Werte!$G$6:$G$939,M16) -> 2.5 | S16: 12.8 | T16: 63.14768569 | U16: 106.344488 | V16: 36.08439182 | X16: =INDEX(Kab_Werte!$P$6:$P$939,M16) -> 17.73213 | Y16: 89.6 | AA16: 1.555 | AD16: 3.5
A17: 7.5 | B17: 13.8 | C17: 15.2 | D17: 17 | E17: =INDEX(Kab_Werte!$E$6:$E$939,M17) -> NYY-J | F17: =INDEX(Kab_Werte!$F$6:$F$939,M17) -> 4x4 | G17: 43 | H17: IA=3,5 x ISich | I17: 35 | J17: =INDEX(Kab_Werte!$U$6:$U$939,M17) -> 1x 19 | M17: 2 | O17: 43 | P17: =INDEX(Kab_Werte!$K$6:$K$939,M17) -> 19.5228 | Q17: 1.885714286 | R17: =INDEX(Kab_Werte!$B$6:$B$939,M17)*INDEX(Kab_Werte!$G$6:$G$939,M17) -> 4 | S17: 17 | T17: 76.07438841 | U17: 170.9355002 | V17: 43.47107909 | X17: =INDEX(Kab_Werte!$P$6:$P$939,M17) -> 11.03173 | Y17: 119 | AA17: 2.5228 | AD17: 3.5
A18: 11 | B18: 20 | C18: 21.5 | D18: 24.5 | E18: =INDEX(Kab_Werte!$E$6:$E$939,M18) -> NYY-J | F18: =INDEX(Kab_Werte!$F$6:$F$939,M18) -> 4x6 | G18: 45 | H18: IA=3,5 x ISich | I18: 63 | J18: =INDEX(Kab_Werte!$U$6:$U$939,M18) -> 1x 20 | M18: 3 | O18: 45 | P18: =INDEX(Kab_Werte!$K$6:$K$939,M18) -> 24.6906 | Q18: 1.047619048 | R18: =INDEX(Kab_Werte!$B$6:$B$939,M18)*INDEX(Kab_Werte!$G$6:$G$939,M18) -> 6 | S18: 24.5 | T18: 79.17946549 | U18: 142.137925 | V18: 45.24540885 | X18: =INDEX(Kab_Werte!$P$6:$P$939,M18) -> 7.37044 | Y18: 171.5 | AA18: 0.1906 | AD18: 3.5
A19: 15 | B19: 26.5 | C19: 28.5 | D19: 31.5 | E19: =INDEX(Kab_Werte!$E$6:$E$939,M19) -> NYY-J | F19: =INDEX(Kab_Werte!$F$6:$F$939,M19) -> 4x10 | G19: 59 | H19: IA=3,5 x ISich | I19: 100 | J19: =INDEX(Kab_Werte!$U$6:$U$939,M19) -> 1x 22 | M19: 4 | O19: 59 | P19: =INDEX(Kab_Werte!$K$6:$K$939,M19) -> 33.8778 | Q19: 0.66 | R19: =INDEX(Kab_Werte!$B$6:$B$939,M19)*INDEX(Kab_Werte!$G$6:$G$939,M19) -> 10 | S19: 31.5 | T19: 102.6400479 | U19: 150.7128031 | V19: 58.65145592 | X19: =INDEX(Kab_Werte!$P$6:$P$939,M19) -> 4.37919 | Y19: 220.5 | AA19: 2.3778 | AD19: 3.5
A20: 18.5 | B20: 32.5 | C20: 35 | D20: 36.5 | E20: =INDEX(Kab_Werte!$E$6:$E$939,M20) -> NYY-J | F20: =INDEX(Kab_Werte!$F$6:$F$939,M20) -> 4x16 | G20: 81 | H20: IA=3,5 x ISich | I20: 100 | J20: =INDEX(Kab_Werte!$U$6:$U$939,M20) -> 1x 25 | M20: 5 | O20: 81 | P20: =INDEX(Kab_Werte!$K$6:$K$939,M20) -> 44.7876 | Q20: 0.66 | R20: =INDEX(Kab_Werte!$B$6:$B$939,M20)*INDEX(Kab_Werte!$G$6:$G$939,M20) -> 16 | S20: 36.5 | T20: 141.7276277 | U20: 239.8299388 | V20: 80.98721584 | X20: =INDEX(Kab_Werte!$P$6:$P$939,M20) -> 2.75195 | Y20: 255.5 | AA20: 8.2876 | AD20: 3.5
A21: 22 | B21: 40.5 | C21: 41.5 | D21: 43.5 | E21: =INDEX(Kab_Werte!$E$6:$E$939,M21) -> NYY-J | F21: =INDEX(Kab_Werte!$F$6:$F$939,M21) -> 4x16 | G21: 68 | H21: IA=3,5 x ISich | I21: 100 | J21: =INDEX(Kab_Werte!$U$6:$U$939,M21) -> 1x 25 | M21: 5 | O21: 68 | P21: =INDEX(Kab_Werte!$K$6:$K$939,M21) -> 44.7876 | Q21: 0.66 | R21: =INDEX(Kab_Werte!$B$6:$B$939,M21)*INDEX(Kab_Werte!$G$6:$G$939,M21) -> 16 | S21: 43.5 | T21: 118.920883 | U21: 239.8299388 | V21: 67.9547903 | X21: =INDEX(Kab_Werte!$P$6:$P$939,M21) -> 2.75195 | Y21: 304.5 | AA21: 1.2876 | AD21: 3.5
A22: 30 | B22: 54 | C22: 56 | D22: 57 | E22: =INDEX(Kab_Werte!$E$6:$E$939,M22) -> NYY-J | F22: =INDEX(Kab_Werte!$F$6:$F$939,M22) -> 3x25/16 | G22: 81 | H22: IA=3,5 x ISich | I22: 125 | J22: =INDEX(Kab_Werte!$U$6:$U$939,M22) -> 1x 30 | M22: 6 | O22: 81 | P22: =INDEX(Kab_Werte!$K$6:$K$939,M22) -> 60.291 | Q22: 0.528 | R22: =INDEX(Kab_Werte!$B$6:$B$939,M22)*INDEX(Kab_Werte!$G$6:$G$939,M22) -> 25 | S22: 57 | T22: 141.8053293 | U22: 235.1023374 | V22: 81.03161673 | X22: =INDEX(Kab_Werte!$P$6:$P$939,M22) -> 2.2458305 | Y22: 399 | AA22: 3.291 | AD22: 3.5
A23: 37 | B23: 65 | C23: 68 | D23: 70 | E23: =INDEX(Kab_Werte!$E$6:$E$939,M23) -> NYY-J | F23: =INDEX(Kab_Werte!$F$6:$F$939,M23) -> 3x35/16 | G23: 92 | H23: IA=5 x ISich | I23: 160 | J23: =INDEX(Kab_Werte!$U$6:$U$939,M23) -> 1x 31 | M23: 8 | O23: 92 | P23: =INDEX(Kab_Werte!$K$6:$K$939,M23) -> 74.0718 | Q23: 0.28875 | R23: =INDEX(Kab_Werte!$B$6:$B$939,M23)*INDEX(Kab_Werte!$G$6:$G$939,M23) -> 35 | S23: 70 | T23: 161.6580754 | U23: 144.1630083 | V23: 92.37604307 | X23: =INDEX(Kab_Werte!$P$6:$P$939,M23) -> 2.002941 | Y23: 490 | AA23: 4.0718 | AD23: 5
A24: 45 | B24: 79 | C24: 81 | D24: 83 | E24: =INDEX(Kab_Werte!$E$6:$E$939,M24) -> NYY-J | F24: =INDEX(Kab_Werte!$F$6:$F$939,M24) -> 3x50/25 | G24: 111 | H24: IA=5 x ISich | I24: 160 | J24: =INDEX(Kab_Werte!$U$6:$U$939,M24) -> 1x 35 | M24: 10 | O24: 111 | P24: =INDEX(Kab_Werte!$K$6:$K$939,M24) -> 90.1494 | Q24: 0.28875 | R24: =INDEX(Kab_Werte!$B$6:$B$939,M24)*INDEX(Kab_Werte!$G$6:$G$939,M24) -> 50 | S24: 83 | T24: 194.7687655 | U24: 216.6327432 | V24: 111.2964374 | X24: =INDEX(Kab_Werte!$P$6:$P$939,M24) -> 1.332901 | Y24: 581 | AA24: 7.1494 | AD24: 5
A25: 55 | B25: 96 | C25: 100 | D25: 100 | E25: =INDEX(Kab_Werte!$E$6:$E$939,M25) -> NYY-J | F25: =INDEX(Kab_Werte!$F$6:$F$939,M25) -> 3x70/35 | G25: 129 | H25: IA=5 x ISich | I25: 200 | J25: =INDEX(Kab_Werte!$U$6:$U$939,M25) -> 1x 38 | M25: 12 | O25: 129 | P25: =INDEX(Kab_Werte!$K$6:$K$939,M25) -> 114.2658 | Q25: 0.231 | R25: =INDEX(Kab_Werte!$B$6:$B$939,M25)*INDEX(Kab_Werte!$G$6:$G$939,M25) -> 70 | S25: 100 | T25: 226.3213055 | U25: 243.7665413 | V25: 129.3264603 | X25: =INDEX(Kab_Werte!$P$6:$P$939,M25) -> 0.947628 | Y25: 700 | AA25: 14.2658 | AD25: 5
A26: 75 | B26: 130 | C26: 136 | D26: 138 | E26: =INDEX(Kab_Werte!$E$6:$E$939,M26) -> NYY-J | F26: =INDEX(Kab_Werte!$F$6:$F$939,M26) -> 3x95/50 | G26: 127 | H26: IA=5 x ISich | I26: 250 | J26: =INDEX(Kab_Werte!$U$6:$U$939,M26) -> 1x 44 | M26: 14 | O26: 127 | P26: =INDEX(Kab_Werte!$K$6:$K$939,M26) -> 141.2532 | Q26: 0.1848 | R26: =INDEX(Kab_Werte!$B$6:$B$939,M26)*INDEX(Kab_Werte!$G$6:$G$939,M26) -> 95 | S26: 138 | T26: 222.5727125 | U26: 266.293932 | V26: 127.1844071 | X26: =INDEX(Kab_Werte!$P$6:$P$939,M26) -> 0.69397 | Y26: 966 | AA26: 3.2532 | AD26: 5
A27: 90 | B27: 154 | C27: 160 | D27: 164 | E27: =INDEX(Kab_Werte!$E$6:$E$939,M27) -> NYY-J | F27: =INDEX(Kab_Werte!$F$6:$F$939,M27) -> 3x150/70 | G27: 169 | H27: IA=5 x ISich | I27: 400 | J27: =INDEX(Kab_Werte!$U$6:$U$939,M27) -> 1x 52 | M27: 18 | O27: 169 | P27: =INDEX(Kab_Werte!$K$6:$K$939,M27) -> 187.1892 | Q27: 0.1155 | R27: =INDEX(Kab_Werte!$B$6:$B$939,M27)*INDEX(Kab_Werte!$G$6:$G$939,M27) -> 150 | S27: 164 | T27: 295.7159915 | U27: 246.253955 | V27: 168.9805666 | X27: =INDEX(Kab_Werte!$P$6:$P$939,M27) -> 0.469028 | Y27: 1148 | AA27: 23.1892 | AD27: 5
A28: 110 | B28: 190 | C28: 198 | D28: 196 | E28: =INDEX(Kab_Werte!$E$6:$E$939,M28) -> NYY-J | F28: =INDEX(Kab_Werte!$F$6:$F$939,M28) -> 3x185/95 | G28: 173 | H28: IA=5 x ISich | I28: 500 | J28: =INDEX(Kab_Werte!$U$6:$U$939,M28) -> 1x 57 | M28: 20 | O28: 173 | P28: =INDEX(Kab_Werte!$K$6:$K$939,M28) -> 214.7508 | Q28: 0.0924 | R28: =INDEX(Kab_Werte!$B$6:$B$939,M28)*INDEX(Kab_Werte!$G$6:$G$939,M28) -> 185 | S28: 198 | T28: 302.0883227 | U28: 264.3794601 | V28: 172.6218987 | X28: =INDEX(Kab_Werte!$P$6:$P$939,M28) -> 0.34949765 | Y28: 1386 | AA28: 16.7508 | AD28: 5
A29: 132 | B29: 225 | C29: 235 | D29: 235 | E29: =INDEX(Kab_Werte!$E$6:$E$939,M29) -> NYY-J | F29: =INDEX(Kab_Werte!$F$6:$F$939,M29) -> 3x240/120 | G29: 189 | H29: IA=5 x ISich | I29: 500 | J29: =INDEX(Kab_Werte!$U$6:$U$939,M29) -> 1x 64 | M29: 23 | O29: 189 | P29: =INDEX(Kab_Werte!$K$6:$K$939,M29) -> 255.519 | Q29: 0.0924 | R29: =INDEX(Kab_Werte!$B$6:$B$939,M29)*INDEX(Kab_Werte!$G$6:$G$939,M29) -> 240 | S29: 235 | T29: 330.1952178 | U29: 338.1140118 | V29: 188.6829816 | X29: =INDEX(Kab_Werte!$P$6:$P$939,M29) -> 0.2732806 | Y29: 1645 | AA29: 20.519 | AD29: 5
A30: 160 | B30: 265 | C30: 280 | D30: 285 | E30: =INDEX(Kab_Werte!$E$6:$E$939,M30) -> NYY-J | F30: =INDEX(Kab_Werte!$F$6:$F$939,M30) -> 2x(3x120/70) | G30: 156 | H30: IA=5 x ISich | I30: 630 | J30: =INDEX(Kab_Werte!$U$6:$U$939,M30) -> 2x 48 | M30: 26 | O30: 156 | P30: =INDEX(Kab_Werte!$K$6:$K$939,M30) -> 327.294 | Q30: 0.07333333333 | R30: =INDEX(Kab_Werte!$B$6:$B$939,M30)*INDEX(Kab_Werte!$G$6:$G$939,M30) -> 240 | S30: 285 | T30: 272.2662322 | U30: 291.1632933 | V30: 155.5807041 | X30: =INDEX(Kab_Werte!$P$6:$P$939,M30) -> 0.25186325 | Y30: 1995 | AA30: 42.294 | AD30: 5
A31: 200 | B31: 325 | C31: 340 | D31: 345 | E31: =INDEX(Kab_Werte!$E$6:$E$939,M31) -> NYY-J | F31: =INDEX(Kab_Werte!$F$6:$F$939,M31) -> 2x(3x150/70) | G31: 161 | H31: IA=5 x ISich | I31: 630 | J31: =INDEX(Kab_Werte!$U$6:$U$939,M31) -> 2x 52 | M31: 27 | O31: 161 | P31: =INDEX(Kab_Werte!$K$6:$K$939,M31) -> 374.3784 | Q31: 0.07333333333 | R31: =INDEX(Kab_Werte!$B$6:$B$939,M31)*INDEX(Kab_Werte!$G$6:$G$939,M31) -> 300 | S31: 345 | T31: 281.1444789 | U31: 312.7034349 | V31: 160.6539879 | X31: =INDEX(Kab_Werte!$P$6:$P$939,M31) -> 0.234514 | Y31: 2415 | AA31: 29.3784 | AD31: 5
A32: 250 | B32: 415 | C32: 425 | D32: 430 | E32: =INDEX(Kab_Werte!$E$6:$E$939,M32) -> NYY-J | F32: =INDEX(Kab_Werte!$F$6:$F$939,M32) -> 2x(3x240/120) | G32: 206 | H32: IA=5 x ISich | I32: 630 | J32: =INDEX(Kab_Werte!$U$6:$U$939,M32) -> 2x 64 | M32: 29 | O32: 206 | P32: =INDEX(Kab_Werte!$K$6:$K$939,M32) -> 511.038 | Q32: 0.07333333333 | R32: =INDEX(Kab_Werte!$B$6:$B$939,M32)*INDEX(Kab_Werte!$G$6:$G$939,M32) -> 480 | S32: 430 | T32: 360.911052 | U32: 536.6889075 | V32: 206.2348869 | X32: =INDEX(Kab_Werte!$P$6:$P$939,M32) -> 0.1366403 | Y32: 3010 | AA32: 81.038 | AD32: 5
M33: 1 | AA33: 0 | AD33: 10
M34: 1 | AA34: 0 | AD34: 10
M35: 1 | AA35: 0 | AD35: 10
M36: 1 | AA36: 0 | AD36: 10
M37: 1 | AA37: 0 | AD37: 10
M38: 1 | AA38: 0 | AD38: 10
M39: 1 | AA39: 0 | AD39: 10
M40: 1 | AA40: 0 | AD40: 10
M41: 1 | AA41: 0 | AD41: 10
M42: 1 | AA42: 0 | AD42: 10
M43: 1 | AA43: 0 | AD43: 10
M44: 1 | AA44: 0 | AD44: 10
A47: Dimensionierungsgrundlage:
A49: 1) Betriebsspannung | G49: 400 | H49: V
A50: 2) Netz -System | G50: TN-C-S System
A51: 3) Spannungsfall | G51: =CONCATENATE("ΔU Betr. ",Berechnungswerte!G20, " %"," ΔU Anlauf ",Berechnungswerte!G10, " %") -> ΔU Betr. 2,5 % ΔU Anlauf 10 %
A52: 4) Belastbarkeit der Kabel | G52: lt. DIN VDE 0298, Teil 4 | J52: Tab 7
A53: 5) Verlegung in Luft bei | C53: =MSLuft -> 40 | D53: °C | G53: f1 = | H53: =AbmTemp -> 0.87 | J53: Tab 15
A54: =SechsA1 -> 6a) Vierleiterkabel: Verlegung auf 6 Kabelpritsche(n) mit gegenseitiger | G54: f2 = | H54: =AbmHaeufung -> 0.66 | J54: Tab 18
A55: =SechsA2 -> und Wand- Berührung 9 Kabel nebeneinander liegend, KS-fest verl.
A56: =SechsB1 -> 6b) Einleiterkabel: Verlegung auf 6 Kabelpritsche(n) gebündelt im | G56: f2 = | H56: =AbmHäuf_Einleiter -> 0.87 | J56: Tab 16
A57: =SechsB2 -> Abstand 2d 3 Drehstromsysteme nebeneinander, KS-fest verl.
A58: 7a) Reduzierung der Belastbarkeit (6a) | G58: f = f1 * f2 | I58: f = | J58: =Reduz_a -> 0.5742
A59: 7b) Reduzierung der Belastbarkeit (6b) | G59: f = f1 * f2 | I59: f = | J59: =Reduz_b -> 0.7569
A60: 8) Abschaltströme: Sicherung Motorschutzschalter Leistungsschalter * | G60: IA = m x Isich IA = 12 x IMS *IA = 1x ILS (Ii) | J60: (Einstellung Unverzögerter Kurzschluss)
A63: ="Znr.: "& Znr -> Znr.: P0000.KB.01 | E63: Motor Kabel NYY-J 400V | K63: =Datum -> 2019-01-07
A64: =Revision -> Rev.: V.6.3 | E64: =Berechnungswerte!G45 -> I:\P_MSR\Diverses\Berechnungen\Leistungskabel | K64: =MName -> Mustermann

Sheet Motor Kabel 400V Einleiter
A1: =CONCATENATE("Verlegung in Luft bei ",Berechnungswerte!E12,"°C"," Spannungsfall ΔU Betrieb ",Berechnungswerte!G20, "%"," ΔU Anlauf ",Berechnungswerte!G10, " %") -> Verlegung in Luft bei 40°C Spannungsfall ΔU Betrieb 2,5% ΔU Anlauf 10 % | E1: Kabel Berechnung 400V Motorabgänge Kabeltype NYY-0 im TN-C-S System LS - Abgang | M1: Pos (INDEX) | N1: Spannungsfall ΔU in V | O1: kleinste Abschaltbedingung | P1: =CONCATENATE("Belastbarkeit in Luft Strom in A bei einer Temp. von ",Berechnungswerte!E12,"°C",) -> Belastbarkeit in Luft Strom in A bei einer Temp. von 40°C | Q1: max. Schleifen -widerstand ZS =231 / 1 x I N in Ohm | R1: Kabelquerschnitt | S1: Max Strom Motor | T1: lmax=ΔU xK*A / Wurzel(3)*I | U1: Länge l=Z S/Z´ x 1000 in (m) | V1: Anlauf lmax= DeltaU x K * A Wurzel(3) * I | X1: Z Hin und Rückleiter (SUMME) | Y1: Anlaufstrom I S | AA1: ABFRAGE zum AUTOMATISCHEN AUSFÜLLEN | AB1: ABFRAGE zum AUTOMATISCHEN AUSFÜLLEN
A2: Motor | B2: Nennstrom bei Drehzahl: | E2: Kabel | F2: Kabel | G2: Kritische | I2: I | J2: Kabel | K2: Bemerkung
M3: ΔU400V | N3: =DeltaU400V -> 10 | V3: =MOTDUmax -> 10 | W3: %
F4: Kabelanzahl x Adern x [mm²] | I4: Leistungs- | M4: Einleiterkabel ab 401 | P4: 401 | V4: =400/100*V3 -> 40 | W4: V
A5: Leistung [kW] | B5: 3000 rpm [A] | C5: 1500 rpm [A] | D5: 1000 rpm [A] | E5: Type | G5: Länge [m] | H5: Abschalt beding. | I5: Schalter [A] | J5: ø [mm]
M7: Kritische Länge [m] oder (nur wenn möglich) Reduzierten Querschnitt auf Voll ändern heißt >> Index um +1 erhöhen
AB8: =P8-S8 -> 0
A9: 315 | B9: 520 | C9: 540 | D9: 540 | E9: =INDEX(Kab_Werte!$E$6:$E$939,N9) -> NYY-0 | F9: =INDEX(Kab_Werte!$F$6:$F$939,N9) -> (1x3+1)x1x500 | G9: =O9 -> 171 | H9: ILS (Ii) | I9: 4100 | J9: =INDEX(Kab_Werte!$U$6:$U$939,N9) -> 4x 42 | K9: =IF(S9>(P9),"Kabel ist überlastet!","") ->  | N9: 409 | O9: =ROUND(MIN(T9:V9),0) -> 171 | P9: =INDEX(Kab_Werte!$K$6:$K$939,N9) -> 565.4043 | Q9: =231/(I9) -> 0.05634146341 | R9: =INDEX(Kab_Werte!$B$6:$B$939,N9)*INDEX(Kab_Werte!$G$6:$G$939,N9) -> 500 | S9: =MAX(B9:D9) -> 540 | T9: =(DeltaU400V*KCu*R9)/(SQRT(3)*S9) -> 299.3668062 | U9: =Q9/X9*1000 -> 643.2863545 | V9: =$V$4*56*R9/SQRT(3)/Y9 -> 171.0667464 | X9: =INDEX(Kab_Werte!$P$6:$P$939,N9) -> 0.0875838 | Y9: =MAX(B9:D9)*IS -> 3780 | AB9: =P9-S9 -> 25.4043
A10: 355 | B10: 590 | C10: 610 | D10: - | E10: =INDEX(Kab_Werte!$E$6:$E$939,N10) -> NYY-0 | F10: =INDEX(Kab_Werte!$F$6:$F$939,N10) -> (2x3+1)x1x185 | G10: 112 | H10: ILS (Ii) | I10: 4800 | J10: =INDEX(Kab_Werte!$U$6:$U$939,N10) -> 7x 28 | N10: 410 | O10: 112 | P10: =INDEX(Kab_Werte!$K$6:$K$939,N10) -> 614.6028 | Q10: 0.048125 | R10: =INDEX(Kab_Werte!$B$6:$B$939,N10)*INDEX(Kab_Werte!$G$6:$G$939,N10) -> 370 | S10: 610 | T10: 196.1097964 | U10: 270.578401 | V10: 112.0627408 | X10: =INDEX(Kab_Werte!$P$6:$P$939,N10) -> 0.177859725 | Y10: 4270 | AB10: 4.6028
A11: 400 | B11: 660 | C11: 690 | D11: 690 | E11: =INDEX(Kab_Werte!$E$6:$E$939,N11) -> NYY-0 | F11: =INDEX(Kab_Werte!$F$6:$F$939,N11) -> (2x3+1)x1x240 | G11: 129 | H11: ILS (Ii) | I11: 5200 | J11: =INDEX(Kab_Werte!$U$6:$U$939,N11) -> 7x 31 | N11: 412 | O11: 129 | P11: =INDEX(Kab_Werte!$K$6:$K$939,N11) -> 731.1654 | Q11: 0.04442307692 | R11: =INDEX(Kab_Werte!$B$6:$B$939,N11)*INDEX(Kab_Werte!$G$6:$G$939,N11) -> 480 | S11: 690 | T11: 224.9155831 | U11: 328.2716124 | V11: 128.5231904 | X11: =INDEX(Kab_Werte!$P$6:$P$939,N11) -> 0.13532415 | Y11: 4830 | AB11: 41.1654
A12: 450 | B12: - | C12: - | D12: 780 | E12: =INDEX(Kab_Werte!$E$6:$E$939,N12) -> NYY-0 | F12: =INDEX(Kab_Werte!$F$6:$F$939,N12) -> (2x3+1)x1x300 | G12: 142 | H12: ILS (Ii) | I12: 5900 | J12: =INDEX(Kab_Werte!$U$6:$U$939,N12) -> 7x 33 | N12: 413 | O12: 142 | P12: =INDEX(Kab_Werte!$K$6:$K$939,N12) -> 835.6176 | Q12: 0.03915254237 | R12: =INDEX(Kab_Werte!$B$6:$B$939,N12)*INDEX(Kab_Werte!$G$6:$G$939,N12) -> 600 | S12: 780 | T12: 248.7047313 | U12: 362.9790288 | V12: 142.1169893 | X12: =INDEX(Kab_Werte!$P$6:$P$939,N12) -> 0.107864475 | Y12: 5460 | AB12: 55.6176
A13: 500 | B13: 820 | C13: 850 | D13: 860 | E13: =INDEX(Kab_Werte!$E$6:$E$939,N13) -> NYY-0 | F13: =INDEX(Kab_Werte!$F$6:$F$939,N13) -> (2x3+1)x1x400 | G13: 172 | H13: ILS (Ii) | I13: 6500 | J13: =INDEX(Kab_Werte!$U$6:$U$939,N13) -> 7x 38 | N13: 414 | O13: 172 | P13: =INDEX(Kab_Werte!$K$6:$K$939,N13) -> 977.9148 | Q13: 0.03553846154 | R13: =INDEX(Kab_Werte!$B$6:$B$939,N13)*INDEX(Kab_Werte!$G$6:$G$939,N13) -> 800 | S13: 860 | T13: 300.75921 | U13: 421.3051843 | V13: 171.8624057 | X13: =INDEX(Kab_Werte!$P$6:$P$939,N13) -> 0.08435325 | Y13: 6020 | AB13: 117.9148
A14: 560 | B14: 910 | C14: 950 | D14: 960 | E14: =INDEX(Kab_Werte!$E$6:$E$939,N14) -> NYY-0 | F14: =INDEX(Kab_Werte!$F$6:$F$939,N14) -> (2x3+1)x1x400 | G14: 154 | H14: ILS (Ii) | I14: 7700 | J14: =INDEX(Kab_Werte!$U$6:$U$939,N14) -> 7x 38 | N14: 414 | O14: 154 | P14: =INDEX(Kab_Werte!$K$6:$K$939,N14) -> 977.9148 | Q14: 0.03 | R14: =INDEX(Kab_Werte!$B$6:$B$939,N14)*INDEX(Kab_Werte!$G$6:$G$939,N14) -> 800 | S14: 960 | T14: 269.4301256 | U14: 355.6472335 | V14: 153.9600718 | X14: =INDEX(Kab_Werte!$P$6:$P$939,N14) -> 0.08435325 | Y14: 6720 | AB14: 17.9148
A15: 630 | B15: 1020 | C15: 1060 | D15: 1100 | E15: =INDEX(Kab_Werte!$E$6:$E$939,N15) -> NYY-0 | F15: =INDEX(Kab_Werte!$F$6:$F$939,N15) -> (2x3+1)x1x500 | G15: 168 | H15: ILS (Ii) | I15: 8800 | J15: =INDEX(Kab_Werte!$U$6:$U$939,N15) -> 7x 42 | N15: 416 | O15: 168 | P15: =INDEX(Kab_Werte!$K$6:$K$939,N15) -> 1130.8086 | Q15: 0.02625 | R15: =INDEX(Kab_Werte!$B$6:$B$939,N15)*INDEX(Kab_Werte!$G$6:$G$939,N15) -> 1000 | S15: 1100 | T15: 293.9237734 | U15: 399.6172808 | V15: 167.9564419 | X15: =INDEX(Kab_Werte!$P$6:$P$939,N15) -> 0.06568785 | Y15: 7700 | AB15: 30.8086
N16: 401 | AB16: 0
N17: 401 | AB17: 0
N18: 401 | AB18: 0
N19: 401 | AB19: 0
N20: 401 | AB20: 0
N21: 401 | AB21: 0
N22: 401 | AB22: 0
N23: 401 | AB23: 0
N24: 401 | AB24: 0
N25: 401 | AB25: 0
N26: 401 | AB26: 0
N27: 401 | AB27: 0
N28: 401 | AB28: 0
N29: 401 | AB29: 0
N30: 401 | AB30: 0
N31: 401 | AB31: 0
N32: 401 | AB32: 0
N33: 401 | AB33: 0
N34: 401 | AB34: 0
N35: 401 | AB35: 0
N36: 401 | AB36: 0
N37: 401 | AB37: 0
N38: 401 | AB38: 0
N39: 401 | AB39: 0
N40: 401 | AB40: 0
N41: 401 | AB41: 0
N42: 401 | AB42: 0
N43: 401 | AB43: 0
N44: 401 | AB44: 0
A47: Dimensionierungsgrundlage:
A49: 1) Betriebsspannung | G49: 400 | H49: V
A50: 2) Netz -System | G50: TN-C-S System
A51: 3) Spannungsfall | G51: =CONCATENATE("ΔU Betr. ",Berechnungswerte!G20, " %"," ΔU Anlauf ",Berechnungswerte!G10, " %") -> ΔU Betr. 2,5 % ΔU Anlauf 10 %
A52: 4) Belastbarkeit der Kabel | G52: lt. DIN VDE 0298, Teil 4 | J52: Tab 7
A53: 5) Verlegung in Luft bei | C53: =MSLuft -> 40 | D53: °C | G53: f1 = | H53: =AbmTemp -> 0.87 | J53: Tab 15 | K53: bei Mehrfachbündel
A54: =SechsA1 -> 6a) Vierleiterkabel: Verlegung auf 6 Kabelpritsche(n) mit gegenseitiger | G54: f2 = | H54: =AbmHaeufung -> 0.66 | J54: Tab 18 | K54: Phasenfolge drehen
A55: =SechsA2 -> und Wand- Berührung 9 Kabel nebeneinander liegend, KS-fest verl.
A56: =SechsB1 -> 6b) Einleiterkabel: Verlegung auf 6 Kabelpritsche(n) gebündelt im | G56: f2 = | H56: =AbmHäuf_Einleiter -> 0.87 | J56: Tab 16
A57: =SechsB2 -> Abstand 2d 3 Drehstromsysteme nebeneinander, KS-fest verl.
A58: 7a) Reduzierung der Belastbarkeit (6a) | G58: f = f1 * f2 | I58: f = | J58: =Reduz_a -> 0.5742
A59: 7b) Reduzierung der Belastbarkeit (6b) | G59: f = f1 * f2 | I59: f = | J59: =Reduz_b -> 0.7569
A60: 8) Abschaltströme: Sicherung Motorschutzschalter Leistungsschalter * | G60: IA = m x Isich IA = 12 x IMS *IA = 1x ILS (Ii) | J60: (Einstellung Unverzögerter Kurzschluss)
A63: ="Znr.: "& Znr -> Znr.: P0000.KB.01 | E63: Motor Kabel NYY-0 400V | K63: =Datum -> 2019-01-07
A64: =Revision -> Rev.: V.6.3 | E64: =Berechnungswerte!G45 -> I:\P_MSR\Diverses\Berechnungen\Leistungskabel | K64: =MName -> Mustermann

Sheet Motor Kabel YD 400V
A1: =CONCATENATE("Verlegung in Luft bei ",Berechnungswerte!E12,"°C"," Spannungsfall ΔU Betrieb ",Berechnungswerte!G20, "%"," ΔU Anlauf ",Berechnungswerte!G10, " %") -> Verlegung in Luft bei 40°C Spannungsfall ΔU Betrieb 2,5% ΔU Anlauf 10 % | E1: Kabel Berechnung 400V YD-Motorabgänge Kabeltype NYY-J im TN-C-S System Sicherungsabgang | M1: Pos (INDEX) | N1: Spannungsfall ΔU in V | O1: kleinste Abschaltbedingung | P1: =CONCATENATE("Belastbarkeit in Luft Strom in A bei einer Temp. von ",Berechnungswerte!E12,"°C",) -> Belastbarkeit in Luft Strom in A bei einer Temp. von 40°C | Q1: max. Schleifen -widerstand ZS =231 / 5 x I N in Ohm | R1: Kabelquerschnitt | S1: Max Strom Motor | T1: lmax=ΔU xK*A / Wurzel(3)*I | U1: Länge l=Z S/Z´ x 1000 in (m) | V1: Anlauf lmax= DeltaU x K * A Wurzel(3) * I | X1: Z Hin und Rückleiter (SUMME) | Y1: Anlaufstrom I S | AA1: ABFRAGE zum AUTOMATISCHEN AUSFÜLLEN | AD1: Abschaltfaktor m für Sicherungen bis 32A / >32A ÖNORM E8001-1-A4
A2: Motor | B2: Nennstrom bei Drehzahl: | E2: Kabel | F2: Kabel | G2: Kritische | I2: I | J2: Kabel | K2: Bemerkung
M3: ΔU400V | N3: =DeltaU400V -> 10 | P3: 1 | V3: =MOTDUmax -> 10 | W3: %
F4: Kabelanzahl x Adern x [mm²] | M4: Index ab 1 | V4: =400/100*V3 -> 40 | W4: V
A5: Leistung [kW] | B5: 3000 rpm [A] | C5: 1500 rpm [A] | D5: 1000 rpm [A] | E5: Type | G5: Länge [m] | H5: Abschalt beding. | I5: Sicherung [A] | J5: ø [mm]
M7: Kritische Länge [m] oder (nur wenn möglich) Reduzierten Querschnitt auf Voll ändern heißt >> Index um +1 erhöhen
AA8: =P8-S8 -> 0
A9: 0.55 | B9: ='Motor Kabel 400V Mehrleiter'!B9/SQRT(3) -> 0.8082903769 | C9: ='Motor Kabel 400V Mehrleiter'!C9/SQRT(3) -> 0.8660254038 | D9: ='Motor Kabel 400V Mehrleiter'!D9/SQRT(3) -> 0.9237604307 | E9: =INDEX(Kab_Werte!$E$6:$E$939,M9) -> NYY-J | F9: =INDEX(Kab_Werte!$F$6:$F$939,M9) -> 4x2,5 | G9: =O9 -> 130.2719978 | H9: =CONCATENATE("IA=",AD9," x ISich") -> IA=10 x ISich | I9: 10 | J9: =INDEX(Kab_Werte!$U$6:$U$939,M9) -> 1x 17 | K9: =IF(S9>(P9),"Kabel ist überlastet!","") ->  | M9: 1 | O9: =MIN(T9:V9) -> 130.2719978 | P9: =INDEX(Kab_Werte!$K$6:$K$939,M9) -> 14.355 | Q9: =231/(I9*AD9) -> 2.31 | R9: =INDEX(Kab_Werte!$B$6:$B$939,M9)*INDEX(Kab_Werte!$G$6:$G$939,M9) -> 2.5 | S9: =MAX(B9:D9) -> 0.9237604307 | T9: =(DeltaU400V*KCu*R9)/(SQRT(3)*S9) -> 875 | U9: =Q9/X9*1000 -> 130.2719978 | V9: =$V$4*56*R9/SQRT(3)/Y9 -> 500 | X9: =INDEX(Kab_Werte!$P$6:$P$939,M9) -> 17.73213 | Y9: =MAX(B9:D9)*IS -> 6.466323015 | AA9: =P9-S9 -> 13.43123957 | AD9: =IF(I9>125,5,IF(I9>32,3.5,10)) -> 10
A10: 0.75 | B10: ='Motor Kabel 400V Mehrleiter'!B10/SQRT(3) -> 0.9814954576 | C10: ='Motor Kabel 400V Mehrleiter'!C10/SQRT(3) -> 1.096965511 | D10: ='Motor Kabel 400V Mehrleiter'!D10/SQRT(3) -> 1.154700538 | E10: =INDEX(Kab_Werte!$E$6:$E$939,M10) -> NYY-J | F10: =INDEX(Kab_Werte!$F$6:$F$939,M10) -> 4x2,5 | G10: 130 | H10: =CONCATENATE("IA=",AD10," x ISich") -> IA=10 x ISich | I10: 10 | J10: =INDEX(Kab_Werte!$U$6:$U$939,M10) -> 1x 17 | M10: 1 | O10: =ROUND(MIN(T10:V10),0) -> 130 | P10: =INDEX(Kab_Werte!$K$6:$K$939,M10) -> 14.355 | Q10: =231/(I10*AD10) -> 2.31 | R10: =INDEX(Kab_Werte!$B$6:$B$939,M10)*INDEX(Kab_Werte!$G$6:$G$939,M10) -> 2.5 | S10: 1.154700538 | T10: 700 | U10: 130.2719978 | V10: 400 | X10: =INDEX(Kab_Werte!$P$6:$P$939,M10) -> 17.73213 | Y10: 8.082903769 | AA10: 13.20029946 | AD10: =IF(I10>125,5,IF(I10>32,3.5,10)) -> 10
A11: 1.1 | B11: ='Motor Kabel 400V Mehrleiter'!B11/SQRT(3) -> 1.385640646 | C11: ='Motor Kabel 400V Mehrleiter'!C11/SQRT(3) -> 1.5011107 | D11: ='Motor Kabel 400V Mehrleiter'!D11/SQRT(3) -> 1.674315781 | E11: =INDEX(Kab_Werte!$E$6:$E$939,M11) -> NYY-J | F11: =INDEX(Kab_Werte!$F$6:$F$939,M11) -> 4x2,5 | G11: 130 | H11: IA=10 x ISich | I11: 10 | J11: =INDEX(Kab_Werte!$U$6:$U$939,M11) -> 1x 17 | M11: 1 | O11: 130 | P11: =INDEX(Kab_Werte!$K$6:$K$939,M11) -> 14.355 | Q11: 2.31 | R11: =INDEX(Kab_Werte!$B$6:$B$939,M11)*INDEX(Kab_Werte!$G$6:$G$939,M11) -> 2.5 | S11: 1.674315781 | T11: 482.7586207 | U11: 130.2719978 | V11: 275.862069 | X11: =INDEX(Kab_Werte!$P$6:$P$939,M11) -> 17.73213 | Y11: 11.72021046 | AA11: 12.68068422 | AD11: 10
A12: 1.5 | B12: ='Motor Kabel 400V Mehrleiter'!B12/SQRT(3) -> 1.905255888 | C12: ='Motor Kabel 400V Mehrleiter'!C12/SQRT(3) -> 1.962990915 | D12: ='Motor Kabel 400V Mehrleiter'!D12/SQRT(3) -> 2.25166605 | E12: =INDEX(Kab_Werte!$E$6:$E$939,M12) -> NYY-J | F12: =INDEX(Kab_Werte!$F$6:$F$939,M12) -> 4x2,5 | G12: 81 | H12: IA=10 x ISich | I12: 16 | J12: =INDEX(Kab_Werte!$U$6:$U$939,M12) -> 1x 17 | M12: 1 | O12: 81 | P12: =INDEX(Kab_Werte!$K$6:$K$939,M12) -> 14.355 | Q12: 1.44375 | R12: =INDEX(Kab_Werte!$B$6:$B$939,M12)*INDEX(Kab_Werte!$G$6:$G$939,M12) -> 2.5 | S12: 2.25166605 | T12: 358.974359 | U12: 81.41999861 | V12: 205.1282051 | X12: =INDEX(Kab_Werte!$P$6:$P$939,M12) -> 17.73213 | Y12: 15.76166235 | AA12: 12.10333395 | AD12: 10
A13: 2.2 | B13: ='Motor Kabel 400V Mehrleiter'!B13/SQRT(3) -> 2.655811238 | C13: ='Motor Kabel 400V Mehrleiter'!C13/SQRT(3) -> 2.713546265 | D13: ='Motor Kabel 400V Mehrleiter'!D13/SQRT(3) -> 3.0022214 | E13: =INDEX(Kab_Werte!$E$6:$E$939,M13) -> NYY-J | F13: =INDEX(Kab_Werte!$F$6:$F$939,M13) -> 4x2,5 | G13: 81 | H13: IA=10 x ISich | I13: 16 | J13: =INDEX(Kab_Werte!$U$6:$U$939,M13) -> 1x 17 | M13: 1 | O13: 81 | P13: =INDEX(Kab_Werte!$K$6:$K$939,M13) -> 14.355 | Q13: 1.44375 | R13: =INDEX(Kab_Werte!$B$6:$B$939,M13)*INDEX(Kab_Werte!$G$6:$G$939,M13) -> 2.5 | S13: 3.0022214 | T13: 269.2307692 | U13: 81.41999861 | V13: 153.8461538 | X13: =INDEX(Kab_Werte!$P$6:$P$939,M13) -> 17.73213 | Y13: 21.0155498 | AA13: 11.3527786 | AD13: 10
A14: 3 | B14: ='Motor Kabel 400V Mehrleiter'!B14/SQRT(3) -> 3.521836642 | C14: ='Motor Kabel 400V Mehrleiter'!C14/SQRT(3) -> 3.695041723 | D14: ='Motor Kabel 400V Mehrleiter'!D14/SQRT(3) -> 4.156921938 | E14: =INDEX(Kab_Werte!$E$6:$E$939,M14) -> NYY-J | F14: =INDEX(Kab_Werte!$F$6:$F$939,M14) -> 4x2,5 | G14: 65 | H14: IA=10 x ISich | I14: 20 | J14: =INDEX(Kab_Werte!$U$6:$U$939,M14) -> 1x 17 | M14: 1 | O14: 65 | P14: =INDEX(Kab_Werte!$K$6:$K$939,M14) -> 14.355 | Q14: 1.155 | R14: =INDEX(Kab_Werte!$B$6:$B$939,M14)*INDEX(Kab_Werte!$G$6:$G$939,M14) -> 2.5 | S14: 4.156921938 | T14: 194.4444444 | U14: 65.13599889 | V14: 111.1111111 | X14: =INDEX(Kab_Werte!$P$6:$P$939,M14) -> 17.73213 | Y14: 29.09845357 | AA14: 10.19807806 | AD14: 10
A15: 4 | B15: ='Motor Kabel 400V Mehrleiter'!B15/SQRT(3) -> 4.5033321 | C15: ='Motor Kabel 400V Mehrleiter'!C15/SQRT(3) -> 4.734272207 | D15: ='Motor Kabel 400V Mehrleiter'!D15/SQRT(3) -> 5.42709253 | E15: =INDEX(Kab_Werte!$E$6:$E$939,M15) -> NYY-J | F15: =INDEX(Kab_Werte!$F$6:$F$939,M15) -> 4x2,5 | G15: 52 | H15: IA=10 x ISich | I15: 25 | J15: =INDEX(Kab_Werte!$U$6:$U$939,M15) -> 1x 17 | M15: 1 | O15: 52 | P15: =INDEX(Kab_Werte!$K$6:$K$939,M15) -> 14.355 | Q15: 0.924 | R15: =INDEX(Kab_Werte!$B$6:$B$939,M15)*INDEX(Kab_Werte!$G$6:$G$939,M15) -> 2.5 | S15: 5.42709253 | T15: 148.9361702 | U15: 52.10879911 | V15: 85.10638298 | X15: =INDEX(Kab_Werte!$P$6:$P$939,M15) -> 17.73213 | Y15: 37.98964771 | AA15: 8.92790747 | AD15: 10
A16: 5.5 | B16: ='Motor Kabel 400V Mehrleiter'!B16/SQRT(3) -> 5.946707773 | C16: ='Motor Kabel 400V Mehrleiter'!C16/SQRT(3) -> 6.581793069 | D16: ='Motor Kabel 400V Mehrleiter'!D16/SQRT(3) -> 7.390083446 | E16: =INDEX(Kab_Werte!$E$6:$E$939,M16) -> NYY-J | F16: =INDEX(Kab_Werte!$F$6:$F$939,M16) -> 4x2,5 | G16: 63 | H16: IA=3,5 x ISich | I16: 35 | J16: =INDEX(Kab_Werte!$U$6:$U$939,M16) -> 1x 17 | M16: 1 | O16: 63 | P16: =INDEX(Kab_Werte!$K$6:$K$939,M16) -> 14.355 | Q16: 1.885714286 | R16: =INDEX(Kab_Werte!$B$6:$B$939,M16)*INDEX(Kab_Werte!$G$6:$G$939,M16) -> 2.5 | S16: 7.390083446 | T16: 109.375 | U16: 106.344488 | V16: 62.5 | X16: =INDEX(Kab_Werte!$P$6:$P$939,M16) -> 17.73213 | Y16: 51.73058412 | AA16: 6.964916554 | AD16: 3.5
A17: 7.5 | B17: ='Motor Kabel 400V Mehrleiter'!B17/SQRT(3) -> 7.967433715 | C17: ='Motor Kabel 400V Mehrleiter'!C17/SQRT(3) -> 8.775724092 | D17: ='Motor Kabel 400V Mehrleiter'!D17/SQRT(3) -> 9.814954576 | E17: =INDEX(Kab_Werte!$E$6:$E$939,M17) -> NYY-J | F17: =INDEX(Kab_Werte!$F$6:$F$939,M17) -> 4x2,5 | G17: 47 | H17: IA=3,5 x ISich | I17: 35 | J17: =INDEX(Kab_Werte!$U$6:$U$939,M17) -> 1x 17 | M17: 1 | O17: 47 | P17: =INDEX(Kab_Werte!$K$6:$K$939,M17) -> 14.355 | Q17: 1.885714286 | R17: =INDEX(Kab_Werte!$B$6:$B$939,M17)*INDEX(Kab_Werte!$G$6:$G$939,M17) -> 2.5 | S17: 9.814954576 | T17: 82.35294118 | U17: 106.344488 | V17: 47.05882353 | X17: =INDEX(Kab_Werte!$P$6:$P$939,M17) -> 17.73213 | Y17: 68.70468203 | AA17: 4.540045424 | AD17: 3.5
A18: 11 | B18: ='Motor Kabel 400V Mehrleiter'!B18/SQRT(3) -> 11.54700538 | C18: ='Motor Kabel 400V Mehrleiter'!C18/SQRT(3) -> 12.41303079 | D18: ='Motor Kabel 400V Mehrleiter'!D18/SQRT(3) -> 14.1450816 | E18: =INDEX(Kab_Werte!$E$6:$E$939,M18) -> NYY-J | F18: =INDEX(Kab_Werte!$F$6:$F$939,M18) -> 4x2,5 | G18: 33 | H18: IA=3,5 x ISich | I18: 63 | J18: =INDEX(Kab_Werte!$U$6:$U$939,M18) -> 1x 17 | M18: 1 | O18: 33 | P18: =INDEX(Kab_Werte!$K$6:$K$939,M18) -> 14.355 | Q18: 1.047619048 | R18: =INDEX(Kab_Werte!$B$6:$B$939,M18)*INDEX(Kab_Werte!$G$6:$G$939,M18) -> 2.5 | S18: 14.1450816 | T18: 57.14285714 | U18: 59.0802711 | V18: 32.65306122 | X18: =INDEX(Kab_Werte!$P$6:$P$939,M18) -> 17.73213 | Y18: 99.01557117 | AA18: 0.2099184049 | AD18: 3.5
A19: 15 | B19: ='Motor Kabel 400V Mehrleiter'!B19/SQRT(3) -> 15.29978213 | C19: ='Motor Kabel 400V Mehrleiter'!C19/SQRT(3) -> 16.45448267 | D19: ='Motor Kabel 400V Mehrleiter'!D19/SQRT(3) -> 18.18653348 | E19: =INDEX(Kab_Werte!$E$6:$E$939,M19) -> NYY-J | F19: =INDEX(Kab_Werte!$F$6:$F$939,M19) -> 4x4 | G19: 41 | H19: IA=3,5 x ISich | I19: 100 | J19: =INDEX(Kab_Werte!$U$6:$U$939,M19) -> 1x 19 | M19: 2 | O19: 41 | P19: =INDEX(Kab_Werte!$K$6:$K$939,M19) -> 19.5228 | Q19: 0.66 | R19: =INDEX(Kab_Werte!$B$6:$B$939,M19)*INDEX(Kab_Werte!$G$6:$G$939,M19) -> 4 | S19: 18.18653348 | T19: 71.11111111 | U19: 59.82742507 | V19: 40.63492063 | X19: =INDEX(Kab_Werte!$P$6:$P$939,M19) -> 11.03173 | Y19: 127.3057344 | AA19: 1.336266521 | AD19: 3.5
A20: 18.5 | B20: ='Motor Kabel 400V Mehrleiter'!B20/SQRT(3) -> 18.76388375 | C20: ='Motor Kabel 400V Mehrleiter'!C20/SQRT(3) -> 20.20725942 | D20: ='Motor Kabel 400V Mehrleiter'!D20/SQRT(3) -> 21.07328483 | E20: =INDEX(Kab_Werte!$E$6:$E$939,M20) -> NYY-J | F20: =INDEX(Kab_Werte!$F$6:$F$939,M20) -> 4x6 | G20: 53 | H20: IA=3,5 x ISich | I20: 100 | J20: =INDEX(Kab_Werte!$U$6:$U$939,M20) -> 1x 20 | M20: 3 | O20: 53 | P20: =INDEX(Kab_Werte!$K$6:$K$939,M20) -> 24.6906 | Q20: 0.66 | R20: =INDEX(Kab_Werte!$B$6:$B$939,M20)*INDEX(Kab_Werte!$G$6:$G$939,M20) -> 6 | S20: 21.07328483 | T20: 92.05479452 | U20: 89.54689272 | V20: 52.60273973 | X20: =INDEX(Kab_Werte!$P$6:$P$939,M20) -> 7.37044 | Y20: 147.5129938 | AA20: 3.617315175 | AD20: 3.5
A21: 22 | B21: ='Motor Kabel 400V Mehrleiter'!B21/SQRT(3) -> 23.3826859 | C21: ='Motor Kabel 400V Mehrleiter'!C21/SQRT(3) -> 23.96003617 | D21: ='Motor Kabel 400V Mehrleiter'!D21/SQRT(3) -> 25.11473671 | E21: =INDEX(Kab_Werte!$E$6:$E$939,M21) -> NYY-J | F21: =INDEX(Kab_Werte!$F$6:$F$939,M21) -> 4x10 | G21: 74 | H21: IA=3,5 x ISich | I21: 100 | J21: =INDEX(Kab_Werte!$U$6:$U$939,M21) -> 1x 22 | M21: 4 | O21: 74 | P21: =INDEX(Kab_Werte!$K$6:$K$939,M21) -> 33.8778 | Q21: 0.66 | R21: =INDEX(Kab_Werte!$B$6:$B$939,M21)*INDEX(Kab_Werte!$G$6:$G$939,M21) -> 10 | S21: 25.11473671 | T21: 128.7356322 | U21: 150.7128031 | V21: 73.56321839 | X21: =INDEX(Kab_Werte!$P$6:$P$939,M21) -> 4.37919 | Y21: 175.803157 | AA21: 8.76306329 | AD21: 3.5
A22: 30 | B22: ='Motor Kabel 400V Mehrleiter'!B22/SQRT(3) -> 31.17691454 | C22: ='Motor Kabel 400V Mehrleiter'!C22/SQRT(3) -> 32.33161507 | D22: ='Motor Kabel 400V Mehrleiter'!D22/SQRT(3) -> 32.90896534 | E22: =INDEX(Kab_Werte!$E$6:$E$939,M22) -> NYY-J | F22: =INDEX(Kab_Werte!$F$6:$F$939,M22) -> 4x10 | G22: 56 | H22: IA=3,5 x ISich | I22: 125 | J22: =INDEX(Kab_Werte!$U$6:$U$939,M22) -> 1x 22 | M22: 4 | O22: 56 | P22: =INDEX(Kab_Werte!$K$6:$K$939,M22) -> 33.8778 | Q22: 0.528 | R22: =INDEX(Kab_Werte!$B$6:$B$939,M22)*INDEX(Kab_Werte!$G$6:$G$939,M22) -> 10 | S22: 32.90896534 | T22: 98.24561404 | U22: 120.5702424 | V22: 56.14035088 | X22: =INDEX(Kab_Werte!$P$6:$P$939,M22) -> 4.37919 | Y22: 230.3627574 | AA22: 0.9688346562 | AD22: 3.5
A23: 37 | B23: ='Motor Kabel 400V Mehrleiter'!B23/SQRT(3) -> 37.5277675 | C23: ='Motor Kabel 400V Mehrleiter'!C23/SQRT(3) -> 39.2598183 | D23: ='Motor Kabel 400V Mehrleiter'!D23/SQRT(3) -> 40.41451884 | E23: =INDEX(Kab_Werte!$E$6:$E$939,M23) -> NYY-J | F23: =INDEX(Kab_Werte!$F$6:$F$939,M23) -> 4x16 | G23: 73 | H23: IA=5 x ISich | I23: 160 | J23: =INDEX(Kab_Werte!$U$6:$U$939,M23) -> 1x 25 | M23: 5 | O23: 73 | P23: =INDEX(Kab_Werte!$K$6:$K$939,M23) -> 44.7876 | Q23: 0.28875 | R23: =INDEX(Kab_Werte!$B$6:$B$939,M23)*INDEX(Kab_Werte!$G$6:$G$939,M23) -> 16 | S23: 40.41451884 | T23: 128 | U23: 104.9255982 | V23: 73.14285714 | X23: =INDEX(Kab_Werte!$P$6:$P$939,M23) -> 2.75195 | Y23: 282.9016319 | AA23: 4.373081157 | AD23: 5
A24: 45 | B24: ='Motor Kabel 400V Mehrleiter'!B24/SQRT(3) -> 45.61067127 | C24: ='Motor Kabel 400V Mehrleiter'!C24/SQRT(3) -> 46.7653718 | D24: ='Motor Kabel 400V Mehrleiter'!D24/SQRT(3) -> 47.92007234 | E24: =INDEX(Kab_Werte!$E$6:$E$939,M24) -> NYY-J | F24: =INDEX(Kab_Werte!$F$6:$F$939,M24) -> 3x25/16 | G24: 96 | H24: IA=5 x ISich | I24: 160 | J24: =INDEX(Kab_Werte!$U$6:$U$939,M24) -> 1x 30 | M24: 6 | O24: 96 | P24: =INDEX(Kab_Werte!$K$6:$K$939,M24) -> 60.291 | Q24: 0.28875 | R24: =INDEX(Kab_Werte!$B$6:$B$939,M24)*INDEX(Kab_Werte!$G$6:$G$939,M24) -> 25 | S24: 47.92007234 | T24: 168.6746988 | U24: 128.5715908 | V24: 96.38554217 | X24: =INDEX(Kab_Werte!$P$6:$P$939,M24) -> 2.2458305 | Y24: 335.4405064 | AA24: 12.37092766 | AD24: 5
A25: 55 | B25: ='Motor Kabel 400V Mehrleiter'!B25/SQRT(3) -> 55.42562584 | C25: ='Motor Kabel 400V Mehrleiter'!C25/SQRT(3) -> 57.73502692 | D25: ='Motor Kabel 400V Mehrleiter'!D25/SQRT(3) -> 57.73502692 | E25: =INDEX(Kab_Werte!$E$6:$E$939,M25) -> NYY-J | F25: =INDEX(Kab_Werte!$F$6:$F$939,M25) -> 3x25/16 | G25: 80 | H25: IA=5 x ISich | I25: 200 | J25: =INDEX(Kab_Werte!$U$6:$U$939,M25) -> 1x 30 | M25: 6 | O25: 80 | P25: =INDEX(Kab_Werte!$K$6:$K$939,M25) -> 60.291 | Q25: 0.231 | R25: =INDEX(Kab_Werte!$B$6:$B$939,M25)*INDEX(Kab_Werte!$G$6:$G$939,M25) -> 25 | S25: 57.73502692 | T25: 140 | U25: 102.8572726 | V25: 80 | X25: =INDEX(Kab_Werte!$P$6:$P$939,M25) -> 2.2458305 | Y25: 404.1451884 | AA25: 2.555973081 | AD25: 5
A26: 75 | B26: ='Motor Kabel 400V Mehrleiter'!B26/SQRT(3) -> 75.05553499 | C26: ='Motor Kabel 400V Mehrleiter'!C26/SQRT(3) -> 78.51963661 | D26: ='Motor Kabel 400V Mehrleiter'!D26/SQRT(3) -> 79.67433715 | E26: =INDEX(Kab_Werte!$E$6:$E$939,M26) -> NYY-J | F26: =INDEX(Kab_Werte!$F$6:$F$939,M26) -> 3x50/25 | G26: 116 | H26: IA=5 x ISich | I26: 250 | J26: =INDEX(Kab_Werte!$U$6:$U$939,M26) -> 1x 35 | M26: 10 | O26: 116 | P26: =INDEX(Kab_Werte!$K$6:$K$939,M26) -> 90.1494 | Q26: 0.1848 | R26: =INDEX(Kab_Werte!$B$6:$B$939,M26)*INDEX(Kab_Werte!$G$6:$G$939,M26) -> 50 | S26: 79.67433715 | T26: 202.8985507 | U26: 138.6449556 | V26: 115.942029 | X26: =INDEX(Kab_Werte!$P$6:$P$939,M26) -> 1.332901 | Y26: 557.72036 | AA26: 10.47506285 | AD26: 5
A27: 90 | B27: ='Motor Kabel 400V Mehrleiter'!B27/SQRT(3) -> 88.91194146 | C27: ='Motor Kabel 400V Mehrleiter'!C27/SQRT(3) -> 92.37604307 | D27: ='Motor Kabel 400V Mehrleiter'!D27/SQRT(3) -> 94.68544415 | E27: =INDEX(Kab_Werte!$E$6:$E$939,M27) -> NYY-J | F27: =INDEX(Kab_Werte!$F$6:$F$939,M27) -> 3x70/35 | G27: 122 | H27: IA=5 x ISich | I27: 400 | J27: =INDEX(Kab_Werte!$U$6:$U$939,M27) -> 1x 38 | M27: 12 | O27: 122 | P27: =INDEX(Kab_Werte!$K$6:$K$939,M27) -> 114.2658 | Q27: 0.1155 | R27: =INDEX(Kab_Werte!$B$6:$B$939,M27)*INDEX(Kab_Werte!$G$6:$G$939,M27) -> 70 | S27: 94.68544415 | T27: 239.0243902 | U27: 121.8832707 | V27: 136.5853659 | X27: =INDEX(Kab_Werte!$P$6:$P$939,M27) -> 0.947628 | Y27: 662.798109 | AA27: 19.58035585 | AD27: 5
A28: 110 | B28: ='Motor Kabel 400V Mehrleiter'!B28/SQRT(3) -> 109.6965511 | C28: ='Motor Kabel 400V Mehrleiter'!C28/SQRT(3) -> 114.3153533 | D28: ='Motor Kabel 400V Mehrleiter'!D28/SQRT(3) -> 113.1606528 | E28: =INDEX(Kab_Werte!$E$6:$E$939,M28) -> NYY-J | F28: =INDEX(Kab_Werte!$F$6:$F$939,M28) -> 3x95/50 | G28: 133 | H28: IA=5 x ISich | I28: 500 | J28: =INDEX(Kab_Werte!$U$6:$U$939,M28) -> 1x 44 | M28: 14 | O28: 133 | P28: =INDEX(Kab_Werte!$K$6:$K$939,M28) -> 141.2532 | Q28: 0.0924 | R28: =INDEX(Kab_Werte!$B$6:$B$939,M28)*INDEX(Kab_Werte!$G$6:$G$939,M28) -> 95 | S28: 114.3153533 | T28: 268.6868687 | U28: 133.146966 | V28: 153.5353535 | X28: =INDEX(Kab_Werte!$P$6:$P$939,M28) -> 0.69397 | Y28: 800.2074731 | AA28: 26.9378467 | AD28: 5
A29: 132 | B29: ='Motor Kabel 400V Mehrleiter'!B29/SQRT(3) -> 129.9038106 | C29: ='Motor Kabel 400V Mehrleiter'!C29/SQRT(3) -> 135.6773133 | D29: ='Motor Kabel 400V Mehrleiter'!D29/SQRT(3) -> 135.6773133 | E29: =INDEX(Kab_Werte!$E$6:$E$939,M29) -> NYY-J | F29: =INDEX(Kab_Werte!$F$6:$F$939,M29) -> 3x95/50 | G29: 129 | H29: IA=5 x ISich | I29: 500 | J29: =INDEX(Kab_Werte!$U$6:$U$939,M29) -> 1x 44 | M29: 14 | O29: 129 | P29: =INDEX(Kab_Werte!$K$6:$K$939,M29) -> 141.2532 | Q29: 0.0924 | R29: =INDEX(Kab_Werte!$B$6:$B$939,M29)*INDEX(Kab_Werte!$G$6:$G$939,M29) -> 95 | S29: 135.6773133 | T29: 226.3829787 | U29: 133.146966 | V29: 129.3617021 | X29: =INDEX(Kab_Werte!$P$6:$P$939,M29) -> 0.69397 | Y29: 949.7411928 | AA29: 5.57588674 | AD29: 5
A30: 160 | B30: ='Motor Kabel 400V Mehrleiter'!B30/SQRT(3) -> 152.9978213 | C30: ='Motor Kabel 400V Mehrleiter'!C30/SQRT(3) -> 161.6580754 | D30: ='Motor Kabel 400V Mehrleiter'!D30/SQRT(3) -> 164.5448267 | E30: =INDEX(Kab_Werte!$E$6:$E$939,M30) -> NYY-J | F30: =INDEX(Kab_Werte!$F$6:$F$939,M30) -> 3x150/70 | G30: 156 | H30: IA=5 x ISich | I30: 630 | J30: =INDEX(Kab_Werte!$U$6:$U$939,M30) -> 1x 52 | M30: 18 | O30: 156 | P30: =INDEX(Kab_Werte!$K$6:$K$939,M30) -> 187.1892 | Q30: 0.07333333333 | R30: =INDEX(Kab_Werte!$B$6:$B$939,M30)*INDEX(Kab_Werte!$G$6:$G$939,M30) -> 150 | S30: 164.5448267 | T30: 294.7368421 | U30: 156.3517175 | V30: 168.4210526 | X30: =INDEX(Kab_Werte!$P$6:$P$939,M30) -> 0.469028 | Y30: 1151.813787 | AA30: 22.64437328 | AD30: 5
A31: 200 | B31: ='Motor Kabel 400V Mehrleiter'!B31/SQRT(3) -> 187.6388375 | C31: ='Motor Kabel 400V Mehrleiter'!C31/SQRT(3) -> 196.2990915 | D31: ='Motor Kabel 400V Mehrleiter'!D31/SQRT(3) -> 199.1858429 | E31: =INDEX(Kab_Werte!$E$6:$E$939,M31) -> NYY-J | F31: =INDEX(Kab_Werte!$F$6:$F$939,M31) -> 3x185/95 | G31: 172 | H31: IA=5 x ISich | I31: 630 | J31: =INDEX(Kab_Werte!$U$6:$U$939,M31) -> 1x 57 | M31: 20 | O31: 172 | P31: =INDEX(Kab_Werte!$K$6:$K$939,M31) -> 214.7508 | Q31: 0.07333333333 | R31: =INDEX(Kab_Werte!$B$6:$B$939,M31)*INDEX(Kab_Werte!$G$6:$G$939,M31) -> 185 | S31: 199.1858429 | T31: 300.2898551 | U31: 209.8249683 | V31: 171.5942029 | X31: =INDEX(Kab_Werte!$P$6:$P$939,M31) -> 0.34949765 | Y31: 1394.3009 | AA31: 15.56495713 | AD31: 5
A32: 250 | B32: ='Motor Kabel 400V Mehrleiter'!B32/SQRT(3) -> 239.6003617 | C32: ='Motor Kabel 400V Mehrleiter'!C32/SQRT(3) -> 245.3738644 | D32: ='Motor Kabel 400V Mehrleiter'!D32/SQRT(3) -> 248.2606158 | E32: =INDEX(Kab_Werte!$E$6:$E$939,M32) -> NYY-J | F32: =INDEX(Kab_Werte!$F$6:$F$939,M32) -> 3x240/120 | G32: 179 | H32: IA=5 x ISich | I32: 630 | J32: =INDEX(Kab_Werte!$U$6:$U$939,M32) -> 1x 64 | M32: 23 | O32: 179 | P32: =INDEX(Kab_Werte!$K$6:$K$939,M32) -> 255.519 | Q32: 0.07333333333 | R32: =INDEX(Kab_Werte!$B$6:$B$939,M32)*INDEX(Kab_Werte!$G$6:$G$939,M32) -> 240 | S32: 248.2606158 | T32: 312.5581395 | U32: 268.3444538 | V32: 178.6046512 | X32: =INDEX(Kab_Werte!$P$6:$P$939,M32) -> 0.2732806 | Y32: 1737.82431 | AA32: 7.258384248 | AD32: 5
M33: 1 | AA33: 0 | AD33: 10
A34: ACHTUNG ALLE KABEL 2 mal in Kabelliste eintragen. Einmal Kxxxx_YDS oder wie immer die Bezeichnung für Stern Dreieck-Kabel lautet Einmal Kxxxx_YDD oder wie immer die Bezeichnung für Stern Dreieck-Kabel lautet | M34: 1 | AA34: 0 | AD34: 10
M35: 1 | AA35: 0 | AD35: 10
M36: 1 | AA36: 0 | AD36: 10
M37: 1 | AA37: 0 | AD37: 10
M38: 1 | AA38: 0 | AD38: 10
M39: 1 | AA39: 0 | AD39: 10
M40: 1 | AA40: 0 | AD40: 10
M41: 1 | AA41: 0 | AD41: 10
M42: 1 | AA42: 0 | AD42: 10
M43: 1 | AA43: 0 | AD43: 10
M44: 1 | AA44: 0 | AD44: 10
A47: Dimensionierungsgrundlage:
A49: 1) Betriebsspannung | G49: 400 | H49: V
A50: 2) Netz -System | G50: TN-C-S System
A51: 3) Spannungsfall | G51: =CONCATENATE("ΔU Betr. ",Berechnungswerte!G20, " %"," ΔU Anlauf ",Berechnungswerte!G10, " %") -> ΔU Betr. 2,5 % ΔU Anlauf 10 %
A52: 4) Belastbarkeit der Kabel | G52: lt. DIN VDE 0298, Teil 4 | J52: Tab 7
A53: 5) Verlegung in Luft bei | C53: =MSLuft -> 40 | D53: °C | G53: f1 = | H53: =AbmTemp -> 0.87 | J53: Tab 15
A54: =SechsA1 -> 6a) Vierleiterkabel: Verlegung auf 6 Kabelpritsche(n) mit gegenseitiger | G54: f2 = | H54: =AbmHaeufung -> 0.66 | J54: Tab 18
A55: =SechsA2 -> und Wand- Berührung 9 Kabel nebeneinander liegend, KS-fest verl.
A56: =SechsB1 -> 6b) Einleiterkabel: Verlegung auf 6 Kabelpritsche(n) gebündelt im | G56: f2 = | H56: =AbmHäuf_Einleiter -> 0.87 | J56: Tab 16
A57: =SechsB2 -> Abstand 2d 3 Drehstromsysteme nebeneinander, KS-fest verl.
A58: 7a) Reduzierung der Belastbarkeit (6a) | G58: f = f1 * f2 | I58: f = | J58: =Reduz_a -> 0.5742
A59: 7b) Reduzierung der Belastbarkeit (6b) | G59: f = f1 * f2 | I59: f = | J59: =Reduz_b -> 0.7569
A60: 8) Abschaltströme: Sicherung Motorschutzschalter Leistungsschalter * | G60: IA = m x Isich IA = 12 x IMS *IA = 1x ILS (Ii) | J60: (Einstellung Unverzögerter Kurzschluss)
A63: ="Znr.: "& Znr -> Znr.: P0000.KB.01 | E63: Motor Kabel NYY-J YD 400V | K63: =Datum -> 2019-01-07
A64: =Revision -> Rev.: V.6.3 | E64: =Berechnungswerte!G45 -> I:\P_MSR\Diverses\Berechnungen\Leistungskabel | K64: =MName -> Mustermann

Sheet Motor Kabel 500V Mehrleiter
A1: =CONCATENATE("Verlegung in Luft bei ",Berechnungswerte!E12,"°C"," Spannungsfall ΔU Betrieb ",Berechnungswerte!G20, "%"," ΔU Anlauf ",Berechnungswerte!G10, " %") -> Verlegung in Luft bei 40°C Spannungsfall ΔU Betrieb 2,5% ΔU Anlauf 10 % | E1: Kabel Berechnung 500V Motorabgänge Kabeltype NYY-J Sicherungsabgang | M1: Pos (INDEX) | N1: Spannungsfall ΔU in V | O1: kleinste Abschaltbedingung | P1: =CONCATENATE("Belastbarkeit in Luft Strom in A bei einer Temp. von ",Berechnungswerte!E12,"°C",) -> Belastbarkeit in Luft Strom in A bei einer Temp. von 40°C | Q1: max. Schleifen -widerstand ZS =250 / m x IN in Ohm | R1: Kabelquerschnitt | S1: Max Strom Motor | T1: lmax=ΔU xK*A / Wurzel(3)*I | U1: Länge l=Z S/Z´ x 1000 in (m) | V1: Anlauf lmax= DeltaU x K * A Wurzel(3) * I | X1: Z Hin und Rückleiter (SUMME) | Y1: Anlaufstrom I S | AA1: ABFRAGE zum AUTOMATISCHEN AUSFÜLLEN | AB1: ABFRAGE zum AUTOMATISCHEN AUSFÜLLEN | AD1: Abschaltfaktor m für Sicherungen bis 32A / >32A ÖNORM E8001-1-A4
A2: Motor | B2: Nennstrom bei Drehzahl: | E2: Kabel | F2: Kabel | G2: Kritische | I2: I | J2: Kabel | K2: Bemerkung
M3: ΔU500V | N3: =DeltaU500V -> 12.5 | P3: 1 | V3: =MOTDUmax -> 10 | W3: %
F4: Kabelanzahl x Adern x [mm²] | M4: Index ab 1 | V4: =500/100*V3 -> 50 | W4: V
A5: Leistung [kW] | B5: 3000 rpm [A] | C5: 1500 rpm [A] | D5: 1000 rpm [A] | E5: Type | G5: Länge [m] | H5: Abschalt beding. | I5: Sicherung [A] | J5: ø [mm]
M7: Kritische Länge [m] oder (nur wenn möglich) Reduzierten Querschnitt auf Voll ändern heißt >> Index um +1 erhöhen
AA8: =P8-S8 -> 0
A9: 0.55 | B9: 1.1 | C9: 1.2 | D9: 1.3 | E9: =INDEX(Kab_Werte!$E$6:$E$939,M9) -> NYY-J | F9: =INDEX(Kab_Werte!$F$6:$F$939,M9) -> 4x2,5 | G9: =O9 -> 141 | H9: =CONCATENATE("IA=",AD9," x ISich") -> IA=10 x ISich | I9: 10 | J9: =INDEX(Kab_Werte!$U$6:$U$939,M9) -> 1x 17 | K9: =IF(S9>(P9),"Kabel ist überlastet!","") ->  | M9: 1 | O9: =ROUND(MIN(T9:V9),0) -> 141 | P9: =INDEX(Kab_Werte!$K$6:$K$939,M9) -> 14.355 | Q9: =ROUND(250/(I9*AD9),2) -> 2.5 | R9: =INDEX(Kab_Werte!$B$6:$B$939,M9)*INDEX(Kab_Werte!$G$6:$G$939,M9) -> 2.5 | S9: =MAX(B9:D9) -> 1.3 | T9: =(DeltaU500V*KCu*R9)/(SQRT(3)*S9) -> 777.2022854 | U9: =Q9/X9*1000 -> 140.9870106 | V9: =$V$4*56*R9/SQRT(3)/Y9 -> 444.1155917 | X9: =INDEX(Kab_Werte!$P$6:$P$939,M9) -> 17.73213 | Y9: =MAX(B9:D9)*IS -> 9.1 | AA9: =P9-S9 -> 13.055 | AD9: =IF(I9>125,5,IF(I9>32,3.5,10)) -> 10
A10: 0.75 | B10: 1.4 | C10: 1.5 | D10: 1.6 | E10: =INDEX(Kab_Werte!$E$6:$E$939,M10) -> NYY-J | F10: =INDEX(Kab_Werte!$F$6:$F$939,M10) -> 4x2,5 | G10: =O10 -> 141 | H10: =CONCATENATE("IA=",AD10," x ISich") -> IA=10 x ISich | I10: 10 | J10: =INDEX(Kab_Werte!$U$6:$U$939,M10) -> 1x 17 | M10: 1 | O10: =ROUND(MIN(T10:V10),0) -> 141 | P10: =INDEX(Kab_Werte!$K$6:$K$939,M10) -> 14.355 | Q10: =ROUND(250/(I10*AD10),2) -> 2.5 | R10: =INDEX(Kab_Werte!$B$6:$B$939,M10)*INDEX(Kab_Werte!$G$6:$G$939,M10) -> 2.5 | S10: =MAX(B10:D10) -> 1.6 | T10: 631.4768569 | U10: 140.9870106 | V10: 360.8439182 | X10: =INDEX(Kab_Werte!$P$6:$P$939,M10) -> 17.73213 | Y10: 11.2 | AA10: 12.755 | AD10: =IF(I10>125,5,IF(I10>32,3.5,10)) -> 10
A11: 1.1 | B11: 1.9 | C11: 2.1 | D11: 2.3 | E11: =INDEX(Kab_Werte!$E$6:$E$939,M11) -> NYY-J | F11: =INDEX(Kab_Werte!$F$6:$F$939,M11) -> 4x2,5 | G11: 141 | H11: IA=10 x ISich | I11: 10 | J11: =INDEX(Kab_Werte!$U$6:$U$939,M11) -> 1x 17 | M11: 1 | O11: 141 | P11: =INDEX(Kab_Werte!$K$6:$K$939,M11) -> 14.355 | Q11: 2.5 | R11: =INDEX(Kab_Werte!$B$6:$B$939,M11)*INDEX(Kab_Werte!$G$6:$G$939,M11) -> 2.5 | S11: =MAX(B11:D11) -> 2.3 | T11: 439.2882483 | U11: 140.9870106 | V11: 251.0218562 | X11: =INDEX(Kab_Werte!$P$6:$P$939,M11) -> 17.73213 | Y11: 16.1 | AA11: 12.055 | AD11: 10
A12: 1.5 | B12: 2.6 | C12: 2.7 | D12: 3.1 | E12: =INDEX(Kab_Werte!$E$6:$E$939,M12) -> NYY-J | F12: =INDEX(Kab_Werte!$F$6:$F$939,M12) -> 4x2,5 | G12: 141 | H12: IA=10 x ISich | I12: 10 | J12: =INDEX(Kab_Werte!$U$6:$U$939,M12) -> 1x 17 | M12: 1 | O12: 141 | P12: =INDEX(Kab_Werte!$K$6:$K$939,M12) -> 14.355 | Q12: 2.5 | R12: =INDEX(Kab_Werte!$B$6:$B$939,M12)*INDEX(Kab_Werte!$G$6:$G$939,M12) -> 2.5 | S12: 3.1 | T12: 325.9235391 | U12: 140.9870106 | V12: 186.2420223 | X12: =INDEX(Kab_Werte!$P$6:$P$939,M12) -> 17.73213 | Y12: 21.7 | AA12: 11.255 | AD12: 10
A13: 2.2 | B13: 3.7 | C13: 3.8 | D13: 4.2 | E13: =INDEX(Kab_Werte!$E$6:$E$939,M13) -> NYY-J | F13: =INDEX(Kab_Werte!$F$6:$F$939,M13) -> 4x2,5 | G13: 137 | H13: IA=10 x ISich | I13: 10 | J13: =INDEX(Kab_Werte!$U$6:$U$939,M13) -> 1x 17 | M13: 1 | O13: 137 | P13: =INDEX(Kab_Werte!$K$6:$K$939,M13) -> 14.355 | Q13: 2.5 | R13: =INDEX(Kab_Werte!$B$6:$B$939,M13)*INDEX(Kab_Werte!$G$6:$G$939,M13) -> 2.5 | S13: 4.2 | T13: 240.5626122 | U13: 140.9870106 | V13: 137.4643498 | X13: =INDEX(Kab_Werte!$P$6:$P$939,M13) -> 17.73213 | Y13: 29.4 | AA13: 10.155 | AD13: 10
A14: 3 | B14: 4.9 | C14: 5.1 | D14: 5.8 | E14: =INDEX(Kab_Werte!$E$6:$E$939,M14) -> NYY-J | F14: =INDEX(Kab_Werte!$F$6:$F$939,M14) -> 4x2,5 | G14: 88 | H14: IA=10 x ISich | I14: 16 | J14: =INDEX(Kab_Werte!$U$6:$U$939,M14) -> 1x 17 | M14: 1 | O14: 88 | P14: =INDEX(Kab_Werte!$K$6:$K$939,M14) -> 14.355 | Q14: 1.56 | R14: =INDEX(Kab_Werte!$B$6:$B$939,M14)*INDEX(Kab_Werte!$G$6:$G$939,M14) -> 2.5 | S14: 5.8 | T14: 174.2005123 | U14: 87.9758946 | V14: 99.54314986 | X14: =INDEX(Kab_Werte!$P$6:$P$939,M14) -> 17.73213 | Y14: 40.6 | AA14: 8.555 | AD14: 10
A15: 4 | B15: 6.2 | C15: 6.6 | D15: 7.5 | E15: =INDEX(Kab_Werte!$E$6:$E$939,M15) -> NYY-J | F15: =INDEX(Kab_Werte!$F$6:$F$939,M15) -> 4x2,5 | G15: 70 | H15: IA=10 x ISich | I15: 20 | J15: =INDEX(Kab_Werte!$U$6:$U$939,M15) -> 1x 17 | M15: 1 | O15: 70 | P15: =INDEX(Kab_Werte!$K$6:$K$939,M15) -> 14.355 | Q15: 1.25 | R15: =INDEX(Kab_Werte!$B$6:$B$939,M15)*INDEX(Kab_Werte!$G$6:$G$939,M15) -> 2.5 | S15: 7.5 | T15: 134.7150628 | U15: 70.49350529 | V15: 76.98003589 | X15: =INDEX(Kab_Werte!$P$6:$P$939,M15) -> 17.73213 | Y15: 52.5 | AA15: 6.855 | AD15: 10
A16: 5.5 | B16: 8.2 | C16: 9.1 | D16: 10.2 | E16: =INDEX(Kab_Werte!$E$6:$E$939,M16) -> NYY-J | F16: =INDEX(Kab_Werte!$F$6:$F$939,M16) -> 4x2,5 | G16: 56 | H16: IA=10 x ISich | I16: 25 | J16: =INDEX(Kab_Werte!$U$6:$U$939,M16) -> 1x 17 | M16: 1 | O16: 56 | P16: =INDEX(Kab_Werte!$K$6:$K$939,M16) -> 14.355 | Q16: 1 | R16: =INDEX(Kab_Werte!$B$6:$B$939,M16)*INDEX(Kab_Werte!$G$6:$G$939,M16) -> 2.5 | S16: 10.2 | T16: 99.05519324 | U16: 56.39480423 | V16: 56.60296757 | X16: =INDEX(Kab_Werte!$P$6:$P$939,M16) -> 17.73213 | Y16: 71.4 | AA16: 4.155 | AD16: 10
A17: 7.5 | B17: 11 | C17: 12.1 | D17: 13.6 | E17: =INDEX(Kab_Werte!$E$6:$E$939,M17) -> NYY-J | F17: =INDEX(Kab_Werte!$F$6:$F$939,M17) -> 4x2,5 | G17: 42 | H17: IA=3,5 x ISich | I17: 35 | J17: =INDEX(Kab_Werte!$U$6:$U$939,M17) -> 1x 17 | M17: 1 | O17: 42 | P17: =INDEX(Kab_Werte!$K$6:$K$939,M17) -> 14.355 | Q17: 2.04 | R17: =INDEX(Kab_Werte!$B$6:$B$939,M17)*INDEX(Kab_Werte!$G$6:$G$939,M17) -> 2.5 | S17: 13.6 | T17: 74.29139493 | U17: 115.0454006 | V17: 42.45222568 | X17: =INDEX(Kab_Werte!$P$6:$P$939,M17) -> 17.73213 | Y17: 95.2 | AA17: 0.755 | AD17: 3.5
A18: 11 | B18: 16 | C18: 17.2 | D18: 19.6 | E18: =INDEX(Kab_Werte!$E$6:$E$939,M18) -> NYY-J | F18: =INDEX(Kab_Werte!$F$6:$F$939,M18) -> 4x6 | G18: 71 | H18: IA=3,5 x ISich | I18: 50 | J18: =INDEX(Kab_Werte!$U$6:$U$939,M18) -> 1x 20 | M18: 3 | O18: 71 | P18: =INDEX(Kab_Werte!$K$6:$K$939,M18) -> 24.6906 | Q18: 1.43 | R18: =INDEX(Kab_Werte!$B$6:$B$939,M18)*INDEX(Kab_Werte!$G$6:$G$939,M18) -> 6 | S18: 19.6 | T18: 123.7179148 | U18: 194.0182676 | V18: 70.69595133 | X18: =INDEX(Kab_Werte!$P$6:$P$939,M18) -> 7.37044 | Y18: 137.2 | AA18: 5.0906 | AD18: 3.5
A19: 15 | B19: 21.1 | C19: 22.8 | D19: 25.2 | E19: =INDEX(Kab_Werte!$E$6:$E$939,M19) -> NYY-J | F19: =INDEX(Kab_Werte!$F$6:$F$939,M19) -> 4x10 | G19: 92 | H19: IA=3,5 x ISich | I19: 63 | J19: =INDEX(Kab_Werte!$U$6:$U$939,M19) -> 1x 22 | M19: 4 | O19: 92 | P19: =INDEX(Kab_Werte!$K$6:$K$939,M19) -> 33.8778 | Q19: 1.13 | R19: =INDEX(Kab_Werte!$B$6:$B$939,M19)*INDEX(Kab_Werte!$G$6:$G$939,M19) -> 10 | S19: 25.2 | T19: 160.3750748 | U19: 258.038587 | V19: 91.64289987 | X19: =INDEX(Kab_Werte!$P$6:$P$939,M19) -> 4.37919 | Y19: 176.4 | AA19: 8.6778 | AD19: 3.5
A20: 18.5 | B20: 26 | C20: 28 | D20: 29.2 | E20: =INDEX(Kab_Werte!$E$6:$E$939,M20) -> NYY-J | F20: =INDEX(Kab_Werte!$F$6:$F$939,M20) -> 4x10 | G20: 79 | H20: IA=3,5 x ISich | I20: 80 | J20: =INDEX(Kab_Werte!$U$6:$U$939,M20) -> 1x 22 | M20: 4 | O20: 79 | P20: =INDEX(Kab_Werte!$K$6:$K$939,M20) -> 33.8778 | Q20: 0.89 | R20: =INDEX(Kab_Werte!$B$6:$B$939,M20)*INDEX(Kab_Werte!$G$6:$G$939,M20) -> 10 | S20: 29.2 | T20: 138.4058864 | U20: 203.2339314 | V20: 79.08907797 | X20: =INDEX(Kab_Werte!$P$6:$P$939,M20) -> 4.37919 | Y20: 204.4 | AA20: 4.6778 | AD20: 3.5
A21: 22 | B21: 32.4 | C21: 33.2 | D21: 34.8 | E21: =INDEX(Kab_Werte!$E$6:$E$939,M21) -> NYY-J | F21: =INDEX(Kab_Werte!$F$6:$F$939,M21) -> 4x16 | G21: 106 | H21: IA=3,5 x ISich | I21: 100 | J21: =INDEX(Kab_Werte!$U$6:$U$939,M21) -> 1x 25 | M21: 5 | O21: 106 | P21: =INDEX(Kab_Werte!$K$6:$K$939,M21) -> 44.7876 | Q21: 0.71 | R21: =INDEX(Kab_Werte!$B$6:$B$939,M21)*INDEX(Kab_Werte!$G$6:$G$939,M21) -> 16 | S21: 34.8 | T21: 185.8138797 | U21: 257.9988735 | V21: 106.1793599 | X21: =INDEX(Kab_Werte!$P$6:$P$939,M21) -> 2.75195 | Y21: 243.6 | AA21: 9.9876 | AD21: 3.5
A22: 30 | B22: 43.2 | C22: 44.8 | D22: 45.6 | E22: =INDEX(Kab_Werte!$E$6:$E$939,M22) -> NYY-J | F22: =INDEX(Kab_Werte!$F$6:$F$939,M22) -> 3x25/16 | G22: 127 | H22: IA=3,5 x ISich | I22: 100 | J22: =INDEX(Kab_Werte!$U$6:$U$939,M22) -> 1x 30 | M22: 6 | O22: 127 | P22: =INDEX(Kab_Werte!$K$6:$K$939,M22) -> 60.291 | Q22: 0.71 | R22: =INDEX(Kab_Werte!$B$6:$B$939,M22)*INDEX(Kab_Werte!$G$6:$G$939,M22) -> 25 | S22: 45.6 | T22: 221.570827 | U22: 316.1414007 | V22: 126.6119011 | X22: =INDEX(Kab_Werte!$P$6:$P$939,M22) -> 2.2458305 | Y22: 319.2 | AA22: 14.691 | AD22: 3.5
A23: 37 | B23: 52 | C23: 54.4 | D23: 56 | E23: =INDEX(Kab_Werte!$E$6:$E$939,M23) -> NYY-J | F23: =INDEX(Kab_Werte!$F$6:$F$939,M23) -> 3x25/16 | G23: 103 | H23: IA=3,5 x ISich | I23: 100 | J23: =INDEX(Kab_Werte!$U$6:$U$939,M23) -> 1x 30 | M23: 6 | O23: 103 | P23: =INDEX(Kab_Werte!$K$6:$K$939,M23) -> 60.291 | Q23: 0.71 | R23: =INDEX(Kab_Werte!$B$6:$B$939,M23)*INDEX(Kab_Werte!$G$6:$G$939,M23) -> 25 | S23: 56 | T23: 180.4219591 | U23: 316.1414007 | V23: 103.0982624 | X23: =INDEX(Kab_Werte!$P$6:$P$939,M23) -> 2.2458305 | Y23: 392 | AA23: 4.291 | AD23: 3.5
A24: 45 | B24: 63.2 | C24: 64.8 | D24: 66.4 | E24: =INDEX(Kab_Werte!$E$6:$E$939,M24) -> NYY-J | F24: =INDEX(Kab_Werte!$F$6:$F$939,M24) -> 3x35/16 | G24: 122 | H24: IA=3,5 x ISich | I24: 125 | J24: =INDEX(Kab_Werte!$U$6:$U$939,M24) -> 1x 31 | M24: 8 | O24: 122 | P24: =INDEX(Kab_Werte!$K$6:$K$939,M24) -> 74.0718 | Q24: 0.57 | R24: =INDEX(Kab_Werte!$B$6:$B$939,M24)*INDEX(Kab_Werte!$G$6:$G$939,M24) -> 35 | S24: 66.4 | T24: 213.0283373 | U24: 284.5815229 | V24: 121.7304784 | X24: =INDEX(Kab_Werte!$P$6:$P$939,M24) -> 2.002941 | Y24: 464.8 | AA24: 7.6718 | AD24: 3.5
A25: 55 | B25: 76.8 | C25: 80 | D25: 80 | E25: =INDEX(Kab_Werte!$E$6:$E$939,M25) -> NYY-J | F25: =INDEX(Kab_Werte!$F$6:$F$939,M25) -> 3x50/25 | G25: 144 | H25: IA=5 x ISich | I25: 160 | J25: =INDEX(Kab_Werte!$U$6:$U$939,M25) -> 1x 35 | M25: 10 | O25: 144 | P25: =INDEX(Kab_Werte!$K$6:$K$939,M25) -> 90.1494 | Q25: 0.31 | R25: =INDEX(Kab_Werte!$B$6:$B$939,M25)*INDEX(Kab_Werte!$G$6:$G$939,M25) -> 50 | S25: 80 | T25: 252.5907428 | U25: 232.5754126 | V25: 144.3375673 | X25: =INDEX(Kab_Werte!$P$6:$P$939,M25) -> 1.332901 | Y25: 560 | AA25: 10.1494 | AD25: 5
A26: 75 | B26: 104 | C26: 109 | D26: 110 | E26: =INDEX(Kab_Werte!$E$6:$E$939,M26) -> NYY-J | F26: =INDEX(Kab_Werte!$F$6:$F$939,M26) -> 3x70/35 | G26: 147 | H26: IA=5 x ISich | I26: 224 | J26: =INDEX(Kab_Werte!$U$6:$U$939,M26) -> 1x 38 | M26: 12 | O26: 147 | P26: =INDEX(Kab_Werte!$K$6:$K$939,M26) -> 114.2658 | Q26: 0.22 | R26: =INDEX(Kab_Werte!$B$6:$B$939,M26)*INDEX(Kab_Werte!$G$6:$G$939,M26) -> 70 | S26: 110 | T26: 257.1833017 | U26: 232.1586108 | V26: 146.9618867 | X26: =INDEX(Kab_Werte!$P$6:$P$939,M26) -> 0.947628 | Y26: 770 | AA26: 4.2658 | AD26: 5
A27: 90 | B27: 123 | C27: 128 | D27: 131 | E27: =INDEX(Kab_Werte!$E$6:$E$939,M27) -> NYY-J | F27: =INDEX(Kab_Werte!$F$6:$F$939,M27) -> 3x95/50 | G27: 167 | H27: IA=5 x ISich | I27: 250 | J27: =INDEX(Kab_Werte!$U$6:$U$939,M27) -> 1x 44 | M27: 14 | O27: 167 | P27: =INDEX(Kab_Werte!$K$6:$K$939,M27) -> 141.2532 | Q27: 0.2 | R27: =INDEX(Kab_Werte!$B$6:$B$939,M27)*INDEX(Kab_Werte!$G$6:$G$939,M27) -> 95 | S27: 131 | T27: 293.0823886 | U27: 288.1968961 | V27: 167.4756506 | X27: =INDEX(Kab_Werte!$P$6:$P$939,M27) -> 0.69397 | Y27: 917 | AA27: 10.2532 | AD27: 5
A28: 110 | B28: 152 | C28: 158 | D28: 157 | E28: =INDEX(Kab_Werte!$E$6:$E$939,M28) -> NYY-J | F28: =INDEX(Kab_Werte!$F$6:$F$939,M28) -> 3x120/70 | G28: 175 | H28: IA=5 x ISich | I28: 400 | J28: =INDEX(Kab_Werte!$U$6:$U$939,M28) -> 1x 48 | M28: 16 | O28: 175 | P28: =INDEX(Kab_Werte!$K$6:$K$939,M28) -> 163.647 | Q28: 0.13 | R28: =INDEX(Kab_Werte!$B$6:$B$939,M28)*INDEX(Kab_Werte!$G$6:$G$939,M28) -> 120 | S28: 158 | T28: 306.9457127 | U28: 258.0765554 | V28: 175.3975501 | X28: =INDEX(Kab_Werte!$P$6:$P$939,M28) -> 0.5037265 | Y28: 1106 | AA28: 5.647 | AD28: 5
A29: 132 | B29: 180 | C29: 188 | D29: 188 | E29: =INDEX(Kab_Werte!$E$6:$E$939,M29) -> NYY-J | F29: =INDEX(Kab_Werte!$F$6:$F$939,M29) -> 3x185/95 | G29: 227 | H29: IA=5 x ISich | I29: 400 | J29: =INDEX(Kab_Werte!$U$6:$U$939,M29) -> 1x 57 | M29: 20 | O29: 227 | P29: =INDEX(Kab_Werte!$K$6:$K$939,M29) -> 214.7508 | Q29: 0.13 | R29: =INDEX(Kab_Werte!$B$6:$B$939,M29)*INDEX(Kab_Werte!$G$6:$G$939,M29) -> 185 | S29: 188 | T29: 397.6960631 | U29: 371.9624438 | V29: 227.2548932 | X29: =INDEX(Kab_Werte!$P$6:$P$939,M29) -> 0.34949765 | Y29: 1316 | AA29: 26.7508 | AD29: 5
A30: 160 | B30: 212 | C30: 224 | D30: 228 | E30: =INDEX(Kab_Werte!$E$6:$E$939,M30) -> NYY-J | F30: =INDEX(Kab_Werte!$F$6:$F$939,M30) -> 2x(3x70/35) | G30: 142 | H30: IA=5 x ISich | I30: 500 | J30: =INDEX(Kab_Werte!$U$6:$U$939,M30) -> 2x 38 | M30: 22 | O30: 142 | P30: =INDEX(Kab_Werte!$K$6:$K$939,M30) -> 228.5316 | Q30: 0.1 | R30: =INDEX(Kab_Werte!$B$6:$B$939,M30)*INDEX(Kab_Werte!$G$6:$G$939,M30) -> 140 | S30: 228 | T30: 248.1593262 | U30: 211.0532825 | V30: 141.8053293 | X30: =INDEX(Kab_Werte!$P$6:$P$939,M30) -> 0.473814 | Y30: 1596 | AA30: 0.5316 | AD30: 5
A31: 200 | B31: 260 | C31: 272 | D31: 276 | E31: =INDEX(Kab_Werte!$E$6:$E$939,M31) -> NYY-J | F31: =INDEX(Kab_Werte!$F$6:$F$939,M31) -> 2x(3x95/50) | G31: 159 | H31: IA=5 x ISich | I31: 500 | J31: =INDEX(Kab_Werte!$U$6:$U$939,M31) -> 2x 44 | M31: 25 | O31: 159 | P31: =INDEX(Kab_Werte!$K$6:$K$939,M31) -> 282.5064 | Q31: 0.1 | R31: =INDEX(Kab_Werte!$B$6:$B$939,M31)*INDEX(Kab_Werte!$G$6:$G$939,M31) -> 190 | S31: 276 | T31: 278.2158906 | U31: 288.1968961 | V31: 158.9805089 | X31: =INDEX(Kab_Werte!$P$6:$P$939,M31) -> 0.346985 | Y31: 1932 | AA31: 6.5064 | AD31: 5
A32: 250 | B32: 332 | C32: 340 | D32: 344 | E32: =INDEX(Kab_Werte!$E$6:$E$939,M32) -> NYY-J | F32: =INDEX(Kab_Werte!$F$6:$F$939,M32) -> 2x(3x150/70) | G32: 201 | H32: IA=5 x ISich | I32: 630 | J32: =INDEX(Kab_Werte!$U$6:$U$939,M32) -> 2x 52 | M32: 27 | O32: 201 | P32: =INDEX(Kab_Werte!$K$6:$K$939,M32) -> 374.3784 | Q32: 0.08 | R32: =INDEX(Kab_Werte!$B$6:$B$939,M32)*INDEX(Kab_Werte!$G$6:$G$939,M32) -> 300 | S32: 344 | T32: 352.4521992 | U32: 341.1310199 | V32: 201.4012567 | X32: =INDEX(Kab_Werte!$P$6:$P$939,M32) -> 0.234514 | Y32: 2408 | AA32: 30.3784 | AD32: 5
A33: 315 | B33: 416 | C33: 432 | D33: 432 | E33: =INDEX(Kab_Werte!$E$6:$E$939,M33) -> NYY-J | F33: =INDEX(Kab_Werte!$F$6:$F$939,M33) -> 2x(3x240/120) | G33: 257 | H33: IA=5 x ISich | I33: 630 | J33: =INDEX(Kab_Werte!$U$6:$U$939,M33) -> 2x 64 | M33: 29 | O33: 257 | P33: =INDEX(Kab_Werte!$K$6:$K$939,M33) -> 511.038 | Q33: 0.08 | R33: =INDEX(Kab_Werte!$B$6:$B$939,M33)*INDEX(Kab_Werte!$G$6:$G$939,M33) -> 480 | S33: 432 | T33: 449.0502094 | U33: 585.4788082 | V33: 256.6001196 | X33: =INDEX(Kab_Werte!$P$6:$P$939,M33) -> 0.1366403 | Y33: 3024 | AA33: 79.038 | AD33: 5
A34: 355 | B34: 472 | C34: 488 | D34: - | E34: =INDEX(Kab_Werte!$E$6:$E$939,M34) -> NYY-J | F34: =INDEX(Kab_Werte!$F$6:$F$939,M34) -> 2x(3x240/120) | G34: 227 | H34: IA=5 x ISich | I34: 630 | J34: =INDEX(Kab_Werte!$U$6:$U$939,M34) -> 2x 64 | M34: 29 | O34: 227 | P34: =INDEX(Kab_Werte!$K$6:$K$939,M34) -> 511.038 | Q34: 0.08 | R34: =INDEX(Kab_Werte!$B$6:$B$939,M34)*INDEX(Kab_Werte!$G$6:$G$939,M34) -> 480 | S34: 488 | T34: 397.5198575 | U34: 585.4788082 | V34: 227.1542043 | X34: =INDEX(Kab_Werte!$P$6:$P$939,M34) -> 0.1366403 | Y34: 3416 | AA34: 23.038 | AD34: 5
M35: 1 | AA35: 0 | AD35: 10
M36: 1 | AA36: 0 | AD36: 10
M37: 1 | AA37: 0 | AD37: 10
M38: 1 | AA38: 0 | AD38: 10
M39: 1 | AA39: 0 | AD39: 10
M40: 1 | AA40: 0 | AD40: 10
M41: 1 | AA41: 0 | AD41: 10
M42: 1 | AA42: 0 | AD42: 10
M43: 1 | AA43: 0 | AD43: 10
M44: 1 | AA44: 0 | AD44: 10
A47: Dimensionierungsgrundlage:
A49: 1) Betriebsspannung | G49: 500 V
A50: 2) Netz -System | G50: IT - System
A51: 3) Spannungsfall | G51: =CONCATENATE("ΔU Betr. ",Berechnungswerte!G20, " %"," ΔU Anlauf ",Berechnungswerte!G10, " %") -> ΔU Betr. 2,5 % ΔU Anlauf 10 %
A52: 4) Belastbarkeit der Kabel | G52: lt. DIN VDE 0298, Teil 4 | J52: Tab 7
A53: 5) Verlegung in Luft bei | C53: =MSLuft -> 40 | D53: °C | G53: f1 = | H53: =AbmTemp -> 0.87 | J53: Tab 15
A54: =SechsA1 -> 6a) Vierleiterkabel: Verlegung auf 6 Kabelpritsche(n) mit gegenseitiger | G54: f2 = | H54: =AbmHaeufung -> 0.66 | J54: Tab 18
A55: =SechsA2 -> und Wand- Berührung 9 Kabel nebeneinander liegend, KS-fest verl.
A56: =SechsB1 -> 6b) Einleiterkabel: Verlegung auf 6 Kabelpritsche(n) gebündelt im | G56: f2 = | H56: =AbmHäuf_Einleiter -> 0.87 | J56: Tab 16
A57: =SechsB2 -> Abstand 2d 3 Drehstromsysteme nebeneinander, KS-fest verl.
A58: 7a) Reduzierung der Belastbarkeit (6a) | G58: f = f1 * f2 | I58: f = | J58: =Reduz_a -> 0.5742
A59: 7b) Reduzierung der Belastbarkeit (6b) | G59: f = f1 * f2 | I59: f = | J59: =Reduz_b -> 0.7569
A60: 8) Abschaltströme: Sicherung Motorschutzschalter Leistungsschalter * | G60: IA = m x Isich IA = 12 x IMS *IA = 1x ILS (Ii) | J60: (Einstellung Unverzögerter Kurzschluss)
A63: ="Znr.: "& Znr -> Znr.: P0000.KB.01 | E63: Motor Kabel NYY-J 500V | K63: =Datum -> 2019-01-07
A64: =Revision -> Rev.: V.6.3 | E64: =Berechnungswerte!G45 -> I:\P_MSR\Diverses\Berechnungen\Leistungskabel | K64: =MName -> Mustermann

Sheet Motor Kabel 500V Einleiter
A1: =CONCATENATE("Verlegung in Luft bei ",Berechnungswerte!E12,"°C"," Spannungsfall ΔU Betrieb ",Berechnungswerte!G20, "%"," ΔU Anlauf ",Berechnungswerte!G10, " %") -> Verlegung in Luft bei 40°C Spannungsfall ΔU Betrieb 2,5% ΔU Anlauf 10 % | E1: Kabel Berechnung 500V Motorabgänge Kabeltype NYY-0 LS - Abgang | M1: Pos (INDEX) | N1: Spannungsfall ΔU in V | O1: kleinste Abschaltbedingung | P1: =CONCATENATE("Belastbarkeit in Luft Strom in A bei einer Temp. von ",Berechnungswerte!E12,"°C",) -> Belastbarkeit in Luft Strom in A bei einer Temp. von 40°C | Q1: max. Schleifen -widerstand ZS =250 / 1 x IN in Ohm | R1: Kabelquerschnitt | S1: Max Strom Motor | T1: lmax=ΔU xK*A / Wurzel(3)*I | U1: Länge l=Z S/Z´ x 1000 in (m) | V1: Anlauf lmax= DeltaU x K * A Wurzel(3) * I | X1: Z Hin und Rückleiter (SUMME) | Y1: Anlaufstrom I S | AA1: ABFRAGE zum AUTOMATISCHEN AUSFÜLLEN | AB1: ABFRAGE zum AUTOMATISCHEN AUSFÜLLEN
A2: Motor | B2: Nennstrom bei Drehzahl: | E2: Kabel | F2: Kabel | G2: Kritische | I2: I | J2: Kabel | K2: Bemerkung
M3: ΔU500V | N3: =DeltaU500V -> 12.5 | V3: =MOTDUmax -> 10 | W3: %
F4: Kabelanzahl x Adern x [mm²] | I4: Leistungs- | M4: Einleiterkabel ab 401 | P4: 401 | V4: =500/100*V3 -> 50 | W4: V
A5: Leistung [kW] | B5: 3000 rpm [A] | C5: 1500 rpm [A] | D5: 1000 rpm [A] | E5: Type | G5: Länge [m] | H5: Abschalt beding. | I5: Schalter [A] | J5: ø [mm]
M7: Kritische Länge [m] oder (nur wenn möglich) Reduzierten Querschnitt auf Voll ändern heißt >> Index um +1 erhöhen
AB8: =P8-S8 -> 0
A9: 400 | B9: 528 | C9: 552 | D9: 552 | E9: =INDEX(Kab_Werte!$E$6:$E$939,N9) -> NYY-0 | F9: =INDEX(Kab_Werte!$F$6:$F$939,N9) -> (1x3+1)x1x500 | G9: =O9 -> 209 | H9: ILS (Ii) | I9: 4100 | J9: =INDEX(Kab_Werte!$U$6:$U$939,N9) -> 4x 42 | K9: =IF(S9>(P9),"Kabel ist überlastet!","") ->  | N9: 409 | O9: =ROUND(MIN(T9:V9),0) -> 209 | P9: =INDEX(Kab_Werte!$K$6:$K$939,N9) -> 565.4043 | Q9: =250/(I9) -> 0.06097560976 | R9: =INDEX(Kab_Werte!$B$6:$B$939,N9)*INDEX(Kab_Werte!$G$6:$G$939,N9) -> 500 | S9: =MAX(B9:D9) -> 552 | T9: =(DeltaU500V*KCu*R9)/(SQRT(3)*S9) -> 366.0735402 | U9: =Q9/X9*1000 -> 696.1973533 | V9: =$V$4*56*R9/SQRT(3)/Y9 -> 209.1848801 | X9: =INDEX(Kab_Werte!$P$6:$P$939,N9) -> 0.0875838 | Y9: =MAX(B9:D9)*IS -> 3864 | AB9: =P9-S9 -> 13.4043
A10: 450 | B10: - | C10: - | D10: 605 | E10: =INDEX(Kab_Werte!$E$6:$E$939,N10) -> NYY-0 | F10: =INDEX(Kab_Werte!$F$6:$F$939,N10) -> (2x3+1)x1x185 | G10: 141 | H10: ILS (Ii) | I10: 4500 | J10: =INDEX(Kab_Werte!$U$6:$U$939,N10) -> 7x 28 | N10: 410 | O10: 141 | P10: =INDEX(Kab_Werte!$K$6:$K$939,N10) -> 614.6028 | Q10: =250/(I10) -> 0.05555555556 | R10: =INDEX(Kab_Werte!$B$6:$B$939,N10)*INDEX(Kab_Werte!$G$6:$G$939,N10) -> 370 | S10: 605 | T10: =(DeltaU500V*KCu*R10)/(SQRT(3)*S10) -> 247.1631731 | U10: 312.3560185 | V10: 141.2360989 | X10: =INDEX(Kab_Werte!$P$6:$P$939,N10) -> 0.177859725 | Y10: 4235 | AB10: 9.6028
A11: 500 | B11: 656 | C11: 680 | D11: 688 | E11: =INDEX(Kab_Werte!$E$6:$E$939,N11) -> NYY-0 | F11: =INDEX(Kab_Werte!$F$6:$F$939,N11) -> (2x3+1)x1x240 | G11: 161 | H11: ILS (Ii) | I11: 5200 | J11: =INDEX(Kab_Werte!$U$6:$U$939,N11) -> 7x 31 | N11: 412 | O11: 161 | P11: =INDEX(Kab_Werte!$K$6:$K$939,N11) -> 731.1654 | Q11: =250/(I11) -> 0.04807692308 | R11: =INDEX(Kab_Werte!$B$6:$B$939,N11)*INDEX(Kab_Werte!$G$6:$G$939,N11) -> 480 | S11: 688 | T11: =(DeltaU500V*KCu*R11)/(SQRT(3)*S11) -> 281.9617594 | U11: 355.2723078 | V11: 161.1210054 | X11: =INDEX(Kab_Werte!$P$6:$P$939,N11) -> 0.13532415 | Y11: 4816 | AB11: 43.1654
A12: 560 | B12: 728 | C12: 760 | D12: 768 | E12: =INDEX(Kab_Werte!$E$6:$E$939,N12) -> NYY-0 | F12: =INDEX(Kab_Werte!$F$6:$F$939,N12) -> (2x3+1)x1x300 | G12: 180 | H12: ILS (Ii) | I12: 6250 | J12: =INDEX(Kab_Werte!$U$6:$U$939,N12) -> 7x 33 | N12: 413 | O12: 180 | P12: =INDEX(Kab_Werte!$K$6:$K$939,N12) -> 835.6176 | Q12: =250/(I12) -> 0.04 | R12: =INDEX(Kab_Werte!$B$6:$B$939,N12)*INDEX(Kab_Werte!$G$6:$G$939,N12) -> 600 | S12: 768 | T12: =(DeltaU500V*KCu*R12)/(SQRT(3)*S12) -> 315.7384285 | U12: 370.8357177 | V12: 180.4219591 | X12: =INDEX(Kab_Werte!$P$6:$P$939,N12) -> 0.107864475 | Y12: 5376 | AB12: 67.6176
A13: 630 | B13: 816 | C13: 848 | D13: 880 | E13: =INDEX(Kab_Werte!$E$6:$E$939,N13) -> NYY-0 | F13: =INDEX(Kab_Werte!$F$6:$F$939,N13) -> (2x3+1)x1x400 | G13: 210 | H13: ILS (Ii) | I13: 7000 | J13: =INDEX(Kab_Werte!$U$6:$U$939,N13) -> 7x 38 | N13: 414 | O13: 210 | P13: =INDEX(Kab_Werte!$K$6:$K$939,N13) -> 977.9148 | Q13: =250/(I13) -> 0.03571428571 | R13: =INDEX(Kab_Werte!$B$6:$B$939,N13)*INDEX(Kab_Werte!$G$6:$G$939,N13) -> 800 | S13: 880 | T13: =(DeltaU500V*KCu*R13)/(SQRT(3)*S13) -> 367.4047168 | U13: 423.3895637 | V13: 209.9455524 | X13: =INDEX(Kab_Werte!$P$6:$P$939,N13) -> 0.08435325 | Y13: 6160 | AB13: 97.9148
N14: 401 | AB14: 0
N15: 401 | AB15: 0
N16: 401 | AB16: 0
N17: 401 | AB17: 0
N18: 401 | AB18: 0
N19: 401 | AB19: 0
N20: 401 | AB20: 0
N21: 401 | AB21: 0
N22: 401 | AB22: 0
N23: 401 | AB23: 0
N24: 401 | AB24: 0
N25: 401 | AB25: 0
N26: 401 | AB26: 0
N27: 401 | AB27: 0
N28: 401 | AB28: 0
N29: 401 | AB29: 0
N30: 401 | AB30: 0
N31: 401 | AB31: 0
N32: 401 | AB32: 0
N33: 401 | AB33: 0
N34: 401 | AB34: 0
N35: 401 | AB35: 0
N36: 401 | AB36: 0
N37: 401 | AB37: 0
N38: 401 | AB38: 0
N39: 401 | AB39: 0
N40: 401 | AB40: 0
N41: 401 | AB41: 0
N42: 401 | AB42: 0
N43: 401 | AB43: 0
N44: 401 | AB44: 0
A47: Dimensionierungsgrundlage:
A49: 1) Betriebsspannung | G49: 500 V
A50: 2) Netz -System | G50: IT - System
A51: 3) Spannungsfall | G51: =CONCATENATE("ΔU Betr. ",Berechnungswerte!G20, " %"," ΔU Anlauf ",Berechnungswerte!G10, " %") -> ΔU Betr. 2,5 % ΔU Anlauf 10 %
A52: 4) Belastbarkeit der Kabel | G52: lt. DIN VDE 0298, Teil 4 | J52: Tab 7
A53: 5) Verlegung in Luft bei | C53: =MSLuft -> 40 | D53: °C | G53: f1 = | H53: =AbmTemp -> 0.87 | J53: Tab 15 | K53: bei Mehrfachbündel
A54: =SechsA1 -> 6a) Vierleiterkabel: Verlegung auf 6 Kabelpritsche(n) mit gegenseitiger | G54: f2 = | H54: =AbmHaeufung -> 0.66 | J54: Tab 18 | K54: Phasenfolge drehen
A55: =SechsA2 -> und Wand- Berührung 9 Kabel nebeneinander liegend, KS-fest verl.
A56: =SechsB1 -> 6b) Einleiterkabel: Verlegung auf 6 Kabelpritsche(n) gebündelt im | G56: f2 = | H56: =AbmHäuf_Einleiter -> 0.87 | J56: Tab 16
A57: =SechsB2 -> Abstand 2d 3 Drehstromsysteme nebeneinander, KS-fest verl.
A58: 7a) Reduzierung der Belastbarkeit (6a) | G58: f = f1 * f2 | I58: f = | J58: =Reduz_a -> 0.5742
A59: 7b) Reduzierung der Belastbarkeit (6b) | G59: f = f1 * f2 | I59: f = | J59: =Reduz_b -> 0.7569
A60: 8) Abschaltströme: Sicherung Motorschutzschalter Leistungsschalter * | G60: IA = m x Isich IA = 12 x IMS *IA = 1x ILS (Ii) | J60: (Einstellung Unverzögerter Kurzschluss)
A63: ="Znr.: "& Znr -> Znr.: P0000.KB.01 | E63: Motor Kabel NYY-0 500V | K63: =Datum -> 2019-01-07
A64: =Revision -> Rev.: V.6.3 | E64: =Berechnungswerte!G45 -> I:\P_MSR\Diverses\Berechnungen\Leistungskabel | K64: =MName -> Mustermann

Sheet Motor Kabel YD 500V
A1: =CONCATENATE("Verlegung in Luft bei ",Berechnungswerte!E12,"°C"," Spannungsfall ΔU Betrieb ",Berechnungswerte!G20, "%"," ΔU Anlauf ",Berechnungswerte!G10, " %") -> Verlegung in Luft bei 40°C Spannungsfall ΔU Betrieb 2,5% ΔU Anlauf 10 % | E1: Kabel Berechnung 500V YD - Motorabgänge Kabeltype NYY-J Sicherungsabgang | M1: Pos (INDEX) | N1: Spannungsfall ΔU in V | O1: kleinste Abschaltbedingung | P1: =CONCATENATE("Belastbarkeit in Luft Strom in A bei einer Temp. von ",Berechnungswerte!E12,"°C",) -> Belastbarkeit in Luft Strom in A bei einer Temp. von 40°C | Q1: max. Schleifen -widerstand ZS =250 / m x IN in Ohm | R1: Kabelquerschnitt | S1: Max Strom Motor | T1: lmax=ΔU xK*A / Wurzel(3)*I | U1: Länge l=Z S/Z´ x 1000 in (m) | V1: Anlauf lmax= DeltaU x K * A Wurzel(3) * I | X1: Z Hin und Rückleiter (SUMME) | Y1: Anlaufstrom I S | AA1: ABFRAGE zum AUTOMATISCHEN AUSFÜLLEN | AD1: Abschaltfaktor m für Sicherungen bis 32A / >32A ÖNORM E8001-1-A4
A2: Motor | B2: Nennstrom bei Drehzahl: | E2: Kabel | F2: Kabel | G2: Kritische | I2: I | J2: Kabel | K2: Bemerkung
M3: ΔU500V | N3: =DeltaU500V -> 12.5 | P3: 1 | V3: =MOTDUmax -> 10 | W3: %
F4: Kabelanzahl x Adern x [mm²] | M4: Index ab 1 | V4: =500/100*V3 -> 50 | W4: V
A5: Leistung [kW] | B5: 3000 rpm [A] | C5: 1500 rpm [A] | D5: 1000 rpm [A] | E5: Type | G5: Länge [m] | H5: Abschalt beding. | I5: Sicherung [A] | J5: ø [mm] | M5: Einleiterkabel ab 401
M7: Kritische Länge [m] oder (nur wenn möglich) Reduzierten Querschnitt auf Voll ändern heißt >> Index um +1 erhöhen
AA8: =P8-S8 -> 0
A9: 0.55 | B9: ='Motor Kabel 500V Mehrleiter'!B9/SQRT(3) -> 0.6350852961 | C9: ='Motor Kabel 500V Mehrleiter'!C9/SQRT(3) -> 0.692820323 | D9: ='Motor Kabel 500V Mehrleiter'!D9/SQRT(3) -> 0.7505553499 | E9: =INDEX(Kab_Werte!$E$6:$E$939,M9) -> NYY-J | F9: =INDEX(Kab_Werte!$F$6:$F$939,M9) -> 4x2,5 | G9: =O9 -> 141 | H9: =CONCATENATE("IA=",AD9," x ISich") -> IA=10 x ISich | I9: 10 | J9: =INDEX(Kab_Werte!$U$6:$U$939,M9) -> 1x 17 | K9: =IF(S9>(P9),"Kabel ist überlastet!","") ->  | M9: 1 | O9: =ROUND(MIN(T9:V9),0) -> 141 | P9: =INDEX(Kab_Werte!$K$6:$K$939,M9) -> 14.355 | Q9: =ROUND(250/(I9*AD9),2) -> 2.5 | R9: =INDEX(Kab_Werte!$B$6:$B$939,M9)*INDEX(Kab_Werte!$G$6:$G$939,M9) -> 2.5 | S9: =MAX(B9:D9) -> 0.7505553499 | T9: =(DeltaU500V*KCu*R9)/(SQRT(3)*S9) -> 1346.153846 | U9: =Q9/X9*1000 -> 140.9870106 | V9: =$V$4*56*R9/SQRT(3)/Y9 -> 769.2307692 | X9: =INDEX(Kab_Werte!$P$6:$P$939,M9) -> 17.73213 | Y9: =MAX(B9:D9)*IS -> 5.25388745 | AA9: =P9-S9 -> 13.60444465 | AD9: =IF(I9>125,5,IF(I9>32,3.5,10)) -> 10
A10: 0.75 | B10: ='Motor Kabel 500V Mehrleiter'!B10/SQRT(3) -> 0.8082903769 | C10: ='Motor Kabel 500V Mehrleiter'!C10/SQRT(3) -> 0.8660254038 | D10: ='Motor Kabel 500V Mehrleiter'!D10/SQRT(3) -> 0.9237604307 | E10: =INDEX(Kab_Werte!$E$6:$E$939,M10) -> NYY-J | F10: =INDEX(Kab_Werte!$F$6:$F$939,M10) -> 4x2,5 | G10: 141 | H10: =CONCATENATE("IA=",AD10," x ISich") -> IA=10 x ISich | I10: 10 | J10: =INDEX(Kab_Werte!$U$6:$U$939,M10) -> 1x 17 | M10: 1 | O10: 141 | P10: =INDEX(Kab_Werte!$K$6:$K$939,M10) -> 14.355 | Q10: =ROUND(250/(I10*AD10),2) -> 2.5 | R10: =INDEX(Kab_Werte!$B$6:$B$939,M10)*INDEX(Kab_Werte!$G$6:$G$939,M10) -> 2.5 | S10: 0.9237604307 | T10: 1093.75 | U10: 140.9870106 | V10: 625 | X10: =INDEX(Kab_Werte!$P$6:$P$939,M10) -> 17.73213 | Y10: 6.466323015 | AA10: 13.43123957 | AD10: =IF(I10>125,5,IF(I10>32,3.5,10)) -> 10
A11: 1.1 | B11: ='Motor Kabel 500V Mehrleiter'!B11/SQRT(3) -> 1.096965511 | C11: ='Motor Kabel 500V Mehrleiter'!C11/SQRT(3) -> 1.212435565 | D11: ='Motor Kabel 500V Mehrleiter'!D11/SQRT(3) -> 1.327905619 | E11: =INDEX(Kab_Werte!$E$6:$E$939,M11) -> NYY-J | F11: =INDEX(Kab_Werte!$F$6:$F$939,M11) -> 4x2,5 | G11: 141 | H11: IA=10 x ISich | I11: 10 | J11: =INDEX(Kab_Werte!$U$6:$U$939,M11) -> 1x 17 | M11: 1 | O11: 141 | P11: =INDEX(Kab_Werte!$K$6:$K$939,M11) -> 14.355 | Q11: 2.5 | R11: =INDEX(Kab_Werte!$B$6:$B$939,M11)*INDEX(Kab_Werte!$G$6:$G$939,M11) -> 2.5 | S11: 1.327905619 | T11: 760.8695652 | U11: 140.9870106 | V11: 434.7826087 | X11: =INDEX(Kab_Werte!$P$6:$P$939,M11) -> 17.73213 | Y11: 9.295339334 | AA11: 13.02709438 | AD11: 10
A12: 1.5 | B12: ='Motor Kabel 500V Mehrleiter'!B12/SQRT(3) -> 1.5011107 | C12: ='Motor Kabel 500V Mehrleiter'!C12/SQRT(3) -> 1.558845727 | D12: ='Motor Kabel 500V Mehrleiter'!D12/SQRT(3) -> 1.789785834 | E12: =INDEX(Kab_Werte!$E$6:$E$939,M12) -> NYY-J | F12: =INDEX(Kab_Werte!$F$6:$F$939,M12) -> 4x2,5 | G12: 141 | H12: IA=10 x ISich | I12: 10 | J12: =INDEX(Kab_Werte!$U$6:$U$939,M12) -> 1x 17 | M12: 1 | O12: 141 | P12: =INDEX(Kab_Werte!$K$6:$K$939,M12) -> 14.355 | Q12: 2.5 | R12: =INDEX(Kab_Werte!$B$6:$B$939,M12)*INDEX(Kab_Werte!$G$6:$G$939,M12) -> 2.5 | S12: 1.789785834 | T12: 564.516129 | U12: 140.9870106 | V12: 322.5806452 | X12: =INDEX(Kab_Werte!$P$6:$P$939,M12) -> 17.73213 | Y12: 12.52850084 | AA12: 12.56521417 | AD12: 10
A13: 2.2 | B13: ='Motor Kabel 500V Mehrleiter'!B13/SQRT(3) -> 2.136195996 | C13: ='Motor Kabel 500V Mehrleiter'!C13/SQRT(3) -> 2.193931023 | D13: ='Motor Kabel 500V Mehrleiter'!D13/SQRT(3) -> 2.424871131 | E13: =INDEX(Kab_Werte!$E$6:$E$939,M13) -> NYY-J | F13: =INDEX(Kab_Werte!$F$6:$F$939,M13) -> 4x2,5 | G13: 141 | H13: IA=10 x ISich | I13: 10 | J13: =INDEX(Kab_Werte!$U$6:$U$939,M13) -> 1x 17 | M13: 1 | O13: 141 | P13: =INDEX(Kab_Werte!$K$6:$K$939,M13) -> 14.355 | Q13: 2.5 | R13: =INDEX(Kab_Werte!$B$6:$B$939,M13)*INDEX(Kab_Werte!$G$6:$G$939,M13) -> 2.5 | S13: 2.424871131 | T13: 416.6666667 | U13: 140.9870106 | V13: 238.0952381 | X13: =INDEX(Kab_Werte!$P$6:$P$939,M13) -> 17.73213 | Y13: 16.97409791 | AA13: 11.93012887 | AD13: 10
A14: 3 | B14: ='Motor Kabel 500V Mehrleiter'!B14/SQRT(3) -> 2.829016319 | C14: ='Motor Kabel 500V Mehrleiter'!C14/SQRT(3) -> 2.944486373 | D14: ='Motor Kabel 500V Mehrleiter'!D14/SQRT(3) -> 3.348631561 | E14: =INDEX(Kab_Werte!$E$6:$E$939,M14) -> NYY-J | F14: =INDEX(Kab_Werte!$F$6:$F$939,M14) -> 4x2,5 | G14: 88 | H14: IA=10 x ISich | I14: 16 | J14: =INDEX(Kab_Werte!$U$6:$U$939,M14) -> 1x 17 | M14: 1 | O14: 88 | P14: =INDEX(Kab_Werte!$K$6:$K$939,M14) -> 14.355 | Q14: 1.56 | R14: =INDEX(Kab_Werte!$B$6:$B$939,M14)*INDEX(Kab_Werte!$G$6:$G$939,M14) -> 2.5 | S14: 3.348631561 | T14: 301.7241379 | U14: 87.9758946 | V14: 172.4137931 | X14: =INDEX(Kab_Werte!$P$6:$P$939,M14) -> 17.73213 | Y14: 23.44042093 | AA14: 11.00636844 | AD14: 10
A15: 4 | B15: ='Motor Kabel 500V Mehrleiter'!B15/SQRT(3) -> 3.579571669 | C15: ='Motor Kabel 500V Mehrleiter'!C15/SQRT(3) -> 3.810511777 | D15: ='Motor Kabel 500V Mehrleiter'!D15/SQRT(3) -> 4.330127019 | E15: =INDEX(Kab_Werte!$E$6:$E$939,M15) -> NYY-J | F15: =INDEX(Kab_Werte!$F$6:$F$939,M15) -> 4x2,5 | G15: 70 | H15: IA=10 x ISich | I15: 20 | J15: =INDEX(Kab_Werte!$U$6:$U$939,M15) -> 1x 17 | M15: 1 | O15: 70 | P15: =INDEX(Kab_Werte!$K$6:$K$939,M15) -> 14.355 | Q15: 1.25 | R15: =INDEX(Kab_Werte!$B$6:$B$939,M15)*INDEX(Kab_Werte!$G$6:$G$939,M15) -> 2.5 | S15: 4.330127019 | T15: 233.3333333 | U15: 70.49350529 | V15: 133.3333333 | X15: =INDEX(Kab_Werte!$P$6:$P$939,M15) -> 17.73213 | Y15: 30.31088913 | AA15: 10.02487298 | AD15: 10
A16: 5.5 | B16: ='Motor Kabel 500V Mehrleiter'!B16/SQRT(3) -> 4.734272207 | C16: ='Motor Kabel 500V Mehrleiter'!C16/SQRT(3) -> 5.25388745 | D16: ='Motor Kabel 500V Mehrleiter'!D16/SQRT(3) -> 5.888972746 | E16: =INDEX(Kab_Werte!$E$6:$E$939,M16) -> NYY-J | F16: =INDEX(Kab_Werte!$F$6:$F$939,M16) -> 4x2,5 | G16: 56 | H16: IA=10 x ISich | I16: 25 | J16: =INDEX(Kab_Werte!$U$6:$U$939,M16) -> 1x 17 | M16: 1 | O16: 56 | P16: =INDEX(Kab_Werte!$K$6:$K$939,M16) -> 14.355 | Q16: 1 | R16: =INDEX(Kab_Werte!$B$6:$B$939,M16)*INDEX(Kab_Werte!$G$6:$G$939,M16) -> 2.5 | S16: 5.888972746 | T16: 171.5686275 | U16: 56.39480423 | V16: 98.03921569 | X16: =INDEX(Kab_Werte!$P$6:$P$939,M16) -> 17.73213 | Y16: 41.22280922 | AA16: 8.466027254 | AD16: 10
A17: 7.5 | B17: ='Motor Kabel 500V Mehrleiter'!B17/SQRT(3) -> 6.350852961 | C17: ='Motor Kabel 500V Mehrleiter'!C17/SQRT(3) -> 6.985938257 | D17: ='Motor Kabel 500V Mehrleiter'!D17/SQRT(3) -> 7.851963661 | E17: =INDEX(Kab_Werte!$E$6:$E$939,M17) -> NYY-J | F17: =INDEX(Kab_Werte!$F$6:$F$939,M17) -> 4x2,5 | G17: 74 | H17: IA=3,5 x ISich | I17: 35 | J17: =INDEX(Kab_Werte!$U$6:$U$939,M17) -> 1x 17 | M17: 1 | O17: 74 | P17: =INDEX(Kab_Werte!$K$6:$K$939,M17) -> 14.355 | Q17: 2.04 | R17: =INDEX(Kab_Werte!$B$6:$B$939,M17)*INDEX(Kab_Werte!$G$6:$G$939,M17) -> 2.5 | S17: 7.851963661 | T17: 128.6764706 | U17: 115.0454006 | V17: 73.52941176 | X17: =INDEX(Kab_Werte!$P$6:$P$939,M17) -> 17.73213 | Y17: 54.96374563 | AA17: 6.503036339 | AD17: 3.5
A18: 11 | B18: ='Motor Kabel 500V Mehrleiter'!B18/SQRT(3) -> 9.237604307 | C18: ='Motor Kabel 500V Mehrleiter'!C18/SQRT(3) -> 9.93042463 | D18: ='Motor Kabel 500V Mehrleiter'!D18/SQRT(3) -> 11.31606528 | E18: =INDEX(Kab_Werte!$E$6:$E$939,M18) -> NYY-J | F18: =INDEX(Kab_Werte!$F$6:$F$939,M18) -> 4x2,5 | G18: 51 | H18: IA=3,5 x ISich | I18: 50 | J18: =INDEX(Kab_Werte!$U$6:$U$939,M18) -> 1x 17 | M18: 1 | O18: 51 | P18: =INDEX(Kab_Werte!$K$6:$K$939,M18) -> 14.355 | Q18: 1.43 | R18: =INDEX(Kab_Werte!$B$6:$B$939,M18)*INDEX(Kab_Werte!$G$6:$G$939,M18) -> 2.5 | S18: 11.31606528 | T18: 89.28571429 | U18: 80.64457005 | V18: 51.02040816 | X18: =INDEX(Kab_Werte!$P$6:$P$939,M18) -> 17.73213 | Y18: 79.21245693 | AA18: 3.038934724 | AD18: 3.5
A19: 15 | B19: ='Motor Kabel 500V Mehrleiter'!B19/SQRT(3) -> 12.18209068 | C19: ='Motor Kabel 500V Mehrleiter'!C19/SQRT(3) -> 13.16358614 | D19: ='Motor Kabel 500V Mehrleiter'!D19/SQRT(3) -> 14.54922678 | E19: =INDEX(Kab_Werte!$E$6:$E$939,M19) -> NYY-J | F19: =INDEX(Kab_Werte!$F$6:$F$939,M19) -> 4x4 | G19: 63 | H19: IA=3,5 x ISich | I19: 63 | J19: =INDEX(Kab_Werte!$U$6:$U$939,M19) -> 1x 19 | M19: 2 | O19: 63 | P19: =INDEX(Kab_Werte!$K$6:$K$939,M19) -> 19.5228 | Q19: 1.13 | R19: =INDEX(Kab_Werte!$B$6:$B$939,M19)*INDEX(Kab_Werte!$G$6:$G$939,M19) -> 4 | S19: 14.54922678 | T19: 111.1111111 | U19: 102.4318035 | V19: 63.49206349 | X19: =INDEX(Kab_Werte!$P$6:$P$939,M19) -> 11.03173 | Y19: 101.8445875 | AA19: 4.973573216 | AD19: 3.5
A20: 18.5 | B20: ='Motor Kabel 500V Mehrleiter'!B20/SQRT(3) -> 15.011107 | C20: ='Motor Kabel 500V Mehrleiter'!C20/SQRT(3) -> 16.16580754 | D20: ='Motor Kabel 500V Mehrleiter'!D20/SQRT(3) -> 16.85862786 | E20: =INDEX(Kab_Werte!$E$6:$E$939,M20) -> NYY-J | F20: =INDEX(Kab_Werte!$F$6:$F$939,M20) -> 4x4 | G20: 55 | H20: IA=3,5 x ISich | I20: 80 | J20: =INDEX(Kab_Werte!$U$6:$U$939,M20) -> 1x 19 | M20: 2 | O20: 55 | P20: =INDEX(Kab_Werte!$K$6:$K$939,M20) -> 19.5228 | Q20: 0.89 | R20: =INDEX(Kab_Werte!$B$6:$B$939,M20)*INDEX(Kab_Werte!$G$6:$G$939,M20) -> 4 | S20: 16.85862786 | T20: 95.89041096 | U20: 80.67637623 | V20: 54.79452055 | X20: =INDEX(Kab_Werte!$P$6:$P$939,M20) -> 11.03173 | Y20: 118.010395 | AA20: 2.66417214 | AD20: 3.5
A21: 22 | B21: ='Motor Kabel 500V Mehrleiter'!B21/SQRT(3) -> 18.70614872 | C21: ='Motor Kabel 500V Mehrleiter'!C21/SQRT(3) -> 19.16802894 | D21: ='Motor Kabel 500V Mehrleiter'!D21/SQRT(3) -> 20.09178937 | E21: =INDEX(Kab_Werte!$E$6:$E$939,M21) -> NYY-J | F21: =INDEX(Kab_Werte!$F$6:$F$939,M21) -> 4x6 | G21: 69 | H21: IA=3,5 x ISich | I21: 100 | J21: =INDEX(Kab_Werte!$U$6:$U$939,M21) -> 1x 20 | M21: 3 | O21: 69 | P21: =INDEX(Kab_Werte!$K$6:$K$939,M21) -> 24.6906 | Q21: 0.71 | R21: =INDEX(Kab_Werte!$B$6:$B$939,M21)*INDEX(Kab_Werte!$G$6:$G$939,M21) -> 6 | S21: 20.09178937 | T21: 120.6896552 | U21: 96.33074823 | V21: 68.96551724 | X21: =INDEX(Kab_Werte!$P$6:$P$939,M21) -> 7.37044 | Y21: 140.6425256 | AA21: 4.598810632 | AD21: 3.5
A22: 30 | B22: ='Motor Kabel 500V Mehrleiter'!B22/SQRT(3) -> 24.94153163 | C22: ='Motor Kabel 500V Mehrleiter'!C22/SQRT(3) -> 25.86529206 | D22: ='Motor Kabel 500V Mehrleiter'!D22/SQRT(3) -> 26.32717228 | E22: =INDEX(Kab_Werte!$E$6:$E$939,M22) -> NYY-J | F22: =INDEX(Kab_Werte!$F$6:$F$939,M22) -> 4x10 | G22: 88 | H22: IA=3,5 x ISich | I22: 100 | J22: =INDEX(Kab_Werte!$U$6:$U$939,M22) -> 1x 22 | M22: 4 | O22: 88 | P22: =INDEX(Kab_Werte!$K$6:$K$939,M22) -> 33.8778 | Q22: 0.71 | R22: =INDEX(Kab_Werte!$B$6:$B$939,M22)*INDEX(Kab_Werte!$G$6:$G$939,M22) -> 10 | S22: 26.32717228 | T22: 153.5087719 | U22: 162.1304396 | V22: 87.71929825 | X22: =INDEX(Kab_Werte!$P$6:$P$939,M22) -> 4.37919 | Y22: 184.2902059 | AA22: 7.550627725 | AD22: 3.5
A23: 37 | B23: ='Motor Kabel 500V Mehrleiter'!B23/SQRT(3) -> 30.022214 | C23: ='Motor Kabel 500V Mehrleiter'!C23/SQRT(3) -> 31.40785464 | D23: ='Motor Kabel 500V Mehrleiter'!D23/SQRT(3) -> 32.33161507 | E23: =INDEX(Kab_Werte!$E$6:$E$939,M23) -> NYY-J | F23: =INDEX(Kab_Werte!$F$6:$F$939,M23) -> 4x10 | G23: 71 | H23: IA=3,5 x ISich | I23: 100 | J23: =INDEX(Kab_Werte!$U$6:$U$939,M23) -> 1x 22 | M23: 4 | O23: 71 | P23: =INDEX(Kab_Werte!$K$6:$K$939,M23) -> 33.8778 | Q23: 0.71 | R23: =INDEX(Kab_Werte!$B$6:$B$939,M23)*INDEX(Kab_Werte!$G$6:$G$939,M23) -> 10 | S23: 32.33161507 | T23: 125 | U23: 162.1304396 | V23: 71.42857143 | X23: =INDEX(Kab_Werte!$P$6:$P$939,M23) -> 4.37919 | Y23: 226.3213055 | AA23: 1.546184925 | AD23: 3.5
A24: 45 | B24: ='Motor Kabel 500V Mehrleiter'!B24/SQRT(3) -> 36.48853701 | C24: ='Motor Kabel 500V Mehrleiter'!C24/SQRT(3) -> 37.41229744 | D24: ='Motor Kabel 500V Mehrleiter'!D24/SQRT(3) -> 38.33605787 | E24: =INDEX(Kab_Werte!$E$6:$E$939,M24) -> NYY-J | F24: =INDEX(Kab_Werte!$F$6:$F$939,M24) -> 4x16 | G24: 96 | H24: IA=3,5 x ISich | I24: 125 | J24: =INDEX(Kab_Werte!$U$6:$U$939,M24) -> 1x 25 | M24: 5 | O24: 96 | P24: =INDEX(Kab_Werte!$K$6:$K$939,M24) -> 44.7876 | Q24: 0.57 | R24: =INDEX(Kab_Werte!$B$6:$B$939,M24)*INDEX(Kab_Werte!$G$6:$G$939,M24) -> 16 | S24: 38.33605787 | T24: 168.6746988 | U24: 207.1258562 | V24: 96.38554217 | X24: =INDEX(Kab_Werte!$P$6:$P$939,M24) -> 2.75195 | Y24: 268.3524051 | AA24: 6.451542126 | AD24: 3.5
A25: 55 | B25: ='Motor Kabel 500V Mehrleiter'!B25/SQRT(3) -> 44.34050067 | C25: ='Motor Kabel 500V Mehrleiter'!C25/SQRT(3) -> 46.18802154 | D25: ='Motor Kabel 500V Mehrleiter'!D25/SQRT(3) -> 46.18802154 | E25: =INDEX(Kab_Werte!$E$6:$E$939,M25) -> NYY-J | F25: =INDEX(Kab_Werte!$F$6:$F$939,M25) -> 3x25/16 | G25: 125 | H25: IA=5 x ISich | I25: 160 | J25: =INDEX(Kab_Werte!$U$6:$U$939,M25) -> 1x 30 | M25: 6 | O25: 125 | P25: =INDEX(Kab_Werte!$K$6:$K$939,M25) -> 60.291 | Q25: 0.31 | R25: =INDEX(Kab_Werte!$B$6:$B$939,M25)*INDEX(Kab_Werte!$G$6:$G$939,M25) -> 25 | S25: 46.18802154 | T25: 218.75 | U25: 138.0335693 | V25: 125 | X25: =INDEX(Kab_Werte!$P$6:$P$939,M25) -> 2.2458305 | Y25: 323.3161507 | AA25: 14.10297846 | AD25: 5
A26: 75 | B26: ='Motor Kabel 500V Mehrleiter'!B26/SQRT(3) -> 60.044428 | C26: ='Motor Kabel 500V Mehrleiter'!C26/SQRT(3) -> 62.93117934 | D26: ='Motor Kabel 500V Mehrleiter'!D26/SQRT(3) -> 63.50852961 | E26: =INDEX(Kab_Werte!$E$6:$E$939,M26) -> NYY-J | F26: =INDEX(Kab_Werte!$F$6:$F$939,M26) -> 3x35/16 | G26: 110 | H26: IA=5 x ISich | I26: 224 | J26: =INDEX(Kab_Werte!$U$6:$U$939,M26) -> 1x 31 | M26: 8 | O26: 110 | P26: =INDEX(Kab_Werte!$K$6:$K$939,M26) -> 74.0718 | Q26: 0.22 | R26: =INDEX(Kab_Werte!$B$6:$B$939,M26)*INDEX(Kab_Werte!$G$6:$G$939,M26) -> 35 | S26: 63.50852961 | T26: 222.7272727 | U26: 109.8384825 | V26: 127.2727273 | X26: =INDEX(Kab_Werte!$P$6:$P$939,M26) -> 2.002941 | Y26: 444.5597073 | AA26: 10.56327039 | AD26: 5
A27: 90 | B27: ='Motor Kabel 500V Mehrleiter'!B27/SQRT(3) -> 71.01408311 | C27: ='Motor Kabel 500V Mehrleiter'!C27/SQRT(3) -> 73.90083446 | D27: ='Motor Kabel 500V Mehrleiter'!D27/SQRT(3) -> 75.63288526 | E27: =INDEX(Kab_Werte!$E$6:$E$939,M27) -> NYY-J | F27: =INDEX(Kab_Werte!$F$6:$F$939,M27) -> 3x50/25 | G27: 150 | H27: IA=5 x ISich | I27: 250 | J27: =INDEX(Kab_Werte!$U$6:$U$939,M27) -> 1x 35 | M27: 10 | O27: 150 | P27: =INDEX(Kab_Werte!$K$6:$K$939,M27) -> 90.1494 | Q27: 0.2 | R27: =INDEX(Kab_Werte!$B$6:$B$939,M27)*INDEX(Kab_Werte!$G$6:$G$939,M27) -> 50 | S27: 75.63288526 | T27: 267.1755725 | U27: 150.0486533 | V27: 152.6717557 | X27: =INDEX(Kab_Werte!$P$6:$P$939,M27) -> 1.332901 | Y27: 529.4301968 | AA27: 14.51651474 | AD27: 5
A28: 110 | B28: ='Motor Kabel 500V Mehrleiter'!B28/SQRT(3) -> 87.75724092 | C28: ='Motor Kabel 500V Mehrleiter'!C28/SQRT(3) -> 91.22134253 | D28: ='Motor Kabel 500V Mehrleiter'!D28/SQRT(3) -> 90.64399226 | E28: =INDEX(Kab_Werte!$E$6:$E$939,M28) -> NYY-J | F28: =INDEX(Kab_Werte!$F$6:$F$939,M28) -> 3x70/35 | G28: 137 | H28: IA=5 x ISich | I28: 400 | J28: =INDEX(Kab_Werte!$U$6:$U$939,M28) -> 1x 38 | M28: 12 | O28: 137 | P28: =INDEX(Kab_Werte!$K$6:$K$939,M28) -> 114.2658 | Q28: 0.13 | R28: =INDEX(Kab_Werte!$B$6:$B$939,M28)*INDEX(Kab_Werte!$G$6:$G$939,M28) -> 70 | S28: 91.22134253 | T28: 310.1265823 | U28: 137.1846336 | V28: 177.2151899 | X28: =INDEX(Kab_Werte!$P$6:$P$939,M28) -> 0.947628 | Y28: 638.5493977 | AA28: 23.04445747 | AD28: 5
A29: 132 | B29: ='Motor Kabel 500V Mehrleiter'!B29/SQRT(3) -> 103.9230485 | C29: ='Motor Kabel 500V Mehrleiter'!C29/SQRT(3) -> 108.5418506 | D29: ='Motor Kabel 500V Mehrleiter'!D29/SQRT(3) -> 108.5418506 | E29: =INDEX(Kab_Werte!$E$6:$E$939,M29) -> NYY-J | F29: =INDEX(Kab_Werte!$F$6:$F$939,M29) -> 3x70/35 | G29: 137 | H29: IA=5 x ISich | I29: 400 | J29: =INDEX(Kab_Werte!$U$6:$U$939,M29) -> 1x 38 | M29: 12 | O29: 137 | P29: =INDEX(Kab_Werte!$K$6:$K$939,M29) -> 114.2658 | Q29: 0.13 | R29: =INDEX(Kab_Werte!$B$6:$B$939,M29)*INDEX(Kab_Werte!$G$6:$G$939,M29) -> 70 | S29: 108.5418506 | T29: 260.6382979 | U29: 137.1846336 | V29: 148.9361702 | X29: =INDEX(Kab_Werte!$P$6:$P$939,M29) -> 0.947628 | Y29: 759.7929543 | AA29: 5.723949392 | AD29: 5
A30: 160 | B30: ='Motor Kabel 500V Mehrleiter'!B30/SQRT(3) -> 122.3982571 | C30: ='Motor Kabel 500V Mehrleiter'!C30/SQRT(3) -> 129.3264603 | D30: ='Motor Kabel 500V Mehrleiter'!D30/SQRT(3) -> 131.6358614 | E30: =INDEX(Kab_Werte!$E$6:$E$939,M30) -> NYY-J | F30: =INDEX(Kab_Werte!$F$6:$F$939,M30) -> 3x95/50 | G30: 144 | H30: IA=5 x ISich | I30: 500 | J30: =INDEX(Kab_Werte!$U$6:$U$939,M30) -> 1x 44 | M30: 14 | O30: 144 | P30: =INDEX(Kab_Werte!$K$6:$K$939,M30) -> 141.2532 | Q30: 0.1 | R30: =INDEX(Kab_Werte!$B$6:$B$939,M30)*INDEX(Kab_Werte!$G$6:$G$939,M30) -> 95 | S30: 131.6358614 | T30: 291.6666667 | U30: 144.0984481 | V30: 166.6666667 | X30: =INDEX(Kab_Werte!$P$6:$P$939,M30) -> 0.69397 | Y30: 921.4510296 | AA30: 9.617338625 | AD30: 5
A31: 200 | B31: ='Motor Kabel 500V Mehrleiter'!B31/SQRT(3) -> 150.11107 | C31: ='Motor Kabel 500V Mehrleiter'!C31/SQRT(3) -> 157.0392732 | D31: ='Motor Kabel 500V Mehrleiter'!D31/SQRT(3) -> 159.3486743 | E31: =INDEX(Kab_Werte!$E$6:$E$939,M31) -> NYY-J | F31: =INDEX(Kab_Werte!$F$6:$F$939,M31) -> 3x120/70 | G31: 174 | H31: IA=5 x ISich | I31: 500 | J31: =INDEX(Kab_Werte!$U$6:$U$939,M31) -> 1x 48 | M31: 16 | O31: 174 | P31: =INDEX(Kab_Werte!$K$6:$K$939,M31) -> 163.647 | Q31: 0.1 | R31: =INDEX(Kab_Werte!$B$6:$B$939,M31)*INDEX(Kab_Werte!$G$6:$G$939,M31) -> 120 | S31: 159.3486743 | T31: 304.3478261 | U31: 198.5204273 | V31: 173.9130435 | X31: =INDEX(Kab_Werte!$P$6:$P$939,M31) -> 0.5037265 | Y31: 1115.44072 | AA31: 4.298325704 | AD31: 5
A32: 250 | B32: ='Motor Kabel 500V Mehrleiter'!B32/SQRT(3) -> 191.6802894 | C32: ='Motor Kabel 500V Mehrleiter'!C32/SQRT(3) -> 196.2990915 | D32: ='Motor Kabel 500V Mehrleiter'!D32/SQRT(3) -> 198.6084926 | E32: =INDEX(Kab_Werte!$E$6:$E$939,M32) -> NYY-J | F32: =INDEX(Kab_Werte!$F$6:$F$939,M32) -> 3x185/95 | G32: 215 | H32: IA=5 x ISich | I32: 630 | J32: =INDEX(Kab_Werte!$U$6:$U$939,M32) -> 1x 57 | M32: 20 | O32: 215 | P32: =INDEX(Kab_Werte!$K$6:$K$939,M32) -> 214.7508 | Q32: 0.08 | R32: =INDEX(Kab_Werte!$B$6:$B$939,M32)*INDEX(Kab_Werte!$G$6:$G$939,M32) -> 185 | S32: 198.6084926 | T32: 376.4534884 | U32: 228.8999654 | V32: 215.1162791 | X32: =INDEX(Kab_Werte!$P$6:$P$939,M32) -> 0.34949765 | Y32: 1390.259448 | AA32: 16.1423074 | AD32: 5
A33: 315 | B33: ='Motor Kabel 500V Mehrleiter'!B33/SQRT(3) -> 240.177712 | C33: ='Motor Kabel 500V Mehrleiter'!C33/SQRT(3) -> 249.4153163 | D33: ='Motor Kabel 500V Mehrleiter'!D33/SQRT(3) -> 249.4153163 | E33: =INDEX(Kab_Werte!$E$6:$E$939,M33) -> NYY-J | F33: =INDEX(Kab_Werte!$F$6:$F$939,M33) -> 3x240/120 | G33: 222 | H33: IA=5 x ISich | I33: 630 | J33: =INDEX(Kab_Werte!$U$6:$U$939,M33) -> 1x 64 | M33: 23 | O33: 222 | P33: =INDEX(Kab_Werte!$K$6:$K$939,M33) -> 255.519 | Q33: 0.08 | R33: =INDEX(Kab_Werte!$B$6:$B$939,M33)*INDEX(Kab_Werte!$G$6:$G$939,M33) -> 240 | S33: 249.4153163 | T33: 388.8888889 | U33: 292.7394041 | V33: 222.2222222 | X33: =INDEX(Kab_Werte!$P$6:$P$939,M33) -> 0.2732806 | Y33: 1745.907214 | AA33: 6.10368371 | AD33: 5
A34: 355 | B34: ='Motor Kabel 500V Mehrleiter'!B34/SQRT(3) -> 272.5093271 | C34: ='Motor Kabel 500V Mehrleiter'!C34/SQRT(3) -> 281.7469314 | E34: =INDEX(Kab_Werte!$E$6:$E$939,M34) -> NYY-J | F34: =INDEX(Kab_Werte!$F$6:$F$939,M34) -> 2x(3x95/50) | G34: 156 | H34: IA=5 x ISich | I34: 630 | J34: =INDEX(Kab_Werte!$U$6:$U$939,M34) -> 2x 44 | M34: 25 | O34: 156 | P34: =INDEX(Kab_Werte!$K$6:$K$939,M34) -> 282.5064 | Q34: 0.08 | R34: =INDEX(Kab_Werte!$B$6:$B$939,M34)*INDEX(Kab_Werte!$G$6:$G$939,M34) -> 190 | S34: 281.7469314 | T34: 272.5409836 | U34: 230.5575169 | V34: 155.7377049 | X34: =INDEX(Kab_Werte!$P$6:$P$939,M34) -> 0.346985 | Y34: 1972.22852 | AA34: 0.7594686355 | AD34: 5
M35: 1 | AA35: 0 | AD35: 10
A36: ACHTUNG ALLE KABEL 2 mal in Kabelliste eintragen. Einmal Kxxxx_YDS oder wie immer die Bezeichnung für Stern Dreieck-Kabel lautet Einmal Kxxxx_YDD oder wie immer die Bezeichnung für Stern Dreieck-Kabel lautet | M36: 1 | AA36: 0 | AD36: 10
M37: 1 | AA37: 0 | AD37: 10
M38: 1 | AA38: 0 | AD38: 10
M39: 1 | AA39: 0 | AD39: 10
M40: 1 | AA40: 0 | AD40: 10
M41: 1 | AA41: 0 | AD41: 10
M42: 1 | AA42: 0 | AD42: 10
M43: 1 | AA43: 0 | AD43: 10
M44: 1 | AA44: 0 | AD44: 10
A47: Dimensionierungsgrundlage:
A49: 1) Betriebsspannung | G49: 500 V
A50: 2) Netz -System | G50: IT - System
A51: 3) Spannungsfall | G51: =CONCATENATE("ΔU Betr. ",Berechnungswerte!G20, " %"," ΔU Anlauf ",Berechnungswerte!G10, " %") -> ΔU Betr. 2,5 % ΔU Anlauf 10 %
A52: 4) Belastbarkeit der Kabel | G52: lt. DIN VDE 0298, Teil 4 | J52: Tab 7
A53: 5) Verlegung in Luft bei | C53: =MSLuft -> 40 | D53: °C | G53: f1 = | H53: =AbmTemp -> 0.87 | J53: Tab 15
A54: =SechsA1 -> 6a) Vierleiterkabel: Verlegung auf 6 Kabelpritsche(n) mit gegenseitiger | G54: f2 = | H54: =AbmHaeufung -> 0.66 | J54: Tab 18
A55: =SechsA2 -> und Wand- Berührung 9 Kabel nebeneinander liegend, KS-fest verl.
A56: =SechsB1 -> 6b) Einleiterkabel: Verlegung auf 6 Kabelpritsche(n) gebündelt im | G56: f2 = | H56: =AbmHäuf_Einleiter -> 0.87 | J56: Tab 16
A57: =SechsB2 -> Abstand 2d 3 Drehstromsysteme nebeneinander, KS-fest verl.
A58: 7a) Reduzierung der Belastbarkeit (6a) | G58: f = f1 * f2 | I58: f = | J58: =Reduz_a -> 0.5742
A59: 7b) Reduzierung der Belastbarkeit (6b) | G59: f = f1 * f2 | I59: f = | J59: =Reduz_b -> 0.7569
A60: 8) Abschaltströme: Sicherung Motorschutzschalter Leistungsschalter * | G60: IA = m x Isich IA = 12 x IMS *IA = 1x ILS (Ii) | J60: (Einstellung Unverzögerter Kurzschluss)
A63: ="Znr.: "& Znr -> Znr.: P0000.KB.01 | E63: Motor Kabel YD 500V | K63: =Datum -> 2019-01-07
A64: =Revision -> Rev.: V.6.3 | E64: =Berechnungswerte!G45 -> I:\P_MSR\Diverses\Berechnungen\Leistungskabel | K64: =MName -> Mustermann

Sheet Motor Kabel 690V Mehrleiter
A1: =CONCATENATE("Verlegung in Luft bei ",Berechnungswerte!E12,"°C"," Spannungsfall ΔU Betrieb ",Berechnungswerte!G20, "%"," ΔU Anlauf ",Berechnungswerte!G10, " %") -> Verlegung in Luft bei 40°C Spannungsfall ΔU Betrieb 2,5% ΔU Anlauf 10 % | E1: Kabel Berechnung 690V Motorabgänge Kabeltype NYY-J im TN-C System Sicherungsabgang | M1: Pos (INDEX) | N1: Spannungsfall ΔU in V | O1: kleinste Abschaltbedingung | P1: =CONCATENATE("Belastbarkeit in Luft Strom in A bei einer Temp. von ",Berechnungswerte!E12,"°C",) -> Belastbarkeit in Luft Strom in A bei einer Temp. von 40°C | Q1: max. Schleifen -widerstand ZS =400 / m x IN in Ohm | R1: Kabelquerschnitt | S1: Max Strom Motor | T1: lmax=ΔU xK*A / Wurzel(3)*I | U1: Länge l=Z S/Z´ x 1000 in (m) | V1: Anlauf lmax= DeltaU x K * A Wurzel(3) * I | X1: Z Hin und Rückleiter (SUMME) | Y1: Anlaufstrom I S | AA1: ABFRAGE zum AUTOMATISCHEN AUSFÜLLEN | AB1: ABFRAGE zum AUTOMATISCHEN AUSFÜLLEN | AD1: Abschaltfaktor m für Sicherungen bis 32A / >32A ÖNORM E8001-1-A4
A2: Motor | B2: Nennstrom bei Drehzahl: | E2: Kabel | F2: Kabel | G2: Kritische | I2: I | J2: Kabel | K2: Bemerkung
M3: ΔU690V | N3: =DeltaU690V -> 17.25 | P3: 1 | V3: =MOTDUmax -> 10 | W3: %
F4: Kabelanzahl x Adern x [mm²] | M4: Index ab 1 | V4: =690/100*V3 -> 69 | W4: V
A5: Leistung [kW] | B5: 3000 rpm [A] | C5: 1500 rpm [A] | D5: 1000 rpm [A] | E5: Type | G5: Länge [m] | H5: Abschalt beding. | I5: Sicherung [A] | J5: ø [mm]
M7: Kritische Länge [m] oder (nur wenn möglich) Reduzierten Querschnitt auf Voll ändern heißt >> Index um +1 erhöhen
AA8: =P8-S8 -> 0
A9: 0.55 | B9: 0.8 | C9: 0.9 | D9: 0.9 | E9: =INDEX(Kab_Werte!$E$6:$E$939,M9) -> NYY-J | F9: =INDEX(Kab_Werte!$F$6:$F$939,M9) -> 4x2,5 | G9: =O9 -> 226 | H9: =CONCATENATE("IA=",AD9," x ISich") -> IA=10 x ISich | I9: 10 | J9: =INDEX(Kab_Werte!$U$6:$U$939,M9) -> 1x 17 | K9: =IF(S9>(P9),"Kabel ist überlastet!","") ->  | M9: 1 | O9: =ROUND(MIN(T9:V9),0) -> 226 | P9: =INDEX(Kab_Werte!$K$6:$K$939,M9) -> 14.355 | Q9: =400/(I9*AD9) -> 4 | R9: =INDEX(Kab_Werte!$B$6:$B$939,M9)*INDEX(Kab_Werte!$G$6:$G$939,M9) -> 2.5 | S9: =MAX(B9:D9) -> 0.9 | T9: =(DeltaU690V*KCu*R9)/(SQRT(3)*S9) -> 1549.223222 | U9: =Q9/X9*1000 -> 225.5792169 | V9: =$V$4*56*R9/SQRT(3)/Y9 -> 885.2704128 | X9: =INDEX(Kab_Werte!$P$6:$P$939,M9) -> 17.73213 | Y9: =MAX(B9:D9)*IS -> 6.3 | AA9: =P9-S9 -> 13.455 | AD9: =IF(I9>125,5,IF(I9>32,3.5,10)) -> 10
A10: 0.75 | B10: 1 | C10: 1.1 | D10: 1.2 | E10: =INDEX(Kab_Werte!$E$6:$E$939,M10) -> NYY-J | F10: =INDEX(Kab_Werte!$F$6:$F$939,M10) -> 4x2,5 | G10: =O10 -> 226 | H10: =CONCATENATE("IA=",AD10," x ISich") -> IA=10 x ISich | I10: 10 | J10: =INDEX(Kab_Werte!$U$6:$U$939,M10) -> 1x 17 | M10: 1 | O10: =ROUND(MIN(T10:V10),0) -> 226 | P10: =INDEX(Kab_Werte!$K$6:$K$939,M10) -> 14.355 | Q10: =400/(I10*AD10) -> 4 | R10: =INDEX(Kab_Werte!$B$6:$B$939,M10)*INDEX(Kab_Werte!$G$6:$G$939,M10) -> 2.5 | S10: =MAX(B10:D10) -> 1.2 | T10: 1161.917417 | U10: 225.5792169 | V10: 663.9528096 | X10: =INDEX(Kab_Werte!$P$6:$P$939,M10) -> 17.73213 | Y10: 8.4 | AA10: 13.155 | AD10: =IF(I10>125,5,IF(I10>32,3.5,10)) -> 10
A11: 1.1 | B11: 1.4 | C11: 1.5 | D11: 1.7 | E11: =INDEX(Kab_Werte!$E$6:$E$939,M11) -> NYY-J | F11: =INDEX(Kab_Werte!$F$6:$F$939,M11) -> 4x2,5 | G11: 226 | H11: IA=10 x ISich | I11: 10 | J11: =INDEX(Kab_Werte!$U$6:$U$939,M11) -> 1x 17 | M11: 1 | O11: 226 | P11: =INDEX(Kab_Werte!$K$6:$K$939,M11) -> 14.355 | Q11: 4 | R11: =INDEX(Kab_Werte!$B$6:$B$939,M11)*INDEX(Kab_Werte!$G$6:$G$939,M11) -> 2.5 | S11: =MAX(B11:D11) -> 1.7 | T11: 820.1770001 | U11: 225.5792169 | V11: 468.6725715 | X11: =INDEX(Kab_Werte!$P$6:$P$939,M11) -> 17.73213 | Y11: 11.9 | AA11: 12.655 | AD11: 10
A12: 1.5 | B12: 1.9 | C12: 2 | D12: 2.2 | E12: =INDEX(Kab_Werte!$E$6:$E$939,M12) -> NYY-J | F12: =INDEX(Kab_Werte!$F$6:$F$939,M12) -> 4x2,5 | G12: 226 | H12: IA=10 x ISich | I12: 10 | J12: =INDEX(Kab_Werte!$U$6:$U$939,M12) -> 1x 17 | M12: 1 | O12: 226 | P12: =INDEX(Kab_Werte!$K$6:$K$939,M12) -> 14.355 | Q12: 4 | R12: =INDEX(Kab_Werte!$B$6:$B$939,M12)*INDEX(Kab_Werte!$G$6:$G$939,M12) -> 2.5 | S12: 2.2 | T12: 633.7731364 | U12: 225.5792169 | V12: 362.1560779 | X12: =INDEX(Kab_Werte!$P$6:$P$939,M12) -> 17.73213 | Y12: 15.4 | AA12: 12.155 | AD12: 10
A13: 2.2 | B13: 2.7 | C13: 2.7 | D13: 3 | E13: =INDEX(Kab_Werte!$E$6:$E$939,M13) -> NYY-J | F13: =INDEX(Kab_Werte!$F$6:$F$939,M13) -> 4x2,5 | G13: 226 | H13: IA=10 x ISich | I13: 10 | J13: =INDEX(Kab_Werte!$U$6:$U$939,M13) -> 1x 17 | M13: 1 | O13: 226 | P13: =INDEX(Kab_Werte!$K$6:$K$939,M13) -> 14.355 | Q13: 4 | R13: =INDEX(Kab_Werte!$B$6:$B$939,M13)*INDEX(Kab_Werte!$G$6:$G$939,M13) -> 2.5 | S13: 3 | T13: 464.7669667 | U13: 225.5792169 | V13: 265.5811238 | X13: =INDEX(Kab_Werte!$P$6:$P$939,M13) -> 17.73213 | Y13: 21 | AA13: 11.355 | AD13: 10
A14: 3 | B14: 3.5 | C14: 3.7 | D14: 4.2 | E14: =INDEX(Kab_Werte!$E$6:$E$939,M14) -> NYY-J | F14: =INDEX(Kab_Werte!$F$6:$F$939,M14) -> 4x2,5 | G14: 141 | H14: IA=10 x ISich | I14: 16 | J14: =INDEX(Kab_Werte!$U$6:$U$939,M14) -> 1x 17 | M14: 1 | O14: 141 | P14: =INDEX(Kab_Werte!$K$6:$K$939,M14) -> 14.355 | Q14: 2.5 | R14: =INDEX(Kab_Werte!$B$6:$B$939,M14)*INDEX(Kab_Werte!$G$6:$G$939,M14) -> 2.5 | S14: 4.2 | T14: 331.9764048 | U14: 140.9870106 | V14: 189.7008027 | X14: =INDEX(Kab_Werte!$P$6:$P$939,M14) -> 17.73213 | Y14: 29.4 | AA14: 10.155 | AD14: 10
A15: 4 | B15: 4.5 | C15: 4.7 | D15: 5.2 | E15: =INDEX(Kab_Werte!$E$6:$E$939,M15) -> NYY-J | F15: =INDEX(Kab_Werte!$F$6:$F$939,M15) -> 4x2,5 | G15: 141 | H15: IA=10 x ISich | I15: 16 | J15: =INDEX(Kab_Werte!$U$6:$U$939,M15) -> 1x 17 | M15: 1 | O15: 141 | P15: =INDEX(Kab_Werte!$K$6:$K$939,M15) -> 14.355 | Q15: 2.5 | R15: =INDEX(Kab_Werte!$B$6:$B$939,M15)*INDEX(Kab_Werte!$G$6:$G$939,M15) -> 2.5 | S15: 5.2 | T15: 268.1347885 | U15: 140.9870106 | V15: 153.2198791 | X15: =INDEX(Kab_Werte!$P$6:$P$939,M15) -> 17.73213 | Y15: 36.4 | AA15: 9.155 | AD15: 10
A16: 5.5 | B16: 6 | C16: 6.6 | D16: 7.2 | E16: =INDEX(Kab_Werte!$E$6:$E$939,M16) -> NYY-J | F16: =INDEX(Kab_Werte!$F$6:$F$939,M16) -> 4x2,5 | G16: 111 | H16: IA=10 x ISich | I16: 20 | J16: =INDEX(Kab_Werte!$U$6:$U$939,M16) -> 1x 17 | M16: 1 | O16: 111 | P16: =INDEX(Kab_Werte!$K$6:$K$939,M16) -> 14.355 | Q16: 2 | R16: =INDEX(Kab_Werte!$B$6:$B$939,M16)*INDEX(Kab_Werte!$G$6:$G$939,M16) -> 2.5 | S16: 7.2 | T16: 193.6529028 | U16: 112.7896085 | V16: 110.6588016 | X16: =INDEX(Kab_Werte!$P$6:$P$939,M16) -> 17.73213 | Y16: 50.4 | AA16: 7.155 | AD16: 10
A17: 7.5 | B17: 8 | C17: 8.8 | D17: 9.8 | E17: =INDEX(Kab_Werte!$E$6:$E$939,M17) -> NYY-J | F17: =INDEX(Kab_Werte!$F$6:$F$939,M17) -> 4x2,5 | G17: 81 | H17: IA=10 x ISich | I17: 25 | J17: =INDEX(Kab_Werte!$U$6:$U$939,M17) -> 1x 17 | M17: 1 | O17: 81 | P17: =INDEX(Kab_Werte!$K$6:$K$939,M17) -> 14.355 | Q17: 1.6 | R17: =INDEX(Kab_Werte!$B$6:$B$939,M17)*INDEX(Kab_Werte!$G$6:$G$939,M17) -> 2.5 | S17: 9.8 | T17: 142.2756021 | U17: 90.23168677 | V17: 81.30034403 | X17: =INDEX(Kab_Werte!$P$6:$P$939,M17) -> 17.73213 | Y17: 68.6 | AA17: 4.555 | AD17: 10
A18: 11 | B18: 11.5 | C18: 12.4 | D18: 14.1 | E18: =INDEX(Kab_Werte!$E$6:$E$939,M18) -> NYY-J | F18: =INDEX(Kab_Werte!$F$6:$F$939,M18) -> 4x2,5 | G18: 57 | H18: IA=3,5 x ISich | I18: 35 | J18: =INDEX(Kab_Werte!$U$6:$U$939,M18) -> 1x 17 | M18: 1 | O18: 57 | P18: =INDEX(Kab_Werte!$K$6:$K$939,M18) -> 14.355 | Q18: 3.265306122 | R18: =INDEX(Kab_Werte!$B$6:$B$939,M18)*INDEX(Kab_Werte!$G$6:$G$939,M18) -> 2.5 | S18: 14.1 | T18: 98.88658866 | U18: 184.1462995 | V18: 56.50662209 | X18: =INDEX(Kab_Werte!$P$6:$P$939,M18) -> 17.73213 | Y18: 98.7 | AA18: 0.255 | AD18: 3.5
A19: 15 | B19: 15.3 | C19: 16.5 | D19: 18.2 | E19: =INDEX(Kab_Werte!$E$6:$E$939,M19) -> NYY-J | F19: =INDEX(Kab_Werte!$F$6:$F$939,M19) -> 4x4 | G19: 70 | H19: IA=3,5 x ISich | I19: 35 | J19: =INDEX(Kab_Werte!$U$6:$U$939,M19) -> 1x 19 | M19: 2 | O19: 70 | P19: =INDEX(Kab_Werte!$K$6:$K$939,M19) -> 19.5228 | Q19: 3.265306122 | R19: =INDEX(Kab_Werte!$B$6:$B$939,M19)*INDEX(Kab_Werte!$G$6:$G$939,M19) -> 4 | S19: 18.2 | T19: 122.5759033 | U19: 295.9922082 | V19: 70.04337332 | X19: =INDEX(Kab_Werte!$P$6:$P$939,M19) -> 11.03173 | Y19: 127.4 | AA19: 1.3228 | AD19: 3.5
A20: 18.5 | B20: 18.8 | C20: 20.2 | D20: 21 | E20: =INDEX(Kab_Werte!$E$6:$E$939,M20) -> NYY-J | F20: =INDEX(Kab_Werte!$F$6:$F$939,M20) -> 4x6 | G20: 91 | H20: IA=3,5 x ISich | I20: 50 | J20: =INDEX(Kab_Werte!$U$6:$U$939,M20) -> 1x 20 | M20: 3 | O20: 91 | P20: =INDEX(Kab_Werte!$K$6:$K$939,M20) -> 24.6906 | Q20: 2.285714286 | R20: =INDEX(Kab_Werte!$B$6:$B$939,M20)*INDEX(Kab_Werte!$G$6:$G$939,M20) -> 6 | S20: 21 | T20: 159.3486743 | U20: 310.119109 | V20: 91.05638531 | X20: =INDEX(Kab_Werte!$P$6:$P$939,M20) -> 7.37044 | Y20: 147 | AA20: 3.6906 | AD20: 3.5
A21: 22 | B21: 23.4 | C21: 24 | D21: 25.1 | E21: =INDEX(Kab_Werte!$E$6:$E$939,M21) -> NYY-J | F21: =INDEX(Kab_Werte!$F$6:$F$939,M21) -> 4x10 | G21: 127 | H21: IA=3,5 x ISich | I21: 63 | J21: =INDEX(Kab_Werte!$U$6:$U$939,M21) -> 1x 22 | M21: 4 | O21: 127 | P21: =INDEX(Kab_Werte!$K$6:$K$939,M21) -> 33.8778 | Q21: 1.814058957 | R21: =INDEX(Kab_Werte!$B$6:$B$939,M21)*INDEX(Kab_Werte!$G$6:$G$939,M21) -> 10 | S21: 25.1 | T21: 222.1993466 | U21: 414.2453186 | V21: 126.9710552 | X21: =INDEX(Kab_Werte!$P$6:$P$939,M21) -> 4.37919 | Y21: 175.7 | AA21: 8.7778 | AD21: 3.5
A22: 30 | B22: 31.2 | C22: 32.3 | D22: 32.9 | E22: =INDEX(Kab_Werte!$E$6:$E$939,M22) -> NYY-J | F22: =INDEX(Kab_Werte!$F$6:$F$939,M22) -> 4x10 | G22: 97 | H22: IA=3,5 x ISich | I22: 100 | J22: =INDEX(Kab_Werte!$U$6:$U$939,M22) -> 1x 22 | M22: 4 | O22: 97 | P22: =INDEX(Kab_Werte!$K$6:$K$939,M22) -> 33.8778 | Q22: 1.142857143 | R22: =INDEX(Kab_Werte!$B$6:$B$939,M22)*INDEX(Kab_Werte!$G$6:$G$939,M22) -> 10 | S22: 32.9 | T22: 169.5198663 | U22: 260.9745507 | V22: 96.86849501 | X22: =INDEX(Kab_Werte!$P$6:$P$939,M22) -> 4.37919 | Y22: 230.3 | AA22: 0.9778 | AD22: 3.5
A23: 37 | B23: 37.5 | C23: 39.3 | D23: 40.4 | E23: =INDEX(Kab_Werte!$E$6:$E$939,M23) -> NYY-J | F23: =INDEX(Kab_Werte!$F$6:$F$939,M23) -> 4x16 | G23: 126 | H23: IA=3,5 x ISich | I23: 100 | J23: =INDEX(Kab_Werte!$U$6:$U$939,M23) -> 1x 25 | M23: 5 | O23: 126 | P23: =INDEX(Kab_Werte!$K$6:$K$939,M23) -> 44.7876 | Q23: 1.142857143 | R23: =INDEX(Kab_Werte!$B$6:$B$939,M23)*INDEX(Kab_Werte!$G$6:$G$939,M23) -> 16 | S23: 40.4 | T23: 220.8793505 | U23: 415.2899373 | V23: 126.2167717 | X23: =INDEX(Kab_Werte!$P$6:$P$939,M23) -> 2.75195 | Y23: 282.8 | AA23: 4.3876 | AD23: 3.5
A24: 45 | B24: 45.6 | C24: 46.8 | D24: 47.9 | E24: =INDEX(Kab_Werte!$E$6:$E$939,M24) -> NYY-J | F24: =INDEX(Kab_Werte!$F$6:$F$939,M24) -> 3x25/16 | G24: 166 | H24: IA=3,5 x ISich | I24: 125 | J24: =INDEX(Kab_Werte!$U$6:$U$939,M24) -> 1x 30 | M24: 6 | O24: 166 | P24: =INDEX(Kab_Werte!$K$6:$K$939,M24) -> 60.291 | Q24: 0.9142857143 | R24: =INDEX(Kab_Werte!$B$6:$B$939,M24)*INDEX(Kab_Werte!$G$6:$G$939,M24) -> 25 | S24: 47.9 | T24: 291.0857829 | U24: 407.1036146 | V24: 166.3347331 | X24: =INDEX(Kab_Werte!$P$6:$P$939,M24) -> 2.2458305 | Y24: 335.3 | AA24: 12.391 | AD24: 3.5
A25: 55 | B25: 55.4 | C25: 57.8 | D25: 54 | E25: =INDEX(Kab_Werte!$E$6:$E$939,M25) -> NYY-J | F25: =INDEX(Kab_Werte!$F$6:$F$939,M25) -> 3x25/16 | G25: 138 | H25: IA=3,5 x ISich | I25: 125 | J25: =INDEX(Kab_Werte!$U$6:$U$939,M25) -> 1x 30 | M25: 6 | O25: 138 | P25: =INDEX(Kab_Werte!$K$6:$K$939,M25) -> 60.291 | Q25: 0.9142857143 | R25: =INDEX(Kab_Werte!$B$6:$B$939,M25)*INDEX(Kab_Werte!$G$6:$G$939,M25) -> 25 | S25: 57.8 | T25: 241.2285294 | U25: 407.1036146 | V25: 137.844874 | X25: =INDEX(Kab_Werte!$P$6:$P$939,M25) -> 2.2458305 | Y25: 404.6 | AA25: 2.491 | AD25: 3.5
A26: 75 | B26: 75 | C26: 78.5 | D26: 79.7 | E26: =INDEX(Kab_Werte!$E$6:$E$939,M26) -> NYY-J | F26: =INDEX(Kab_Werte!$F$6:$F$939,M26) -> 3x50/25 | G26: 200 | H26: IA=5 x ISich | I26: 160 | J26: =INDEX(Kab_Werte!$U$6:$U$939,M26) -> 1x 35 | M26: 10 | O26: 200 | P26: =INDEX(Kab_Werte!$K$6:$K$939,M26) -> 90.1494 | Q26: 0.5 | R26: =INDEX(Kab_Werte!$B$6:$B$939,M26)*INDEX(Kab_Werte!$G$6:$G$939,M26) -> 50 | S26: 79.7 | T26: 349.8873024 | U26: 375.1216332 | V26: 199.9356014 | X26: =INDEX(Kab_Werte!$P$6:$P$939,M26) -> 1.332901 | Y26: 557.9 | AA26: 10.4494 | AD26: 5
A27: 90 | B27: 89 | C27: 92.3 | D27: 94.3 | E27: =INDEX(Kab_Werte!$E$6:$E$939,M27) -> NYY-J | F27: =INDEX(Kab_Werte!$F$6:$F$939,M27) -> 3x70/35 | G27: 237 | H27: IA=5 x ISich | I27: 200 | J27: =INDEX(Kab_Werte!$U$6:$U$939,M27) -> 1x 38 | M27: 12 | O27: 237 | P27: =INDEX(Kab_Werte!$K$6:$K$939,M27) -> 114.2658 | Q27: 0.4 | R27: =INDEX(Kab_Werte!$B$6:$B$939,M27)*INDEX(Kab_Werte!$G$6:$G$939,M27) -> 70 | S27: 94.3 | T27: 414.0023882 | U27: 422.106565 | V27: 236.5727932 | X27: =INDEX(Kab_Werte!$P$6:$P$939,M27) -> 0.947628 | Y27: 660.1 | AA27: 19.9658 | AD27: 5
A28: 110 | B28: 110 | C28: 114 | D28: 113 | E28: =INDEX(Kab_Werte!$E$6:$E$939,M28) -> NYY-J | F28: =INDEX(Kab_Werte!$F$6:$F$939,M28) -> 3x70/35 | G28: 196 | H28: IA=5 x ISich | I28: 200 | J28: =INDEX(Kab_Werte!$U$6:$U$939,M28) -> 1x 38 | M28: 12 | O28: 196 | P28: =INDEX(Kab_Werte!$K$6:$K$939,M28) -> 114.2658 | Q28: 0.4 | R28: =INDEX(Kab_Werte!$B$6:$B$939,M28)*INDEX(Kab_Werte!$G$6:$G$939,M28) -> 70 | S28: 114 | T28: 342.4598702 | U28: 422.106565 | V28: 195.6913544 | X28: =INDEX(Kab_Werte!$P$6:$P$939,M28) -> 0.947628 | Y28: 798 | AA28: 0.2658 | AD28: 5
A29: 132 | B29: 130 | C29: 136 | D29: 136 | E29: =INDEX(Kab_Werte!$E$6:$E$939,M29) -> NYY-J | F29: =INDEX(Kab_Werte!$F$6:$F$939,M29) -> 3x95/50 | G29: 223 | H29: IA=5 x ISich | I29: 250 | J29: =INDEX(Kab_Werte!$U$6:$U$939,M29) -> 1x 44 | M29: 14 | O29: 223 | P29: =INDEX(Kab_Werte!$K$6:$K$939,M29) -> 141.2532 | Q29: 0.32 | R29: =INDEX(Kab_Werte!$B$6:$B$939,M29)*INDEX(Kab_Werte!$G$6:$G$939,M29) -> 95 | S29: 136 | T29: 389.584075 | U29: 461.1150338 | V29: 222.6194714 | X29: =INDEX(Kab_Werte!$P$6:$P$939,M29) -> 0.69397 | Y29: 952 | AA29: 5.2532 | AD29: 5
A30: 160 | B30: 153 | C30: 162 | D30: 165 | E30: =INDEX(Kab_Werte!$E$6:$E$939,M30) -> NYY-J | F30: =INDEX(Kab_Werte!$F$6:$F$939,M30) -> 3x150/70 | G30: 290 | H30: IA=5 x ISich | I30: 400 | J30: =INDEX(Kab_Werte!$U$6:$U$939,M30) -> 1x 52 | M30: 18 | O30: 290 | P30: =INDEX(Kab_Werte!$K$6:$K$939,M30) -> 187.1892 | Q30: 0.2 | R30: =INDEX(Kab_Werte!$B$6:$B$939,M30)*INDEX(Kab_Werte!$G$6:$G$939,M30) -> 150 | S30: 165 | T30: 507.0185091 | U30: 426.4137749 | V30: 289.7248624 | X30: =INDEX(Kab_Werte!$P$6:$P$939,M30) -> 0.469028 | Y30: 1155 | AA30: 22.1892 | AD30: 5
A31: 200 | B31: 188 | C31: 196 | D31: 199 | E31: =INDEX(Kab_Werte!$E$6:$E$939,M31) -> NYY-J | F31: =INDEX(Kab_Werte!$F$6:$F$939,M31) -> 3x185/95 | G31: 296 | H31: IA=5 x ISich | I31: 500 | J31: =INDEX(Kab_Werte!$U$6:$U$939,M31) -> 1x 57 | M31: 20 | O31: 296 | P31: =INDEX(Kab_Werte!$K$6:$K$939,M31) -> 214.7508 | Q31: 0.16 | R31: =INDEX(Kab_Werte!$B$6:$B$939,M31)*INDEX(Kab_Werte!$G$6:$G$939,M31) -> 185 | S31: 199 | T31: 518.4837518 | U31: 457.7999308 | V31: 296.2764296 | X31: =INDEX(Kab_Werte!$P$6:$P$939,M31) -> 0.34949765 | Y31: 1393 | AA31: 15.7508 | AD31: 5
A32: 250 | B32: 240 | C32: 245 | D32: 248 | E32: =INDEX(Kab_Werte!$E$6:$E$939,M32) -> NYY-J | F32: =INDEX(Kab_Werte!$F$6:$F$939,M32) -> 3x240/120 | G32: 308 | H32: IA=5 x ISich | I32: 500 | J32: =INDEX(Kab_Werte!$U$6:$U$939,M32) -> 1x 64 | M32: 23 | O32: 308 | P32: =INDEX(Kab_Werte!$K$6:$K$939,M32) -> 255.519 | Q32: 0.16 | R32: =INDEX(Kab_Werte!$B$6:$B$939,M32)*INDEX(Kab_Werte!$G$6:$G$939,M32) -> 240 | S32: 248 | T32: 539.7293807 | U32: 585.4788082 | V32: 308.416789 | X32: =INDEX(Kab_Werte!$P$6:$P$939,M32) -> 0.2732806 | Y32: 1736 | AA32: 7.519 | AD32: 5
A33: 315 | B33: 300 | C33: 311 | D33: 312 | E33: =INDEX(Kab_Werte!$E$6:$E$939,M33) -> NYY-J | F33: =INDEX(Kab_Werte!$F$6:$F$939,M33) -> 2x(3x120/70) | G33: 245 | H33: IA=5 x ISich | I33: 630 | J33: =INDEX(Kab_Werte!$U$6:$U$939,M33) -> 2x 48 | M33: 26 | O33: 245 | P33: =INDEX(Kab_Werte!$K$6:$K$939,M33) -> 327.294 | Q33: 0.126984127 | R33: =INDEX(Kab_Werte!$B$6:$B$939,M33)*INDEX(Kab_Werte!$G$6:$G$939,M33) -> 240 | S33: 312 | T33: 429.0156616 | U33: 504.1788629 | V33: 245.1518066 | X33: =INDEX(Kab_Werte!$P$6:$P$939,M33) -> 0.25186325 | Y33: 2184 | AA33: 15.294 | AD33: 5
A34: 355 | B34: 341 | C34: 352 | D34: - | E34: =INDEX(Kab_Werte!$E$6:$E$939,M34) -> NYY-J | F34: =INDEX(Kab_Werte!$F$6:$F$939,M34) -> 2x(3x150/70) | G34: 272 | H34: IA=5 x ISich | I34: 630 | J34: =INDEX(Kab_Werte!$U$6:$U$939,M34) -> 2x 52 | M34: 27 | O34: 272 | P34: =INDEX(Kab_Werte!$K$6:$K$939,M34) -> 374.3784 | Q34: 0.126984127 | R34: =INDEX(Kab_Werte!$B$6:$B$939,M34)*INDEX(Kab_Werte!$G$6:$G$939,M34) -> 300 | S34: 352 | T34: 475.3298523 | U34: 541.4778094 | V34: 271.6170585 | X34: =INDEX(Kab_Werte!$P$6:$P$939,M34) -> 0.234514 | Y34: 2464 | AA34: 22.3784 | AD34: 5
A35: 400 | B35: 381 | C35: 398 | D35: 398 | E35: =INDEX(Kab_Werte!$E$6:$E$939,M35) -> NYY-J | F35: =INDEX(Kab_Werte!$F$6:$F$939,M35) -> 2x(3x185/95) | G35: 296 | H35: IA=5 x ISich | I35: 630 | J35: =INDEX(Kab_Werte!$U$6:$U$939,M35) -> 2x 57 | M35: 28 | O35: 296 | P35: =INDEX(Kab_Werte!$K$6:$K$939,M35) -> 429.5016 | Q35: 0.126984127 | R35: =INDEX(Kab_Werte!$B$6:$B$939,M35)*INDEX(Kab_Werte!$G$6:$G$939,M35) -> 370 | S35: 398 | T35: 518.4837518 | U35: 726.6665569 | V35: 296.2764296 | X35: =INDEX(Kab_Werte!$P$6:$P$939,M35) -> 0.174748825 | Y35: 2786 | AA35: 31.5016 | AD35: 5
A36: 450 | B36: - | C36: - | D36: 450 | E36: =INDEX(Kab_Werte!$E$6:$E$939,M36) -> NYY-J | F36: =INDEX(Kab_Werte!$F$6:$F$939,M36) -> 2x(3x240/120) | G36: 340 | H36: IA=5 x ISich | I36: 630 | J36: =INDEX(Kab_Werte!$U$6:$U$939,M36) -> 2x 64 | M36: 29 | O36: 340 | P36: =INDEX(Kab_Werte!$K$6:$K$939,M36) -> 511.038 | Q36: 0.126984127 | R36: =INDEX(Kab_Werte!$B$6:$B$939,M36)*INDEX(Kab_Werte!$G$6:$G$939,M36) -> 480 | S36: 450 | T36: 594.9017174 | U36: 929.3314416 | V36: 339.9438385 | X36: =INDEX(Kab_Werte!$P$6:$P$939,M36) -> 0.1366403 | Y36: 3150 | AA36: 61.038 | AD36: 5
A37: 500 | B37: 473 | C37: 491 | D37: 496 | E37: =INDEX(Kab_Werte!$E$6:$E$939,M37) -> NYY-J | F37: =INDEX(Kab_Werte!$F$6:$F$939,M37) -> 2x(3x240/120) | G37: 308 | H37: IA=5 x ISich | I37: 630 | J37: =INDEX(Kab_Werte!$U$6:$U$939,M37) -> 2x 64 | M37: 29 | O37: 308 | P37: =INDEX(Kab_Werte!$K$6:$K$939,M37) -> 511.038 | Q37: 0.126984127 | R37: =INDEX(Kab_Werte!$B$6:$B$939,M37)*INDEX(Kab_Werte!$G$6:$G$939,M37) -> 480 | S37: 496 | T37: 539.7293807 | U37: 929.3314416 | V37: 308.416789 | X37: =INDEX(Kab_Werte!$P$6:$P$939,M37) -> 0.1366403 | Y37: 3472 | AA37: 15.038 | AD37: 5
M38: 1 | AA38: 0 | AD38: 10
M39: 1 | AA39: 0 | AD39: 10
M40: 1 | AA40: 0 | AD40: 10
M41: 1 | AA41: 0 | AD41: 10
M42: 1 | AA42: 0 | AD42: 10
M43: 1 | AA43: 0 | AD43: 10
M44: 1 | AA44: 0 | AD44: 10
A47: Dimensionierungsgrundlage:
A49: 1) Betriebsspannung | G49: 690 V
A50: 2) Netz -System | G50: TN-C System
A51: 3) Spannungsfall | G51: =CONCATENATE("ΔU Betr. ",Berechnungswerte!G20, " %"," ΔU Anlauf ",Berechnungswerte!G10, " %") -> ΔU Betr. 2,5 % ΔU Anlauf 10 %
A52: 4) Belastbarkeit der Kabel | G52: lt. DIN VDE 0298, Teil 4 | J52: Tab 7
A53: 5) Verlegung in Luft bei | C53: =MSLuft -> 40 | D53: °C | G53: f1 = | H53: =AbmTemp -> 0.87 | J53: Tab 15
A54: =SechsA1 -> 6a) Vierleiterkabel: Verlegung auf 6 Kabelpritsche(n) mit gegenseitiger | G54: f2 = | H54: =AbmHaeufung -> 0.66 | J54: Tab 18
A55: =SechsA2 -> und Wand- Berührung 9 Kabel nebeneinander liegend, KS-fest verl.
A56: =SechsB1 -> 6b) Einleiterkabel: Verlegung auf 6 Kabelpritsche(n) gebündelt im | G56: f2 = | H56: =AbmHäuf_Einleiter -> 0.87 | J56: Tab 16
A57: =SechsB2 -> Abstand 2d 3 Drehstromsysteme nebeneinander, KS-fest verl.
A58: 7a) Reduzierung der Belastbarkeit (6a) | G58: f = f1 * f2 | I58: f = | J58: =Reduz_a -> 0.5742
A59: 7b) Reduzierung der Belastbarkeit (6b) | G59: f = f1 * f2 | I59: f = | J59: =Reduz_b -> 0.7569
A60: 8) Abschaltströme: Sicherung Motorschutzschalter Leistungsschalter * | G60: IA = m x Isich IA = 12 x IMS *IA = 1x ILS (Ii) | J60: (Einstellung Unverzögerter Kurzschluss)
A63: ="Znr.: "& Znr -> Znr.: P0000.KB.01 | E63: Motor Kabel NYY-J 690V | K63: =Datum -> 2019-01-07
A64: =Revision -> Rev.: V.6.3 | E64: =Berechnungswerte!G45 -> I:\P_MSR\Diverses\Berechnungen\Leistungskabel | K64: =MName -> Mustermann

Sheet Motor Kabel 690V Einleiter
A1: =CONCATENATE("Verlegung in Luft bei ",Berechnungswerte!E12,"°C"," Spannungsfall ΔU Betrieb ",Berechnungswerte!G20, "%"," ΔU Anlauf ",Berechnungswerte!G10, " %") -> Verlegung in Luft bei 40°C Spannungsfall ΔU Betrieb 2,5% ΔU Anlauf 10 % | E1: Kabel Berechnung 690V Motorabgänge Kabeltype NYY-0 im TN-C System LS - Abgang | M1: Pos (INDEX) | N1: Spannungsfall ΔU in V | O1: kleinste Abschaltbedingung | P1: =CONCATENATE("Belastbarkeit in Luft Strom in A bei einer Temp. von ",Berechnungswerte!E12,"°C",) -> Belastbarkeit in Luft Strom in A bei einer Temp. von 40°C | Q1: max. Schleifen -widerstand ZS =400 / 1 x IN in Ohm | R1: Kabelquerschnitt | S1: Max Strom Motor | T1: lmax=ΔU xK*A / Wurzel(3)*I | U1: Länge l=Z S/Z´ x 1000 in (m) | V1: Anlauf lmax= DeltaU x K * A Wurzel(3) * I | X1: Z Hin und Rückleiter (SUMME) | Y1: Anlaufstrom I S | AA1: ABFRAGE zum AUTOMATISCHEN AUSFÜLLEN | AB1: ABFRAGE zum AUTOMATISCHEN AUSFÜLLEN
A2: Motor | B2: Nennstrom bei Drehzahl: | E2: Kabel | F2: Kabel | G2: Kritische | I2: I | J2: Kabel | K2: Bemerkung
M3: ΔU690V | N3: =DeltaU690V -> 17.25 | V3: =MOTDUmax -> 10 | W3: %
F4: Kabelanzahl x Adern x [mm²] | I4: Leistungs- | M4: Einleiterkabel ab 401 | P4: 401 | V4: =690/100*V3 -> 69 | W4: V
A5: Leistung [kW] | B5: 3000 rpm [A] | C5: 1500 rpm [A] | D5: 1000 rpm [A] | E5: Type | G5: Länge [m] | H5: Abschalt beding. | I5: Schalter [A] | J5: ø [mm]
M7: Kritische Länge [m] oder (nur wenn möglich) Reduzierten Querschnitt auf Voll ändern heißt >> Index um +1 erhöhen
AB8: =P8-S8 -> 0
A9: 560 | B9: 525 | C9: 548 | D9: 554 | E9: =INDEX(Kab_Werte!$E$6:$E$939,N9) -> NYY-0 | F9: =INDEX(Kab_Werte!$F$6:$F$939,N9) -> (1x3+1)x1x500 | G9: =O9 -> 288 | H9: ILS (Ii) | I9: 4400 | J9: =INDEX(Kab_Werte!$U$6:$U$939,N9) -> 4x 42 | K9: =IF(S9>(P9),"Kabel ist überlastet!","") ->  | N9: 409 | O9: =ROUND(MIN(T9:V9),0) -> 288 | P9: =INDEX(Kab_Werte!$K$6:$K$939,N9) -> 565.4043 | Q9: =400/(I9) -> 0.09090909091 | R9: =INDEX(Kab_Werte!$B$6:$B$939,N9)*INDEX(Kab_Werte!$G$6:$G$939,N9) -> 500 | S9: =MAX(B9:D9) -> 554 | T9: =(DeltaU690V*KCu*R9)/(SQRT(3)*S9) -> 503.3577257 | U9: =Q9/X9*1000 -> 1037.966963 | V9: =$V$4*56*R9/SQRT(3)/Y9 -> 287.6329861 | X9: =INDEX(Kab_Werte!$P$6:$P$939,N9) -> 0.0875838 | Y9: =MAX(B9:D9)*IS -> 3878 | AB9: =P9-S9 -> 11.4043
A10: 630 | B10: 589 | C10: 612 | D10: 635 | E10: =INDEX(Kab_Werte!$E$6:$E$939,N10) -> NYY-0 | F10: =INDEX(Kab_Werte!$F$6:$F$939,N10) -> (1x3+1)x1x630 | G10: 316 | H10: ILS (Ii) | I10: 4600 | J10: =INDEX(Kab_Werte!$U$6:$U$939,N10) -> 4x 45 | N10: 411 | O10: 316 | P10: =INDEX(Kab_Werte!$K$6:$K$939,N10) -> 644.1219 | Q10: =400/(I10) -> 0.08695652174 | R10: =INDEX(Kab_Werte!$B$6:$B$939,N10)*INDEX(Kab_Werte!$G$6:$G$939,N10) -> 630 | S10: 635 | T10: 553.3288611 | U10: 1284.023658 | V10: 316.1879207 | X10: =INDEX(Kab_Werte!$P$6:$P$939,N10) -> 0.0677219 | Y10: 4445 | AB10: 9.1219
A11: 710 | B11: 670 | C11: 690 | D11: 710 | E11: =INDEX(Kab_Werte!$E$6:$E$939,N11) -> NYY-0 | F11: =INDEX(Kab_Werte!$F$6:$F$939,N11) -> (2x3+1)x1x240 | G11: 215 | H11: ILS (Ii) | I11: 5200 | J11: =INDEX(Kab_Werte!$U$6:$U$939,N11) -> 7x 31 | N11: 412 | O11: 215 | P11: =INDEX(Kab_Werte!$K$6:$K$939,N11) -> 731.1654 | Q11: 0.07692307692 | R11: =INDEX(Kab_Werte!$B$6:$B$939,N11)*INDEX(Kab_Werte!$G$6:$G$939,N11) -> 480 | S11: =MAX(B11:D11) -> 710 | T11: 377.0503843 | U11: 568.4356925 | V11: 215.4573624 | X11: =INDEX(Kab_Werte!$P$6:$P$939,N11) -> 0.13532415 | Y11: 4970 | AB11: 21.1654
A12: 800 | B12: 760 | C12: 780 | D12: 790 | E12: =INDEX(Kab_Werte!$E$6:$E$939,N12) -> NYY-0 | F12: =INDEX(Kab_Werte!$F$6:$F$939,N12) -> (2x3+1)x1x300 | G12: 242 | H12: ILS (Ii) | I12: 6250 | J12: =INDEX(Kab_Werte!$U$6:$U$939,N12) -> 7x 33 | N12: 413 | O12: 242 | P12: =INDEX(Kab_Werte!$K$6:$K$939,N12) -> 835.6176 | Q12: 0.064 | R12: =INDEX(Kab_Werte!$B$6:$B$939,N12)*INDEX(Kab_Werte!$G$6:$G$939,N12) -> 600 | S12: =MAX(B12:D12) -> 790 | T12: 423.5850836 | U12: 593.3371483 | V12: 242.0486192 | X12: =INDEX(Kab_Werte!$P$6:$P$939,N12) -> 0.107864475 | Y12: 5530 | AB12: 45.6176
A13: 900 | B13: 840 | C13: 880 | D13: - | E13: =INDEX(Kab_Werte!$E$6:$E$939,N13) -> NYY-0 | F13: =INDEX(Kab_Werte!$F$6:$F$939,N13) -> (2x3+1)x1x400 | G13: 290 | H13: ILS (Ii) | I13: 7000 | J13: =INDEX(Kab_Werte!$U$6:$U$939,N13) -> 7x 38 | N13: 414 | O13: 290 | P13: =INDEX(Kab_Werte!$K$6:$K$939,N13) -> 977.9148 | Q13: 0.05714285714 | R13: =INDEX(Kab_Werte!$B$6:$B$939,N13)*INDEX(Kab_Werte!$G$6:$G$939,N13) -> 800 | S13: =MAX(B13:D13) -> 880 | T13: 507.0185091 | U13: 677.4233019 | V13: 289.7248624 | X13: =INDEX(Kab_Werte!$P$6:$P$939,N13) -> 0.08435325 | Y13: 6160 | AB13: 97.9148
A14: 1000 | B14: 920 | C14: 970 | D14: - | E14: =INDEX(Kab_Werte!$E$6:$E$939,N14) -> NYY-0 | F14: =INDEX(Kab_Werte!$F$6:$F$939,N14) -> (2x3+1)x1x400 | G14: 263 | H14: ILS (Ii) | I14: 7750 | J14: =INDEX(Kab_Werte!$U$6:$U$939,N14) -> 7x 38 | N14: 414 | O14: 263 | P14: =INDEX(Kab_Werte!$K$6:$K$939,N14) -> 977.9148 | Q14: 0.05161290323 | R14: =INDEX(Kab_Werte!$B$6:$B$939,N14)*INDEX(Kab_Werte!$G$6:$G$939,N14) -> 800 | S14: =MAX(B14:D14) -> 970 | T14: 459.9755547 | U14: 611.8662082 | V14: 262.8431741 | X14: =INDEX(Kab_Werte!$P$6:$P$939,N14) -> 0.08435325 | Y14: 6790 | AB14: 7.9148
